Workbook

Sheet Velkomst

Sheet Tabel 1 ØJ
A1: Tabel 1. Forsikrede medlemmer
A3: Østjylland
C5: Mænd | E5: Kvinder | G5: I alt
A7: Civ. ing. | C7: 3512 | E7: 1169 | G7: 4681
A8: Diplom ing. | C8: 5889 | E8: 1285 | G8: 7174
A9: Cand. Scient. Tek. | C9: 2069 | E9: 1396 | G9: 3465
A10: MA. Hum. | C10: 2765 | E10: 5911 | G10: 8676
A11: MA. Nat. | C11: 1610 | E11: 1347 | G11: 2957
A12: MA. Ph.d. | C12: 322 | E12: 265 | G12: 587
A13: MA. Samf. | C13: 213 | E13: 744 | G13: 957
A14: Øvrige Mag. | C14: 246 | E14: 466 | G14: 712
A15: Agronom | C15: 185 | E15: 151 | G15: 336
A16: Landsk. Arkt. | C16: 14 | E16: 28 | G16: 42
A17: Hortonom | C17: 12 | E17: 14 | G17: 26
A18: Forstkand. | C18: 39 | E18: 14 | G18: 53
A19: Jordbrugsakad. | C19: 250 | E19: 207 | G19: 457
A20: Mejeriing. | C20: 58 | E20: 30 | G20: 88
A21: Levn.m.kand. | C21: 4 | E21: 31 | G21: 35
A22: Dyrlæge | C22: 35 | E22: 205 | G22: 240
A23: Farmaceut | C23: 85 | E23: 294 | G23: 379
A24: Læge | C24: 853 | E24: 1979 | G24: 2832
A25: Tandlæge | C25: 81 | E25: 408 | G25: 489
A26: Arkitekt | C26: 701 | E26: 886 | G26: 1587
A27: Landinspek. | C27: 103 | E27: 41 | G27: 144
A28: Bibliotekar | C28: 70 | E28: 264 | G28: 334
A29: Musikudd. | C29: 63 | E29: 78 | G29: 141
A30: Teolog | C30: 124 | E30: 200 | G30: 324
A31: Psykolog | C31: 349 | E31: 1741 | G31: 2090
A32: Jurist | C32: 911 | E32: 1685 | G32: 2596
A33: Økonom | C33: 953 | E33: 538 | G33: 1491
A34: Samf. Adm. | C34: 1439 | E34: 2079 | G34: 3518
A35: Cand. Merc. | C35: 4076 | E35: 3701 | G35: 7777
A36: HA | C36: 666 | E36: 573 | G36: 1239
A37: HD | C37: 446 | E37: 379 | G37: 825
A38: Komm. og Sprog | C38: 168 | E38: 1097 | G38: 1265
A39: Bygningskonst. | C39: 2037 | E39: 375 | G39: 2412
A40: Cand. IT. | C40: 607 | E40: 605 | G40: 1212
A41: Bac. Samf. | C41: 102 | E41: 105 | G41: 207
A42: Bac. Hum. | C42: 412 | E42: 663 | G42: 1075
A43: Bac. Nat. | C43: 650 | E43: 243 | G43: 893
A44: Andre | C44: 1771 | E44: 1638 | G44: 3409
A46: Total | C46: 33640 | E46: 32628 | G46: 66268
A48: Ingeniører i alt | C48: 9401 | E48: 2454 | G48: 11855
A49: Magistre i alt | C49: 5156 | E49: 8733 | G49: 13889
A50: DJØF'ere i alt | C50: 8045 | E50: 8576 | G50: 16621
A57: Horsens
C59: Mænd | E59: Kvinder | G59: I alt
A61: Civ. ing. | C61: 240 | E61: 95 | G61: 335
A62: Diplom ing. | C62: 705 | E62: 235 | G62: 940
A63: Cand. Scient. Tek. | C63: 100 | E63: 83 | G63: 183
A64: MA. Hum. | C64: 137 | E64: 304 | G64: 441
A65: MA. Nat. | C65: 66 | E65: 77 | G65: 143
A66: MA. Ph.d. | C66: 5 | E66: 6 | G66: 11
A67: MA. Samf. | C67: 10 | E67: 29 | G67: 39
A68: Øvrige Mag. | C68: 16 | E68: 18 | G68: 34
A69: Agronom | C69: 17 | E69: 18 | G69: 35
A70: Landsk. Arkt. | C70: 1 | E70: 1 | G70: 2
A71: Hortonom | C71: 0 | E71: 1 | G71: 1
A72: Forstkand. | C72: 6 | E72: 0 | G72: 6
A73: Jordbrugsakad. | C73: 24 | E73: 20 | G73: 44
A74: Mejeriing. | C74: 5 | E74: 1 | G74: 6
A75: Levn.m.kand. | C75: 0 | E75: 1 | G75: 1
A76: Dyrlæge | C76: 6 | E76: 16 | G76: 22
A77: Farmaceut | C77: 4 | E77: 18 | G77: 22
A78: Læge | C78: 27 | E78: 73 | G78: 100
A79: Tandlæge | C79: 4 | E79: 19 | G79: 23
A80: Arkitekt | C80: 32 | E80: 40 | G80: 72
A81: Landinspek. | C81: 13 | E81: 6 | G81: 19
A82: Bibliotekar | C82: 5 | E82: 24 | G82: 29
A83: Musikudd. | C83: 3 | E83: 5 | G83: 8
A84: Teolog | C84: 8 | E84: 8 | G84: 16
A85: Psykolog | C85: 17 | E85: 88 | G85: 105
A86: Jurist | C86: 46 | E86: 114 | G86: 160
A87: Økonom | C87: 34 | E87: 38 | G87: 72
A88: Samf. Adm. | C88: 79 | E88: 109 | G88: 188
A89: Cand. Merc. | C89: 246 | E89: 279 | G89: 525
A90: HA | C90: 53 | E90: 46 | G90: 99
A91: HD | C91: 36 | E91: 31 | G91: 67
A92: Komm. og Sprog | C92: 10 | E92: 70 | G92: 80
A93: Bygningskonst. | C93: 420 | E93: 88 | G93: 508
A94: Cand. IT. | C94: 23 | E94: 30 | G94: 53
A95: Bac. Samf. | C95: 8 | E95: 11 | G95: 19
A96: Bac. Hum. | C96: 13 | E96: 34 | G96: 47
A97: Bac. Nat. | C97: 112 | E97: 31 | G97: 143
A98: Andre | C98: 158 | E98: 111 | G98: 269
A100: Total | C100: 2665 | E100: 2158 | G100: 4823
A102: Ingeniører i alt | C102: 945 | E102: 330 | G102: 1275
A103: Magistre i alt | C103: 234 | E103: 434 | G103: 668
A104: DJØF'ere i alt | C104: 458 | E104: 586 | G104: 1044
A111: Syddjurs
C113: Mænd | E113: Kvinder | G113: I alt
A115: Civ. ing. | C115: 71 | E115: 98 | G115: 169
A116: Diplom ing. | C116: 0 | E116: 0 | G116: 0
A117: Cand. Scient. Tek. | C117: 206 | E117: 239 | G117: 445
A118: MA. Hum. | C118: 44 | E118: 91 | G118: 135
A119: MA. Nat. | C119: 88 | E119: 291 | G119: 379
A120: MA. Ph.d. | C120: 65 | E120: 115 | G120: 180
A121: MA. Samf. | C121: 12 | E121: 24 | G121: 36
A122: Øvrige Mag. | C122: 7 | E122: 28 | G122: 35
A123: Agronom | C123: 9 | E123: 27 | G123: 36
A124: Landsk. Arkt. | C124: 18 | E124: 30 | G124: 48
A125: Hortonom | C125: 0 | E125: 5 | G125: 5
A126: Forstkand. | C126: 2 | E126: 3 | G126: 5
A127: Jordbrugsakad. | C127: 29 | E127: 65 | G127: 94
A128: Mejeriing. | C128: 2 | E128: 3 | G128: 5
A129: Levn.m.kand. | C129: 1 | E129: 2 | G129: 3
A130: Dyrlæge | C130: 3 | E130: 12 | G130: 15
A131: Farmaceut | C131: 2 | E131: 9 | G131: 11
A132: Læge | C132: 12 | E132: 53 | G132: 65
A133: Tandlæge | C133: 3 | E133: 19 | G133: 22
A134: Arkitekt | C134: 29 | E134: 79 | G134: 108
A135: Landinspek. | C135: 2 | E135: 5 | G135: 7
A136: Bibliotekar | C136: 2 | E136: 13 | G136: 15
A137: Musikudd. | C137: 3 | E137: 6 | G137: 9
A138: Teolog | C138: 4 | E138: 17 | G138: 21
A139: Psykolog | C139: 11 | E139: 73 | G139: 84
A140: Jurist | C140: 19 | E140: 59 | G140: 78
A141: Økonom | C141: 18 | E141: 30 | G141: 48
A142: Samf. Adm. | C142: 22 | E142: 86 | G142: 108
A143: Cand. Merc. | C143: 69 | E143: 146 | G143: 215
A144: HA | C144: 16 | E144: 43 | G144: 59
A145: HD | C145: 13 | E145: 26 | G145: 39
A146: Komm. og Sprog | C146: 5 | E146: 47 | G146: 52
A147: Bygningskonst. | C147: 66 | E147: 76 | G147: 142
A148: Cand. IT. | C148: 15 | E148: 25 | G148: 40
A149: Bac. Samf. | C149: 2 | E149: 3 | G149: 5
A150: Bac. Hum. | C150: 13 | E150: 21 | G150: 34
A151: Bac. Nat. | C151: 12 | E151: 18 | G151: 30
A152: Andre | C152: 62 | E152: 113 | G152: 175
A154: Total | C154: 928 | E154: 1935 | G154: 2863
A156: Ingeniører i alt | C156: 71 | E156: 98 | G156: 169
A157: Magistre i alt | C157: 216 | E157: 549 | G157: 765
A158: DJØF'ere i alt | C158: 144 | E158: 364 | G158: 508
A165: Norddjurs
C167: Mænd | E167: Kvinder | G167: I alt
A169: Civ. ing. | C169: 17 | E169: 28 | G169: 45
A170: Diplom ing. | C170: 71 | E170: 93 | G170: 164
A171: Cand. Scient. Tek. | C171: 14 | E171: 22 | G171: 36
A172: MA. Hum. | C172: 22 | E172: 78 | G172: 100
A173: MA. Nat. | C173: 21 | E173: 35 | G173: 56
A174: MA. Ph.d. | C174: 4 | E174: 6 | G174: 10
A175: MA. Samf. | C175: 2 | E175: 7 | G175: 9
A176: Øvrige Mag. | C176: 1 | E176: 6 | G176: 7
A177: Agronom | C177: 4 | E177: 9 | G177: 13
A178: Landsk. Arkt. | C178: 0 | E178: 0 | G178: 0
A179: Hortonom | C179: 1 | E179: 1 | G179: 2
A180: Forstkand. | C180: 2 | E180: 2 | G180: 4
A181: Jordbrugsakad. | C181: 7 | E181: 12 | G181: 19
A182: Mejeriing. | C182: 0 | E182: 0 | G182: 0
A183: Levn.m.kand. | C183: 0 | E183: 3 | G183: 3
A184: Dyrlæge | C184: 0 | E184: 8 | G184: 8
A185: Farmaceut | C185: 1 | E185: 4 | G185: 5
A186: Læge | C186: 2 | E186: 6 | G186: 8
A187: Tandlæge | C187: 0 | E187: 4 | G187: 4
A188: Arkitekt | C188: 4 | E188: 7 | G188: 11
A189: Landinspek. | C189: 2 | E189: 2 | G189: 4
A190: Bibliotekar | C190: 1 | E190: 6 | G190: 7
A191: Musikudd. | C191: 2 | E191: 3 | G191: 5
A192: Teolog | C192: 6 | E192: 14 | G192: 20
A193: Psykolog | C193: 2 | E193: 12 | G193: 14
A194: Jurist | C194: 4 | E194: 15 | G194: 19
A195: Økonom | C195: 4 | E195: 6 | G195: 10
A196: Samf. Adm. | C196: 13 | E196: 20 | G196: 33
A197: Cand. Merc. | C197: 23 | E197: 45 | G197: 68
A198: HA | C198: 8 | E198: 14 | G198: 22
A199: HD | C199: 7 | E199: 11 | G199: 18
A200: Komm. og Sprog | C200: 0 | E200: 9 | G200: 9
A201: Bygningskonst. | C201: 28 | E201: 32 | G201: 60
A202: Cand. IT. | C202: 2 | E202: 6 | G202: 8
A203: Bac. Samf. | C203: 1 | E203: 2 | G203: 3
A204: Bac. Hum. | C204: 3 | E204: 9 | G204: 12
A205: Bac. Nat. | C205: 1 | E205: 4 | G205: 5
A206: Andre | C206: 25 | E206: 38 | G206: 63
A208: Total | C208: 298 | E208: 567 | G208: 865
A210: Ingeniører i alt | C210: 88 | E210: 121 | G210: 209
A211: Magistre i alt | C211: 50 | E211: 132 | G211: 182
A212: DJØF'ere i alt | C212: 52 | E212: 100 | G212: 152
A219: Favrskov
C221: Mænd | E221: Kvinder | G221: I alt
A223: Civ. ing. | C223: 226 | E223: 78 | G223: 304
A224: Diplom ing. | C224: 368 | E224: 62 | G224: 430
A225: Cand. Scient. Tek. | C225: 88 | E225: 75 | G225: 163
A226: MA. Hum. | C226: 86 | E226: 259 | G226: 345
A227: MA. Nat. | C227: 99 | E227: 80 | G227: 179
A228: MA. Ph.d. | C228: 11 | E228: 7 | G228: 18
A229: MA. Samf. | C229: 6 | E229: 19 | G229: 25
A230: Øvrige Mag. | C230: 9 | E230: 11 | G230: 20
A231: Agronom | C231: 24 | E231: 17 | G231: 41
A232: Landsk. Arkt. | C232: 2 | E232: 2 | G232: 4
A233: Hortonom | C233: 2 | E233: 2 | G233: 4
A234: Forstkand. | C234: 5 | E234: 1 | G234: 6
A235: Jordbrugsakad. | C235: 33 | E235: 22 | G235: 55
A236: Mejeriing. | C236: 3 | E236: 1 | G236: 4
A237: Levn.m.kand. | C237: 0 | E237: 1 | G237: 1
A238: Dyrlæge | C238: 2 | E238: 19 | G238: 21
A239: Farmaceut | C239: 0 | E239: 10 | G239: 10
A240: Læge | C240: 41 | E240: 110 | G240: 151
A241: Tandlæge | C241: 4 | E241: 19 | G241: 23
A242: Arkitekt | C242: 12 | E242: 22 | G242: 34
A243: Landinspek. | C243: 10 | E243: 2 | G243: 12
... 330 more rows

Sheet Tabel 2 ØJ
A1: Tabel 2. Antal bruttoledighedsberørte og gennemsnitlig antal ledige brutto
A3: Østjylland
C5: Mænd | F5: Kvinder | I5: I alt
C6: Ledigheds- berørte | D6: Gns. brutto- ledighed | F6: Ledigheds- berørte | G6: Gns. brutto- ledighed | I6: Ledigheds- berørte | J6: Gns. brutto- ledighed
A9: Civ. ing. | C9: 135 | D9: 108.1775089 | F9: 48 | G9: 40.64616728 | I9: 183 | J9: 148.8236762
A10: Diplom ing. | C10: 144 | D10: 116.7853802 | F10: 44 | G10: 32.37634878 | I10: 188 | J10: 149.1617289
A11: Cand. Scient. Tek. | C11: 157 | D11: 130.6050022 | F11: 145 | G11: 115.5953346 | I11: 302 | J11: 246.2003368
A12: MA. Hum. | C12: 303 | D12: 245.1375288 | F12: 556 | G12: 445.9202894 | I12: 859 | J12: 691.0578182
A13: MA. Nat. | C13: 66 | D13: 54.63232084 | F13: 54 | G13: 42.25971434 | I13: 120 | J13: 96.89203518
A14: MA. Ph.d. | C14: 5 | D14: 4.663506518 | F14: 9 | G14: 7.475207385 | I14: 14 | J14: 12.1387139
A15: MA. Samf. | C15: 36 | D15: 30.05114451 | F15: 127 | G15: 99.6376224 | I15: 163 | J15: 129.6887669
A16: Øvrige Mag. | C16: 30 | D16: 24.84500717 | F16: 65 | G16: 51.14700929 | I16: 95 | J16: 75.99201647
A17: Agronom | C17: 3 | D17: 2.122497349 | F17: 4 | G17: 3.707353583 | I17: 7 | J17: 5.829850932
A18: Landsk. Arkt. | C18: 1 | D18: 0.9998128859 | F18: 1 | G18: 0.7690388574 | I18: 2 | J18: 1.768851743
A19: Hortonom | C19: 0 | D19: 0 | F19: 2 | G19: 1.999625772 | I19: 2 | J19: 1.999625772
A20: Forstkand. | C20: 2 | D20: 1.768851743 | F20: 0 | G20: 0 | I20: 2 | J20: 1.768851743
A21: Jordbrugsakad. | C21: 6 | D21: 4.891161978 | F21: 7 | G21: 6.476018212 | I21: 13 | J21: 11.36718019
A22: Mejeriing. | C22: 1 | D22: 0.8151936631 | F22: 1 | G22: 0.9998128859 | I22: 2 | J22: 1.815006549
A23: Levn.m.kand. | C23: 1 | D23: 0.9998128859 | F23: 3 | G23: 2.030187738 | I23: 4 | J23: 3.030000624
A24: Dyrlæge | C24: 0 | D24: 0 | F24: 1 | G24: 0.9998128859 | I24: 1 | J24: 0.9998128859
A25: Farmaceut | C25: 9 | D25: 7.84444583 | F25: 24 | G25: 16.3974303 | I25: 33 | J25: 24.24187613
A26: Læge | C26: 31 | D26: 24.35601572 | F26: 74 | G26: 58.81931017 | I26: 105 | J26: 83.17532589
A27: Tandlæge | C27: 7 | D27: 4.996569575 | F27: 17 | G27: 9.830973617 | I27: 24 | J27: 14.82754319
A28: Arkitekt | C28: 49 | D28: 42.48487495 | F28: 75 | G28: 57.10908751 | I28: 124 | J28: 99.59396245
A29: Landinspek. | C29: 1 | D29: 0.3954344165 | F29: 0 | G29: 0 | I29: 1 | J29: 0.3954344165
A30: Bibliotekar | C30: 1 | D30: 0.525790557 | F30: 7 | G30: 5.238570448 | I30: 8 | J30: 5.764361005
A31: Musikudd. | C31: 4 | D31: 3.22397555 | F31: 5 | G31: 3.401733924 | I31: 9 | J31: 6.625709474
A32: Teolog | C32: 6 | D32: 4.181999626 | F32: 6 | G32: 4.220669868 | I32: 12 | J32: 8.402669494
A33: Psykolog | C33: 25 | D33: 20.76155429 | F33: 151 | G33: 121.6466039 | I33: 176 | J33: 142.4081582
A34: Jurist | C34: 45 | D34: 35.19865278 | F34: 65 | G34: 51.09711221 | I34: 110 | J34: 86.29576498
A35: Økonom | C35: 32 | D35: 26.95066425 | F35: 21 | G35: 16.13734173 | I35: 53 | J35: 43.08800599
A36: Samf. Adm. | C36: 70 | D36: 55.511757 | F36: 132 | G36: 109.5646479 | I36: 202 | J36: 165.0764049
A37: Cand. Merc. | C37: 245 | D37: 190.4752698 | F37: 218 | G37: 159.7760868 | I37: 463 | J37: 350.2513566
A38: HA | C38: 60 | D38: 47.97542568 | F38: 41 | G38: 29.90519553 | I38: 101 | J38: 77.88062122
A39: HD | C39: 15 | D39: 12.45431298 | F39: 13 | G39: 10.6698684 | I39: 28 | J39: 23.12418138
A40: Komm. og Sprog | C40: 11 | D40: 10.06486621 | F40: 54 | G40: 45.66830911 | I40: 65 | J40: 55.73317533
A41: Bygningskonst. | C41: 99 | D41: 79.27181438 | F41: 38 | G41: 31.0500842 | I41: 137 | J41: 110.3218986
A42: Cand. IT. | C42: 62 | D42: 52.46055012 | F42: 73 | G42: 59.79417452 | I42: 135 | J42: 112.2547246
A43: Bac. Samf. | C43: 12 | D43: 10.70542007 | F43: 13 | G43: 10.75594087 | I43: 25 | J43: 21.46136094
A44: Bac. Hum. | C44: 63 | D44: 49.64697811 | F44: 130 | G44: 100.7634254 | I44: 193 | J44: 150.4104035
A45: Bac. Nat. | C45: 72 | D45: 55.53982411 | F45: 43 | G45: 31.41520614 | I45: 115 | J45: 86.95503025
A46: Andre | C46: 93 | D46: 73.32376972 | F46: 120 | G46: 96.74359134 | I46: 213 | J46: 170.0673611
A48: Total | C48: 1896 | D48: 1529.953533 | F48: 2380 | G48: 1875.568889 | I48: 4276 | J48: 3405.522423
A50: Ingeniører i alt | C50: 279 | D50: 224.962889 | F50: 92 | G50: 73.02251606 | I50: 371 | J50: 297.9854051
A51: Magistre i alt | C51: 440 | D51: 359.3295079 | F51: 811 | G51: 646.4398428 | I51: 1251 | J51: 1005.769351
A52: DJØF'ere i alt | C52: 452 | D52: 356.1117695 | F52: 477 | G52: 366.4803842 | I52: 929 | J52: 722.5921537
A57: Horsens
C59: Mænd | F59: Kvinder | I59: I alt
C60: Ledigheds- berørte | D60: Gns. brutto- ledighed | F60: Ledigheds- berørte | G60: Gns. brutto- ledighed | I60: Ledigheds- berørte | J60: Gns. brutto- ledighed
A63: Civ. ing. | C63: 6 | D63: 5.168090813 | F63: 3 | G63: 2.445580989 | I63: 9 | J63: 7.613671802
A64: Diplom ing. | C64: 15 | D64: 12.10066737 | F64: 6 | G64: 4.81506892 | I64: 21 | J64: 16.91573629
A65: Cand. Scient. Tek. | C65: 6 | D65: 5.029626396 | F65: 6 | G65: 5.768103287 | I65: 12 | J65: 10.79772968
A66: MA. Hum. | C66: 6 | D66: 3.27075407 | F66: 20 | G66: 15.33462234 | I66: 26 | J66: 18.60537641
A67: MA. Nat. | C67: 1 | D67: 0.9062558473 | F67: 0 | G67: 0 | I67: 1 | J67: 0.9062558473
A68: MA. Ph.d. | C68: 0 | D68: 0 | F68: 0 | G68: 0 | I68: 0 | J68: 0
A69: MA. Samf. | C69: 1 | D69: 0.1690263831 | F69: 5 | G69: 3.654337928 | I69: 6 | J69: 3.823364311
A70: Øvrige Mag. | C70: 0 | D70: 0 | F70: 1 | G70: 0.9998128859 | I70: 1 | J70: 0.9998128859
A71: Agronom | C71: 0 | D71: 0 | F71: 1 | G71: 0.9998128859 | I71: 1 | J71: 0.9998128859
A72: Landsk. Arkt. | C72: 0 | D72: 0 | F72: 0 | G72: 0 | I72: 0 | J72: 0
A73: Hortonom | C73: 0 | D73: 0 | F73: 0 | G73: 0 | I73: 0 | J73: 0
A74: Forstkand. | C74: 0 | D74: 0 | F74: 0 | G74: 0 | I74: 0 | J74: 0
A75: Jordbrugsakad. | C75: 0 | D75: 0 | F75: 1 | G75: 0.9998128859 | I75: 1 | J75: 0.9998128859
A76: Mejeriing. | C76: 0 | D76: 0 | F76: 0 | G76: 0 | I76: 0 | J76: 0
A77: Levn.m.kand. | C77: 0 | D77: 0 | F77: 0 | G77: 0 | I77: 0 | J77: 0
A78: Dyrlæge | C78: 0 | D78: 0 | F78: 0 | G78: 0 | I78: 0 | J78: 0
A79: Farmaceut | C79: 1 | D79: 0.9998128859 | F79: 1 | G79: 0.2856608245 | I79: 2 | J79: 1.28547371
A80: Læge | C80: 1 | D80: 0.8151936631 | F80: 1 | G80: 0.6767292459 | I80: 2 | J80: 1.491922909
A81: Tandlæge | C81: 0 | D81: 0 | F81: 0 | G81: 0 | I81: 0 | J81: 0
A82: Arkitekt | C82: 1 | D82: 0.9998128859 | F82: 2 | G82: 1.861161355 | I82: 3 | J82: 2.860974241
A83: Landinspek. | C83: 0 | D83: 0 | F83: 0 | G83: 0 | I83: 0 | J83: 0
A84: Bibliotekar | C84: 0 | D84: 0 | F84: 1 | G84: 0.9075032745 | I84: 1 | J84: 0.9075032745
A85: Musikudd. | C85: 1 | D85: 0.9998128859 | F85: 0 | G85: 0 | I85: 1 | J85: 0.9998128859
A86: Teolog | C86: 0 | D86: 0 | F86: 1 | G86: 0.9998128859 | I86: 1 | J86: 0.9998128859
A87: Psykolog | C87: 0 | D87: 0 | F87: 7 | G87: 4.794486372 | I87: 7 | J87: 4.794486372
A88: Jurist | C88: 0 | D88: 0 | F88: 0 | G88: 0 | I88: 0 | J88: 0
A89: Økonom | C89: 1 | D89: 0.9075032745 | F89: 1 | G89: 0.9998128859 | I89: 2 | J89: 1.90731616
A90: Samf. Adm. | C90: 1 | D90: 0.9998128859 | F90: 3 | G90: 2.399426183 | I90: 4 | J90: 3.399239069
A91: Cand. Merc. | C91: 13 | D91: 10.34117133 | F91: 9 | G91: 7.600573817 | I91: 22 | J91: 17.94174515
A92: HA | C92: 4 | D92: 2.891536207 | F92: 2 | G92: 1.076529658 | I92: 6 | J92: 3.968065864
A93: HD | C93: 3 | D93: 2.999438658 | F93: 6 | G93: 4.363500281 | I93: 9 | J93: 7.362938938
A94: Komm. og Sprog | C94: 0 | D94: 0 | F94: 5 | G94: 4.350402295 | I94: 5 | J94: 4.350402295
A95: Bygningskonst. | C95: 17 | D95: 13.25428803 | F95: 5 | G95: 3.00735982 | I95: 22 | J95: 16.26164785
A96: Cand. IT. | C96: 2 | D96: 1.768851743 | F96: 2 | G96: 1.307303686 | I96: 4 | J96: 3.076155429
A97: Bac. Samf. | C97: 0 | D97: 0 | F97: 1 | G97: 0.2151811888 | I97: 1 | J97: 0.2151811888
A98: Bac. Hum. | C98: 2 | D98: 1.168839269 | F98: 5 | G98: 3.522110647 | I98: 7 | J98: 4.690949916
A99: Bac. Nat. | C99: 16 | D99: 12.51793177 | F99: 3 | G99: 2.491735795 | I99: 19 | J99: 15.00966756
A100: Andre | C100: 10 | D100: 7.252541633 | F100: 8 | G100: 6.005114451 | I100: 18 | J100: 13.25765608
A102: Total | C102: 108 | D102: 84.560968 | F102: 105 | G102: 80.8817439 | I102: 213 | J102: 165.4427119
A104: Ingeniører i alt | C104: 21 | D104: 17.26875819 | F104: 9 | G104: 7.26064991 | I104: 30 | J104: 24.5294081
A105: Magistre i alt | C105: 8 | D105: 4.3460363 | F105: 26 | G105: 19.98877316 | I105: 34 | J105: 24.33480946
A106: DJØF'ere i alt | C106: 19 | D106: 15.1400237 | F106: 15 | G106: 12.07634254 | I106: 34 | J106: 27.21636624
A111: Syddjurs
C113: Mænd | F113: Kvinder | I113: I alt
C114: Ledigheds- berørte | D114: Gns. brutto- ledighed | F114: Ledigheds- berørte | G114: Gns. brutto- ledighed | I114: Ledigheds- berørte | J114: Gns. brutto- ledighed
A117: Civ. ing. | C117: 3 | D117: 2.445580989 | F117: 1 | G117: 0.9998128859 | I117: 4 | J117: 3.445393875
A118: Diplom ing. | C118: 4 | D118: 3.780951787 | F118: 2 | G118: 1.399613298 | I118: 6 | J118: 5.180565085
A119: Cand. Scient. Tek. | C119: 0 | D119: 0 | F119: 4 | G119: 3.092995696 | I119: 4 | J119: 3.092995696
A120: MA. Hum. | C120: 8 | D120: 6.198465665 | F120: 21 | G120: 15.43067423 | I120: 29 | J120: 21.6291399
A121: MA. Nat. | C121: 2 | D121: 1.538077715 | F121: 1 | G121: 0.4596769164 | I121: 3 | J121: 1.997754631
A122: MA. Ph.d. | C122: 1 | D122: 0.9998128859 | F122: 0 | G122: 0 | I122: 1 | J122: 0.9998128859
A123: MA. Samf. | C123: 2 | D123: 1.307303686 | F123: 3 | G123: 2.445580989 | I123: 5 | J123: 3.752884675
A124: Øvrige Mag. | C124: 0 | D124: 0 | F124: 2 | G124: 1.630387326 | I124: 2 | J124: 1.630387326
A125: Agronom | C125: 0 | D125: 0 | F125: 1 | G125: 0.9998128859 | I125: 1 | J125: 0.9998128859
A126: Landsk. Arkt. | C126: 0 | D126: 0 | F126: 0 | G126: 0 | I126: 0 | J126: 0
A127: Hortonom | C127: 0 | D127: 0 | F127: 0 | G127: 0 | I127: 0 | J127: 0
A128: Forstkand. | C128: 1 | D128: 0.9998128859 | F128: 0 | G128: 0 | I128: 1 | J128: 0.9998128859
A129: Jordbrugsakad. | C129: 1 | D129: 0.9998128859 | F129: 1 | G129: 0.9998128859 | I129: 2 | J129: 1.999625772
A130: Mejeriing. | C130: 0 | D130: 0 | F130: 0 | G130: 0 | I130: 0 | J130: 0
A131: Levn.m.kand. | C131: 0 | D131: 0 | F131: 1 | G131: 0.9998128859 | I131: 1 | J131: 0.9998128859
A132: Dyrlæge | C132: 0 | D132: 0 | F132: 0 | G132: 0 | I132: 0 | J132: 0
A133: Farmaceut | C133: 0 | D133: 0 | F133: 0 | G133: 0 | I133: 0 | J133: 0
A134: Læge | C134: 0 | D134: 0 | F134: 1 | G134: 0.9998128859 | I134: 1 | J134: 0.9998128859
A135: Tandlæge | C135: 0 | D135: 0 | F135: 0 | G135: 0 | I135: 0 | J135: 0
A136: Arkitekt | C136: 1 | D136: 0.9998128859 | F136: 4 | G136: 3.374290526 | I136: 5 | J136: 4.374103412
A137: Landinspek. | C137: 0 | D137: 0 | F137: 0 | G137: 0 | I137: 0 | J137: 0
A138: Bibliotekar | C138: 0 | D138: 0 | F138: 0 | G138: 0 | I138: 0 | J138: 0
A139: Musikudd. | C139: 0 | D139: 0 | F139: 0 | G139: 0 | I139: 0 | J139: 0
A140: Teolog | C140: 0 | D140: 0 | F140: 0 | G140: 0 | I140: 0 | J140: 0
A141: Psykolog | C141: 1 | D141: 0.7840079835 | F141: 2 | G141: 1.338489366 | I141: 3 | J141: 2.122497349
A142: Jurist | C142: 1 | D142: 0.3998004117 | F142: 0 | G142: 0 | I142: 1 | J142: 0.3998004117
A143: Økonom | C143: 0 | D143: 0 | F143: 0 | G143: 0 | I143: 0 | J143: 0
A144: Samf. Adm. | C144: 2 | D144: 1.999625772 | F144: 3 | G144: 2.511070916 | I144: 5 | J144: 4.510696688
A145: Cand. Merc. | C145: 5 | D145: 3.122933949 | F145: 1 | G145: 0.1690263831 | I145: 6 | J145: 3.291960332
A146: HA | C146: 1 | D146: 0.8613484688 | F146: 1 | G146: 0.5507391006 | I146: 2 | J146: 1.412087569
A147: HD | C147: 1 | D147: 0.6262084451 | F147: 0 | G147: 0 | I147: 1 | J147: 0.6262084451
A148: Komm. og Sprog | C148: 1 | D148: 0.9998128859 | F148: 1 | G148: 0.9998128859 | I148: 2 | J148: 1.999625772
A149: Bygningskonst. | C149: 1 | D149: 0.3999875257 | F149: 0 | G149: 0 | I149: 1 | J149: 0.3999875257
A150: Cand. IT. | C150: 0 | D150: 0 | F150: 1 | G150: 0.4459552174 | I150: 1 | J150: 0.4459552174
A151: Bac. Samf. | C151: 0 | D151: 0 | F151: 0 | G151: 0 | I151: 0 | J151: 0
A152: Bac. Hum. | C152: 0 | D152: 0 | F152: 2 | G152: 1.768851743 | I152: 2 | J152: 1.768851743
A153: Bac. Nat. | C153: 0 | D153: 0 | F153: 1 | G153: 0.9998128859 | I153: 1 | J153: 0.9998128859
A154: Andre | C154: 4 | D154: 3.635002807 | F154: 3 | G154: 2.08445082 | I154: 7 | J154: 5.719453627
A156: Total | C156: 39 | D156: 31.09854675 | F156: 56 | G156: 42.70067985 | I156: 95 | J156: 73.7992266
A158: Ingeniører i alt | C158: 7 | D158: 6.226532776 | F158: 3 | G158: 2.399426183 | I158: 10 | J158: 8.62595896
A159: Magistre i alt | C159: 13 | D159: 10.04365995 | F159: 27 | G159: 19.96631947 | I159: 40 | J159: 30.00997942
A160: DJØF'ere i alt | C160: 9 | D160: 6.383708601 | F160: 5 | G160: 3.2308364 | I160: 14 | J160: 9.614545001
A165: Norddjurs
C167: Mænd | F167: Kvinder | I167: I alt
C168: Ledigheds- berørte | D168: Gns. brutto- ledighed | F168: Ledigheds- berørte | G168: Gns. brutto- ledighed | I168: Ledigheds- berørte | J168: Gns. brutto- ledighed
A171: Civ. ing. | C171: 0 | D171: 0 | F171: 2 | G171: 1.307303686 | I171: 2 | J171: 1.307303686
A172: Diplom ing. | C172: 2 | D172: 1.491922909 | F172: 0 | G172: 0 | I172: 2 | J172: 1.491922909
A173: Cand. Scient. Tek. | C173: 3 | D173: 2.914613609 | F173: 2 | G173: 1.076529658 | I173: 5 | J173: 3.991143267
A174: MA. Hum. | C174: 1 | D174: 0.7690388574 | F174: 4 | G174: 3.554543754 | I174: 5 | J174: 4.323582611
A175: MA. Nat. | C175: 1 | D175: 0.9075032745 | F175: 1 | G175: 0.3262022079 | I175: 2 | J175: 1.233705482
A176: MA. Ph.d. | C176: 1 | D176: 0.9075032745 | F176: 0 | G176: 0 | I176: 1 | J176: 0.9075032745
A177: MA. Samf. | C177: 0 | D177: 0 | F177: 2 | G177: 1.700243248 | I177: 2 | J177: 1.700243248
A178: Øvrige Mag. | C178: 0 | D178: 0 | F178: 1 | G178: 0.7690388574 | I178: 1 | J178: 0.7690388574
A179: Agronom | C179: 0 | D179: 0 | F179: 0 | G179: 0 | I179: 0 | J179: 0
A180: Landsk. Arkt. | C180: 0 | D180: 0 | F180: 0 | G180: 0 | I180: 0 | J180: 0
A181: Hortonom | C181: 0 | D181: 0 | F181: 0 | G181: 0 | I181: 0 | J181: 0
A182: Forstkand. | C182: 1 | D182: 0.7690388574 | F182: 0 | G182: 0 | I182: 1 | J182: 0.7690388574
A183: Jordbrugsakad. | C183: 1 | D183: 0.7690388574 | F183: 0 | G183: 0 | I183: 1 | J183: 0.7690388574
A184: Mejeriing. | C184: 0 | D184: 0 | F184: 0 | G184: 0 | I184: 0 | J184: 0
A185: Levn.m.kand. | C185: 0 | D185: 0 | F185: 0 | G185: 0 | I185: 0 | J185: 0
A186: Dyrlæge | C186: 0 | D186: 0 | F186: 0 | G186: 0 | I186: 0 | J186: 0
A187: Farmaceut | C187: 0 | D187: 0 | F187: 0 | G187: 0 | I187: 0 | J187: 0
A188: Læge | C188: 0 | D188: 0 | F188: 0 | G188: 0 | I188: 0 | J188: 0
A189: Tandlæge | C189: 0 | D189: 0 | F189: 0 | G189: 0 | I189: 0 | J189: 0
A190: Arkitekt | C190: 2 | D190: 1.937254413 | F190: 0 | G190: 0 | I190: 2 | J190: 1.937254413
A191: Landinspek. | C191: 0 | D191: 0 | F191: 0 | G191: 0 | I191: 0 | J191: 0
A192: Bibliotekar | C192: 0 | D192: 0 | F192: 0 | G192: 0 | I192: 0 | J192: 0
A193: Musikudd. | C193: 1 | D193: 0.9998128859 | F193: 0 | G193: 0 | I193: 1 | J193: 0.9998128859
A194: Teolog | C194: 0 | D194: 0 | F194: 1 | G194: 0.1690263831 | I194: 1 | J194: 0.1690263831
A195: Psykolog | C195: 0 | D195: 0 | F195: 1 | G195: 0.1690263831 | I195: 1 | J195: 0.1690263831
A196: Jurist | C196: 0 | D196: 0 | F196: 0 | G196: 0 | I196: 0 | J196: 0
A197: Økonom | C197: 1 | D197: 0.9998128859 | F197: 0 | G197: 0 | I197: 1 | J197: 0.9998128859
A198: Samf. Adm. | C198: 0 | D198: 0 | F198: 0 | G198: 0 | I198: 0 | J198: 0
A199: Cand. Merc. | C199: 2 | D199: 1.630387326 | F199: 1 | G199: 0.9998128859 | I199: 3 | J199: 2.630200212
A200: HA | C200: 0 | D200: 0 | F200: 0 | G200: 0 | I200: 0 | J200: 0
A201: HD | C201: 0 | D201: 0 | F201: 1 | G201: 0.9998128859 | I201: 1 | J201: 0.9998128859
A202: Komm. og Sprog | C202: 0 | D202: 0 | F202: 0 | G202: 0 | I202: 0 | J202: 0
A203: Bygningskonst. | C203: 2 | D203: 2 | F203: 0 | G203: 0 | I203: 2 | J203: 2
A204: Cand. IT. | C204: 1 | D204: 0.9075032745 | F204: 0 | G204: 0 | I204: 1 | J204: 0.9075032745
A205: Bac. Samf. | C205: 0 | D205: 0 | F205: 0 | G205: 0 | I205: 0 | J205: 0
A206: Bac. Hum. | C206: 0 | D206: 0 | F206: 1 | G206: 0.8151936631 | I206: 1 | J206: 0.8151936631
A207: Bac. Nat. | C207: 0 | D207: 0 | F207: 2 | G207: 0.7534460176 | I207: 2 | J207: 0.7534460176
A208: Andre | C208: 1 | D208: 0.1846192229 | F208: 0 | G208: 0 | I208: 1 | J208: 0.1846192229
A210: Total | C210: 19 | D210: 16.41901079 | F210: 19 | G210: 12.64017963 | I210: 38 | J210: 29.05919042
A212: Ingeniører i alt | C212: 2 | D212: 1.491922909 | F212: 2 | G212: 1.307303686 | I212: 4 | J212: 2.799226595
A213: Magistre i alt | C213: 3 | D213: 2.584045406 | F213: 8 | G213: 6.350028067 | I213: 11 | J213: 8.934073473
A214: DJØF'ere i alt | C214: 3 | D214: 2.630200212 | F214: 1 | G214: 0.9998128859 | I214: 4 | J214: 3.630013098
A219: Favrskov
C221: Mænd | F221: Kvinder | I221: I alt
C222: Ledigheds- berørte | D222: Gns. brutto- ledighed | F222: Ledigheds- berørte | G222: Gns. brutto- ledighed | I222: Ledigheds- berørte | J222: Gns. brutto- ledighed
A225: Civ. ing. | C225: 3 | D225: 2.159296451 | F225: 2 | G225: 1.90731616 | I225: 5 | J225: 4.066612611
A226: Diplom ing. | C226: 4 | D226: 2.983845818 | F226: 0 | G226: 0 | I226: 4 | J226: 2.983845818
A227: Cand. Scient. Tek. | C227: 2 | D227: 1.999625772 | F227: 4 | G227: 3.306929458 | I227: 6 | J227: 5.30655523
A228: MA. Hum. | C228: 5 | D228: 4.102788 | F228: 13 | G228: 10.2338926 | I228: 18 | J228: 14.3366806
A229: MA. Nat. | C229: 1 | D229: 0.9998128859 | F229: 1 | G229: 0.9075032745 | I229: 2 | J229: 1.90731616
A230: MA. Ph.d. | C230: 0 | D230: 0 | F230: 0 | G230: 0 | I230: 0 | J230: 0
A231: MA. Samf. | C231: 0 | D231: 0 | F231: 2 | G231: 1.840578806 | I231: 2 | J231: 1.840578806
A232: Øvrige Mag. | C232: 0 | D232: 0 | F232: 0 | G232: 0 | I232: 0 | J232: 0
A233: Agronom | C233: 1 | D233: 0.1228715774 | F233: 0 | G233: 0 | I233: 1 | J233: 0.1228715774
A234: Landsk. Arkt. | C234: 0 | D234: 0 | F234: 0 | G234: 0 | I234: 0 | J234: 0
A235: Hortonom | C235: 0 | D235: 0 | F235: 0 | G235: 0 | I235: 0 | J235: 0
A236: Forstkand. | C236: 0 | D236: 0 | F236: 0 | G236: 0 | I236: 0 | J236: 0
A237: Jordbrugsakad. | C237: 1 | D237: 0.1228715774 | F237: 0 | G237: 0 | I237: 1 | J237: 0.1228715774
A238: Mejeriing. | C238: 0 | D238: 0 | F238: 0 | G238: 0 | I238: 0 | J238: 0
A239: Levn.m.kand. | C239: 0 | D239: 0 | F239: 0 | G239: 0 | I239: 0 | J239: 0
A240: Dyrlæge | C240: 0 | D240: 0 | F240: 0 | G240: 0 | I240: 0 | J240: 0
... 341 more rows

Sheet Tabel 3 ØJ
A1: Tabel 3. Ledige i procent af forsikrede
A3: Østjylland
C5: Mænd | F5: Kvinder | I5: I alt
C6: Ledigheds- berørte | D6: Gns. brutto- ledighed | F6: Ledigheds- berørte | G6: Gns. brutto- ledighed | I6: Ledigheds- berørte | J6: Gns. brutto- ledighed
A9: Civ. ing. | C9: =IF(OR('Tabel 1 ØJ'!C7<5,'Tabel 2 ØJ'!C9<0.5),"-",IFERROR('Tabel 2 ØJ'!C9/'Tabel 1 ØJ'!C7*100,"-")) -> 3.843963554 | D9: =IF(OR('Tabel 1 ØJ'!C7<5,'Tabel 2 ØJ'!D9<0.5),"-",IFERROR('Tabel 2 ØJ'!D9/'Tabel 1 ØJ'!C7*100,"-")) -> 3.080225196 | F9: =IF(OR('Tabel 1 ØJ'!E7<5,'Tabel 2 ØJ'!F9<0.5),"-",IFERROR('Tabel 2 ØJ'!F9/'Tabel 1 ØJ'!E7*100,"-")) -> 4.106073567 | G9: =IF(OR('Tabel 1 ØJ'!E7<5,'Tabel 2 ØJ'!G9<0.5),"-",IFERROR('Tabel 2 ØJ'!G9/'Tabel 1 ØJ'!E7*100,"-")) -> 3.477003189 | I9: =IF(OR('Tabel 1 ØJ'!G7<5,'Tabel 2 ØJ'!I9<0.5),"-",IFERROR('Tabel 2 ØJ'!I9/'Tabel 1 ØJ'!G7*100,"-")) -> 3.909421064 | J9: =IF(OR('Tabel 1 ØJ'!G7<5,'Tabel 2 ØJ'!J9<0.5),"-",IFERROR('Tabel 2 ØJ'!J9/'Tabel 1 ØJ'!G7*100,"-")) -> 3.17931374
A10: Diplom ing. | C10: =IF(OR('Tabel 1 ØJ'!C8<5,'Tabel 2 ØJ'!C10<0.5),"-",IFERROR('Tabel 2 ØJ'!C10/'Tabel 1 ØJ'!C8*100,"-")) -> 2.445236882 | D10: =IF(OR('Tabel 1 ØJ'!C8<5,'Tabel 2 ØJ'!D10<0.5),"-",IFERROR('Tabel 2 ØJ'!D10/'Tabel 1 ØJ'!C8*100,"-")) -> 1.983110548 | F10: =IF(OR('Tabel 1 ØJ'!E8<5,'Tabel 2 ØJ'!F10<0.5),"-",IFERROR('Tabel 2 ØJ'!F10/'Tabel 1 ØJ'!E8*100,"-")) -> 3.424124514 | G10: =IF(OR('Tabel 1 ØJ'!E8<5,'Tabel 2 ØJ'!G10<0.5),"-",IFERROR('Tabel 2 ØJ'!G10/'Tabel 1 ØJ'!E8*100,"-")) -> 2.519560216 | I10: =IF(OR('Tabel 1 ØJ'!G8<5,'Tabel 2 ØJ'!I10<0.5),"-",IFERROR('Tabel 2 ØJ'!I10/'Tabel 1 ØJ'!G8*100,"-")) -> 2.620574296 | J10: =IF(OR('Tabel 1 ØJ'!G8<5,'Tabel 2 ØJ'!J10<0.5),"-",IFERROR('Tabel 2 ØJ'!J10/'Tabel 1 ØJ'!G8*100,"-")) -> 2.079198898
A11: Cand. Scient. Tek. | C11: =IF(OR('Tabel 1 ØJ'!C9<5,'Tabel 2 ØJ'!C11<0.5),"-",IFERROR('Tabel 2 ØJ'!C11/'Tabel 1 ØJ'!C9*100,"-")) -> 7.588206863 | D11: =IF(OR('Tabel 1 ØJ'!C9<5,'Tabel 2 ØJ'!D11<0.5),"-",IFERROR('Tabel 2 ØJ'!D11/'Tabel 1 ØJ'!C9*100,"-")) -> 6.312469898 | F11: =IF(OR('Tabel 1 ØJ'!E9<5,'Tabel 2 ØJ'!F11<0.5),"-",IFERROR('Tabel 2 ØJ'!F11/'Tabel 1 ØJ'!E9*100,"-")) -> 10.38681948 | G11: =IF(OR('Tabel 1 ØJ'!E9<5,'Tabel 2 ØJ'!G11<0.5),"-",IFERROR('Tabel 2 ØJ'!G11/'Tabel 1 ØJ'!E9*100,"-")) -> 8.280468096 | I11: =IF(OR('Tabel 1 ØJ'!G9<5,'Tabel 2 ØJ'!I11<0.5),"-",IFERROR('Tabel 2 ØJ'!I11/'Tabel 1 ØJ'!G9*100,"-")) -> 8.715728716 | J11: =IF(OR('Tabel 1 ØJ'!G9<5,'Tabel 2 ØJ'!J11<0.5),"-",IFERROR('Tabel 2 ØJ'!J11/'Tabel 1 ØJ'!G9*100,"-")) -> 7.105348826
A12: MA. Hum. | C12: =IF(OR('Tabel 1 ØJ'!C10<5,'Tabel 2 ØJ'!C12<0.5),"-",IFERROR('Tabel 2 ØJ'!C12/'Tabel 1 ØJ'!C10*100,"-")) -> 10.95840868 | D12: =IF(OR('Tabel 1 ØJ'!C10<5,'Tabel 2 ØJ'!D12<0.5),"-",IFERROR('Tabel 2 ØJ'!D12/'Tabel 1 ØJ'!C10*100,"-")) -> 8.865733412 | F12: =IF(OR('Tabel 1 ØJ'!E10<5,'Tabel 2 ØJ'!F12<0.5),"-",IFERROR('Tabel 2 ØJ'!F12/'Tabel 1 ØJ'!E10*100,"-")) -> 9.406191846 | G12: =IF(OR('Tabel 1 ØJ'!E10<5,'Tabel 2 ØJ'!G12<0.5),"-",IFERROR('Tabel 2 ØJ'!G12/'Tabel 1 ØJ'!E10*100,"-")) -> 7.543906097 | I12: =IF(OR('Tabel 1 ØJ'!G10<5,'Tabel 2 ØJ'!I12<0.5),"-",IFERROR('Tabel 2 ØJ'!I12/'Tabel 1 ØJ'!G10*100,"-")) -> 9.90087598 | J12: =IF(OR('Tabel 1 ØJ'!G10<5,'Tabel 2 ØJ'!J12<0.5),"-",IFERROR('Tabel 2 ØJ'!J12/'Tabel 1 ØJ'!G10*100,"-")) -> 7.965166185
A13: MA. Nat. | C13: =IF(OR('Tabel 1 ØJ'!C11<5,'Tabel 2 ØJ'!C13<0.5),"-",IFERROR('Tabel 2 ØJ'!C13/'Tabel 1 ØJ'!C11*100,"-")) -> 4.099378882 | D13: =IF(OR('Tabel 1 ØJ'!C11<5,'Tabel 2 ØJ'!D13<0.5),"-",IFERROR('Tabel 2 ØJ'!D13/'Tabel 1 ØJ'!C11*100,"-")) -> 3.393311853 | F13: =IF(OR('Tabel 1 ØJ'!E11<5,'Tabel 2 ØJ'!F13<0.5),"-",IFERROR('Tabel 2 ØJ'!F13/'Tabel 1 ØJ'!E11*100,"-")) -> 4.008908686 | G13: =IF(OR('Tabel 1 ØJ'!E11<5,'Tabel 2 ØJ'!G13<0.5),"-",IFERROR('Tabel 2 ØJ'!G13/'Tabel 1 ØJ'!E11*100,"-")) -> 3.137321035 | I13: =IF(OR('Tabel 1 ØJ'!G11<5,'Tabel 2 ØJ'!I13<0.5),"-",IFERROR('Tabel 2 ØJ'!I13/'Tabel 1 ØJ'!G11*100,"-")) -> 4.058167061 | J13: =IF(OR('Tabel 1 ØJ'!G11<5,'Tabel 2 ØJ'!J13<0.5),"-",IFERROR('Tabel 2 ØJ'!J13/'Tabel 1 ØJ'!G11*100,"-")) -> 3.276700547
A14: MA. Ph.d. | C14: =IF(OR('Tabel 1 ØJ'!C12<5,'Tabel 2 ØJ'!C14<0.5),"-",IFERROR('Tabel 2 ØJ'!C14/'Tabel 1 ØJ'!C12*100,"-")) -> 1.552795031 | D14: =IF(OR('Tabel 1 ØJ'!C12<5,'Tabel 2 ØJ'!D14<0.5),"-",IFERROR('Tabel 2 ØJ'!D14/'Tabel 1 ØJ'!C12*100,"-")) -> 1.44829395 | F14: =IF(OR('Tabel 1 ØJ'!E12<5,'Tabel 2 ØJ'!F14<0.5),"-",IFERROR('Tabel 2 ØJ'!F14/'Tabel 1 ØJ'!E12*100,"-")) -> 3.396226415 | G14: =IF(OR('Tabel 1 ØJ'!E12<5,'Tabel 2 ØJ'!G14<0.5),"-",IFERROR('Tabel 2 ØJ'!G14/'Tabel 1 ØJ'!E12*100,"-")) -> 2.820832975 | I14: =IF(OR('Tabel 1 ØJ'!G12<5,'Tabel 2 ØJ'!I14<0.5),"-",IFERROR('Tabel 2 ØJ'!I14/'Tabel 1 ØJ'!G12*100,"-")) -> 2.385008518 | J14: =IF(OR('Tabel 1 ØJ'!G12<5,'Tabel 2 ØJ'!J14<0.5),"-",IFERROR('Tabel 2 ØJ'!J14/'Tabel 1 ØJ'!G12*100,"-")) -> 2.067924004
A15: MA. Samf. | C15: =IF(OR('Tabel 1 ØJ'!C13<5,'Tabel 2 ØJ'!C15<0.5),"-",IFERROR('Tabel 2 ØJ'!C15/'Tabel 1 ØJ'!C13*100,"-")) -> 16.90140845 | D15: =IF(OR('Tabel 1 ØJ'!C13<5,'Tabel 2 ØJ'!D15<0.5),"-",IFERROR('Tabel 2 ØJ'!D15/'Tabel 1 ØJ'!C13*100,"-")) -> 14.10851855 | F15: =IF(OR('Tabel 1 ØJ'!E13<5,'Tabel 2 ØJ'!F15<0.5),"-",IFERROR('Tabel 2 ØJ'!F15/'Tabel 1 ØJ'!E13*100,"-")) -> 17.06989247 | G15: =IF(OR('Tabel 1 ØJ'!E13<5,'Tabel 2 ØJ'!G15<0.5),"-",IFERROR('Tabel 2 ØJ'!G15/'Tabel 1 ØJ'!E13*100,"-")) -> 13.39215355 | I15: =IF(OR('Tabel 1 ØJ'!G13<5,'Tabel 2 ØJ'!I15<0.5),"-",IFERROR('Tabel 2 ØJ'!I15/'Tabel 1 ØJ'!G13*100,"-")) -> 17.03239289 | J15: =IF(OR('Tabel 1 ØJ'!G13<5,'Tabel 2 ØJ'!J15<0.5),"-",IFERROR('Tabel 2 ØJ'!J15/'Tabel 1 ØJ'!G13*100,"-")) -> 13.55159529
A16: Øvrige Mag. | C16: =IF(OR('Tabel 1 ØJ'!C14<5,'Tabel 2 ØJ'!C16<0.5),"-",IFERROR('Tabel 2 ØJ'!C16/'Tabel 1 ØJ'!C14*100,"-")) -> 12.19512195 | D16: =IF(OR('Tabel 1 ØJ'!C14<5,'Tabel 2 ØJ'!D16<0.5),"-",IFERROR('Tabel 2 ØJ'!D16/'Tabel 1 ØJ'!C14*100,"-")) -> 10.09959641 | F16: =IF(OR('Tabel 1 ØJ'!E14<5,'Tabel 2 ØJ'!F16<0.5),"-",IFERROR('Tabel 2 ØJ'!F16/'Tabel 1 ØJ'!E14*100,"-")) -> 13.94849785 | G16: =IF(OR('Tabel 1 ØJ'!E14<5,'Tabel 2 ØJ'!G16<0.5),"-",IFERROR('Tabel 2 ØJ'!G16/'Tabel 1 ØJ'!E14*100,"-")) -> 10.97575307 | I16: =IF(OR('Tabel 1 ØJ'!G14<5,'Tabel 2 ØJ'!I16<0.5),"-",IFERROR('Tabel 2 ØJ'!I16/'Tabel 1 ØJ'!G14*100,"-")) -> 13.34269663 | J16: =IF(OR('Tabel 1 ØJ'!G14<5,'Tabel 2 ØJ'!J16<0.5),"-",IFERROR('Tabel 2 ØJ'!J16/'Tabel 1 ØJ'!G14*100,"-")) -> 10.67303602
A17: Agronom | C17: =IF(OR('Tabel 1 ØJ'!C15<5,'Tabel 2 ØJ'!C17<0.5),"-",IFERROR('Tabel 2 ØJ'!C17/'Tabel 1 ØJ'!C15*100,"-")) -> 1.621621622 | D17: =IF(OR('Tabel 1 ØJ'!C15<5,'Tabel 2 ØJ'!D17<0.5),"-",IFERROR('Tabel 2 ØJ'!D17/'Tabel 1 ØJ'!C15*100,"-")) -> 1.147295864 | F17: =IF(OR('Tabel 1 ØJ'!E15<5,'Tabel 2 ØJ'!F17<0.5),"-",IFERROR('Tabel 2 ØJ'!F17/'Tabel 1 ØJ'!E15*100,"-")) -> 2.649006623 | G17: =IF(OR('Tabel 1 ØJ'!E15<5,'Tabel 2 ØJ'!G17<0.5),"-",IFERROR('Tabel 2 ØJ'!G17/'Tabel 1 ØJ'!E15*100,"-")) -> 2.455201048 | I17: =IF(OR('Tabel 1 ØJ'!G15<5,'Tabel 2 ØJ'!I17<0.5),"-",IFERROR('Tabel 2 ØJ'!I17/'Tabel 1 ØJ'!G15*100,"-")) -> 2.083333333 | J17: =IF(OR('Tabel 1 ØJ'!G15<5,'Tabel 2 ØJ'!J17<0.5),"-",IFERROR('Tabel 2 ØJ'!J17/'Tabel 1 ØJ'!G15*100,"-")) -> 1.735074682
A18: Landsk. Arkt. | C18: =IF(OR('Tabel 1 ØJ'!C16<5,'Tabel 2 ØJ'!C18<0.5),"-",IFERROR('Tabel 2 ØJ'!C18/'Tabel 1 ØJ'!C16*100,"-")) -> 7.142857143 | D18: =IF(OR('Tabel 1 ØJ'!C16<5,'Tabel 2 ØJ'!D18<0.5),"-",IFERROR('Tabel 2 ØJ'!D18/'Tabel 1 ØJ'!C16*100,"-")) -> 7.141520614 | F18: =IF(OR('Tabel 1 ØJ'!E16<5,'Tabel 2 ØJ'!F18<0.5),"-",IFERROR('Tabel 2 ØJ'!F18/'Tabel 1 ØJ'!E16*100,"-")) -> 3.571428571 | G18: =IF(OR('Tabel 1 ØJ'!E16<5,'Tabel 2 ØJ'!G18<0.5),"-",IFERROR('Tabel 2 ØJ'!G18/'Tabel 1 ØJ'!E16*100,"-")) -> 2.746567348 | I18: =IF(OR('Tabel 1 ØJ'!G16<5,'Tabel 2 ØJ'!I18<0.5),"-",IFERROR('Tabel 2 ØJ'!I18/'Tabel 1 ØJ'!G16*100,"-")) -> 4.761904762 | J18: =IF(OR('Tabel 1 ØJ'!G16<5,'Tabel 2 ØJ'!J18<0.5),"-",IFERROR('Tabel 2 ØJ'!J18/'Tabel 1 ØJ'!G16*100,"-")) -> 4.21155177
A19: Hortonom | C19: =IF(OR('Tabel 1 ØJ'!C17<5,'Tabel 2 ØJ'!C19<0.5),"-",IFERROR('Tabel 2 ØJ'!C19/'Tabel 1 ØJ'!C17*100,"-")) -> - | D19: =IF(OR('Tabel 1 ØJ'!C17<5,'Tabel 2 ØJ'!D19<0.5),"-",IFERROR('Tabel 2 ØJ'!D19/'Tabel 1 ØJ'!C17*100,"-")) -> - | F19: =IF(OR('Tabel 1 ØJ'!E17<5,'Tabel 2 ØJ'!F19<0.5),"-",IFERROR('Tabel 2 ØJ'!F19/'Tabel 1 ØJ'!E17*100,"-")) -> 14.28571429 | G19: =IF(OR('Tabel 1 ØJ'!E17<5,'Tabel 2 ØJ'!G19<0.5),"-",IFERROR('Tabel 2 ØJ'!G19/'Tabel 1 ØJ'!E17*100,"-")) -> 14.28304123 | I19: =IF(OR('Tabel 1 ØJ'!G17<5,'Tabel 2 ØJ'!I19<0.5),"-",IFERROR('Tabel 2 ØJ'!I19/'Tabel 1 ØJ'!G17*100,"-")) -> 7.692307692 | J19: =IF(OR('Tabel 1 ØJ'!G17<5,'Tabel 2 ØJ'!J19<0.5),"-",IFERROR('Tabel 2 ØJ'!J19/'Tabel 1 ØJ'!G17*100,"-")) -> 7.690868353
A20: Forstkand. | C20: =IF(OR('Tabel 1 ØJ'!C18<5,'Tabel 2 ØJ'!C20<0.5),"-",IFERROR('Tabel 2 ØJ'!C20/'Tabel 1 ØJ'!C18*100,"-")) -> 5.128205128 | D20: =IF(OR('Tabel 1 ØJ'!C18<5,'Tabel 2 ØJ'!D20<0.5),"-",IFERROR('Tabel 2 ØJ'!D20/'Tabel 1 ØJ'!C18*100,"-")) -> 4.53551729 | F20: =IF(OR('Tabel 1 ØJ'!E18<5,'Tabel 2 ØJ'!F20<0.5),"-",IFERROR('Tabel 2 ØJ'!F20/'Tabel 1 ØJ'!E18*100,"-")) -> - | G20: =IF(OR('Tabel 1 ØJ'!E18<5,'Tabel 2 ØJ'!G20<0.5),"-",IFERROR('Tabel 2 ØJ'!G20/'Tabel 1 ØJ'!E18*100,"-")) -> - | I20: =IF(OR('Tabel 1 ØJ'!G18<5,'Tabel 2 ØJ'!I20<0.5),"-",IFERROR('Tabel 2 ØJ'!I20/'Tabel 1 ØJ'!G18*100,"-")) -> 3.773584906 | J20: =IF(OR('Tabel 1 ØJ'!G18<5,'Tabel 2 ØJ'!J20<0.5),"-",IFERROR('Tabel 2 ØJ'!J20/'Tabel 1 ØJ'!G18*100,"-")) -> 3.337456119
A21: Jordbrugsakad. | C21: =IF(OR('Tabel 1 ØJ'!C19<5,'Tabel 2 ØJ'!C21<0.5),"-",IFERROR('Tabel 2 ØJ'!C21/'Tabel 1 ØJ'!C19*100,"-")) -> 2.4 | D21: =IF(OR('Tabel 1 ØJ'!C19<5,'Tabel 2 ØJ'!D21<0.5),"-",IFERROR('Tabel 2 ØJ'!D21/'Tabel 1 ØJ'!C19*100,"-")) -> 1.956464791 | F21: =IF(OR('Tabel 1 ØJ'!E19<5,'Tabel 2 ØJ'!F21<0.5),"-",IFERROR('Tabel 2 ØJ'!F21/'Tabel 1 ØJ'!E19*100,"-")) -> 3.381642512 | G21: =IF(OR('Tabel 1 ØJ'!E19<5,'Tabel 2 ØJ'!G21<0.5),"-",IFERROR('Tabel 2 ØJ'!G21/'Tabel 1 ØJ'!E19*100,"-")) -> 3.128511214 | I21: =IF(OR('Tabel 1 ØJ'!G19<5,'Tabel 2 ØJ'!I21<0.5),"-",IFERROR('Tabel 2 ØJ'!I21/'Tabel 1 ØJ'!G19*100,"-")) -> 2.84463895 | J21: =IF(OR('Tabel 1 ØJ'!G19<5,'Tabel 2 ØJ'!J21<0.5),"-",IFERROR('Tabel 2 ØJ'!J21/'Tabel 1 ØJ'!G19*100,"-")) -> 2.487347963
A22: Mejeriing. | C22: =IF(OR('Tabel 1 ØJ'!C20<5,'Tabel 2 ØJ'!C22<0.5),"-",IFERROR('Tabel 2 ØJ'!C22/'Tabel 1 ØJ'!C20*100,"-")) -> 1.724137931 | D22: =IF(OR('Tabel 1 ØJ'!C20<5,'Tabel 2 ØJ'!D22<0.5),"-",IFERROR('Tabel 2 ØJ'!D22/'Tabel 1 ØJ'!C20*100,"-")) -> 1.405506316 | F22: =IF(OR('Tabel 1 ØJ'!E20<5,'Tabel 2 ØJ'!F22<0.5),"-",IFERROR('Tabel 2 ØJ'!F22/'Tabel 1 ØJ'!E20*100,"-")) -> 3.333333333 | G22: =IF(OR('Tabel 1 ØJ'!E20<5,'Tabel 2 ØJ'!G22<0.5),"-",IFERROR('Tabel 2 ØJ'!G22/'Tabel 1 ØJ'!E20*100,"-")) -> 3.33270962 | I22: =IF(OR('Tabel 1 ØJ'!G20<5,'Tabel 2 ØJ'!I22<0.5),"-",IFERROR('Tabel 2 ØJ'!I22/'Tabel 1 ØJ'!G20*100,"-")) -> 2.272727273 | J22: =IF(OR('Tabel 1 ØJ'!G20<5,'Tabel 2 ØJ'!J22<0.5),"-",IFERROR('Tabel 2 ØJ'!J22/'Tabel 1 ØJ'!G20*100,"-")) -> 2.062507442
A23: Levn.m.kand. | C23: =IF(OR('Tabel 1 ØJ'!C21<5,'Tabel 2 ØJ'!C23<0.5),"-",IFERROR('Tabel 2 ØJ'!C23/'Tabel 1 ØJ'!C21*100,"-")) -> - | D23: =IF(OR('Tabel 1 ØJ'!C21<5,'Tabel 2 ØJ'!D23<0.5),"-",IFERROR('Tabel 2 ØJ'!D23/'Tabel 1 ØJ'!C21*100,"-")) -> - | F23: =IF(OR('Tabel 1 ØJ'!E21<5,'Tabel 2 ØJ'!F23<0.5),"-",IFERROR('Tabel 2 ØJ'!F23/'Tabel 1 ØJ'!E21*100,"-")) -> 9.677419355 | G23: =IF(OR('Tabel 1 ØJ'!E21<5,'Tabel 2 ØJ'!G23<0.5),"-",IFERROR('Tabel 2 ØJ'!G23/'Tabel 1 ØJ'!E21*100,"-")) -> 6.548992703 | I23: =IF(OR('Tabel 1 ØJ'!G21<5,'Tabel 2 ØJ'!I23<0.5),"-",IFERROR('Tabel 2 ØJ'!I23/'Tabel 1 ØJ'!G21*100,"-")) -> 11.42857143 | J23: =IF(OR('Tabel 1 ØJ'!G21<5,'Tabel 2 ØJ'!J23<0.5),"-",IFERROR('Tabel 2 ØJ'!J23/'Tabel 1 ØJ'!G21*100,"-")) -> 8.657144639
A24: Dyrlæge | C24: =IF(OR('Tabel 1 ØJ'!C22<5,'Tabel 2 ØJ'!C24<0.5),"-",IFERROR('Tabel 2 ØJ'!C24/'Tabel 1 ØJ'!C22*100,"-")) -> - | D24: =IF(OR('Tabel 1 ØJ'!C22<5,'Tabel 2 ØJ'!D24<0.5),"-",IFERROR('Tabel 2 ØJ'!D24/'Tabel 1 ØJ'!C22*100,"-")) -> - | F24: =IF(OR('Tabel 1 ØJ'!E22<5,'Tabel 2 ØJ'!F24<0.5),"-",IFERROR('Tabel 2 ØJ'!F24/'Tabel 1 ØJ'!E22*100,"-")) -> 0.487804878 | G24: =IF(OR('Tabel 1 ØJ'!E22<5,'Tabel 2 ØJ'!G24<0.5),"-",IFERROR('Tabel 2 ØJ'!G24/'Tabel 1 ØJ'!E22*100,"-")) -> 0.4877136029 | I24: =IF(OR('Tabel 1 ØJ'!G22<5,'Tabel 2 ØJ'!I24<0.5),"-",IFERROR('Tabel 2 ØJ'!I24/'Tabel 1 ØJ'!G22*100,"-")) -> 0.4166666667 | J24: =IF(OR('Tabel 1 ØJ'!G22<5,'Tabel 2 ØJ'!J24<0.5),"-",IFERROR('Tabel 2 ØJ'!J24/'Tabel 1 ØJ'!G22*100,"-")) -> 0.4165887025
A25: Farmaceut | C25: =IF(OR('Tabel 1 ØJ'!C23<5,'Tabel 2 ØJ'!C25<0.5),"-",IFERROR('Tabel 2 ØJ'!C25/'Tabel 1 ØJ'!C23*100,"-")) -> 10.58823529 | D25: =IF(OR('Tabel 1 ØJ'!C23<5,'Tabel 2 ØJ'!D25<0.5),"-",IFERROR('Tabel 2 ØJ'!D25/'Tabel 1 ØJ'!C23*100,"-")) -> 9.228759801 | F25: =IF(OR('Tabel 1 ØJ'!E23<5,'Tabel 2 ØJ'!F25<0.5),"-",IFERROR('Tabel 2 ØJ'!F25/'Tabel 1 ØJ'!E23*100,"-")) -> 8.163265306 | G25: =IF(OR('Tabel 1 ØJ'!E23<5,'Tabel 2 ØJ'!G25<0.5),"-",IFERROR('Tabel 2 ØJ'!G25/'Tabel 1 ØJ'!E23*100,"-")) -> 5.577357245 | I25: =IF(OR('Tabel 1 ØJ'!G23<5,'Tabel 2 ØJ'!I25<0.5),"-",IFERROR('Tabel 2 ØJ'!I25/'Tabel 1 ØJ'!G23*100,"-")) -> 8.707124011 | J25: =IF(OR('Tabel 1 ØJ'!G23<5,'Tabel 2 ØJ'!J25<0.5),"-",IFERROR('Tabel 2 ØJ'!J25/'Tabel 1 ØJ'!G23*100,"-")) -> 6.396273385
A26: Læge | C26: =IF(OR('Tabel 1 ØJ'!C24<5,'Tabel 2 ØJ'!C26<0.5),"-",IFERROR('Tabel 2 ØJ'!C26/'Tabel 1 ØJ'!C24*100,"-")) -> 3.634232122 | D26: =IF(OR('Tabel 1 ØJ'!C24<5,'Tabel 2 ØJ'!D26<0.5),"-",IFERROR('Tabel 2 ØJ'!D26/'Tabel 1 ØJ'!C24*100,"-")) -> 2.855335958 | F26: =IF(OR('Tabel 1 ØJ'!E24<5,'Tabel 2 ØJ'!F26<0.5),"-",IFERROR('Tabel 2 ØJ'!F26/'Tabel 1 ØJ'!E24*100,"-")) -> 3.739262254 | G26: =IF(OR('Tabel 1 ØJ'!E24<5,'Tabel 2 ØJ'!G26<0.5),"-",IFERROR('Tabel 2 ØJ'!G26/'Tabel 1 ØJ'!E24*100,"-")) -> 2.972173329 | I26: =IF(OR('Tabel 1 ØJ'!G24<5,'Tabel 2 ØJ'!I26<0.5),"-",IFERROR('Tabel 2 ØJ'!I26/'Tabel 1 ØJ'!G24*100,"-")) -> 3.707627119 | J26: =IF(OR('Tabel 1 ØJ'!G24<5,'Tabel 2 ØJ'!J26<0.5),"-",IFERROR('Tabel 2 ØJ'!J26/'Tabel 1 ØJ'!G24*100,"-")) -> 2.936981846
A27: Tandlæge | C27: =IF(OR('Tabel 1 ØJ'!C25<5,'Tabel 2 ØJ'!C27<0.5),"-",IFERROR('Tabel 2 ØJ'!C27/'Tabel 1 ØJ'!C25*100,"-")) -> 8.641975309 | D27: =IF(OR('Tabel 1 ØJ'!C25<5,'Tabel 2 ØJ'!D27<0.5),"-",IFERROR('Tabel 2 ØJ'!D27/'Tabel 1 ØJ'!C25*100,"-")) -> 6.168604414 | F27: =IF(OR('Tabel 1 ØJ'!E25<5,'Tabel 2 ØJ'!F27<0.5),"-",IFERROR('Tabel 2 ØJ'!F27/'Tabel 1 ØJ'!E25*100,"-")) -> 4.166666667 | G27: =IF(OR('Tabel 1 ØJ'!E25<5,'Tabel 2 ØJ'!G27<0.5),"-",IFERROR('Tabel 2 ØJ'!G27/'Tabel 1 ØJ'!E25*100,"-")) -> 2.409552357 | I27: =IF(OR('Tabel 1 ØJ'!G25<5,'Tabel 2 ØJ'!I27<0.5),"-",IFERROR('Tabel 2 ØJ'!I27/'Tabel 1 ØJ'!G25*100,"-")) -> 4.90797546 | J27: =IF(OR('Tabel 1 ØJ'!G25<5,'Tabel 2 ØJ'!J27<0.5),"-",IFERROR('Tabel 2 ØJ'!J27/'Tabel 1 ØJ'!G25*100,"-")) -> 3.032217422
A28: Arkitekt | C28: =IF(OR('Tabel 1 ØJ'!C26<5,'Tabel 2 ØJ'!C28<0.5),"-",IFERROR('Tabel 2 ØJ'!C28/'Tabel 1 ØJ'!C26*100,"-")) -> 6.990014265 | D28: =IF(OR('Tabel 1 ØJ'!C26<5,'Tabel 2 ØJ'!D28<0.5),"-",IFERROR('Tabel 2 ØJ'!D28/'Tabel 1 ØJ'!C26*100,"-")) -> 6.060609835 | F28: =IF(OR('Tabel 1 ØJ'!E26<5,'Tabel 2 ØJ'!F28<0.5),"-",IFERROR('Tabel 2 ØJ'!F28/'Tabel 1 ØJ'!E26*100,"-")) -> 8.465011287 | G28: =IF(OR('Tabel 1 ØJ'!E26<5,'Tabel 2 ØJ'!G28<0.5),"-",IFERROR('Tabel 2 ØJ'!G28/'Tabel 1 ØJ'!E26*100,"-")) -> 6.445720938 | I28: =IF(OR('Tabel 1 ØJ'!G26<5,'Tabel 2 ØJ'!I28<0.5),"-",IFERROR('Tabel 2 ØJ'!I28/'Tabel 1 ØJ'!G26*100,"-")) -> 7.813484562 | J28: =IF(OR('Tabel 1 ØJ'!G26<5,'Tabel 2 ØJ'!J28<0.5),"-",IFERROR('Tabel 2 ØJ'!J28/'Tabel 1 ØJ'!G26*100,"-")) -> 6.275612001
A29: Landinspek. | C29: =IF(OR('Tabel 1 ØJ'!C27<5,'Tabel 2 ØJ'!C29<0.5),"-",IFERROR('Tabel 2 ØJ'!C29/'Tabel 1 ØJ'!C27*100,"-")) -> 0.9708737864 | D29: =IF(OR('Tabel 1 ØJ'!C27<5,'Tabel 2 ØJ'!D29<0.5),"-",IFERROR('Tabel 2 ØJ'!D29/'Tabel 1 ØJ'!C27*100,"-")) -> - | F29: =IF(OR('Tabel 1 ØJ'!E27<5,'Tabel 2 ØJ'!F29<0.5),"-",IFERROR('Tabel 2 ØJ'!F29/'Tabel 1 ØJ'!E27*100,"-")) -> - | G29: =IF(OR('Tabel 1 ØJ'!E27<5,'Tabel 2 ØJ'!G29<0.5),"-",IFERROR('Tabel 2 ØJ'!G29/'Tabel 1 ØJ'!E27*100,"-")) -> - | I29: =IF(OR('Tabel 1 ØJ'!G27<5,'Tabel 2 ØJ'!I29<0.5),"-",IFERROR('Tabel 2 ØJ'!I29/'Tabel 1 ØJ'!G27*100,"-")) -> 0.6944444444 | J29: =IF(OR('Tabel 1 ØJ'!G27<5,'Tabel 2 ØJ'!J29<0.5),"-",IFERROR('Tabel 2 ØJ'!J29/'Tabel 1 ØJ'!G27*100,"-")) -> -
A30: Bibliotekar | C30: =IF(OR('Tabel 1 ØJ'!C28<5,'Tabel 2 ØJ'!C30<0.5),"-",IFERROR('Tabel 2 ØJ'!C30/'Tabel 1 ØJ'!C28*100,"-")) -> 1.428571429 | D30: =IF(OR('Tabel 1 ØJ'!C28<5,'Tabel 2 ØJ'!D30<0.5),"-",IFERROR('Tabel 2 ØJ'!D30/'Tabel 1 ØJ'!C28*100,"-")) -> 0.7511293671 | F30: =IF(OR('Tabel 1 ØJ'!E28<5,'Tabel 2 ØJ'!F30<0.5),"-",IFERROR('Tabel 2 ØJ'!F30/'Tabel 1 ØJ'!E28*100,"-")) -> 2.651515152 | G30: =IF(OR('Tabel 1 ØJ'!E28<5,'Tabel 2 ØJ'!G30<0.5),"-",IFERROR('Tabel 2 ØJ'!G30/'Tabel 1 ØJ'!E28*100,"-")) -> 1.984306988 | I30: =IF(OR('Tabel 1 ØJ'!G28<5,'Tabel 2 ØJ'!I30<0.5),"-",IFERROR('Tabel 2 ØJ'!I30/'Tabel 1 ØJ'!G28*100,"-")) -> 2.395209581 | J30: =IF(OR('Tabel 1 ØJ'!G28<5,'Tabel 2 ØJ'!J30<0.5),"-",IFERROR('Tabel 2 ØJ'!J30/'Tabel 1 ØJ'!G28*100,"-")) -> 1.725856588
A31: Musikudd. | C31: =IF(OR('Tabel 1 ØJ'!C29<5,'Tabel 2 ØJ'!C31<0.5),"-",IFERROR('Tabel 2 ØJ'!C31/'Tabel 1 ØJ'!C29*100,"-")) -> 6.349206349 | D31: =IF(OR('Tabel 1 ØJ'!C29<5,'Tabel 2 ØJ'!D31<0.5),"-",IFERROR('Tabel 2 ØJ'!D31/'Tabel 1 ØJ'!C29*100,"-")) -> 5.117421509 | F31: =IF(OR('Tabel 1 ØJ'!E29<5,'Tabel 2 ØJ'!F31<0.5),"-",IFERROR('Tabel 2 ØJ'!F31/'Tabel 1 ØJ'!E29*100,"-")) -> 6.41025641 | G31: =IF(OR('Tabel 1 ØJ'!E29<5,'Tabel 2 ØJ'!G31<0.5),"-",IFERROR('Tabel 2 ØJ'!G31/'Tabel 1 ØJ'!E29*100,"-")) -> 4.361197338 | I31: =IF(OR('Tabel 1 ØJ'!G29<5,'Tabel 2 ØJ'!I31<0.5),"-",IFERROR('Tabel 2 ØJ'!I31/'Tabel 1 ØJ'!G29*100,"-")) -> 6.382978723 | J31: =IF(OR('Tabel 1 ØJ'!G29<5,'Tabel 2 ØJ'!J31<0.5),"-",IFERROR('Tabel 2 ØJ'!J31/'Tabel 1 ØJ'!G29*100,"-")) -> 4.699084733
A32: Teolog | C32: =IF(OR('Tabel 1 ØJ'!C30<5,'Tabel 2 ØJ'!C32<0.5),"-",IFERROR('Tabel 2 ØJ'!C32/'Tabel 1 ØJ'!C30*100,"-")) -> 4.838709677 | D32: =IF(OR('Tabel 1 ØJ'!C30<5,'Tabel 2 ØJ'!D32<0.5),"-",IFERROR('Tabel 2 ØJ'!D32/'Tabel 1 ØJ'!C30*100,"-")) -> 3.372580343 | F32: =IF(OR('Tabel 1 ØJ'!E30<5,'Tabel 2 ØJ'!F32<0.5),"-",IFERROR('Tabel 2 ØJ'!F32/'Tabel 1 ØJ'!E30*100,"-")) -> 3 | G32: =IF(OR('Tabel 1 ØJ'!E30<5,'Tabel 2 ØJ'!G32<0.5),"-",IFERROR('Tabel 2 ØJ'!G32/'Tabel 1 ØJ'!E30*100,"-")) -> 2.110334934 | I32: =IF(OR('Tabel 1 ØJ'!G30<5,'Tabel 2 ØJ'!I32<0.5),"-",IFERROR('Tabel 2 ØJ'!I32/'Tabel 1 ØJ'!G30*100,"-")) -> 3.703703704 | J32: =IF(OR('Tabel 1 ØJ'!G30<5,'Tabel 2 ØJ'!J32<0.5),"-",IFERROR('Tabel 2 ØJ'!J32/'Tabel 1 ØJ'!G30*100,"-")) -> 2.593416511
A33: Psykolog | C33: =IF(OR('Tabel 1 ØJ'!C31<5,'Tabel 2 ØJ'!C33<0.5),"-",IFERROR('Tabel 2 ØJ'!C33/'Tabel 1 ØJ'!C31*100,"-")) -> 7.163323782 | D33: =IF(OR('Tabel 1 ØJ'!C31<5,'Tabel 2 ØJ'!D33<0.5),"-",IFERROR('Tabel 2 ØJ'!D33/'Tabel 1 ØJ'!C31*100,"-")) -> 5.948869425 | F33: =IF(OR('Tabel 1 ØJ'!E31<5,'Tabel 2 ØJ'!F33<0.5),"-",IFERROR('Tabel 2 ØJ'!F33/'Tabel 1 ØJ'!E31*100,"-")) -> 8.673176335 | G33: =IF(OR('Tabel 1 ØJ'!E31<5,'Tabel 2 ØJ'!G33<0.5),"-",IFERROR('Tabel 2 ØJ'!G33/'Tabel 1 ØJ'!E31*100,"-")) -> 6.987168517 | I33: =IF(OR('Tabel 1 ØJ'!G31<5,'Tabel 2 ØJ'!I33<0.5),"-",IFERROR('Tabel 2 ØJ'!I33/'Tabel 1 ØJ'!G31*100,"-")) -> 8.421052632 | J33: =IF(OR('Tabel 1 ØJ'!G31<5,'Tabel 2 ØJ'!J33<0.5),"-",IFERROR('Tabel 2 ØJ'!J33/'Tabel 1 ØJ'!G31*100,"-")) -> 6.813787472
A34: Jurist | C34: =IF(OR('Tabel 1 ØJ'!C32<5,'Tabel 2 ØJ'!C34<0.5),"-",IFERROR('Tabel 2 ØJ'!C34/'Tabel 1 ØJ'!C32*100,"-")) -> 4.939626784 | D34: =IF(OR('Tabel 1 ØJ'!C32<5,'Tabel 2 ØJ'!D34<0.5),"-",IFERROR('Tabel 2 ØJ'!D34/'Tabel 1 ØJ'!C32*100,"-")) -> 3.863737956 | F34: =IF(OR('Tabel 1 ØJ'!E32<5,'Tabel 2 ØJ'!F34<0.5),"-",IFERROR('Tabel 2 ØJ'!F34/'Tabel 1 ØJ'!E32*100,"-")) -> 3.857566766 | G34: =IF(OR('Tabel 1 ØJ'!E32<5,'Tabel 2 ØJ'!G34<0.5),"-",IFERROR('Tabel 2 ØJ'!G34/'Tabel 1 ØJ'!E32*100,"-")) -> 3.032469567 | I34: =IF(OR('Tabel 1 ØJ'!G32<5,'Tabel 2 ØJ'!I34<0.5),"-",IFERROR('Tabel 2 ØJ'!I34/'Tabel 1 ØJ'!G32*100,"-")) -> 4.237288136 | J34: =IF(OR('Tabel 1 ØJ'!G32<5,'Tabel 2 ØJ'!J34<0.5),"-",IFERROR('Tabel 2 ØJ'!J34/'Tabel 1 ØJ'!G32*100,"-")) -> 3.32418201
A35: Økonom | C35: =IF(OR('Tabel 1 ØJ'!C33<5,'Tabel 2 ØJ'!C35<0.5),"-",IFERROR('Tabel 2 ØJ'!C35/'Tabel 1 ØJ'!C33*100,"-")) -> 3.357817419 | D35: =IF(OR('Tabel 1 ØJ'!C33<5,'Tabel 2 ØJ'!D35<0.5),"-",IFERROR('Tabel 2 ØJ'!D35/'Tabel 1 ØJ'!C33*100,"-")) -> 2.827981559 | F35: =IF(OR('Tabel 1 ØJ'!E33<5,'Tabel 2 ØJ'!F35<0.5),"-",IFERROR('Tabel 2 ØJ'!F35/'Tabel 1 ØJ'!E33*100,"-")) -> 3.903345725 | G35: =IF(OR('Tabel 1 ØJ'!E33<5,'Tabel 2 ØJ'!G35<0.5),"-",IFERROR('Tabel 2 ØJ'!G35/'Tabel 1 ØJ'!E33*100,"-")) -> 2.999505898 | I35: =IF(OR('Tabel 1 ØJ'!G33<5,'Tabel 2 ØJ'!I35<0.5),"-",IFERROR('Tabel 2 ØJ'!I35/'Tabel 1 ØJ'!G33*100,"-")) -> 3.554661301 | J35: =IF(OR('Tabel 1 ØJ'!G33<5,'Tabel 2 ØJ'!J35<0.5),"-",IFERROR('Tabel 2 ØJ'!J35/'Tabel 1 ØJ'!G33*100,"-")) -> 2.88987297
A36: Samf. Adm. | C36: =IF(OR('Tabel 1 ØJ'!C34<5,'Tabel 2 ØJ'!C36<0.5),"-",IFERROR('Tabel 2 ØJ'!C36/'Tabel 1 ØJ'!C34*100,"-")) -> 4.864489229 | D36: =IF(OR('Tabel 1 ØJ'!C34<5,'Tabel 2 ØJ'!D36<0.5),"-",IFERROR('Tabel 2 ØJ'!D36/'Tabel 1 ØJ'!C34*100,"-")) -> 3.857662057 | F36: =IF(OR('Tabel 1 ØJ'!E34<5,'Tabel 2 ØJ'!F36<0.5),"-",IFERROR('Tabel 2 ØJ'!F36/'Tabel 1 ØJ'!E34*100,"-")) -> 6.349206349 | G36: =IF(OR('Tabel 1 ØJ'!E34<5,'Tabel 2 ØJ'!G36<0.5),"-",IFERROR('Tabel 2 ØJ'!G36/'Tabel 1 ØJ'!E34*100,"-")) -> 5.270064835 | I36: =IF(OR('Tabel 1 ØJ'!G34<5,'Tabel 2 ØJ'!I36<0.5),"-",IFERROR('Tabel 2 ØJ'!I36/'Tabel 1 ØJ'!G34*100,"-")) -> 5.741898806 | J36: =IF(OR('Tabel 1 ØJ'!G34<5,'Tabel 2 ØJ'!J36<0.5),"-",IFERROR('Tabel 2 ØJ'!J36/'Tabel 1 ØJ'!G34*100,"-")) -> 4.692336695
A37: Cand. Merc. | C37: =IF(OR('Tabel 1 ØJ'!C35<5,'Tabel 2 ØJ'!C37<0.5),"-",IFERROR('Tabel 2 ØJ'!C37/'Tabel 1 ØJ'!C35*100,"-")) -> 6.010794897 | D37: =IF(OR('Tabel 1 ØJ'!C35<5,'Tabel 2 ØJ'!D37<0.5),"-",IFERROR('Tabel 2 ØJ'!D37/'Tabel 1 ØJ'!C35*100,"-")) -> 4.673092977 | F37: =IF(OR('Tabel 1 ØJ'!E35<5,'Tabel 2 ØJ'!F37<0.5),"-",IFERROR('Tabel 2 ØJ'!F37/'Tabel 1 ØJ'!E35*100,"-")) -> 5.890299919 | G37: =IF(OR('Tabel 1 ØJ'!E35<5,'Tabel 2 ØJ'!G37<0.5),"-",IFERROR('Tabel 2 ØJ'!G37/'Tabel 1 ØJ'!E35*100,"-")) -> 4.317105831 | I37: =IF(OR('Tabel 1 ØJ'!G35<5,'Tabel 2 ØJ'!I37<0.5),"-",IFERROR('Tabel 2 ØJ'!I37/'Tabel 1 ØJ'!G35*100,"-")) -> 5.953452488 | J37: =IF(OR('Tabel 1 ØJ'!G35<5,'Tabel 2 ØJ'!J37<0.5),"-",IFERROR('Tabel 2 ØJ'!J37/'Tabel 1 ØJ'!G35*100,"-")) -> 4.503682096
A38: HA | C38: =IF(OR('Tabel 1 ØJ'!C36<5,'Tabel 2 ØJ'!C38<0.5),"-",IFERROR('Tabel 2 ØJ'!C38/'Tabel 1 ØJ'!C36*100,"-")) -> 9.009009009 | D38: =IF(OR('Tabel 1 ØJ'!C36<5,'Tabel 2 ØJ'!D38<0.5),"-",IFERROR('Tabel 2 ØJ'!D38/'Tabel 1 ØJ'!C36*100,"-")) -> 7.20351737 | F38: =IF(OR('Tabel 1 ØJ'!E36<5,'Tabel 2 ØJ'!F38<0.5),"-",IFERROR('Tabel 2 ØJ'!F38/'Tabel 1 ØJ'!E36*100,"-")) -> 7.155322862 | G38: =IF(OR('Tabel 1 ØJ'!E36<5,'Tabel 2 ØJ'!G38<0.5),"-",IFERROR('Tabel 2 ØJ'!G38/'Tabel 1 ØJ'!E36*100,"-")) -> 5.219056812 | I38: =IF(OR('Tabel 1 ØJ'!G36<5,'Tabel 2 ØJ'!I38<0.5),"-",IFERROR('Tabel 2 ØJ'!I38/'Tabel 1 ØJ'!G36*100,"-")) -> 8.15173527 | J38: =IF(OR('Tabel 1 ØJ'!G36<5,'Tabel 2 ØJ'!J38<0.5),"-",IFERROR('Tabel 2 ØJ'!J38/'Tabel 1 ØJ'!G36*100,"-")) -> 6.285764424
A39: HD | C39: =IF(OR('Tabel 1 ØJ'!C37<5,'Tabel 2 ØJ'!C39<0.5),"-",IFERROR('Tabel 2 ØJ'!C39/'Tabel 1 ØJ'!C37*100,"-")) -> 3.3632287 | D39: =IF(OR('Tabel 1 ØJ'!C37<5,'Tabel 2 ØJ'!D39<0.5),"-",IFERROR('Tabel 2 ØJ'!D39/'Tabel 1 ØJ'!C37*100,"-")) -> 2.792446856 | F39: =IF(OR('Tabel 1 ØJ'!E37<5,'Tabel 2 ØJ'!F39<0.5),"-",IFERROR('Tabel 2 ØJ'!F39/'Tabel 1 ØJ'!E37*100,"-")) -> 3.430079156 | G39: =IF(OR('Tabel 1 ØJ'!E37<5,'Tabel 2 ØJ'!G39<0.5),"-",IFERROR('Tabel 2 ØJ'!G39/'Tabel 1 ØJ'!E37*100,"-")) -> 2.815268706 | I39: =IF(OR('Tabel 1 ØJ'!G37<5,'Tabel 2 ØJ'!I39<0.5),"-",IFERROR('Tabel 2 ØJ'!I39/'Tabel 1 ØJ'!G37*100,"-")) -> 3.393939394 | J39: =IF(OR('Tabel 1 ØJ'!G37<5,'Tabel 2 ØJ'!J39<0.5),"-",IFERROR('Tabel 2 ØJ'!J39/'Tabel 1 ØJ'!G37*100,"-")) -> 2.802931076
A40: Komm. og Sprog | C40: =IF(OR('Tabel 1 ØJ'!C38<5,'Tabel 2 ØJ'!C40<0.5),"-",IFERROR('Tabel 2 ØJ'!C40/'Tabel 1 ØJ'!C38*100,"-")) -> 6.547619048 | D40: =IF(OR('Tabel 1 ØJ'!C38<5,'Tabel 2 ØJ'!D40<0.5),"-",IFERROR('Tabel 2 ØJ'!D40/'Tabel 1 ØJ'!C38*100,"-")) -> 5.990991794 | F40: =IF(OR('Tabel 1 ØJ'!E38<5,'Tabel 2 ØJ'!F40<0.5),"-",IFERROR('Tabel 2 ØJ'!F40/'Tabel 1 ØJ'!E38*100,"-")) -> 4.922515953 | G40: =IF(OR('Tabel 1 ØJ'!E38<5,'Tabel 2 ØJ'!G40<0.5),"-",IFERROR('Tabel 2 ØJ'!G40/'Tabel 1 ØJ'!E38*100,"-")) -> 4.163018151 | I40: =IF(OR('Tabel 1 ØJ'!G38<5,'Tabel 2 ØJ'!I40<0.5),"-",IFERROR('Tabel 2 ØJ'!I40/'Tabel 1 ØJ'!G38*100,"-")) -> 5.138339921 | J40: =IF(OR('Tabel 1 ØJ'!G38<5,'Tabel 2 ØJ'!J40<0.5),"-",IFERROR('Tabel 2 ØJ'!J40/'Tabel 1 ØJ'!G38*100,"-")) -> 4.405784611
A41: Bygningskonst. | C41: =IF(OR('Tabel 1 ØJ'!C39<5,'Tabel 2 ØJ'!C41<0.5),"-",IFERROR('Tabel 2 ØJ'!C41/'Tabel 1 ØJ'!C39*100,"-")) -> 4.860088365 | D41: =IF(OR('Tabel 1 ØJ'!C39<5,'Tabel 2 ØJ'!D41<0.5),"-",IFERROR('Tabel 2 ØJ'!D41/'Tabel 1 ØJ'!C39*100,"-")) -> 3.89159619 | F41: =IF(OR('Tabel 1 ØJ'!E39<5,'Tabel 2 ØJ'!F41<0.5),"-",IFERROR('Tabel 2 ØJ'!F41/'Tabel 1 ØJ'!E39*100,"-")) -> 10.13333333 | G41: =IF(OR('Tabel 1 ØJ'!E39<5,'Tabel 2 ØJ'!G41<0.5),"-",IFERROR('Tabel 2 ØJ'!G41/'Tabel 1 ØJ'!E39*100,"-")) -> 8.280022454 | I41: =IF(OR('Tabel 1 ØJ'!G39<5,'Tabel 2 ØJ'!I41<0.5),"-",IFERROR('Tabel 2 ØJ'!I41/'Tabel 1 ØJ'!G39*100,"-")) -> 5.679933665 | J41: =IF(OR('Tabel 1 ØJ'!G39<5,'Tabel 2 ØJ'!J41<0.5),"-",IFERROR('Tabel 2 ØJ'!J41/'Tabel 1 ØJ'!G39*100,"-")) -> 4.573876392
A42: Cand. IT. | C42: =IF(OR('Tabel 1 ØJ'!C40<5,'Tabel 2 ØJ'!C42<0.5),"-",IFERROR('Tabel 2 ØJ'!C42/'Tabel 1 ØJ'!C40*100,"-")) -> 10.21416804 | D42: =IF(OR('Tabel 1 ØJ'!C40<5,'Tabel 2 ØJ'!D42<0.5),"-",IFERROR('Tabel 2 ØJ'!D42/'Tabel 1 ØJ'!C40*100,"-")) -> 8.642594747 | F42: =IF(OR('Tabel 1 ØJ'!E40<5,'Tabel 2 ØJ'!F42<0.5),"-",IFERROR('Tabel 2 ØJ'!F42/'Tabel 1 ØJ'!E40*100,"-")) -> 12.0661157 | G42: =IF(OR('Tabel 1 ØJ'!E40<5,'Tabel 2 ØJ'!G42<0.5),"-",IFERROR('Tabel 2 ØJ'!G42/'Tabel 1 ØJ'!E40*100,"-")) -> 9.883334631 | I42: =IF(OR('Tabel 1 ØJ'!G40<5,'Tabel 2 ØJ'!I42<0.5),"-",IFERROR('Tabel 2 ØJ'!I42/'Tabel 1 ØJ'!G40*100,"-")) -> 11.13861386 | J42: =IF(OR('Tabel 1 ØJ'!G40<5,'Tabel 2 ØJ'!J42<0.5),"-",IFERROR('Tabel 2 ØJ'!J42/'Tabel 1 ØJ'!G40*100,"-")) -> 9.261940976
A43: Bac. Samf. | C43: =IF(OR('Tabel 1 ØJ'!C41<5,'Tabel 2 ØJ'!C43<0.5),"-",IFERROR('Tabel 2 ØJ'!C43/'Tabel 1 ØJ'!C41*100,"-")) -> 11.76470588 | D43: =IF(OR('Tabel 1 ØJ'!C41<5,'Tabel 2 ØJ'!D43<0.5),"-",IFERROR('Tabel 2 ØJ'!D43/'Tabel 1 ØJ'!C41*100,"-")) -> 10.49550987 | F43: =IF(OR('Tabel 1 ØJ'!E41<5,'Tabel 2 ØJ'!F43<0.5),"-",IFERROR('Tabel 2 ØJ'!F43/'Tabel 1 ØJ'!E41*100,"-")) -> 12.38095238 | G43: =IF(OR('Tabel 1 ØJ'!E41<5,'Tabel 2 ØJ'!G43<0.5),"-",IFERROR('Tabel 2 ØJ'!G43/'Tabel 1 ØJ'!E41*100,"-")) -> 10.24375321 | I43: =IF(OR('Tabel 1 ØJ'!G41<5,'Tabel 2 ØJ'!I43<0.5),"-",IFERROR('Tabel 2 ØJ'!I43/'Tabel 1 ØJ'!G41*100,"-")) -> 12.07729469 | J43: =IF(OR('Tabel 1 ØJ'!G41<5,'Tabel 2 ØJ'!J43<0.5),"-",IFERROR('Tabel 2 ØJ'!J43/'Tabel 1 ØJ'!G41*100,"-")) -> 10.36780722
A44: Bac. Hum. | C44: =IF(OR('Tabel 1 ØJ'!C42<5,'Tabel 2 ØJ'!C44<0.5),"-",IFERROR('Tabel 2 ØJ'!C44/'Tabel 1 ØJ'!C42*100,"-")) -> 15.29126214 | D44: =IF(OR('Tabel 1 ØJ'!C42<5,'Tabel 2 ØJ'!D44<0.5),"-",IFERROR('Tabel 2 ØJ'!D44/'Tabel 1 ØJ'!C42*100,"-")) -> 12.0502374 | F44: =IF(OR('Tabel 1 ØJ'!E42<5,'Tabel 2 ØJ'!F44<0.5),"-",IFERROR('Tabel 2 ØJ'!F44/'Tabel 1 ØJ'!E42*100,"-")) -> 19.60784314 | G44: =IF(OR('Tabel 1 ØJ'!E42<5,'Tabel 2 ØJ'!G44<0.5),"-",IFERROR('Tabel 2 ØJ'!G44/'Tabel 1 ØJ'!E42*100,"-")) -> 15.19810338 | I44: =IF(OR('Tabel 1 ØJ'!G42<5,'Tabel 2 ØJ'!I44<0.5),"-",IFERROR('Tabel 2 ØJ'!I44/'Tabel 1 ØJ'!G42*100,"-")) -> 17.95348837 | J44: =IF(OR('Tabel 1 ØJ'!G42<5,'Tabel 2 ØJ'!J44<0.5),"-",IFERROR('Tabel 2 ØJ'!J44/'Tabel 1 ØJ'!G42*100,"-")) -> 13.99166545
A45: Bac. Nat. | C45: =IF(OR('Tabel 1 ØJ'!C43<5,'Tabel 2 ØJ'!C45<0.5),"-",IFERROR('Tabel 2 ØJ'!C45/'Tabel 1 ØJ'!C43*100,"-")) -> 11.07692308 | D45: =IF(OR('Tabel 1 ØJ'!C43<5,'Tabel 2 ØJ'!D45<0.5),"-",IFERROR('Tabel 2 ØJ'!D45/'Tabel 1 ØJ'!C43*100,"-")) -> 8.544588325 | F45: =IF(OR('Tabel 1 ØJ'!E43<5,'Tabel 2 ØJ'!F45<0.5),"-",IFERROR('Tabel 2 ØJ'!F45/'Tabel 1 ØJ'!E43*100,"-")) -> 17.69547325 | G45: =IF(OR('Tabel 1 ØJ'!E43<5,'Tabel 2 ØJ'!G45<0.5),"-",IFERROR('Tabel 2 ØJ'!G45/'Tabel 1 ØJ'!E43*100,"-")) -> 12.92806837 | I45: =IF(OR('Tabel 1 ØJ'!G43<5,'Tabel 2 ØJ'!I45<0.5),"-",IFERROR('Tabel 2 ØJ'!I45/'Tabel 1 ØJ'!G43*100,"-")) -> 12.87793953 | J45: =IF(OR('Tabel 1 ØJ'!G43<5,'Tabel 2 ØJ'!J45<0.5),"-",IFERROR('Tabel 2 ØJ'!J45/'Tabel 1 ØJ'!G43*100,"-")) -> 9.737405403
A46: Andre | C46: =IF(OR('Tabel 1 ØJ'!C44<5,'Tabel 2 ØJ'!C46<0.5),"-",IFERROR('Tabel 2 ØJ'!C46/'Tabel 1 ØJ'!C44*100,"-")) -> 5.251270469 | D46: =IF(OR('Tabel 1 ØJ'!C44<5,'Tabel 2 ØJ'!D46<0.5),"-",IFERROR('Tabel 2 ØJ'!D46/'Tabel 1 ØJ'!C44*100,"-")) -> 4.140246738 | F46: =IF(OR('Tabel 1 ØJ'!E44<5,'Tabel 2 ØJ'!F46<0.5),"-",IFERROR('Tabel 2 ØJ'!F46/'Tabel 1 ØJ'!E44*100,"-")) -> 7.326007326 | G46: =IF(OR('Tabel 1 ØJ'!E44<5,'Tabel 2 ØJ'!G46<0.5),"-",IFERROR('Tabel 2 ØJ'!G46/'Tabel 1 ØJ'!E44*100,"-")) -> 5.906202158 | I46: =IF(OR('Tabel 1 ØJ'!G44<5,'Tabel 2 ØJ'!I46<0.5),"-",IFERROR('Tabel 2 ØJ'!I46/'Tabel 1 ØJ'!G44*100,"-")) -> 6.248166618 | J46: =IF(OR('Tabel 1 ØJ'!G44<5,'Tabel 2 ØJ'!J46<0.5),"-",IFERROR('Tabel 2 ØJ'!J46/'Tabel 1 ØJ'!G44*100,"-")) -> 4.988775625
A48: Total | C48: =IF(OR('Tabel 1 ØJ'!C46<5,'Tabel 2 ØJ'!C48<0.5),"-",IFERROR('Tabel 2 ØJ'!C48/'Tabel 1 ØJ'!C46*100,"-")) -> 5.636147444 | D48: =IF(OR('Tabel 1 ØJ'!C46<5,'Tabel 2 ØJ'!D48<0.5),"-",IFERROR('Tabel 2 ØJ'!D48/'Tabel 1 ØJ'!C46*100,"-")) -> 4.548018827 | F48: =IF(OR('Tabel 1 ØJ'!E46<5,'Tabel 2 ØJ'!F48<0.5),"-",IFERROR('Tabel 2 ØJ'!F48/'Tabel 1 ØJ'!E46*100,"-")) -> 7.294348412 | G48: =IF(OR('Tabel 1 ØJ'!E46<5,'Tabel 2 ØJ'!G48<0.5),"-",IFERROR('Tabel 2 ØJ'!G48/'Tabel 1 ØJ'!E46*100,"-")) -> 5.748341575 | I48: =IF(OR('Tabel 1 ØJ'!G46<5,'Tabel 2 ØJ'!I48<0.5),"-",IFERROR('Tabel 2 ØJ'!I48/'Tabel 1 ØJ'!G46*100,"-")) -> 6.452586467 | J48: =IF(OR('Tabel 1 ØJ'!G46<5,'Tabel 2 ØJ'!J48<0.5),"-",IFERROR('Tabel 2 ØJ'!J48/'Tabel 1 ØJ'!G46*100,"-")) -> 5.139014943
A50: Ingeniører i alt | C50: =IF(OR('Tabel 1 ØJ'!C48<5,'Tabel 2 ØJ'!C50<0.5),"-",IFERROR('Tabel 2 ØJ'!C50/'Tabel 1 ØJ'!C48*100,"-")) -> 2.967769386 | D50: =IF(OR('Tabel 1 ØJ'!C48<5,'Tabel 2 ØJ'!D50<0.5),"-",IFERROR('Tabel 2 ØJ'!D50/'Tabel 1 ØJ'!C48*100,"-")) -> 2.392967653 | F50: =IF(OR('Tabel 1 ØJ'!E48<5,'Tabel 2 ØJ'!F50<0.5),"-",IFERROR('Tabel 2 ØJ'!F50/'Tabel 1 ØJ'!E48*100,"-")) -> 3.748981255 | G50: =IF(OR('Tabel 1 ØJ'!E48<5,'Tabel 2 ØJ'!G50<0.5),"-",IFERROR('Tabel 2 ØJ'!G50/'Tabel 1 ØJ'!E48*100,"-")) -> 2.975652651 | I50: =IF(OR('Tabel 1 ØJ'!G48<5,'Tabel 2 ØJ'!I50<0.5),"-",IFERROR('Tabel 2 ØJ'!I50/'Tabel 1 ØJ'!G48*100,"-")) -> 3.129481232 | J50: =IF(OR('Tabel 1 ØJ'!G48<5,'Tabel 2 ØJ'!J50<0.5),"-",IFERROR('Tabel 2 ØJ'!J50/'Tabel 1 ØJ'!G48*100,"-")) -> 2.513584185
A51: Magistre i alt | C51: =IF(OR('Tabel 1 ØJ'!C49<5,'Tabel 2 ØJ'!C51<0.5),"-",IFERROR('Tabel 2 ØJ'!C51/'Tabel 1 ØJ'!C49*100,"-")) -> 8.533747091 | D51: =IF(OR('Tabel 1 ØJ'!C49<5,'Tabel 2 ØJ'!D51<0.5),"-",IFERROR('Tabel 2 ØJ'!D51/'Tabel 1 ØJ'!C49*100,"-")) -> 6.969152597 | F51: =IF(OR('Tabel 1 ØJ'!E49<5,'Tabel 2 ØJ'!F51<0.5),"-",IFERROR('Tabel 2 ØJ'!F51/'Tabel 1 ØJ'!E49*100,"-")) -> 9.286613993 | G51: =IF(OR('Tabel 1 ØJ'!E49<5,'Tabel 2 ØJ'!G51<0.5),"-",IFERROR('Tabel 2 ØJ'!G51/'Tabel 1 ØJ'!E49*100,"-")) -> 7.402265462 | I51: =IF(OR('Tabel 1 ØJ'!G49<5,'Tabel 2 ØJ'!I51<0.5),"-",IFERROR('Tabel 2 ØJ'!I51/'Tabel 1 ØJ'!G49*100,"-")) -> 9.007127943 | J51: =IF(OR('Tabel 1 ØJ'!G49<5,'Tabel 2 ØJ'!J51<0.5),"-",IFERROR('Tabel 2 ØJ'!J51/'Tabel 1 ØJ'!G49*100,"-")) -> 7.241481393
A52: DJØF'ere i alt | C52: =IF(OR('Tabel 1 ØJ'!C50<5,'Tabel 2 ØJ'!C52<0.5),"-",IFERROR('Tabel 2 ØJ'!C52/'Tabel 1 ØJ'!C50*100,"-")) -> 5.61839652 | D52: =IF(OR('Tabel 1 ØJ'!C50<5,'Tabel 2 ØJ'!D52<0.5),"-",IFERROR('Tabel 2 ØJ'!D52/'Tabel 1 ØJ'!C50*100,"-")) -> 4.426498067 | F52: =IF(OR('Tabel 1 ØJ'!E50<5,'Tabel 2 ØJ'!F52<0.5),"-",IFERROR('Tabel 2 ØJ'!F52/'Tabel 1 ØJ'!E50*100,"-")) -> 5.562033582 | G52: =IF(OR('Tabel 1 ØJ'!E50<5,'Tabel 2 ØJ'!G52<0.5),"-",IFERROR('Tabel 2 ØJ'!G52/'Tabel 1 ØJ'!E50*100,"-")) -> 4.273325376 | I52: =IF(OR('Tabel 1 ØJ'!G50<5,'Tabel 2 ØJ'!I52<0.5),"-",IFERROR('Tabel 2 ØJ'!I52/'Tabel 1 ØJ'!G50*100,"-")) -> 5.589314722 | J52: =IF(OR('Tabel 1 ØJ'!G50<5,'Tabel 2 ØJ'!J52<0.5),"-",IFERROR('Tabel 2 ØJ'!J52/'Tabel 1 ØJ'!G50*100,"-")) -> 4.347464976
A57: Horsens
C59: Mænd | F59: Kvinder | I59: I alt
C60: Ledigheds- berørte | D60: Gns. brutto- ledighed | F60: Ledigheds- berørte | G60: Gns. brutto- ledighed | I60: Ledigheds- berørte | J60: Gns. brutto- ledighed
A63: Civ. ing. | C63: =IF(OR('Tabel 1 ØJ'!C61<5,'Tabel 2 ØJ'!C63<0.5),"-",IFERROR('Tabel 2 ØJ'!C63/'Tabel 1 ØJ'!C61*100,"-")) -> 2.5 | D63: =IF(OR('Tabel 1 ØJ'!C61<5,'Tabel 2 ØJ'!D63<0.5),"-",IFERROR('Tabel 2 ØJ'!D63/'Tabel 1 ØJ'!C61*100,"-")) -> 2.153371172 | F63: =IF(OR('Tabel 1 ØJ'!E61<5,'Tabel 2 ØJ'!F63<0.5),"-",IFERROR('Tabel 2 ØJ'!F63/'Tabel 1 ØJ'!E61*100,"-")) -> 3.157894737 | G63: =IF(OR('Tabel 1 ØJ'!E61<5,'Tabel 2 ØJ'!G63<0.5),"-",IFERROR('Tabel 2 ØJ'!G63/'Tabel 1 ØJ'!E61*100,"-")) -> 2.574295778 | I63: =IF(OR('Tabel 1 ØJ'!G61<5,'Tabel 2 ØJ'!I63<0.5),"-",IFERROR('Tabel 2 ØJ'!I63/'Tabel 1 ØJ'!G61*100,"-")) -> 2.686567164 | J63: =IF(OR('Tabel 1 ØJ'!G61<5,'Tabel 2 ØJ'!J63<0.5),"-",IFERROR('Tabel 2 ØJ'!J63/'Tabel 1 ØJ'!G61*100,"-")) -> 2.272737851
A64: Diplom ing. | C64: =IF(OR('Tabel 1 ØJ'!C62<5,'Tabel 2 ØJ'!C64<0.5),"-",IFERROR('Tabel 2 ØJ'!C64/'Tabel 1 ØJ'!C62*100,"-")) -> 2.127659574 | D64: =IF(OR('Tabel 1 ØJ'!C62<5,'Tabel 2 ØJ'!D64<0.5),"-",IFERROR('Tabel 2 ØJ'!D64/'Tabel 1 ØJ'!C62*100,"-")) -> 1.71640672 | F64: =IF(OR('Tabel 1 ØJ'!E62<5,'Tabel 2 ØJ'!F64<0.5),"-",IFERROR('Tabel 2 ØJ'!F64/'Tabel 1 ØJ'!E62*100,"-")) -> 2.553191489 | G64: =IF(OR('Tabel 1 ØJ'!E62<5,'Tabel 2 ØJ'!G64<0.5),"-",IFERROR('Tabel 2 ØJ'!G64/'Tabel 1 ØJ'!E62*100,"-")) -> 2.048965498 | I64: =IF(OR('Tabel 1 ØJ'!G62<5,'Tabel 2 ØJ'!I64<0.5),"-",IFERROR('Tabel 2 ØJ'!I64/'Tabel 1 ØJ'!G62*100,"-")) -> 2.234042553 | J64: =IF(OR('Tabel 1 ØJ'!G62<5,'Tabel 2 ØJ'!J64<0.5),"-",IFERROR('Tabel 2 ØJ'!J64/'Tabel 1 ØJ'!G62*100,"-")) -> 1.799546414
A65: Cand. Scient. Tek. | C65: =IF(OR('Tabel 1 ØJ'!C63<5,'Tabel 2 ØJ'!C65<0.5),"-",IFERROR('Tabel 2 ØJ'!C65/'Tabel 1 ØJ'!C63*100,"-")) -> 6 | D65: =IF(OR('Tabel 1 ØJ'!C63<5,'Tabel 2 ØJ'!D65<0.5),"-",IFERROR('Tabel 2 ØJ'!D65/'Tabel 1 ØJ'!C63*100,"-")) -> 5.029626396 | F65: =IF(OR('Tabel 1 ØJ'!E63<5,'Tabel 2 ØJ'!F65<0.5),"-",IFERROR('Tabel 2 ØJ'!F65/'Tabel 1 ØJ'!E63*100,"-")) -> 7.228915663 | G65: =IF(OR('Tabel 1 ØJ'!E63<5,'Tabel 2 ØJ'!G65<0.5),"-",IFERROR('Tabel 2 ØJ'!G65/'Tabel 1 ØJ'!E63*100,"-")) -> 6.949522032 | I65: =IF(OR('Tabel 1 ØJ'!G63<5,'Tabel 2 ØJ'!I65<0.5),"-",IFERROR('Tabel 2 ØJ'!I65/'Tabel 1 ØJ'!G63*100,"-")) -> 6.557377049 | J65: =IF(OR('Tabel 1 ØJ'!G63<5,'Tabel 2 ØJ'!J65<0.5),"-",IFERROR('Tabel 2 ØJ'!J65/'Tabel 1 ØJ'!G63*100,"-")) -> 5.900398734
A66: MA. Hum. | C66: =IF(OR('Tabel 1 ØJ'!C64<5,'Tabel 2 ØJ'!C66<0.5),"-",IFERROR('Tabel 2 ØJ'!C66/'Tabel 1 ØJ'!C64*100,"-")) -> 4.379562044 | D66: =IF(OR('Tabel 1 ØJ'!C64<5,'Tabel 2 ØJ'!D66<0.5),"-",IFERROR('Tabel 2 ØJ'!D66/'Tabel 1 ØJ'!C64*100,"-")) -> 2.38741173 | F66: =IF(OR('Tabel 1 ØJ'!E64<5,'Tabel 2 ØJ'!F66<0.5),"-",IFERROR('Tabel 2 ØJ'!F66/'Tabel 1 ØJ'!E64*100,"-")) -> 6.578947368 | G66: =IF(OR('Tabel 1 ØJ'!E64<5,'Tabel 2 ØJ'!G66<0.5),"-",IFERROR('Tabel 2 ØJ'!G66/'Tabel 1 ØJ'!E64*100,"-")) -> 5.044283665 | I66: =IF(OR('Tabel 1 ØJ'!G64<5,'Tabel 2 ØJ'!I66<0.5),"-",IFERROR('Tabel 2 ØJ'!I66/'Tabel 1 ØJ'!G64*100,"-")) -> 5.89569161 | J66: =IF(OR('Tabel 1 ØJ'!G64<5,'Tabel 2 ØJ'!J66<0.5),"-",IFERROR('Tabel 2 ØJ'!J66/'Tabel 1 ØJ'!G64*100,"-")) -> 4.218906216
A67: MA. Nat. | C67: =IF(OR('Tabel 1 ØJ'!C65<5,'Tabel 2 ØJ'!C67<0.5),"-",IFERROR('Tabel 2 ØJ'!C67/'Tabel 1 ØJ'!C65*100,"-")) -> 1.515151515 | D67: =IF(OR('Tabel 1 ØJ'!C65<5,'Tabel 2 ØJ'!D67<0.5),"-",IFERROR('Tabel 2 ØJ'!D67/'Tabel 1 ØJ'!C65*100,"-")) -> 1.37311492 | F67: =IF(OR('Tabel 1 ØJ'!E65<5,'Tabel 2 ØJ'!F67<0.5),"-",IFERROR('Tabel 2 ØJ'!F67/'Tabel 1 ØJ'!E65*100,"-")) -> - | G67: =IF(OR('Tabel 1 ØJ'!E65<5,'Tabel 2 ØJ'!G67<0.5),"-",IFERROR('Tabel 2 ØJ'!G67/'Tabel 1 ØJ'!E65*100,"-")) -> - | I67: =IF(OR('Tabel 1 ØJ'!G65<5,'Tabel 2 ØJ'!I67<0.5),"-",IFERROR('Tabel 2 ØJ'!I67/'Tabel 1 ØJ'!G65*100,"-")) -> 0.6993006993 | J67: =IF(OR('Tabel 1 ØJ'!G65<5,'Tabel 2 ØJ'!J67<0.5),"-",IFERROR('Tabel 2 ØJ'!J67/'Tabel 1 ØJ'!G65*100,"-")) -> 0.6337453478
A68: MA. Ph.d. | C68: =IF(OR('Tabel 1 ØJ'!C66<5,'Tabel 2 ØJ'!C68<0.5),"-",IFERROR('Tabel 2 ØJ'!C68/'Tabel 1 ØJ'!C66*100,"-")) -> - | D68: =IF(OR('Tabel 1 ØJ'!C66<5,'Tabel 2 ØJ'!D68<0.5),"-",IFERROR('Tabel 2 ØJ'!D68/'Tabel 1 ØJ'!C66*100,"-")) -> - | F68: =IF(OR('Tabel 1 ØJ'!E66<5,'Tabel 2 ØJ'!F68<0.5),"-",IFERROR('Tabel 2 ØJ'!F68/'Tabel 1 ØJ'!E66*100,"-")) -> - | G68: =IF(OR('Tabel 1 ØJ'!E66<5,'Tabel 2 ØJ'!G68<0.5),"-",IFERROR('Tabel 2 ØJ'!G68/'Tabel 1 ØJ'!E66*100,"-")) -> - | I68: =IF(OR('Tabel 1 ØJ'!G66<5,'Tabel 2 ØJ'!I68<0.5),"-",IFERROR('Tabel 2 ØJ'!I68/'Tabel 1 ØJ'!G66*100,"-")) -> - | J68: =IF(OR('Tabel 1 ØJ'!G66<5,'Tabel 2 ØJ'!J68<0.5),"-",IFERROR('Tabel 2 ØJ'!J68/'Tabel 1 ØJ'!G66*100,"-")) -> -
A69: MA. Samf. | C69: =IF(OR('Tabel 1 ØJ'!C67<5,'Tabel 2 ØJ'!C69<0.5),"-",IFERROR('Tabel 2 ØJ'!C69/'Tabel 1 ØJ'!C67*100,"-")) -> 10 | D69: =IF(OR('Tabel 1 ØJ'!C67<5,'Tabel 2 ØJ'!D69<0.5),"-",IFERROR('Tabel 2 ØJ'!D69/'Tabel 1 ØJ'!C67*100,"-")) -> - | F69: =IF(OR('Tabel 1 ØJ'!E67<5,'Tabel 2 ØJ'!F69<0.5),"-",IFERROR('Tabel 2 ØJ'!F69/'Tabel 1 ØJ'!E67*100,"-")) -> 17.24137931 | G69: =IF(OR('Tabel 1 ØJ'!E67<5,'Tabel 2 ØJ'!G69<0.5),"-",IFERROR('Tabel 2 ØJ'!G69/'Tabel 1 ØJ'!E67*100,"-")) -> 12.60116527 | I69: =IF(OR('Tabel 1 ØJ'!G67<5,'Tabel 2 ØJ'!I69<0.5),"-",IFERROR('Tabel 2 ØJ'!I69/'Tabel 1 ØJ'!G67*100,"-")) -> 15.38461538 | J69: =IF(OR('Tabel 1 ØJ'!G67<5,'Tabel 2 ØJ'!J69<0.5),"-",IFERROR('Tabel 2 ØJ'!J69/'Tabel 1 ØJ'!G67*100,"-")) -> 9.803498234
A70: Øvrige Mag. | C70: =IF(OR('Tabel 1 ØJ'!C68<5,'Tabel 2 ØJ'!C70<0.5),"-",IFERROR('Tabel 2 ØJ'!C70/'Tabel 1 ØJ'!C68*100,"-")) -> - | D70: =IF(OR('Tabel 1 ØJ'!C68<5,'Tabel 2 ØJ'!D70<0.5),"-",IFERROR('Tabel 2 ØJ'!D70/'Tabel 1 ØJ'!C68*100,"-")) -> - | F70: =IF(OR('Tabel 1 ØJ'!E68<5,'Tabel 2 ØJ'!F70<0.5),"-",IFERROR('Tabel 2 ØJ'!F70/'Tabel 1 ØJ'!E68*100,"-")) -> 5.555555556 | G70: =IF(OR('Tabel 1 ØJ'!E68<5,'Tabel 2 ØJ'!G70<0.5),"-",IFERROR('Tabel 2 ØJ'!G70/'Tabel 1 ØJ'!E68*100,"-")) -> 5.554516033 | I70: =IF(OR('Tabel 1 ØJ'!G68<5,'Tabel 2 ØJ'!I70<0.5),"-",IFERROR('Tabel 2 ØJ'!I70/'Tabel 1 ØJ'!G68*100,"-")) -> 2.941176471 | J70: =IF(OR('Tabel 1 ØJ'!G68<5,'Tabel 2 ØJ'!J70<0.5),"-",IFERROR('Tabel 2 ØJ'!J70/'Tabel 1 ØJ'!G68*100,"-")) -> 2.940626135
A71: Agronom | C71: =IF(OR('Tabel 1 ØJ'!C69<5,'Tabel 2 ØJ'!C71<0.5),"-",IFERROR('Tabel 2 ØJ'!C71/'Tabel 1 ØJ'!C69*100,"-")) -> - | D71: =IF(OR('Tabel 1 ØJ'!C69<5,'Tabel 2 ØJ'!D71<0.5),"-",IFERROR('Tabel 2 ØJ'!D71/'Tabel 1 ØJ'!C69*100,"-")) -> - | F71: =IF(OR('Tabel 1 ØJ'!E69<5,'Tabel 2 ØJ'!F71<0.5),"-",IFERROR('Tabel 2 ØJ'!F71/'Tabel 1 ØJ'!E69*100,"-")) -> 5.555555556 | G71: =IF(OR('Tabel 1 ØJ'!E69<5,'Tabel 2 ØJ'!G71<0.5),"-",IFERROR('Tabel 2 ØJ'!G71/'Tabel 1 ØJ'!E69*100,"-")) -> 5.554516033 | I71: =IF(OR('Tabel 1 ØJ'!G69<5,'Tabel 2 ØJ'!I71<0.5),"-",IFERROR('Tabel 2 ØJ'!I71/'Tabel 1 ØJ'!G69*100,"-")) -> 2.857142857 | J71: =IF(OR('Tabel 1 ØJ'!G69<5,'Tabel 2 ØJ'!J71<0.5),"-",IFERROR('Tabel 2 ØJ'!J71/'Tabel 1 ØJ'!G69*100,"-")) -> 2.856608245
A72: Landsk. Arkt. | C72: =IF(OR('Tabel 1 ØJ'!C70<5,'Tabel 2 ØJ'!C72<0.5),"-",IFERROR('Tabel 2 ØJ'!C72/'Tabel 1 ØJ'!C70*100,"-")) -> - | D72: =IF(OR('Tabel 1 ØJ'!C70<5,'Tabel 2 ØJ'!D72<0.5),"-",IFERROR('Tabel 2 ØJ'!D72/'Tabel 1 ØJ'!C70*100,"-")) -> - | F72: =IF(OR('Tabel 1 ØJ'!E70<5,'Tabel 2 ØJ'!F72<0.5),"-",IFERROR('Tabel 2 ØJ'!F72/'Tabel 1 ØJ'!E70*100,"-")) -> - | G72: =IF(OR('Tabel 1 ØJ'!E70<5,'Tabel 2 ØJ'!G72<0.5),"-",IFERROR('Tabel 2 ØJ'!G72/'Tabel 1 ØJ'!E70*100,"-")) -> - | I72: =IF(OR('Tabel 1 ØJ'!G70<5,'Tabel 2 ØJ'!I72<0.5),"-",IFERROR('Tabel 2 ØJ'!I72/'Tabel 1 ØJ'!G70*100,"-")) -> - | J72: =IF(OR('Tabel 1 ØJ'!G70<5,'Tabel 2 ØJ'!J72<0.5),"-",IFERROR('Tabel 2 ØJ'!J72/'Tabel 1 ØJ'!G70*100,"-")) -> -
A73: Hortonom | C73: =IF(OR('Tabel 1 ØJ'!C71<5,'Tabel 2 ØJ'!C73<0.5),"-",IFERROR('Tabel 2 ØJ'!C73/'Tabel 1 ØJ'!C71*100,"-")) -> - | D73: =IF(OR('Tabel 1 ØJ'!C71<5,'Tabel 2 ØJ'!D73<0.5),"-",IFERROR('Tabel 2 ØJ'!D73/'Tabel 1 ØJ'!C71*100,"-")) -> - | F73: =IF(OR('Tabel 1 ØJ'!E71<5,'Tabel 2 ØJ'!F73<0.5),"-",IFERROR('Tabel 2 ØJ'!F73/'Tabel 1 ØJ'!E71*100,"-")) -> - | G73: =IF(OR('Tabel 1 ØJ'!E71<5,'Tabel 2 ØJ'!G73<0.5),"-",IFERROR('Tabel 2 ØJ'!G73/'Tabel 1 ØJ'!E71*100,"-")) -> - | I73: =IF(OR('Tabel 1 ØJ'!G71<5,'Tabel 2 ØJ'!I73<0.5),"-",IFERROR('Tabel 2 ØJ'!I73/'Tabel 1 ØJ'!G71*100,"-")) -> - | J73: =IF(OR('Tabel 1 ØJ'!G71<5,'Tabel 2 ØJ'!J73<0.5),"-",IFERROR('Tabel 2 ØJ'!J73/'Tabel 1 ØJ'!G71*100,"-")) -> -
A74: Forstkand. | C74: =IF(OR('Tabel 1 ØJ'!C72<5,'Tabel 2 ØJ'!C74<0.5),"-",IFERROR('Tabel 2 ØJ'!C74/'Tabel 1 ØJ'!C72*100,"-")) -> - | D74: =IF(OR('Tabel 1 ØJ'!C72<5,'Tabel 2 ØJ'!D74<0.5),"-",IFERROR('Tabel 2 ØJ'!D74/'Tabel 1 ØJ'!C72*100,"-")) -> - | F74: =IF(OR('Tabel 1 ØJ'!E72<5,'Tabel 2 ØJ'!F74<0.5),"-",IFERROR('Tabel 2 ØJ'!F74/'Tabel 1 ØJ'!E72*100,"-")) -> - | G74: =IF(OR('Tabel 1 ØJ'!E72<5,'Tabel 2 ØJ'!G74<0.5),"-",IFERROR('Tabel 2 ØJ'!G74/'Tabel 1 ØJ'!E72*100,"-")) -> - | I74: =IF(OR('Tabel 1 ØJ'!G72<5,'Tabel 2 ØJ'!I74<0.5),"-",IFERROR('Tabel 2 ØJ'!I74/'Tabel 1 ØJ'!G72*100,"-")) -> - | J74: =IF(OR('Tabel 1 ØJ'!G72<5,'Tabel 2 ØJ'!J74<0.5),"-",IFERROR('Tabel 2 ØJ'!J74/'Tabel 1 ØJ'!G72*100,"-")) -> -
A75: Jordbrugsakad. | C75: =IF(OR('Tabel 1 ØJ'!C73<5,'Tabel 2 ØJ'!C75<0.5),"-",IFERROR('Tabel 2 ØJ'!C75/'Tabel 1 ØJ'!C73*100,"-")) -> - | D75: =IF(OR('Tabel 1 ØJ'!C73<5,'Tabel 2 ØJ'!D75<0.5),"-",IFERROR('Tabel 2 ØJ'!D75/'Tabel 1 ØJ'!C73*100,"-")) -> - | F75: =IF(OR('Tabel 1 ØJ'!E73<5,'Tabel 2 ØJ'!F75<0.5),"-",IFERROR('Tabel 2 ØJ'!F75/'Tabel 1 ØJ'!E73*100,"-")) -> 5 | G75: =IF(OR('Tabel 1 ØJ'!E73<5,'Tabel 2 ØJ'!G75<0.5),"-",IFERROR('Tabel 2 ØJ'!G75/'Tabel 1 ØJ'!E73*100,"-")) -> 4.99906443 | I75: =IF(OR('Tabel 1 ØJ'!G73<5,'Tabel 2 ØJ'!I75<0.5),"-",IFERROR('Tabel 2 ØJ'!I75/'Tabel 1 ØJ'!G73*100,"-")) -> 2.272727273 | J75: =IF(OR('Tabel 1 ØJ'!G73<5,'Tabel 2 ØJ'!J75<0.5),"-",IFERROR('Tabel 2 ØJ'!J75/'Tabel 1 ØJ'!G73*100,"-")) -> 2.272302013
A76: Mejeriing. | C76: =IF(OR('Tabel 1 ØJ'!C74<5,'Tabel 2 ØJ'!C76<0.5),"-",IFERROR('Tabel 2 ØJ'!C76/'Tabel 1 ØJ'!C74*100,"-")) -> - | D76: =IF(OR('Tabel 1 ØJ'!C74<5,'Tabel 2 ØJ'!D76<0.5),"-",IFERROR('Tabel 2 ØJ'!D76/'Tabel 1 ØJ'!C74*100,"-")) -> - | F76: =IF(OR('Tabel 1 ØJ'!E74<5,'Tabel 2 ØJ'!F76<0.5),"-",IFERROR('Tabel 2 ØJ'!F76/'Tabel 1 ØJ'!E74*100,"-")) -> - | G76: =IF(OR('Tabel 1 ØJ'!E74<5,'Tabel 2 ØJ'!G76<0.5),"-",IFERROR('Tabel 2 ØJ'!G76/'Tabel 1 ØJ'!E74*100,"-")) -> - | I76: =IF(OR('Tabel 1 ØJ'!G74<5,'Tabel 2 ØJ'!I76<0.5),"-",IFERROR('Tabel 2 ØJ'!I76/'Tabel 1 ØJ'!G74*100,"-")) -> - | J76: =IF(OR('Tabel 1 ØJ'!G74<5,'Tabel 2 ØJ'!J76<0.5),"-",IFERROR('Tabel 2 ØJ'!J76/'Tabel 1 ØJ'!G74*100,"-")) -> -
A77: Levn.m.kand. | C77: =IF(OR('Tabel 1 ØJ'!C75<5,'Tabel 2 ØJ'!C77<0.5),"-",IFERROR('Tabel 2 ØJ'!C77/'Tabel 1 ØJ'!C75*100,"-")) -> - | D77: =IF(OR('Tabel 1 ØJ'!C75<5,'Tabel 2 ØJ'!D77<0.5),"-",IFERROR('Tabel 2 ØJ'!D77/'Tabel 1 ØJ'!C75*100,"-")) -> - | F77: =IF(OR('Tabel 1 ØJ'!E75<5,'Tabel 2 ØJ'!F77<0.5),"-",IFERROR('Tabel 2 ØJ'!F77/'Tabel 1 ØJ'!E75*100,"-")) -> - | G77: =IF(OR('Tabel 1 ØJ'!E75<5,'Tabel 2 ØJ'!G77<0.5),"-",IFERROR('Tabel 2 ØJ'!G77/'Tabel 1 ØJ'!E75*100,"-")) -> - | I77: =IF(OR('Tabel 1 ØJ'!G75<5,'Tabel 2 ØJ'!I77<0.5),"-",IFERROR('Tabel 2 ØJ'!I77/'Tabel 1 ØJ'!G75*100,"-")) -> - | J77: =IF(OR('Tabel 1 ØJ'!G75<5,'Tabel 2 ØJ'!J77<0.5),"-",IFERROR('Tabel 2 ØJ'!J77/'Tabel 1 ØJ'!G75*100,"-")) -> -
A78: Dyrlæge | C78: =IF(OR('Tabel 1 ØJ'!C76<5,'Tabel 2 ØJ'!C78<0.5),"-",IFERROR('Tabel 2 ØJ'!C78/'Tabel 1 ØJ'!C76*100,"-")) -> - | D78: =IF(OR('Tabel 1 ØJ'!C76<5,'Tabel 2 ØJ'!D78<0.5),"-",IFERROR('Tabel 2 ØJ'!D78/'Tabel 1 ØJ'!C76*100,"-")) -> - | F78: =IF(OR('Tabel 1 ØJ'!E76<5,'Tabel 2 ØJ'!F78<0.5),"-",IFERROR('Tabel 2 ØJ'!F78/'Tabel 1 ØJ'!E76*100,"-")) -> - | G78: =IF(OR('Tabel 1 ØJ'!E76<5,'Tabel 2 ØJ'!G78<0.5),"-",IFERROR('Tabel 2 ØJ'!G78/'Tabel 1 ØJ'!E76*100,"-")) -> - | I78: =IF(OR('Tabel 1 ØJ'!G76<5,'Tabel 2 ØJ'!I78<0.5),"-",IFERROR('Tabel 2 ØJ'!I78/'Tabel 1 ØJ'!G76*100,"-")) -> - | J78: =IF(OR('Tabel 1 ØJ'!G76<5,'Tabel 2 ØJ'!J78<0.5),"-",IFERROR('Tabel 2 ØJ'!J78/'Tabel 1 ØJ'!G76*100,"-")) -> -
A79: Farmaceut | C79: =IF(OR('Tabel 1 ØJ'!C77<5,'Tabel 2 ØJ'!C79<0.5),"-",IFERROR('Tabel 2 ØJ'!C79/'Tabel 1 ØJ'!C77*100,"-")) -> - | D79: =IF(OR('Tabel 1 ØJ'!C77<5,'Tabel 2 ØJ'!D79<0.5),"-",IFERROR('Tabel 2 ØJ'!D79/'Tabel 1 ØJ'!C77*100,"-")) -> - | F79: =IF(OR('Tabel 1 ØJ'!E77<5,'Tabel 2 ØJ'!F79<0.5),"-",IFERROR('Tabel 2 ØJ'!F79/'Tabel 1 ØJ'!E77*100,"-")) -> 5.555555556 | G79: =IF(OR('Tabel 1 ØJ'!E77<5,'Tabel 2 ØJ'!G79<0.5),"-",IFERROR('Tabel 2 ØJ'!G79/'Tabel 1 ØJ'!E77*100,"-")) -> - | I79: =IF(OR('Tabel 1 ØJ'!G77<5,'Tabel 2 ØJ'!I79<0.5),"-",IFERROR('Tabel 2 ØJ'!I79/'Tabel 1 ØJ'!G77*100,"-")) -> 9.090909091 | J79: =IF(OR('Tabel 1 ØJ'!G77<5,'Tabel 2 ØJ'!J79<0.5),"-",IFERROR('Tabel 2 ØJ'!J79/'Tabel 1 ØJ'!G77*100,"-")) -> 5.84306232
A80: Læge | C80: =IF(OR('Tabel 1 ØJ'!C78<5,'Tabel 2 ØJ'!C80<0.5),"-",IFERROR('Tabel 2 ØJ'!C80/'Tabel 1 ØJ'!C78*100,"-")) -> 3.703703704 | D80: =IF(OR('Tabel 1 ØJ'!C78<5,'Tabel 2 ØJ'!D80<0.5),"-",IFERROR('Tabel 2 ØJ'!D80/'Tabel 1 ØJ'!C78*100,"-")) -> 3.019235789 | F80: =IF(OR('Tabel 1 ØJ'!E78<5,'Tabel 2 ØJ'!F80<0.5),"-",IFERROR('Tabel 2 ØJ'!F80/'Tabel 1 ØJ'!E78*100,"-")) -> 1.369863014 | G80: =IF(OR('Tabel 1 ØJ'!E78<5,'Tabel 2 ØJ'!G80<0.5),"-",IFERROR('Tabel 2 ØJ'!G80/'Tabel 1 ØJ'!E78*100,"-")) -> 0.9270263643 | I80: =IF(OR('Tabel 1 ØJ'!G78<5,'Tabel 2 ØJ'!I80<0.5),"-",IFERROR('Tabel 2 ØJ'!I80/'Tabel 1 ØJ'!G78*100,"-")) -> 2 | J80: =IF(OR('Tabel 1 ØJ'!G78<5,'Tabel 2 ØJ'!J80<0.5),"-",IFERROR('Tabel 2 ØJ'!J80/'Tabel 1 ØJ'!G78*100,"-")) -> 1.491922909
A81: Tandlæge | C81: =IF(OR('Tabel 1 ØJ'!C79<5,'Tabel 2 ØJ'!C81<0.5),"-",IFERROR('Tabel 2 ØJ'!C81/'Tabel 1 ØJ'!C79*100,"-")) -> - | D81: =IF(OR('Tabel 1 ØJ'!C79<5,'Tabel 2 ØJ'!D81<0.5),"-",IFERROR('Tabel 2 ØJ'!D81/'Tabel 1 ØJ'!C79*100,"-")) -> - | F81: =IF(OR('Tabel 1 ØJ'!E79<5,'Tabel 2 ØJ'!F81<0.5),"-",IFERROR('Tabel 2 ØJ'!F81/'Tabel 1 ØJ'!E79*100,"-")) -> - | G81: =IF(OR('Tabel 1 ØJ'!E79<5,'Tabel 2 ØJ'!G81<0.5),"-",IFERROR('Tabel 2 ØJ'!G81/'Tabel 1 ØJ'!E79*100,"-")) -> - | I81: =IF(OR('Tabel 1 ØJ'!G79<5,'Tabel 2 ØJ'!I81<0.5),"-",IFERROR('Tabel 2 ØJ'!I81/'Tabel 1 ØJ'!G79*100,"-")) -> - | J81: =IF(OR('Tabel 1 ØJ'!G79<5,'Tabel 2 ØJ'!J81<0.5),"-",IFERROR('Tabel 2 ØJ'!J81/'Tabel 1 ØJ'!G79*100,"-")) -> -
A82: Arkitekt | C82: =IF(OR('Tabel 1 ØJ'!C80<5,'Tabel 2 ØJ'!C82<0.5),"-",IFERROR('Tabel 2 ØJ'!C82/'Tabel 1 ØJ'!C80*100,"-")) -> 3.125 | D82: =IF(OR('Tabel 1 ØJ'!C80<5,'Tabel 2 ØJ'!D82<0.5),"-",IFERROR('Tabel 2 ØJ'!D82/'Tabel 1 ØJ'!C80*100,"-")) -> 3.124415269 | F82: =IF(OR('Tabel 1 ØJ'!E80<5,'Tabel 2 ØJ'!F82<0.5),"-",IFERROR('Tabel 2 ØJ'!F82/'Tabel 1 ØJ'!E80*100,"-")) -> 5 | G82: =IF(OR('Tabel 1 ØJ'!E80<5,'Tabel 2 ØJ'!G82<0.5),"-",IFERROR('Tabel 2 ØJ'!G82/'Tabel 1 ØJ'!E80*100,"-")) -> 4.652903387 | I82: =IF(OR('Tabel 1 ØJ'!G80<5,'Tabel 2 ØJ'!I82<0.5),"-",IFERROR('Tabel 2 ØJ'!I82/'Tabel 1 ØJ'!G80*100,"-")) -> 4.166666667 | J82: =IF(OR('Tabel 1 ØJ'!G80<5,'Tabel 2 ØJ'!J82<0.5),"-",IFERROR('Tabel 2 ØJ'!J82/'Tabel 1 ØJ'!G80*100,"-")) -> 3.973575334
A83: Landinspek. | C83: =IF(OR('Tabel 1 ØJ'!C81<5,'Tabel 2 ØJ'!C83<0.5),"-",IFERROR('Tabel 2 ØJ'!C83/'Tabel 1 ØJ'!C81*100,"-")) -> - | D83: =IF(OR('Tabel 1 ØJ'!C81<5,'Tabel 2 ØJ'!D83<0.5),"-",IFERROR('Tabel 2 ØJ'!D83/'Tabel 1 ØJ'!C81*100,"-")) -> - | F83: =IF(OR('Tabel 1 ØJ'!E81<5,'Tabel 2 ØJ'!F83<0.5),"-",IFERROR('Tabel 2 ØJ'!F83/'Tabel 1 ØJ'!E81*100,"-")) -> - | G83: =IF(OR('Tabel 1 ØJ'!E81<5,'Tabel 2 ØJ'!G83<0.5),"-",IFERROR('Tabel 2 ØJ'!G83/'Tabel 1 ØJ'!E81*100,"-")) -> - | I83: =IF(OR('Tabel 1 ØJ'!G81<5,'Tabel 2 ØJ'!I83<0.5),"-",IFERROR('Tabel 2 ØJ'!I83/'Tabel 1 ØJ'!G81*100,"-")) -> - | J83: =IF(OR('Tabel 1 ØJ'!G81<5,'Tabel 2 ØJ'!J83<0.5),"-",IFERROR('Tabel 2 ØJ'!J83/'Tabel 1 ØJ'!G81*100,"-")) -> -
A84: Bibliotekar | C84: =IF(OR('Tabel 1 ØJ'!C82<5,'Tabel 2 ØJ'!C84<0.5),"-",IFERROR('Tabel 2 ØJ'!C84/'Tabel 1 ØJ'!C82*100,"-")) -> - | D84: =IF(OR('Tabel 1 ØJ'!C82<5,'Tabel 2 ØJ'!D84<0.5),"-",IFERROR('Tabel 2 ØJ'!D84/'Tabel 1 ØJ'!C82*100,"-")) -> - | F84: =IF(OR('Tabel 1 ØJ'!E82<5,'Tabel 2 ØJ'!F84<0.5),"-",IFERROR('Tabel 2 ØJ'!F84/'Tabel 1 ØJ'!E82*100,"-")) -> 4.166666667 | G84: =IF(OR('Tabel 1 ØJ'!E82<5,'Tabel 2 ØJ'!G84<0.5),"-",IFERROR('Tabel 2 ØJ'!G84/'Tabel 1 ØJ'!E82*100,"-")) -> 3.781263644 | I84: =IF(OR('Tabel 1 ØJ'!G82<5,'Tabel 2 ØJ'!I84<0.5),"-",IFERROR('Tabel 2 ØJ'!I84/'Tabel 1 ØJ'!G82*100,"-")) -> 3.448275862 | J84: =IF(OR('Tabel 1 ØJ'!G82<5,'Tabel 2 ØJ'!J84<0.5),"-",IFERROR('Tabel 2 ØJ'!J84/'Tabel 1 ØJ'!G82*100,"-")) -> 3.129321636
A85: Musikudd. | C85: =IF(OR('Tabel 1 ØJ'!C83<5,'Tabel 2 ØJ'!C85<0.5),"-",IFERROR('Tabel 2 ØJ'!C85/'Tabel 1 ØJ'!C83*100,"-")) -> - | D85: =IF(OR('Tabel 1 ØJ'!C83<5,'Tabel 2 ØJ'!D85<0.5),"-",IFERROR('Tabel 2 ØJ'!D85/'Tabel 1 ØJ'!C83*100,"-")) -> - | F85: =IF(OR('Tabel 1 ØJ'!E83<5,'Tabel 2 ØJ'!F85<0.5),"-",IFERROR('Tabel 2 ØJ'!F85/'Tabel 1 ØJ'!E83*100,"-")) -> - | G85: =IF(OR('Tabel 1 ØJ'!E83<5,'Tabel 2 ØJ'!G85<0.5),"-",IFERROR('Tabel 2 ØJ'!G85/'Tabel 1 ØJ'!E83*100,"-")) -> - | I85: =IF(OR('Tabel 1 ØJ'!G83<5,'Tabel 2 ØJ'!I85<0.5),"-",IFERROR('Tabel 2 ØJ'!I85/'Tabel 1 ØJ'!G83*100,"-")) -> 12.5 | J85: =IF(OR('Tabel 1 ØJ'!G83<5,'Tabel 2 ØJ'!J85<0.5),"-",IFERROR('Tabel 2 ØJ'!J85/'Tabel 1 ØJ'!G83*100,"-")) -> 12.49766107
A86: Teolog | C86: =IF(OR('Tabel 1 ØJ'!C84<5,'Tabel 2 ØJ'!C86<0.5),"-",IFERROR('Tabel 2 ØJ'!C86/'Tabel 1 ØJ'!C84*100,"-")) -> - | D86: =IF(OR('Tabel 1 ØJ'!C84<5,'Tabel 2 ØJ'!D86<0.5),"-",IFERROR('Tabel 2 ØJ'!D86/'Tabel 1 ØJ'!C84*100,"-")) -> - | F86: =IF(OR('Tabel 1 ØJ'!E84<5,'Tabel 2 ØJ'!F86<0.5),"-",IFERROR('Tabel 2 ØJ'!F86/'Tabel 1 ØJ'!E84*100,"-")) -> 12.5 | G86: =IF(OR('Tabel 1 ØJ'!E84<5,'Tabel 2 ØJ'!G86<0.5),"-",IFERROR('Tabel 2 ØJ'!G86/'Tabel 1 ØJ'!E84*100,"-")) -> 12.49766107 | I86: =IF(OR('Tabel 1 ØJ'!G84<5,'Tabel 2 ØJ'!I86<0.5),"-",IFERROR('Tabel 2 ØJ'!I86/'Tabel 1 ØJ'!G84*100,"-")) -> 6.25 | J86: =IF(OR('Tabel 1 ØJ'!G84<5,'Tabel 2 ØJ'!J86<0.5),"-",IFERROR('Tabel 2 ØJ'!J86/'Tabel 1 ØJ'!G84*100,"-")) -> 6.248830537
A87: Psykolog | C87: =IF(OR('Tabel 1 ØJ'!C85<5,'Tabel 2 ØJ'!C87<0.5),"-",IFERROR('Tabel 2 ØJ'!C87/'Tabel 1 ØJ'!C85*100,"-")) -> - | D87: =IF(OR('Tabel 1 ØJ'!C85<5,'Tabel 2 ØJ'!D87<0.5),"-",IFERROR('Tabel 2 ØJ'!D87/'Tabel 1 ØJ'!C85*100,"-")) -> - | F87: =IF(OR('Tabel 1 ØJ'!E85<5,'Tabel 2 ØJ'!F87<0.5),"-",IFERROR('Tabel 2 ØJ'!F87/'Tabel 1 ØJ'!E85*100,"-")) -> 7.954545455 | G87: =IF(OR('Tabel 1 ØJ'!E85<5,'Tabel 2 ØJ'!G87<0.5),"-",IFERROR('Tabel 2 ØJ'!G87/'Tabel 1 ØJ'!E85*100,"-")) -> 5.448279968 | I87: =IF(OR('Tabel 1 ØJ'!G85<5,'Tabel 2 ØJ'!I87<0.5),"-",IFERROR('Tabel 2 ØJ'!I87/'Tabel 1 ØJ'!G85*100,"-")) -> 6.666666667 | J87: =IF(OR('Tabel 1 ØJ'!G85<5,'Tabel 2 ØJ'!J87<0.5),"-",IFERROR('Tabel 2 ØJ'!J87/'Tabel 1 ØJ'!G85*100,"-")) -> 4.566177497
A88: Jurist | C88: =IF(OR('Tabel 1 ØJ'!C86<5,'Tabel 2 ØJ'!C88<0.5),"-",IFERROR('Tabel 2 ØJ'!C88/'Tabel 1 ØJ'!C86*100,"-")) -> - | D88: =IF(OR('Tabel 1 ØJ'!C86<5,'Tabel 2 ØJ'!D88<0.5),"-",IFERROR('Tabel 2 ØJ'!D88/'Tabel 1 ØJ'!C86*100,"-")) -> - | F88: =IF(OR('Tabel 1 ØJ'!E86<5,'Tabel 2 ØJ'!F88<0.5),"-",IFERROR('Tabel 2 ØJ'!F88/'Tabel 1 ØJ'!E86*100,"-")) -> - | G88: =IF(OR('Tabel 1 ØJ'!E86<5,'Tabel 2 ØJ'!G88<0.5),"-",IFERROR('Tabel 2 ØJ'!G88/'Tabel 1 ØJ'!E86*100,"-")) -> - | I88: =IF(OR('Tabel 1 ØJ'!G86<5,'Tabel 2 ØJ'!I88<0.5),"-",IFERROR('Tabel 2 ØJ'!I88/'Tabel 1 ØJ'!G86*100,"-")) -> - | J88: =IF(OR('Tabel 1 ØJ'!G86<5,'Tabel 2 ØJ'!J88<0.5),"-",IFERROR('Tabel 2 ØJ'!J88/'Tabel 1 ØJ'!G86*100,"-")) -> -
A89: Økonom | C89: =IF(OR('Tabel 1 ØJ'!C87<5,'Tabel 2 ØJ'!C89<0.5),"-",IFERROR('Tabel 2 ØJ'!C89/'Tabel 1 ØJ'!C87*100,"-")) -> 2.941176471 | D89: =IF(OR('Tabel 1 ØJ'!C87<5,'Tabel 2 ØJ'!D89<0.5),"-",IFERROR('Tabel 2 ØJ'!D89/'Tabel 1 ØJ'!C87*100,"-")) -> 2.669127278 | F89: =IF(OR('Tabel 1 ØJ'!E87<5,'Tabel 2 ØJ'!F89<0.5),"-",IFERROR('Tabel 2 ØJ'!F89/'Tabel 1 ØJ'!E87*100,"-")) -> 2.631578947 | G89: =IF(OR('Tabel 1 ØJ'!E87<5,'Tabel 2 ØJ'!G89<0.5),"-",IFERROR('Tabel 2 ØJ'!G89/'Tabel 1 ØJ'!E87*100,"-")) -> 2.631086542 | I89: =IF(OR('Tabel 1 ØJ'!G87<5,'Tabel 2 ØJ'!I89<0.5),"-",IFERROR('Tabel 2 ØJ'!I89/'Tabel 1 ØJ'!G87*100,"-")) -> 2.777777778 | J89: =IF(OR('Tabel 1 ØJ'!G87<5,'Tabel 2 ØJ'!J89<0.5),"-",IFERROR('Tabel 2 ØJ'!J89/'Tabel 1 ØJ'!G87*100,"-")) -> 2.649050223
A90: Samf. Adm. | C90: =IF(OR('Tabel 1 ØJ'!C88<5,'Tabel 2 ØJ'!C90<0.5),"-",IFERROR('Tabel 2 ØJ'!C90/'Tabel 1 ØJ'!C88*100,"-")) -> 1.265822785 | D90: =IF(OR('Tabel 1 ØJ'!C88<5,'Tabel 2 ØJ'!D90<0.5),"-",IFERROR('Tabel 2 ØJ'!D90/'Tabel 1 ØJ'!C88*100,"-")) -> 1.265585932 | F90: =IF(OR('Tabel 1 ØJ'!E88<5,'Tabel 2 ØJ'!F90<0.5),"-",IFERROR('Tabel 2 ØJ'!F90/'Tabel 1 ØJ'!E88*100,"-")) -> 2.752293578 | G90: =IF(OR('Tabel 1 ØJ'!E88<5,'Tabel 2 ØJ'!G90<0.5),"-",IFERROR('Tabel 2 ØJ'!G90/'Tabel 1 ØJ'!E88*100,"-")) -> 2.201308425 | I90: =IF(OR('Tabel 1 ØJ'!G88<5,'Tabel 2 ØJ'!I90<0.5),"-",IFERROR('Tabel 2 ØJ'!I90/'Tabel 1 ØJ'!G88*100,"-")) -> 2.127659574 | J90: =IF(OR('Tabel 1 ØJ'!G88<5,'Tabel 2 ØJ'!J90<0.5),"-",IFERROR('Tabel 2 ØJ'!J90/'Tabel 1 ØJ'!G88*100,"-")) -> 1.808105888
A91: Cand. Merc. | C91: =IF(OR('Tabel 1 ØJ'!C89<5,'Tabel 2 ØJ'!C91<0.5),"-",IFERROR('Tabel 2 ØJ'!C91/'Tabel 1 ØJ'!C89*100,"-")) -> 5.284552846 | D91: =IF(OR('Tabel 1 ØJ'!C89<5,'Tabel 2 ØJ'!D91<0.5),"-",IFERROR('Tabel 2 ØJ'!D91/'Tabel 1 ØJ'!C89*100,"-")) -> 4.203728185 | F91: =IF(OR('Tabel 1 ØJ'!E89<5,'Tabel 2 ØJ'!F91<0.5),"-",IFERROR('Tabel 2 ØJ'!F91/'Tabel 1 ØJ'!E89*100,"-")) -> 3.225806452 | G91: =IF(OR('Tabel 1 ØJ'!E89<5,'Tabel 2 ØJ'!G91<0.5),"-",IFERROR('Tabel 2 ØJ'!G91/'Tabel 1 ØJ'!E89*100,"-")) -> 2.724220006 | I91: =IF(OR('Tabel 1 ØJ'!G89<5,'Tabel 2 ØJ'!I91<0.5),"-",IFERROR('Tabel 2 ØJ'!I91/'Tabel 1 ØJ'!G89*100,"-")) -> 4.19047619 | J91: =IF(OR('Tabel 1 ØJ'!G89<5,'Tabel 2 ØJ'!J91<0.5),"-",IFERROR('Tabel 2 ØJ'!J91/'Tabel 1 ØJ'!G89*100,"-")) -> 3.417475267
A92: HA | C92: =IF(OR('Tabel 1 ØJ'!C90<5,'Tabel 2 ØJ'!C92<0.5),"-",IFERROR('Tabel 2 ØJ'!C92/'Tabel 1 ØJ'!C90*100,"-")) -> 7.547169811 | D92: =IF(OR('Tabel 1 ØJ'!C90<5,'Tabel 2 ØJ'!D92<0.5),"-",IFERROR('Tabel 2 ØJ'!D92/'Tabel 1 ØJ'!C90*100,"-")) -> 5.455728692 | F92: =IF(OR('Tabel 1 ØJ'!E90<5,'Tabel 2 ØJ'!F92<0.5),"-",IFERROR('Tabel 2 ØJ'!F92/'Tabel 1 ØJ'!E90*100,"-")) -> 4.347826087 | G92: =IF(OR('Tabel 1 ØJ'!E90<5,'Tabel 2 ØJ'!G92<0.5),"-",IFERROR('Tabel 2 ØJ'!G92/'Tabel 1 ØJ'!E90*100,"-")) -> 2.340281864 | I92: =IF(OR('Tabel 1 ØJ'!G90<5,'Tabel 2 ØJ'!I92<0.5),"-",IFERROR('Tabel 2 ØJ'!I92/'Tabel 1 ØJ'!G90*100,"-")) -> 6.060606061 | J92: =IF(OR('Tabel 1 ØJ'!G90<5,'Tabel 2 ØJ'!J92<0.5),"-",IFERROR('Tabel 2 ØJ'!J92/'Tabel 1 ØJ'!G90*100,"-")) -> 4.008147338
A93: HD | C93: =IF(OR('Tabel 1 ØJ'!C91<5,'Tabel 2 ØJ'!C93<0.5),"-",IFERROR('Tabel 2 ØJ'!C93/'Tabel 1 ØJ'!C91*100,"-")) -> 8.333333333 | D93: =IF(OR('Tabel 1 ØJ'!C91<5,'Tabel 2 ØJ'!D93<0.5),"-",IFERROR('Tabel 2 ØJ'!D93/'Tabel 1 ØJ'!C91*100,"-")) -> 8.331774049 | F93: =IF(OR('Tabel 1 ØJ'!E91<5,'Tabel 2 ØJ'!F93<0.5),"-",IFERROR('Tabel 2 ØJ'!F93/'Tabel 1 ØJ'!E91*100,"-")) -> 19.35483871 | G93: =IF(OR('Tabel 1 ØJ'!E91<5,'Tabel 2 ØJ'!G93<0.5),"-",IFERROR('Tabel 2 ØJ'!G93/'Tabel 1 ØJ'!E91*100,"-")) -> 14.07580736 | I93: =IF(OR('Tabel 1 ØJ'!G91<5,'Tabel 2 ØJ'!I93<0.5),"-",IFERROR('Tabel 2 ØJ'!I93/'Tabel 1 ØJ'!G91*100,"-")) -> 13.43283582 | J93: =IF(OR('Tabel 1 ØJ'!G91<5,'Tabel 2 ØJ'!J93<0.5),"-",IFERROR('Tabel 2 ØJ'!J93/'Tabel 1 ØJ'!G91*100,"-")) -> 10.9894611
A94: Komm. og Sprog | C94: =IF(OR('Tabel 1 ØJ'!C92<5,'Tabel 2 ØJ'!C94<0.5),"-",IFERROR('Tabel 2 ØJ'!C94/'Tabel 1 ØJ'!C92*100,"-")) -> - | D94: =IF(OR('Tabel 1 ØJ'!C92<5,'Tabel 2 ØJ'!D94<0.5),"-",IFERROR('Tabel 2 ØJ'!D94/'Tabel 1 ØJ'!C92*100,"-")) -> - | F94: =IF(OR('Tabel 1 ØJ'!E92<5,'Tabel 2 ØJ'!F94<0.5),"-",IFERROR('Tabel 2 ØJ'!F94/'Tabel 1 ØJ'!E92*100,"-")) -> 7.142857143 | G94: =IF(OR('Tabel 1 ØJ'!E92<5,'Tabel 2 ØJ'!G94<0.5),"-",IFERROR('Tabel 2 ØJ'!G94/'Tabel 1 ØJ'!E92*100,"-")) -> 6.214860422 | I94: =IF(OR('Tabel 1 ØJ'!G92<5,'Tabel 2 ØJ'!I94<0.5),"-",IFERROR('Tabel 2 ØJ'!I94/'Tabel 1 ØJ'!G92*100,"-")) -> 6.25 | J94: =IF(OR('Tabel 1 ØJ'!G92<5,'Tabel 2 ØJ'!J94<0.5),"-",IFERROR('Tabel 2 ØJ'!J94/'Tabel 1 ØJ'!G92*100,"-")) -> 5.438002869
A95: Bygningskonst. | C95: =IF(OR('Tabel 1 ØJ'!C94<5,'Tabel 2 ØJ'!C96<0.5),"-",IFERROR('Tabel 2 ØJ'!C96/'Tabel 1 ØJ'!C94*100,"-")) -> 8.695652174 | D95: =IF(OR('Tabel 1 ØJ'!C94<5,'Tabel 2 ØJ'!D96<0.5),"-",IFERROR('Tabel 2 ØJ'!D96/'Tabel 1 ØJ'!C94*100,"-")) -> 7.690659753 | F95: =IF(OR('Tabel 1 ØJ'!E94<5,'Tabel 2 ØJ'!F96<0.5),"-",IFERROR('Tabel 2 ØJ'!F96/'Tabel 1 ØJ'!E94*100,"-")) -> 6.666666667 | G95: =IF(OR('Tabel 1 ØJ'!E94<5,'Tabel 2 ØJ'!G96<0.5),"-",IFERROR('Tabel 2 ØJ'!G96/'Tabel 1 ØJ'!E94*100,"-")) -> 4.357678954 | I95: =IF(OR('Tabel 1 ØJ'!G94<5,'Tabel 2 ØJ'!I96<0.5),"-",IFERROR('Tabel 2 ØJ'!I96/'Tabel 1 ØJ'!G94*100,"-")) -> 7.547169811 | J95: =IF(OR('Tabel 1 ØJ'!G94<5,'Tabel 2 ØJ'!J96<0.5),"-",IFERROR('Tabel 2 ØJ'!J96/'Tabel 1 ØJ'!G94*100,"-")) -> 5.804066848
A96: Cand. IT. | C96: =IF(OR('Tabel 1 ØJ'!C94<5,'Tabel 2 ØJ'!C96<0.5),"-",IFERROR('Tabel 2 ØJ'!C96/'Tabel 1 ØJ'!C94*100,"-")) -> 8.695652174 | D96: =IF(OR('Tabel 1 ØJ'!C94<5,'Tabel 2 ØJ'!D96<0.5),"-",IFERROR('Tabel 2 ØJ'!D96/'Tabel 1 ØJ'!C94*100,"-")) -> 7.690659753 | F96: =IF(OR('Tabel 1 ØJ'!E94<5,'Tabel 2 ØJ'!F96<0.5),"-",IFERROR('Tabel 2 ØJ'!F96/'Tabel 1 ØJ'!E94*100,"-")) -> 6.666666667 | G96: =IF(OR('Tabel 1 ØJ'!E94<5,'Tabel 2 ØJ'!G96<0.5),"-",IFERROR('Tabel 2 ØJ'!G96/'Tabel 1 ØJ'!E94*100,"-")) -> 4.357678954 | I96: =IF(OR('Tabel 1 ØJ'!G94<5,'Tabel 2 ØJ'!I96<0.5),"-",IFERROR('Tabel 2 ØJ'!I96/'Tabel 1 ØJ'!G94*100,"-")) -> 7.547169811 | J96: =IF(OR('Tabel 1 ØJ'!G94<5,'Tabel 2 ØJ'!J96<0.5),"-",IFERROR('Tabel 2 ØJ'!J96/'Tabel 1 ØJ'!G94*100,"-")) -> 5.804066848
A97: Bac. Samf. | C97: =IF(OR('Tabel 1 ØJ'!C95<5,'Tabel 2 ØJ'!C97<0.5),"-",IFERROR('Tabel 2 ØJ'!C97/'Tabel 1 ØJ'!C95*100,"-")) -> - | D97: =IF(OR('Tabel 1 ØJ'!C95<5,'Tabel 2 ØJ'!D97<0.5),"-",IFERROR('Tabel 2 ØJ'!D97/'Tabel 1 ØJ'!C95*100,"-")) -> - | F97: =IF(OR('Tabel 1 ØJ'!E95<5,'Tabel 2 ØJ'!F97<0.5),"-",IFERROR('Tabel 2 ØJ'!F97/'Tabel 1 ØJ'!E95*100,"-")) -> 9.090909091 | G97: =IF(OR('Tabel 1 ØJ'!E95<5,'Tabel 2 ØJ'!G97<0.5),"-",IFERROR('Tabel 2 ØJ'!G97/'Tabel 1 ØJ'!E95*100,"-")) -> - | I97: =IF(OR('Tabel 1 ØJ'!G95<5,'Tabel 2 ØJ'!I97<0.5),"-",IFERROR('Tabel 2 ØJ'!I97/'Tabel 1 ØJ'!G95*100,"-")) -> 5.263157895 | J97: =IF(OR('Tabel 1 ØJ'!G95<5,'Tabel 2 ØJ'!J97<0.5),"-",IFERROR('Tabel 2 ØJ'!J97/'Tabel 1 ØJ'!G95*100,"-")) -> -
A98: Bac. Hum. | C98: =IF(OR('Tabel 1 ØJ'!C96<5,'Tabel 2 ØJ'!C98<0.5),"-",IFERROR('Tabel 2 ØJ'!C98/'Tabel 1 ØJ'!C96*100,"-")) -> 15.38461538 | D98: =IF(OR('Tabel 1 ØJ'!C96<5,'Tabel 2 ØJ'!D98<0.5),"-",IFERROR('Tabel 2 ØJ'!D98/'Tabel 1 ØJ'!C96*100,"-")) -> 8.9910713 | F98: =IF(OR('Tabel 1 ØJ'!E96<5,'Tabel 2 ØJ'!F98<0.5),"-",IFERROR('Tabel 2 ØJ'!F98/'Tabel 1 ØJ'!E96*100,"-")) -> 14.70588235 | G98: =IF(OR('Tabel 1 ØJ'!E96<5,'Tabel 2 ØJ'!G98<0.5),"-",IFERROR('Tabel 2 ØJ'!G98/'Tabel 1 ØJ'!E96*100,"-")) -> 10.35914896 | I98: =IF(OR('Tabel 1 ØJ'!G96<5,'Tabel 2 ØJ'!I98<0.5),"-",IFERROR('Tabel 2 ØJ'!I98/'Tabel 1 ØJ'!G96*100,"-")) -> 14.89361702 | J98: =IF(OR('Tabel 1 ØJ'!G96<5,'Tabel 2 ØJ'!J98<0.5),"-",IFERROR('Tabel 2 ØJ'!J98/'Tabel 1 ØJ'!G96*100,"-")) -> 9.980744502
A99: Bac. Nat. | C99: =IF(OR('Tabel 1 ØJ'!C97<5,'Tabel 2 ØJ'!C99<0.5),"-",IFERROR('Tabel 2 ØJ'!C99/'Tabel 1 ØJ'!C97*100,"-")) -> 14.28571429 | D99: =IF(OR('Tabel 1 ØJ'!C97<5,'Tabel 2 ØJ'!D99<0.5),"-",IFERROR('Tabel 2 ØJ'!D99/'Tabel 1 ØJ'!C97*100,"-")) -> 11.17672479 | F99: =IF(OR('Tabel 1 ØJ'!E97<5,'Tabel 2 ØJ'!F99<0.5),"-",IFERROR('Tabel 2 ØJ'!F99/'Tabel 1 ØJ'!E97*100,"-")) -> 9.677419355 | G99: =IF(OR('Tabel 1 ØJ'!E97<5,'Tabel 2 ØJ'!G99<0.5),"-",IFERROR('Tabel 2 ØJ'!G99/'Tabel 1 ØJ'!E97*100,"-")) -> 8.037857403 | I99: =IF(OR('Tabel 1 ØJ'!G97<5,'Tabel 2 ØJ'!I99<0.5),"-",IFERROR('Tabel 2 ØJ'!I99/'Tabel 1 ØJ'!G97*100,"-")) -> 13.28671329 | J99: =IF(OR('Tabel 1 ØJ'!G97<5,'Tabel 2 ØJ'!J99<0.5),"-",IFERROR('Tabel 2 ØJ'!J99/'Tabel 1 ØJ'!G97*100,"-")) -> 10.49627102
A100: Andre | C100: =IF(OR('Tabel 1 ØJ'!C98<5,'Tabel 2 ØJ'!C100<0.5),"-",IFERROR('Tabel 2 ØJ'!C100/'Tabel 1 ØJ'!C98*100,"-")) -> 6.329113924 | D100: =IF(OR('Tabel 1 ØJ'!C98<5,'Tabel 2 ØJ'!D100<0.5),"-",IFERROR('Tabel 2 ØJ'!D100/'Tabel 1 ØJ'!C98*100,"-")) -> 4.590216223 | F100: =IF(OR('Tabel 1 ØJ'!E98<5,'Tabel 2 ØJ'!F100<0.5),"-",IFERROR('Tabel 2 ØJ'!F100/'Tabel 1 ØJ'!E98*100,"-")) -> 7.207207207 | G100: =IF(OR('Tabel 1 ØJ'!E98<5,'Tabel 2 ØJ'!G100<0.5),"-",IFERROR('Tabel 2 ØJ'!G100/'Tabel 1 ØJ'!E98*100,"-")) -> 5.410013019 | I100: =IF(OR('Tabel 1 ØJ'!G98<5,'Tabel 2 ØJ'!I100<0.5),"-",IFERROR('Tabel 2 ØJ'!I100/'Tabel 1 ØJ'!G98*100,"-")) -> 6.691449814 | J100: =IF(OR('Tabel 1 ØJ'!G98<5,'Tabel 2 ØJ'!J100<0.5),"-",IFERROR('Tabel 2 ØJ'!J100/'Tabel 1 ØJ'!G98*100,"-")) -> 4.928496686
A102: Total | C102: =IF(OR('Tabel 1 ØJ'!C100<5,'Tabel 2 ØJ'!C102<0.5),"-",IFERROR('Tabel 2 ØJ'!C102/'Tabel 1 ØJ'!C100*100,"-")) -> 4.052532833 | D102: =IF(OR('Tabel 1 ØJ'!C100<5,'Tabel 2 ØJ'!D102<0.5),"-",IFERROR('Tabel 2 ØJ'!D102/'Tabel 1 ØJ'!C100*100,"-")) -> 3.173019437 | F102: =IF(OR('Tabel 1 ØJ'!E100<5,'Tabel 2 ØJ'!F102<0.5),"-",IFERROR('Tabel 2 ØJ'!F102/'Tabel 1 ØJ'!E100*100,"-")) -> 4.865616311 | G102: =IF(OR('Tabel 1 ØJ'!E100<5,'Tabel 2 ØJ'!G102<0.5),"-",IFERROR('Tabel 2 ØJ'!G102/'Tabel 1 ØJ'!E100*100,"-")) -> 3.747995547 | I102: =IF(OR('Tabel 1 ØJ'!G100<5,'Tabel 2 ØJ'!I102<0.5),"-",IFERROR('Tabel 2 ØJ'!I102/'Tabel 1 ØJ'!G100*100,"-")) -> 4.416338379 | J102: =IF(OR('Tabel 1 ØJ'!G100<5,'Tabel 2 ØJ'!J102<0.5),"-",IFERROR('Tabel 2 ØJ'!J102/'Tabel 1 ØJ'!G100*100,"-")) -> 3.430286376
A104: Ingeniører i alt | C104: =IF(OR('Tabel 1 ØJ'!C102<5,'Tabel 2 ØJ'!C104<0.5),"-",IFERROR('Tabel 2 ØJ'!C104/'Tabel 1 ØJ'!C102*100,"-")) -> 2.222222222 | D104: =IF(OR('Tabel 1 ØJ'!C102<5,'Tabel 2 ØJ'!D104<0.5),"-",IFERROR('Tabel 2 ØJ'!D104/'Tabel 1 ØJ'!C102*100,"-")) -> 1.827381819 | F104: =IF(OR('Tabel 1 ØJ'!E102<5,'Tabel 2 ØJ'!F104<0.5),"-",IFERROR('Tabel 2 ØJ'!F104/'Tabel 1 ØJ'!E102*100,"-")) -> 2.727272727 | G104: =IF(OR('Tabel 1 ØJ'!E102<5,'Tabel 2 ØJ'!G104<0.5),"-",IFERROR('Tabel 2 ØJ'!G104/'Tabel 1 ØJ'!E102*100,"-")) -> 2.200196942 | I104: =IF(OR('Tabel 1 ØJ'!G102<5,'Tabel 2 ØJ'!I104<0.5),"-",IFERROR('Tabel 2 ØJ'!I104/'Tabel 1 ØJ'!G102*100,"-")) -> 2.352941176 | J104: =IF(OR('Tabel 1 ØJ'!G102<5,'Tabel 2 ØJ'!J104<0.5),"-",IFERROR('Tabel 2 ØJ'!J104/'Tabel 1 ØJ'!G102*100,"-")) -> 1.923875145
A105: Magistre i alt | C105: =IF(OR('Tabel 1 ØJ'!C103<5,'Tabel 2 ØJ'!C105<0.5),"-",IFERROR('Tabel 2 ØJ'!C105/'Tabel 1 ØJ'!C103*100,"-")) -> 3.418803419 | D105: =IF(OR('Tabel 1 ØJ'!C103<5,'Tabel 2 ØJ'!D105<0.5),"-",IFERROR('Tabel 2 ØJ'!D105/'Tabel 1 ØJ'!C103*100,"-")) -> 1.85728047 | F105: =IF(OR('Tabel 1 ØJ'!E103<5,'Tabel 2 ØJ'!F105<0.5),"-",IFERROR('Tabel 2 ØJ'!F105/'Tabel 1 ØJ'!E103*100,"-")) -> 5.99078341 | G105: =IF(OR('Tabel 1 ØJ'!E103<5,'Tabel 2 ØJ'!G105<0.5),"-",IFERROR('Tabel 2 ØJ'!G105/'Tabel 1 ØJ'!E103*100,"-")) -> 4.6057081 | I105: =IF(OR('Tabel 1 ØJ'!G103<5,'Tabel 2 ØJ'!I105<0.5),"-",IFERROR('Tabel 2 ØJ'!I105/'Tabel 1 ØJ'!G103*100,"-")) -> 5.089820359 | J105: =IF(OR('Tabel 1 ØJ'!G103<5,'Tabel 2 ØJ'!J105<0.5),"-",IFERROR('Tabel 2 ØJ'!J105/'Tabel 1 ØJ'!G103*100,"-")) -> 3.642935547
A106: DJØF'ere i alt | C106: =IF(OR('Tabel 1 ØJ'!C104<5,'Tabel 2 ØJ'!C106<0.5),"-",IFERROR('Tabel 2 ØJ'!C106/'Tabel 1 ØJ'!C104*100,"-")) -> 4.148471616 | D106: =IF(OR('Tabel 1 ØJ'!C104<5,'Tabel 2 ØJ'!D106<0.5),"-",IFERROR('Tabel 2 ØJ'!D106/'Tabel 1 ØJ'!C104*100,"-")) -> 3.305682031 | F106: =IF(OR('Tabel 1 ØJ'!E104<5,'Tabel 2 ØJ'!F106<0.5),"-",IFERROR('Tabel 2 ØJ'!F106/'Tabel 1 ØJ'!E104*100,"-")) -> 2.559726962 | G106: =IF(OR('Tabel 1 ØJ'!E104<5,'Tabel 2 ØJ'!G106<0.5),"-",IFERROR('Tabel 2 ØJ'!G106/'Tabel 1 ØJ'!E104*100,"-")) -> 2.060809308 | I106: =IF(OR('Tabel 1 ØJ'!G104<5,'Tabel 2 ØJ'!I106<0.5),"-",IFERROR('Tabel 2 ØJ'!I106/'Tabel 1 ØJ'!G104*100,"-")) -> 3.256704981 | J106: =IF(OR('Tabel 1 ØJ'!G104<5,'Tabel 2 ØJ'!J106<0.5),"-",IFERROR('Tabel 2 ØJ'!J106/'Tabel 1 ØJ'!G104*100,"-")) -> 2.606931633
A111: Syddjurs
C113: Mænd | F113: Kvinder | I113: I alt
C114: Ledigheds- berørte | D114: Gns. brutto- ledighed | F114: Ledigheds- berørte | G114: Gns. brutto- ledighed | I114: Ledigheds- berørte | J114: Gns. brutto- ledighed
A117: Civ. ing. | C117: =IF(OR('Tabel 1 ØJ'!C115<5,'Tabel 2 ØJ'!C117<0.5),"-",IFERROR('Tabel 2 ØJ'!C117/'Tabel 1 ØJ'!C115*100,"-")) -> 4.225352113 | D117: =IF(OR('Tabel 1 ØJ'!C115<5,'Tabel 2 ØJ'!D117<0.5),"-",IFERROR('Tabel 2 ØJ'!D117/'Tabel 1 ØJ'!C115*100,"-")) -> 3.444480266 | F117: =IF(OR('Tabel 1 ØJ'!E115<5,'Tabel 2 ØJ'!F117<0.5),"-",IFERROR('Tabel 2 ØJ'!F117/'Tabel 1 ØJ'!E115*100,"-")) -> 1.020408163 | G117: =IF(OR('Tabel 1 ØJ'!E115<5,'Tabel 2 ØJ'!G117<0.5),"-",IFERROR('Tabel 2 ØJ'!G117/'Tabel 1 ØJ'!E115*100,"-")) -> 1.020217231 | I117: =IF(OR('Tabel 1 ØJ'!G115<5,'Tabel 2 ØJ'!I117<0.5),"-",IFERROR('Tabel 2 ØJ'!I117/'Tabel 1 ØJ'!G115*100,"-")) -> 2.366863905 | J117: =IF(OR('Tabel 1 ØJ'!G115<5,'Tabel 2 ØJ'!J117<0.5),"-",IFERROR('Tabel 2 ØJ'!J117/'Tabel 1 ØJ'!G115*100,"-")) -> 2.038694601
A118: Diplom ing. | C118: =IF(OR('Tabel 1 ØJ'!C116<5,'Tabel 2 ØJ'!C118<0.5),"-",IFERROR('Tabel 2 ØJ'!C118/'Tabel 1 ØJ'!C116*100,"-")) -> - | D118: =IF(OR('Tabel 1 ØJ'!C116<5,'Tabel 2 ØJ'!D118<0.5),"-",IFERROR('Tabel 2 ØJ'!D118/'Tabel 1 ØJ'!C116*100,"-")) -> - | F118: =IF(OR('Tabel 1 ØJ'!E116<5,'Tabel 2 ØJ'!F118<0.5),"-",IFERROR('Tabel 2 ØJ'!F118/'Tabel 1 ØJ'!E116*100,"-")) -> - | G118: =IF(OR('Tabel 1 ØJ'!E116<5,'Tabel 2 ØJ'!G118<0.5),"-",IFERROR('Tabel 2 ØJ'!G118/'Tabel 1 ØJ'!E116*100,"-")) -> - | I118: =IF(OR('Tabel 1 ØJ'!G116<5,'Tabel 2 ØJ'!I118<0.5),"-",IFERROR('Tabel 2 ØJ'!I118/'Tabel 1 ØJ'!G116*100,"-")) -> - | J118: =IF(OR('Tabel 1 ØJ'!G116<5,'Tabel 2 ØJ'!J118<0.5),"-",IFERROR('Tabel 2 ØJ'!J118/'Tabel 1 ØJ'!G116*100,"-")) -> -
A119: Cand. Scient. Tek. | C119: =IF(OR('Tabel 1 ØJ'!C117<5,'Tabel 2 ØJ'!C119<0.5),"-",IFERROR('Tabel 2 ØJ'!C119/'Tabel 1 ØJ'!C117*100,"-")) -> - | D119: =IF(OR('Tabel 1 ØJ'!C117<5,'Tabel 2 ØJ'!D119<0.5),"-",IFERROR('Tabel 2 ØJ'!D119/'Tabel 1 ØJ'!C117*100,"-")) -> - | F119: =IF(OR('Tabel 1 ØJ'!E117<5,'Tabel 2 ØJ'!F119<0.5),"-",IFERROR('Tabel 2 ØJ'!F119/'Tabel 1 ØJ'!E117*100,"-")) -> 1.673640167 | G119: =IF(OR('Tabel 1 ØJ'!E117<5,'Tabel 2 ØJ'!G119<0.5),"-",IFERROR('Tabel 2 ØJ'!G119/'Tabel 1 ØJ'!E117*100,"-")) -> 1.294140459 | I119: =IF(OR('Tabel 1 ØJ'!G117<5,'Tabel 2 ØJ'!I119<0.5),"-",IFERROR('Tabel 2 ØJ'!I119/'Tabel 1 ØJ'!G117*100,"-")) -> 0.8988764045 | J119: =IF(OR('Tabel 1 ØJ'!G117<5,'Tabel 2 ØJ'!J119<0.5),"-",IFERROR('Tabel 2 ØJ'!J119/'Tabel 1 ØJ'!G117*100,"-")) -> 0.6950552127
A120: MA. Hum. | C120: =IF(OR('Tabel 1 ØJ'!C118<5,'Tabel 2 ØJ'!C120<0.5),"-",IFERROR('Tabel 2 ØJ'!C120/'Tabel 1 ØJ'!C118*100,"-")) -> 18.18181818 | D120: =IF(OR('Tabel 1 ØJ'!C118<5,'Tabel 2 ØJ'!D120<0.5),"-",IFERROR('Tabel 2 ØJ'!D120/'Tabel 1 ØJ'!C118*100,"-")) -> 14.08742196 | F120: =IF(OR('Tabel 1 ØJ'!E118<5,'Tabel 2 ØJ'!F120<0.5),"-",IFERROR('Tabel 2 ØJ'!F120/'Tabel 1 ØJ'!E118*100,"-")) -> 23.07692308 | G120: =IF(OR('Tabel 1 ØJ'!E118<5,'Tabel 2 ØJ'!G120<0.5),"-",IFERROR('Tabel 2 ØJ'!G120/'Tabel 1 ØJ'!E118*100,"-")) -> 16.95678487 | I120: =IF(OR('Tabel 1 ØJ'!G118<5,'Tabel 2 ØJ'!I120<0.5),"-",IFERROR('Tabel 2 ØJ'!I120/'Tabel 1 ØJ'!G118*100,"-")) -> 21.48148148 | J120: =IF(OR('Tabel 1 ØJ'!G118<5,'Tabel 2 ØJ'!J120<0.5),"-",IFERROR('Tabel 2 ØJ'!J120/'Tabel 1 ØJ'!G118*100,"-")) -> 16.02158511
A121: MA. Nat. | C121: =IF(OR('Tabel 1 ØJ'!C119<5,'Tabel 2 ØJ'!C121<0.5),"-",IFERROR('Tabel 2 ØJ'!C121/'Tabel 1 ØJ'!C119*100,"-")) -> 2.272727273 | D121: =IF(OR('Tabel 1 ØJ'!C119<5,'Tabel 2 ØJ'!D121<0.5),"-",IFERROR('Tabel 2 ØJ'!D121/'Tabel 1 ØJ'!C119*100,"-")) -> 1.747815585 | F121: =IF(OR('Tabel 1 ØJ'!E119<5,'Tabel 2 ØJ'!F121<0.5),"-",IFERROR('Tabel 2 ØJ'!F121/'Tabel 1 ØJ'!E119*100,"-")) -> 0.3436426117 | G121: =IF(OR('Tabel 1 ØJ'!E119<5,'Tabel 2 ØJ'!G121<0.5),"-",IFERROR('Tabel 2 ØJ'!G121/'Tabel 1 ØJ'!E119*100,"-")) -> - | I121: =IF(OR('Tabel 1 ØJ'!G119<5,'Tabel 2 ØJ'!I121<0.5),"-",IFERROR('Tabel 2 ØJ'!I121/'Tabel 1 ØJ'!G119*100,"-")) -> 0.7915567282 | J121: =IF(OR('Tabel 1 ØJ'!G119<5,'Tabel 2 ØJ'!J121<0.5),"-",IFERROR('Tabel 2 ØJ'!J121/'Tabel 1 ØJ'!G119*100,"-")) -> 0.5271120399
A122: MA. Ph.d. | C122: =IF(OR('Tabel 1 ØJ'!C120<5,'Tabel 2 ØJ'!C122<0.5),"-",IFERROR('Tabel 2 ØJ'!C122/'Tabel 1 ØJ'!C120*100,"-")) -> 1.538461538 | D122: =IF(OR('Tabel 1 ØJ'!C120<5,'Tabel 2 ØJ'!D122<0.5),"-",IFERROR('Tabel 2 ØJ'!D122/'Tabel 1 ØJ'!C120*100,"-")) -> 1.538173671 | F122: =IF(OR('Tabel 1 ØJ'!E120<5,'Tabel 2 ØJ'!F122<0.5),"-",IFERROR('Tabel 2 ØJ'!F122/'Tabel 1 ØJ'!E120*100,"-")) -> - | G122: =IF(OR('Tabel 1 ØJ'!E120<5,'Tabel 2 ØJ'!G122<0.5),"-",IFERROR('Tabel 2 ØJ'!G122/'Tabel 1 ØJ'!E120*100,"-")) -> - | I122: =IF(OR('Tabel 1 ØJ'!G120<5,'Tabel 2 ØJ'!I122<0.5),"-",IFERROR('Tabel 2 ØJ'!I122/'Tabel 1 ØJ'!G120*100,"-")) -> 0.5555555556 | J122: =IF(OR('Tabel 1 ØJ'!G120<5,'Tabel 2 ØJ'!J122<0.5),"-",IFERROR('Tabel 2 ØJ'!J122/'Tabel 1 ØJ'!G120*100,"-")) -> 0.5554516033
A123: MA. Samf. | C123: =IF(OR('Tabel 1 ØJ'!C121<5,'Tabel 2 ØJ'!C123<0.5),"-",IFERROR('Tabel 2 ØJ'!C123/'Tabel 1 ØJ'!C121*100,"-")) -> 16.66666667 | D123: =IF(OR('Tabel 1 ØJ'!C121<5,'Tabel 2 ØJ'!D123<0.5),"-",IFERROR('Tabel 2 ØJ'!D123/'Tabel 1 ØJ'!C121*100,"-")) -> 10.89419738 | F123: =IF(OR('Tabel 1 ØJ'!E121<5,'Tabel 2 ØJ'!F123<0.5),"-",IFERROR('Tabel 2 ØJ'!F123/'Tabel 1 ØJ'!E121*100,"-")) -> 12.5 | G123: =IF(OR('Tabel 1 ØJ'!E121<5,'Tabel 2 ØJ'!G123<0.5),"-",IFERROR('Tabel 2 ØJ'!G123/'Tabel 1 ØJ'!E121*100,"-")) -> 10.18992079 | I123: =IF(OR('Tabel 1 ØJ'!G121<5,'Tabel 2 ØJ'!I123<0.5),"-",IFERROR('Tabel 2 ØJ'!I123/'Tabel 1 ØJ'!G121*100,"-")) -> 13.88888889 | J123: =IF(OR('Tabel 1 ØJ'!G121<5,'Tabel 2 ØJ'!J123<0.5),"-",IFERROR('Tabel 2 ØJ'!J123/'Tabel 1 ØJ'!G121*100,"-")) -> 10.42467965
A124: Øvrige Mag. | C124: =IF(OR('Tabel 1 ØJ'!C122<5,'Tabel 2 ØJ'!C124<0.5),"-",IFERROR('Tabel 2 ØJ'!C124/'Tabel 1 ØJ'!C122*100,"-")) -> - | D124: =IF(OR('Tabel 1 ØJ'!C122<5,'Tabel 2 ØJ'!D124<0.5),"-",IFERROR('Tabel 2 ØJ'!D124/'Tabel 1 ØJ'!C122*100,"-")) -> - | F124: =IF(OR('Tabel 1 ØJ'!E122<5,'Tabel 2 ØJ'!F124<0.5),"-",IFERROR('Tabel 2 ØJ'!F124/'Tabel 1 ØJ'!E122*100,"-")) -> 7.142857143 | G124: =IF(OR('Tabel 1 ØJ'!E122<5,'Tabel 2 ØJ'!G124<0.5),"-",IFERROR('Tabel 2 ØJ'!G124/'Tabel 1 ØJ'!E122*100,"-")) -> 5.822811879 | I124: =IF(OR('Tabel 1 ØJ'!G122<5,'Tabel 2 ØJ'!I124<0.5),"-",IFERROR('Tabel 2 ØJ'!I124/'Tabel 1 ØJ'!G122*100,"-")) -> 5.714285714 | J124: =IF(OR('Tabel 1 ØJ'!G122<5,'Tabel 2 ØJ'!J124<0.5),"-",IFERROR('Tabel 2 ØJ'!J124/'Tabel 1 ØJ'!G122*100,"-")) -> 4.658249503
A125: Agronom | C125: =IF(OR('Tabel 1 ØJ'!C123<5,'Tabel 2 ØJ'!C125<0.5),"-",IFERROR('Tabel 2 ØJ'!C125/'Tabel 1 ØJ'!C123*100,"-")) -> - | D125: =IF(OR('Tabel 1 ØJ'!C123<5,'Tabel 2 ØJ'!D125<0.5),"-",IFERROR('Tabel 2 ØJ'!D125/'Tabel 1 ØJ'!C123*100,"-")) -> - | F125: =IF(OR('Tabel 1 ØJ'!E123<5,'Tabel 2 ØJ'!F125<0.5),"-",IFERROR('Tabel 2 ØJ'!F125/'Tabel 1 ØJ'!E123*100,"-")) -> 3.703703704 | G125: =IF(OR('Tabel 1 ØJ'!E123<5,'Tabel 2 ØJ'!G125<0.5),"-",IFERROR('Tabel 2 ØJ'!G125/'Tabel 1 ØJ'!E123*100,"-")) -> 3.703010689 | I125: =IF(OR('Tabel 1 ØJ'!G123<5,'Tabel 2 ØJ'!I125<0.5),"-",IFERROR('Tabel 2 ØJ'!I125/'Tabel 1 ØJ'!G123*100,"-")) -> 2.777777778 | J125: =IF(OR('Tabel 1 ØJ'!G123<5,'Tabel 2 ØJ'!J125<0.5),"-",IFERROR('Tabel 2 ØJ'!J125/'Tabel 1 ØJ'!G123*100,"-")) -> 2.777258016
A126: Landsk. Arkt. | C126: =IF(OR('Tabel 1 ØJ'!C124<5,'Tabel 2 ØJ'!C126<0.5),"-",IFERROR('Tabel 2 ØJ'!C126/'Tabel 1 ØJ'!C124*100,"-")) -> - | D126: =IF(OR('Tabel 1 ØJ'!C124<5,'Tabel 2 ØJ'!D126<0.5),"-",IFERROR('Tabel 2 ØJ'!D126/'Tabel 1 ØJ'!C124*100,"-")) -> - | F126: =IF(OR('Tabel 1 ØJ'!E124<5,'Tabel 2 ØJ'!F126<0.5),"-",IFERROR('Tabel 2 ØJ'!F126/'Tabel 1 ØJ'!E124*100,"-")) -> - | G126: =IF(OR('Tabel 1 ØJ'!E124<5,'Tabel 2 ØJ'!G126<0.5),"-",IFERROR('Tabel 2 ØJ'!G126/'Tabel 1 ØJ'!E124*100,"-")) -> - | I126: =IF(OR('Tabel 1 ØJ'!G124<5,'Tabel 2 ØJ'!I126<0.5),"-",IFERROR('Tabel 2 ØJ'!I126/'Tabel 1 ØJ'!G124*100,"-")) -> - | J126: =IF(OR('Tabel 1 ØJ'!G124<5,'Tabel 2 ØJ'!J126<0.5),"-",IFERROR('Tabel 2 ØJ'!J126/'Tabel 1 ØJ'!G124*100,"-")) -> -
A127: Hortonom | C127: =IF(OR('Tabel 1 ØJ'!C125<5,'Tabel 2 ØJ'!C127<0.5),"-",IFERROR('Tabel 2 ØJ'!C127/'Tabel 1 ØJ'!C125*100,"-")) -> - | D127: =IF(OR('Tabel 1 ØJ'!C125<5,'Tabel 2 ØJ'!D127<0.5),"-",IFERROR('Tabel 2 ØJ'!D127/'Tabel 1 ØJ'!C125*100,"-")) -> - | F127: =IF(OR('Tabel 1 ØJ'!E125<5,'Tabel 2 ØJ'!F127<0.5),"-",IFERROR('Tabel 2 ØJ'!F127/'Tabel 1 ØJ'!E125*100,"-")) -> - | G127: =IF(OR('Tabel 1 ØJ'!E125<5,'Tabel 2 ØJ'!G127<0.5),"-",IFERROR('Tabel 2 ØJ'!G127/'Tabel 1 ØJ'!E125*100,"-")) -> - | I127: =IF(OR('Tabel 1 ØJ'!G125<5,'Tabel 2 ØJ'!I127<0.5),"-",IFERROR('Tabel 2 ØJ'!I127/'Tabel 1 ØJ'!G125*100,"-")) -> - | J127: =IF(OR('Tabel 1 ØJ'!G125<5,'Tabel 2 ØJ'!J127<0.5),"-",IFERROR('Tabel 2 ØJ'!J127/'Tabel 1 ØJ'!G125*100,"-")) -> -
A128: Forstkand. | C128: =IF(OR('Tabel 1 ØJ'!C126<5,'Tabel 2 ØJ'!C128<0.5),"-",IFERROR('Tabel 2 ØJ'!C128/'Tabel 1 ØJ'!C126*100,"-")) -> - | D128: =IF(OR('Tabel 1 ØJ'!C126<5,'Tabel 2 ØJ'!D128<0.5),"-",IFERROR('Tabel 2 ØJ'!D128/'Tabel 1 ØJ'!C126*100,"-")) -> - | F128: =IF(OR('Tabel 1 ØJ'!E126<5,'Tabel 2 ØJ'!F128<0.5),"-",IFERROR('Tabel 2 ØJ'!F128/'Tabel 1 ØJ'!E126*100,"-")) -> - | G128: =IF(OR('Tabel 1 ØJ'!E126<5,'Tabel 2 ØJ'!G128<0.5),"-",IFERROR('Tabel 2 ØJ'!G128/'Tabel 1 ØJ'!E126*100,"-")) -> - | I128: =IF(OR('Tabel 1 ØJ'!G126<5,'Tabel 2 ØJ'!I128<0.5),"-",IFERROR('Tabel 2 ØJ'!I128/'Tabel 1 ØJ'!G126*100,"-")) -> 20 | J128: =IF(OR('Tabel 1 ØJ'!G126<5,'Tabel 2 ØJ'!J128<0.5),"-",IFERROR('Tabel 2 ØJ'!J128/'Tabel 1 ØJ'!G126*100,"-")) -> 19.99625772
A129: Jordbrugsakad. | C129: =IF(OR('Tabel 1 ØJ'!C127<5,'Tabel 2 ØJ'!C129<0.5),"-",IFERROR('Tabel 2 ØJ'!C129/'Tabel 1 ØJ'!C127*100,"-")) -> 3.448275862 | D129: =IF(OR('Tabel 1 ØJ'!C127<5,'Tabel 2 ØJ'!D129<0.5),"-",IFERROR('Tabel 2 ØJ'!D129/'Tabel 1 ØJ'!C127*100,"-")) -> 3.447630641 | F129: =IF(OR('Tabel 1 ØJ'!E127<5,'Tabel 2 ØJ'!F129<0.5),"-",IFERROR('Tabel 2 ØJ'!F129/'Tabel 1 ØJ'!E127*100,"-")) -> 1.538461538 | G129: =IF(OR('Tabel 1 ØJ'!E127<5,'Tabel 2 ØJ'!G129<0.5),"-",IFERROR('Tabel 2 ØJ'!G129/'Tabel 1 ØJ'!E127*100,"-")) -> 1.538173671 | I129: =IF(OR('Tabel 1 ØJ'!G127<5,'Tabel 2 ØJ'!I129<0.5),"-",IFERROR('Tabel 2 ØJ'!I129/'Tabel 1 ØJ'!G127*100,"-")) -> 2.127659574 | J129: =IF(OR('Tabel 1 ØJ'!G127<5,'Tabel 2 ØJ'!J129<0.5),"-",IFERROR('Tabel 2 ØJ'!J129/'Tabel 1 ØJ'!G127*100,"-")) -> 2.127261459
A130: Mejeriing. | C130: =IF(OR('Tabel 1 ØJ'!C128<5,'Tabel 2 ØJ'!C130<0.5),"-",IFERROR('Tabel 2 ØJ'!C130/'Tabel 1 ØJ'!C128*100,"-")) -> - | D130: =IF(OR('Tabel 1 ØJ'!C128<5,'Tabel 2 ØJ'!D130<0.5),"-",IFERROR('Tabel 2 ØJ'!D130/'Tabel 1 ØJ'!C128*100,"-")) -> - | F130: =IF(OR('Tabel 1 ØJ'!E128<5,'Tabel 2 ØJ'!F130<0.5),"-",IFERROR('Tabel 2 ØJ'!F130/'Tabel 1 ØJ'!E128*100,"-")) -> - | G130: =IF(OR('Tabel 1 ØJ'!E128<5,'Tabel 2 ØJ'!G130<0.5),"-",IFERROR('Tabel 2 ØJ'!G130/'Tabel 1 ØJ'!E128*100,"-")) -> - | I130: =IF(OR('Tabel 1 ØJ'!G128<5,'Tabel 2 ØJ'!I130<0.5),"-",IFERROR('Tabel 2 ØJ'!I130/'Tabel 1 ØJ'!G128*100,"-")) -> - | J130: =IF(OR('Tabel 1 ØJ'!G128<5,'Tabel 2 ØJ'!J130<0.5),"-",IFERROR('Tabel 2 ØJ'!J130/'Tabel 1 ØJ'!G128*100,"-")) -> -
A131: Levn.m.kand. | C131: =IF(OR('Tabel 1 ØJ'!C129<5,'Tabel 2 ØJ'!C131<0.5),"-",IFERROR('Tabel 2 ØJ'!C131/'Tabel 1 ØJ'!C129*100,"-")) -> - | D131: =IF(OR('Tabel 1 ØJ'!C129<5,'Tabel 2 ØJ'!D131<0.5),"-",IFERROR('Tabel 2 ØJ'!D131/'Tabel 1 ØJ'!C129*100,"-")) -> - | F131: =IF(OR('Tabel 1 ØJ'!E129<5,'Tabel 2 ØJ'!F131<0.5),"-",IFERROR('Tabel 2 ØJ'!F131/'Tabel 1 ØJ'!E129*100,"-")) -> - | G131: =IF(OR('Tabel 1 ØJ'!E129<5,'Tabel 2 ØJ'!G131<0.5),"-",IFERROR('Tabel 2 ØJ'!G131/'Tabel 1 ØJ'!E129*100,"-")) -> - | I131: =IF(OR('Tabel 1 ØJ'!G129<5,'Tabel 2 ØJ'!I131<0.5),"-",IFERROR('Tabel 2 ØJ'!I131/'Tabel 1 ØJ'!G129*100,"-")) -> - | J131: =IF(OR('Tabel 1 ØJ'!G129<5,'Tabel 2 ØJ'!J131<0.5),"-",IFERROR('Tabel 2 ØJ'!J131/'Tabel 1 ØJ'!G129*100,"-")) -> -
A132: Dyrlæge | C132: =IF(OR('Tabel 1 ØJ'!C130<5,'Tabel 2 ØJ'!C132<0.5),"-",IFERROR('Tabel 2 ØJ'!C132/'Tabel 1 ØJ'!C130*100,"-")) -> - | D132: =IF(OR('Tabel 1 ØJ'!C130<5,'Tabel 2 ØJ'!D132<0.5),"-",IFERROR('Tabel 2 ØJ'!D132/'Tabel 1 ØJ'!C130*100,"-")) -> - | F132: =IF(OR('Tabel 1 ØJ'!E130<5,'Tabel 2 ØJ'!F132<0.5),"-",IFERROR('Tabel 2 ØJ'!F132/'Tabel 1 ØJ'!E130*100,"-")) -> - | G132: =IF(OR('Tabel 1 ØJ'!E130<5,'Tabel 2 ØJ'!G132<0.5),"-",IFERROR('Tabel 2 ØJ'!G132/'Tabel 1 ØJ'!E130*100,"-")) -> - | I132: =IF(OR('Tabel 1 ØJ'!G130<5,'Tabel 2 ØJ'!I132<0.5),"-",IFERROR('Tabel 2 ØJ'!I132/'Tabel 1 ØJ'!G130*100,"-")) -> - | J132: =IF(OR('Tabel 1 ØJ'!G130<5,'Tabel 2 ØJ'!J132<0.5),"-",IFERROR('Tabel 2 ØJ'!J132/'Tabel 1 ØJ'!G130*100,"-")) -> -
A133: Farmaceut | C133: =IF(OR('Tabel 1 ØJ'!C131<5,'Tabel 2 ØJ'!C133<0.5),"-",IFERROR('Tabel 2 ØJ'!C133/'Tabel 1 ØJ'!C131*100,"-")) -> - | D133: =IF(OR('Tabel 1 ØJ'!C131<5,'Tabel 2 ØJ'!D133<0.5),"-",IFERROR('Tabel 2 ØJ'!D133/'Tabel 1 ØJ'!C131*100,"-")) -> - | F133: =IF(OR('Tabel 1 ØJ'!E131<5,'Tabel 2 ØJ'!F133<0.5),"-",IFERROR('Tabel 2 ØJ'!F133/'Tabel 1 ØJ'!E131*100,"-")) -> - | G133: =IF(OR('Tabel 1 ØJ'!E131<5,'Tabel 2 ØJ'!G133<0.5),"-",IFERROR('Tabel 2 ØJ'!G133/'Tabel 1 ØJ'!E131*100,"-")) -> - | I133: =IF(OR('Tabel 1 ØJ'!G131<5,'Tabel 2 ØJ'!I133<0.5),"-",IFERROR('Tabel 2 ØJ'!I133/'Tabel 1 ØJ'!G131*100,"-")) -> - | J133: =IF(OR('Tabel 1 ØJ'!G131<5,'Tabel 2 ØJ'!J133<0.5),"-",IFERROR('Tabel 2 ØJ'!J133/'Tabel 1 ØJ'!G131*100,"-")) -> -
A134: Læge | C134: =IF(OR('Tabel 1 ØJ'!C132<5,'Tabel 2 ØJ'!C134<0.5),"-",IFERROR('Tabel 2 ØJ'!C134/'Tabel 1 ØJ'!C132*100,"-")) -> - | D134: =IF(OR('Tabel 1 ØJ'!C132<5,'Tabel 2 ØJ'!D134<0.5),"-",IFERROR('Tabel 2 ØJ'!D134/'Tabel 1 ØJ'!C132*100,"-")) -> - | F134: =IF(OR('Tabel 1 ØJ'!E132<5,'Tabel 2 ØJ'!F134<0.5),"-",IFERROR('Tabel 2 ØJ'!F134/'Tabel 1 ØJ'!E132*100,"-")) -> 1.886792453 | G134: =IF(OR('Tabel 1 ØJ'!E132<5,'Tabel 2 ØJ'!G134<0.5),"-",IFERROR('Tabel 2 ØJ'!G134/'Tabel 1 ØJ'!E132*100,"-")) -> 1.886439407 | I134: =IF(OR('Tabel 1 ØJ'!G132<5,'Tabel 2 ØJ'!I134<0.5),"-",IFERROR('Tabel 2 ØJ'!I134/'Tabel 1 ØJ'!G132*100,"-")) -> 1.538461538 | J134: =IF(OR('Tabel 1 ØJ'!G132<5,'Tabel 2 ØJ'!J134<0.5),"-",IFERROR('Tabel 2 ØJ'!J134/'Tabel 1 ØJ'!G132*100,"-")) -> 1.538173671
A135: Tandlæge | C135: =IF(OR('Tabel 1 ØJ'!C133<5,'Tabel 2 ØJ'!C135<0.5),"-",IFERROR('Tabel 2 ØJ'!C135/'Tabel 1 ØJ'!C133*100,"-")) -> - | D135: =IF(OR('Tabel 1 ØJ'!C133<5,'Tabel 2 ØJ'!D135<0.5),"-",IFERROR('Tabel 2 ØJ'!D135/'Tabel 1 ØJ'!C133*100,"-")) -> - | F135: =IF(OR('Tabel 1 ØJ'!E133<5,'Tabel 2 ØJ'!F135<0.5),"-",IFERROR('Tabel 2 ØJ'!F135/'Tabel 1 ØJ'!E133*100,"-")) -> - | G135: =IF(OR('Tabel 1 ØJ'!E133<5,'Tabel 2 ØJ'!G135<0.5),"-",IFERROR('Tabel 2 ØJ'!G135/'Tabel 1 ØJ'!E133*100,"-")) -> - | I135: =IF(OR('Tabel 1 ØJ'!G133<5,'Tabel 2 ØJ'!I135<0.5),"-",IFERROR('Tabel 2 ØJ'!I135/'Tabel 1 ØJ'!G133*100,"-")) -> - | J135: =IF(OR('Tabel 1 ØJ'!G133<5,'Tabel 2 ØJ'!J135<0.5),"-",IFERROR('Tabel 2 ØJ'!J135/'Tabel 1 ØJ'!G133*100,"-")) -> -
A136: Arkitekt | C136: =IF(OR('Tabel 1 ØJ'!C134<5,'Tabel 2 ØJ'!C136<0.5),"-",IFERROR('Tabel 2 ØJ'!C136/'Tabel 1 ØJ'!C134*100,"-")) -> 3.448275862 | D136: =IF(OR('Tabel 1 ØJ'!C134<5,'Tabel 2 ØJ'!D136<0.5),"-",IFERROR('Tabel 2 ØJ'!D136/'Tabel 1 ØJ'!C134*100,"-")) -> 3.447630641 | F136: =IF(OR('Tabel 1 ØJ'!E134<5,'Tabel 2 ØJ'!F136<0.5),"-",IFERROR('Tabel 2 ØJ'!F136/'Tabel 1 ØJ'!E134*100,"-")) -> 5.063291139 | G136: =IF(OR('Tabel 1 ØJ'!E134<5,'Tabel 2 ØJ'!G136<0.5),"-",IFERROR('Tabel 2 ØJ'!G136/'Tabel 1 ØJ'!E134*100,"-")) -> 4.27125383 | I136: =IF(OR('Tabel 1 ØJ'!G134<5,'Tabel 2 ØJ'!I136<0.5),"-",IFERROR('Tabel 2 ØJ'!I136/'Tabel 1 ØJ'!G134*100,"-")) -> 4.62962963 | J136: =IF(OR('Tabel 1 ØJ'!G134<5,'Tabel 2 ØJ'!J136<0.5),"-",IFERROR('Tabel 2 ØJ'!J136/'Tabel 1 ØJ'!G134*100,"-")) -> 4.050095752
A137: Landinspek. | C137: =IF(OR('Tabel 1 ØJ'!C135<5,'Tabel 2 ØJ'!C137<0.5),"-",IFERROR('Tabel 2 ØJ'!C137/'Tabel 1 ØJ'!C135*100,"-")) -> - | D137: =IF(OR('Tabel 1 ØJ'!C135<5,'Tabel 2 ØJ'!D137<0.5),"-",IFERROR('Tabel 2 ØJ'!D137/'Tabel 1 ØJ'!C135*100,"-")) -> - | F137: =IF(OR('Tabel 1 ØJ'!E135<5,'Tabel 2 ØJ'!F137<0.5),"-",IFERROR('Tabel 2 ØJ'!F137/'Tabel 1 ØJ'!E135*100,"-")) -> - | G137: =IF(OR('Tabel 1 ØJ'!E135<5,'Tabel 2 ØJ'!G137<0.5),"-",IFERROR('Tabel 2 ØJ'!G137/'Tabel 1 ØJ'!E135*100,"-")) -> - | I137: =IF(OR('Tabel 1 ØJ'!G135<5,'Tabel 2 ØJ'!I137<0.5),"-",IFERROR('Tabel 2 ØJ'!I137/'Tabel 1 ØJ'!G135*100,"-")) -> - | J137: =IF(OR('Tabel 1 ØJ'!G135<5,'Tabel 2 ØJ'!J137<0.5),"-",IFERROR('Tabel 2 ØJ'!J137/'Tabel 1 ØJ'!G135*100,"-")) -> -
A138: Bibliotekar | C138: =IF(OR('Tabel 1 ØJ'!C136<5,'Tabel 2 ØJ'!C138<0.5),"-",IFERROR('Tabel 2 ØJ'!C138/'Tabel 1 ØJ'!C136*100,"-")) -> - | D138: =IF(OR('Tabel 1 ØJ'!C136<5,'Tabel 2 ØJ'!D138<0.5),"-",IFERROR('Tabel 2 ØJ'!D138/'Tabel 1 ØJ'!C136*100,"-")) -> - | F138: =IF(OR('Tabel 1 ØJ'!E136<5,'Tabel 2 ØJ'!F138<0.5),"-",IFERROR('Tabel 2 ØJ'!F138/'Tabel 1 ØJ'!E136*100,"-")) -> - | G138: =IF(OR('Tabel 1 ØJ'!E136<5,'Tabel 2 ØJ'!G138<0.5),"-",IFERROR('Tabel 2 ØJ'!G138/'Tabel 1 ØJ'!E136*100,"-")) -> - | I138: =IF(OR('Tabel 1 ØJ'!G136<5,'Tabel 2 ØJ'!I138<0.5),"-",IFERROR('Tabel 2 ØJ'!I138/'Tabel 1 ØJ'!G136*100,"-")) -> - | J138: =IF(OR('Tabel 1 ØJ'!G136<5,'Tabel 2 ØJ'!J138<0.5),"-",IFERROR('Tabel 2 ØJ'!J138/'Tabel 1 ØJ'!G136*100,"-")) -> -
A139: Musikudd. | C139: =IF(OR('Tabel 1 ØJ'!C137<5,'Tabel 2 ØJ'!C139<0.5),"-",IFERROR('Tabel 2 ØJ'!C139/'Tabel 1 ØJ'!C137*100,"-")) -> - | D139: =IF(OR('Tabel 1 ØJ'!C137<5,'Tabel 2 ØJ'!D139<0.5),"-",IFERROR('Tabel 2 ØJ'!D139/'Tabel 1 ØJ'!C137*100,"-")) -> - | F139: =IF(OR('Tabel 1 ØJ'!E137<5,'Tabel 2 ØJ'!F139<0.5),"-",IFERROR('Tabel 2 ØJ'!F139/'Tabel 1 ØJ'!E137*100,"-")) -> - | G139: =IF(OR('Tabel 1 ØJ'!E137<5,'Tabel 2 ØJ'!G139<0.5),"-",IFERROR('Tabel 2 ØJ'!G139/'Tabel 1 ØJ'!E137*100,"-")) -> - | I139: =IF(OR('Tabel 1 ØJ'!G137<5,'Tabel 2 ØJ'!I139<0.5),"-",IFERROR('Tabel 2 ØJ'!I139/'Tabel 1 ØJ'!G137*100,"-")) -> - | J139: =IF(OR('Tabel 1 ØJ'!G137<5,'Tabel 2 ØJ'!J139<0.5),"-",IFERROR('Tabel 2 ØJ'!J139/'Tabel 1 ØJ'!G137*100,"-")) -> -
A140: Teolog | C140: =IF(OR('Tabel 1 ØJ'!C138<5,'Tabel 2 ØJ'!C140<0.5),"-",IFERROR('Tabel 2 ØJ'!C140/'Tabel 1 ØJ'!C138*100,"-")) -> - | D140: =IF(OR('Tabel 1 ØJ'!C138<5,'Tabel 2 ØJ'!D140<0.5),"-",IFERROR('Tabel 2 ØJ'!D140/'Tabel 1 ØJ'!C138*100,"-")) -> - | F140: =IF(OR('Tabel 1 ØJ'!E138<5,'Tabel 2 ØJ'!F140<0.5),"-",IFERROR('Tabel 2 ØJ'!F140/'Tabel 1 ØJ'!E138*100,"-")) -> - | G140: =IF(OR('Tabel 1 ØJ'!E138<5,'Tabel 2 ØJ'!G140<0.5),"-",IFERROR('Tabel 2 ØJ'!G140/'Tabel 1 ØJ'!E138*100,"-")) -> - | I140: =IF(OR('Tabel 1 ØJ'!G138<5,'Tabel 2 ØJ'!I140<0.5),"-",IFERROR('Tabel 2 ØJ'!I140/'Tabel 1 ØJ'!G138*100,"-")) -> - | J140: =IF(OR('Tabel 1 ØJ'!G138<5,'Tabel 2 ØJ'!J140<0.5),"-",IFERROR('Tabel 2 ØJ'!J140/'Tabel 1 ØJ'!G138*100,"-")) -> -
A141: Psykolog | C141: =IF(OR('Tabel 1 ØJ'!C139<5,'Tabel 2 ØJ'!C141<0.5),"-",IFERROR('Tabel 2 ØJ'!C141/'Tabel 1 ØJ'!C139*100,"-")) -> 9.090909091 | D141: =IF(OR('Tabel 1 ØJ'!C139<5,'Tabel 2 ØJ'!D141<0.5),"-",IFERROR('Tabel 2 ØJ'!D141/'Tabel 1 ØJ'!C139*100,"-")) -> 7.127345305 | F141: =IF(OR('Tabel 1 ØJ'!E139<5,'Tabel 2 ØJ'!F141<0.5),"-",IFERROR('Tabel 2 ØJ'!F141/'Tabel 1 ØJ'!E139*100,"-")) -> 2.739726027 | G141: =IF(OR('Tabel 1 ØJ'!E139<5,'Tabel 2 ØJ'!G141<0.5),"-",IFERROR('Tabel 2 ØJ'!G141/'Tabel 1 ØJ'!E139*100,"-")) -> 1.833547076 | I141: =IF(OR('Tabel 1 ØJ'!G139<5,'Tabel 2 ØJ'!I141<0.5),"-",IFERROR('Tabel 2 ØJ'!I141/'Tabel 1 ØJ'!G139*100,"-")) -> 3.571428571 | J141: =IF(OR('Tabel 1 ØJ'!G139<5,'Tabel 2 ØJ'!J141<0.5),"-",IFERROR('Tabel 2 ØJ'!J141/'Tabel 1 ØJ'!G139*100,"-")) -> 2.526782559
A142: Jurist | C142: =IF(OR('Tabel 1 ØJ'!C140<5,'Tabel 2 ØJ'!C142<0.5),"-",IFERROR('Tabel 2 ØJ'!C142/'Tabel 1 ØJ'!C140*100,"-")) -> 5.263157895 | D142: =IF(OR('Tabel 1 ØJ'!C140<5,'Tabel 2 ØJ'!D142<0.5),"-",IFERROR('Tabel 2 ØJ'!D142/'Tabel 1 ØJ'!C140*100,"-")) -> - | F142: =IF(OR('Tabel 1 ØJ'!E140<5,'Tabel 2 ØJ'!F142<0.5),"-",IFERROR('Tabel 2 ØJ'!F142/'Tabel 1 ØJ'!E140*100,"-")) -> - | G142: =IF(OR('Tabel 1 ØJ'!E140<5,'Tabel 2 ØJ'!G142<0.5),"-",IFERROR('Tabel 2 ØJ'!G142/'Tabel 1 ØJ'!E140*100,"-")) -> - | I142: =IF(OR('Tabel 1 ØJ'!G140<5,'Tabel 2 ØJ'!I142<0.5),"-",IFERROR('Tabel 2 ØJ'!I142/'Tabel 1 ØJ'!G140*100,"-")) -> 1.282051282 | J142: =IF(OR('Tabel 1 ØJ'!G140<5,'Tabel 2 ØJ'!J142<0.5),"-",IFERROR('Tabel 2 ØJ'!J142/'Tabel 1 ØJ'!G140*100,"-")) -> -
A143: Økonom | C143: =IF(OR('Tabel 1 ØJ'!C141<5,'Tabel 2 ØJ'!C143<0.5),"-",IFERROR('Tabel 2 ØJ'!C143/'Tabel 1 ØJ'!C141*100,"-")) -> - | D143: =IF(OR('Tabel 1 ØJ'!C141<5,'Tabel 2 ØJ'!D143<0.5),"-",IFERROR('Tabel 2 ØJ'!D143/'Tabel 1 ØJ'!C141*100,"-")) -> - | F143: =IF(OR('Tabel 1 ØJ'!E141<5,'Tabel 2 ØJ'!F143<0.5),"-",IFERROR('Tabel 2 ØJ'!F143/'Tabel 1 ØJ'!E141*100,"-")) -> - | G143: =IF(OR('Tabel 1 ØJ'!E141<5,'Tabel 2 ØJ'!G143<0.5),"-",IFERROR('Tabel 2 ØJ'!G143/'Tabel 1 ØJ'!E141*100,"-")) -> - | I143: =IF(OR('Tabel 1 ØJ'!G141<5,'Tabel 2 ØJ'!I143<0.5),"-",IFERROR('Tabel 2 ØJ'!I143/'Tabel 1 ØJ'!G141*100,"-")) -> - | J143: =IF(OR('Tabel 1 ØJ'!G141<5,'Tabel 2 ØJ'!J143<0.5),"-",IFERROR('Tabel 2 ØJ'!J143/'Tabel 1 ØJ'!G141*100,"-")) -> -
A144: Samf. Adm. | C144: =IF(OR('Tabel 1 ØJ'!C142<5,'Tabel 2 ØJ'!C144<0.5),"-",IFERROR('Tabel 2 ØJ'!C144/'Tabel 1 ØJ'!C142*100,"-")) -> 9.090909091 | D144: =IF(OR('Tabel 1 ØJ'!C142<5,'Tabel 2 ØJ'!D144<0.5),"-",IFERROR('Tabel 2 ØJ'!D144/'Tabel 1 ØJ'!C142*100,"-")) -> 9.089208054 | F144: =IF(OR('Tabel 1 ØJ'!E142<5,'Tabel 2 ØJ'!F144<0.5),"-",IFERROR('Tabel 2 ØJ'!F144/'Tabel 1 ØJ'!E142*100,"-")) -> 3.488372093 | G144: =IF(OR('Tabel 1 ØJ'!E142<5,'Tabel 2 ØJ'!G144<0.5),"-",IFERROR('Tabel 2 ØJ'!G144/'Tabel 1 ØJ'!E142*100,"-")) -> 2.919849903 | I144: =IF(OR('Tabel 1 ØJ'!G142<5,'Tabel 2 ØJ'!I144<0.5),"-",IFERROR('Tabel 2 ØJ'!I144/'Tabel 1 ØJ'!G142*100,"-")) -> 4.62962963 | J144: =IF(OR('Tabel 1 ØJ'!G142<5,'Tabel 2 ØJ'!J144<0.5),"-",IFERROR('Tabel 2 ØJ'!J144/'Tabel 1 ØJ'!G142*100,"-")) -> 4.176571007
A145: Cand. Merc. | C145: =IF(OR('Tabel 1 ØJ'!C143<5,'Tabel 2 ØJ'!C145<0.5),"-",IFERROR('Tabel 2 ØJ'!C145/'Tabel 1 ØJ'!C143*100,"-")) -> 7.246376812 | D145: =IF(OR('Tabel 1 ØJ'!C143<5,'Tabel 2 ØJ'!D145<0.5),"-",IFERROR('Tabel 2 ØJ'!D145/'Tabel 1 ØJ'!C143*100,"-")) -> 4.52599123 | F145: =IF(OR('Tabel 1 ØJ'!E143<5,'Tabel 2 ØJ'!F145<0.5),"-",IFERROR('Tabel 2 ØJ'!F145/'Tabel 1 ØJ'!E143*100,"-")) -> 0.6849315068 | G145: =IF(OR('Tabel 1 ØJ'!E143<5,'Tabel 2 ØJ'!G145<0.5),"-",IFERROR('Tabel 2 ØJ'!G145/'Tabel 1 ØJ'!E143*100,"-")) -> - | I145: =IF(OR('Tabel 1 ØJ'!G143<5,'Tabel 2 ØJ'!I145<0.5),"-",IFERROR('Tabel 2 ØJ'!I145/'Tabel 1 ØJ'!G143*100,"-")) -> 2.790697674 | J145: =IF(OR('Tabel 1 ØJ'!G143<5,'Tabel 2 ØJ'!J145<0.5),"-",IFERROR('Tabel 2 ØJ'!J145/'Tabel 1 ØJ'!G143*100,"-")) -> 1.53114434
A146: HA | C146: =IF(OR('Tabel 1 ØJ'!C144<5,'Tabel 2 ØJ'!C146<0.5),"-",IFERROR('Tabel 2 ØJ'!C146/'Tabel 1 ØJ'!C144*100,"-")) -> 6.25 | D146: =IF(OR('Tabel 1 ØJ'!C144<5,'Tabel 2 ØJ'!D146<0.5),"-",IFERROR('Tabel 2 ØJ'!D146/'Tabel 1 ØJ'!C144*100,"-")) -> 5.38342793 | F146: =IF(OR('Tabel 1 ØJ'!E144<5,'Tabel 2 ØJ'!F146<0.5),"-",IFERROR('Tabel 2 ØJ'!F146/'Tabel 1 ØJ'!E144*100,"-")) -> 2.325581395 | G146: =IF(OR('Tabel 1 ØJ'!E144<5,'Tabel 2 ØJ'!G146<0.5),"-",IFERROR('Tabel 2 ØJ'!G146/'Tabel 1 ØJ'!E144*100,"-")) -> 1.280788606 | I146: =IF(OR('Tabel 1 ØJ'!G144<5,'Tabel 2 ØJ'!I146<0.5),"-",IFERROR('Tabel 2 ØJ'!I146/'Tabel 1 ØJ'!G144*100,"-")) -> 3.389830508 | J146: =IF(OR('Tabel 1 ØJ'!G144<5,'Tabel 2 ØJ'!J146<0.5),"-",IFERROR('Tabel 2 ØJ'!J146/'Tabel 1 ØJ'!G144*100,"-")) -> 2.393368762
A147: HD | C147: =IF(OR('Tabel 1 ØJ'!C145<5,'Tabel 2 ØJ'!C147<0.5),"-",IFERROR('Tabel 2 ØJ'!C147/'Tabel 1 ØJ'!C145*100,"-")) -> 7.692307692 | D147: =IF(OR('Tabel 1 ØJ'!C145<5,'Tabel 2 ØJ'!D147<0.5),"-",IFERROR('Tabel 2 ØJ'!D147/'Tabel 1 ØJ'!C145*100,"-")) -> 4.816988039 | F147: =IF(OR('Tabel 1 ØJ'!E145<5,'Tabel 2 ØJ'!F147<0.5),"-",IFERROR('Tabel 2 ØJ'!F147/'Tabel 1 ØJ'!E145*100,"-")) -> - | G147: =IF(OR('Tabel 1 ØJ'!E145<5,'Tabel 2 ØJ'!G147<0.5),"-",IFERROR('Tabel 2 ØJ'!G147/'Tabel 1 ØJ'!E145*100,"-")) -> - | I147: =IF(OR('Tabel 1 ØJ'!G145<5,'Tabel 2 ØJ'!I147<0.5),"-",IFERROR('Tabel 2 ØJ'!I147/'Tabel 1 ØJ'!G145*100,"-")) -> 2.564102564 | J147: =IF(OR('Tabel 1 ØJ'!G145<5,'Tabel 2 ØJ'!J147<0.5),"-",IFERROR('Tabel 2 ØJ'!J147/'Tabel 1 ØJ'!G145*100,"-")) -> 1.60566268
A148: Komm. og Sprog | C148: =IF(OR('Tabel 1 ØJ'!C146<5,'Tabel 2 ØJ'!C148<0.5),"-",IFERROR('Tabel 2 ØJ'!C148/'Tabel 1 ØJ'!C146*100,"-")) -> 20 | D148: =IF(OR('Tabel 1 ØJ'!C146<5,'Tabel 2 ØJ'!D148<0.5),"-",IFERROR('Tabel 2 ØJ'!D148/'Tabel 1 ØJ'!C146*100,"-")) -> 19.99625772 | F148: =IF(OR('Tabel 1 ØJ'!E146<5,'Tabel 2 ØJ'!F148<0.5),"-",IFERROR('Tabel 2 ØJ'!F148/'Tabel 1 ØJ'!E146*100,"-")) -> 2.127659574 | G148: =IF(OR('Tabel 1 ØJ'!E146<5,'Tabel 2 ØJ'!G148<0.5),"-",IFERROR('Tabel 2 ØJ'!G148/'Tabel 1 ØJ'!E146*100,"-")) -> 2.127261459 | I148: =IF(OR('Tabel 1 ØJ'!G146<5,'Tabel 2 ØJ'!I148<0.5),"-",IFERROR('Tabel 2 ØJ'!I148/'Tabel 1 ØJ'!G146*100,"-")) -> 3.846153846 | J148: =IF(OR('Tabel 1 ØJ'!G146<5,'Tabel 2 ØJ'!J148<0.5),"-",IFERROR('Tabel 2 ØJ'!J148/'Tabel 1 ØJ'!G146*100,"-")) -> 3.845434177
A149: Bygningskonst. | C149: =IF(OR('Tabel 1 ØJ'!C147<5,'Tabel 2 ØJ'!C149<0.5),"-",IFERROR('Tabel 2 ØJ'!C149/'Tabel 1 ØJ'!C147*100,"-")) -> 1.515151515 | D149: =IF(OR('Tabel 1 ØJ'!C147<5,'Tabel 2 ØJ'!D149<0.5),"-",IFERROR('Tabel 2 ØJ'!D149/'Tabel 1 ØJ'!C147*100,"-")) -> - | F149: =IF(OR('Tabel 1 ØJ'!E147<5,'Tabel 2 ØJ'!F149<0.5),"-",IFERROR('Tabel 2 ØJ'!F149/'Tabel 1 ØJ'!E147*100,"-")) -> - | G149: =IF(OR('Tabel 1 ØJ'!E147<5,'Tabel 2 ØJ'!G149<0.5),"-",IFERROR('Tabel 2 ØJ'!G149/'Tabel 1 ØJ'!E147*100,"-")) -> - | I149: =IF(OR('Tabel 1 ØJ'!G147<5,'Tabel 2 ØJ'!I149<0.5),"-",IFERROR('Tabel 2 ØJ'!I149/'Tabel 1 ØJ'!G147*100,"-")) -> 0.7042253521 | J149: =IF(OR('Tabel 1 ØJ'!G147<5,'Tabel 2 ØJ'!J149<0.5),"-",IFERROR('Tabel 2 ØJ'!J149/'Tabel 1 ØJ'!G147*100,"-")) -> -
A150: Cand. IT. | C150: =IF(OR('Tabel 1 ØJ'!C148<5,'Tabel 2 ØJ'!C150<0.5),"-",IFERROR('Tabel 2 ØJ'!C150/'Tabel 1 ØJ'!C148*100,"-")) -> - | D150: =IF(OR('Tabel 1 ØJ'!C148<5,'Tabel 2 ØJ'!D150<0.5),"-",IFERROR('Tabel 2 ØJ'!D150/'Tabel 1 ØJ'!C148*100,"-")) -> - | F150: =IF(OR('Tabel 1 ØJ'!E148<5,'Tabel 2 ØJ'!F150<0.5),"-",IFERROR('Tabel 2 ØJ'!F150/'Tabel 1 ØJ'!E148*100,"-")) -> 4 | G150: =IF(OR('Tabel 1 ØJ'!E148<5,'Tabel 2 ØJ'!G150<0.5),"-",IFERROR('Tabel 2 ØJ'!G150/'Tabel 1 ØJ'!E148*100,"-")) -> - | I150: =IF(OR('Tabel 1 ØJ'!G148<5,'Tabel 2 ØJ'!I150<0.5),"-",IFERROR('Tabel 2 ØJ'!I150/'Tabel 1 ØJ'!G148*100,"-")) -> 2.5 | J150: =IF(OR('Tabel 1 ØJ'!G148<5,'Tabel 2 ØJ'!J150<0.5),"-",IFERROR('Tabel 2 ØJ'!J150/'Tabel 1 ØJ'!G148*100,"-")) -> -
A151: Bac. Samf. | C151: =IF(OR('Tabel 1 ØJ'!C149<5,'Tabel 2 ØJ'!C151<0.5),"-",IFERROR('Tabel 2 ØJ'!C151/'Tabel 1 ØJ'!C149*100,"-")) -> - | D151: =IF(OR('Tabel 1 ØJ'!C149<5,'Tabel 2 ØJ'!D151<0.5),"-",IFERROR('Tabel 2 ØJ'!D151/'Tabel 1 ØJ'!C149*100,"-")) -> - | F151: =IF(OR('Tabel 1 ØJ'!E149<5,'Tabel 2 ØJ'!F151<0.5),"-",IFERROR('Tabel 2 ØJ'!F151/'Tabel 1 ØJ'!E149*100,"-")) -> - | G151: =IF(OR('Tabel 1 ØJ'!E149<5,'Tabel 2 ØJ'!G151<0.5),"-",IFERROR('Tabel 2 ØJ'!G151/'Tabel 1 ØJ'!E149*100,"-")) -> - | I151: =IF(OR('Tabel 1 ØJ'!G149<5,'Tabel 2 ØJ'!I151<0.5),"-",IFERROR('Tabel 2 ØJ'!I151/'Tabel 1 ØJ'!G149*100,"-")) -> - | J151: =IF(OR('Tabel 1 ØJ'!G149<5,'Tabel 2 ØJ'!J151<0.5),"-",IFERROR('Tabel 2 ØJ'!J151/'Tabel 1 ØJ'!G149*100,"-")) -> -
A152: Bac. Hum. | C152: =IF(OR('Tabel 1 ØJ'!C150<5,'Tabel 2 ØJ'!C152<0.5),"-",IFERROR('Tabel 2 ØJ'!C152/'Tabel 1 ØJ'!C150*100,"-")) -> - | D152: =IF(OR('Tabel 1 ØJ'!C150<5,'Tabel 2 ØJ'!D152<0.5),"-",IFERROR('Tabel 2 ØJ'!D152/'Tabel 1 ØJ'!C150*100,"-")) -> - | F152: =IF(OR('Tabel 1 ØJ'!E150<5,'Tabel 2 ØJ'!F152<0.5),"-",IFERROR('Tabel 2 ØJ'!F152/'Tabel 1 ØJ'!E150*100,"-")) -> 9.523809524 | G152: =IF(OR('Tabel 1 ØJ'!E150<5,'Tabel 2 ØJ'!G152<0.5),"-",IFERROR('Tabel 2 ØJ'!G152/'Tabel 1 ØJ'!E150*100,"-")) -> 8.423103539 | I152: =IF(OR('Tabel 1 ØJ'!G150<5,'Tabel 2 ØJ'!I152<0.5),"-",IFERROR('Tabel 2 ØJ'!I152/'Tabel 1 ØJ'!G150*100,"-")) -> 5.882352941 | J152: =IF(OR('Tabel 1 ØJ'!G150<5,'Tabel 2 ØJ'!J152<0.5),"-",IFERROR('Tabel 2 ØJ'!J152/'Tabel 1 ØJ'!G150*100,"-")) -> 5.202505127
A153: Bac. Nat. | C153: =IF(OR('Tabel 1 ØJ'!C151<5,'Tabel 2 ØJ'!C153<0.5),"-",IFERROR('Tabel 2 ØJ'!C153/'Tabel 1 ØJ'!C151*100,"-")) -> - | D153: =IF(OR('Tabel 1 ØJ'!C151<5,'Tabel 2 ØJ'!D153<0.5),"-",IFERROR('Tabel 2 ØJ'!D153/'Tabel 1 ØJ'!C151*100,"-")) -> - | F153: =IF(OR('Tabel 1 ØJ'!E151<5,'Tabel 2 ØJ'!F153<0.5),"-",IFERROR('Tabel 2 ØJ'!F153/'Tabel 1 ØJ'!E151*100,"-")) -> 5.555555556 | G153: =IF(OR('Tabel 1 ØJ'!E151<5,'Tabel 2 ØJ'!G153<0.5),"-",IFERROR('Tabel 2 ØJ'!G153/'Tabel 1 ØJ'!E151*100,"-")) -> 5.554516033 | I153: =IF(OR('Tabel 1 ØJ'!G151<5,'Tabel 2 ØJ'!I153<0.5),"-",IFERROR('Tabel 2 ØJ'!I153/'Tabel 1 ØJ'!G151*100,"-")) -> 3.333333333 | J153: =IF(OR('Tabel 1 ØJ'!G151<5,'Tabel 2 ØJ'!J153<0.5),"-",IFERROR('Tabel 2 ØJ'!J153/'Tabel 1 ØJ'!G151*100,"-")) -> 3.33270962
A154: Andre | C154: =IF(OR('Tabel 1 ØJ'!C152<5,'Tabel 2 ØJ'!C154<0.5),"-",IFERROR('Tabel 2 ØJ'!C154/'Tabel 1 ØJ'!C152*100,"-")) -> 6.451612903 | D154: =IF(OR('Tabel 1 ØJ'!C152<5,'Tabel 2 ØJ'!D154<0.5),"-",IFERROR('Tabel 2 ØJ'!D154/'Tabel 1 ØJ'!C152*100,"-")) -> 5.862907753 | F154: =IF(OR('Tabel 1 ØJ'!E152<5,'Tabel 2 ØJ'!F154<0.5),"-",IFERROR('Tabel 2 ØJ'!F154/'Tabel 1 ØJ'!E152*100,"-")) -> 2.654867257 | G154: =IF(OR('Tabel 1 ØJ'!E152<5,'Tabel 2 ØJ'!G154<0.5),"-",IFERROR('Tabel 2 ØJ'!G154/'Tabel 1 ØJ'!E152*100,"-")) -> 1.844646744 | I154: =IF(OR('Tabel 1 ØJ'!G152<5,'Tabel 2 ØJ'!I154<0.5),"-",IFERROR('Tabel 2 ØJ'!I154/'Tabel 1 ØJ'!G152*100,"-")) -> 4 | J154: =IF(OR('Tabel 1 ØJ'!G152<5,'Tabel 2 ØJ'!J154<0.5),"-",IFERROR('Tabel 2 ØJ'!J154/'Tabel 1 ØJ'!G152*100,"-")) -> 3.268259215
A156: Total | C156: =IF(OR('Tabel 1 ØJ'!C154<5,'Tabel 2 ØJ'!C156<0.5),"-",IFERROR('Tabel 2 ØJ'!C156/'Tabel 1 ØJ'!C154*100,"-")) -> 4.202586207 | D156: =IF(OR('Tabel 1 ØJ'!C154<5,'Tabel 2 ØJ'!D156<0.5),"-",IFERROR('Tabel 2 ØJ'!D156/'Tabel 1 ØJ'!C154*100,"-")) -> 3.351136503 | F156: =IF(OR('Tabel 1 ØJ'!E154<5,'Tabel 2 ØJ'!F156<0.5),"-",IFERROR('Tabel 2 ØJ'!F156/'Tabel 1 ØJ'!E154*100,"-")) -> 2.894056848 | G156: =IF(OR('Tabel 1 ØJ'!E154<5,'Tabel 2 ØJ'!G156<0.5),"-",IFERROR('Tabel 2 ØJ'!G156/'Tabel 1 ØJ'!E154*100,"-")) -> 2.206753481 | I156: =IF(OR('Tabel 1 ØJ'!G154<5,'Tabel 2 ØJ'!I156<0.5),"-",IFERROR('Tabel 2 ØJ'!I156/'Tabel 1 ØJ'!G154*100,"-")) -> 3.318197695 | J156: =IF(OR('Tabel 1 ØJ'!G154<5,'Tabel 2 ØJ'!J156<0.5),"-",IFERROR('Tabel 2 ØJ'!J156/'Tabel 1 ØJ'!G154*100,"-")) -> 2.577688669
A158: Ingeniører i alt | C158: =IF(OR('Tabel 1 ØJ'!C156<5,'Tabel 2 ØJ'!C158<0.5),"-",IFERROR('Tabel 2 ØJ'!C158/'Tabel 1 ØJ'!C156*100,"-")) -> 9.85915493 | D158: =IF(OR('Tabel 1 ØJ'!C156<5,'Tabel 2 ØJ'!D158<0.5),"-",IFERROR('Tabel 2 ØJ'!D158/'Tabel 1 ØJ'!C156*100,"-")) -> 8.769764473 | F158: =IF(OR('Tabel 1 ØJ'!E156<5,'Tabel 2 ØJ'!F158<0.5),"-",IFERROR('Tabel 2 ØJ'!F158/'Tabel 1 ØJ'!E156*100,"-")) -> 3.06122449 | G158: =IF(OR('Tabel 1 ØJ'!E156<5,'Tabel 2 ØJ'!G158<0.5),"-",IFERROR('Tabel 2 ØJ'!G158/'Tabel 1 ØJ'!E156*100,"-")) -> 2.448394065 | I158: =IF(OR('Tabel 1 ØJ'!G156<5,'Tabel 2 ØJ'!I158<0.5),"-",IFERROR('Tabel 2 ØJ'!I158/'Tabel 1 ØJ'!G156*100,"-")) -> 5.917159763 | J158: =IF(OR('Tabel 1 ØJ'!G156<5,'Tabel 2 ØJ'!J158<0.5),"-",IFERROR('Tabel 2 ØJ'!J158/'Tabel 1 ØJ'!G156*100,"-")) -> 5.104117728
A159: Magistre i alt | C159: =IF(OR('Tabel 1 ØJ'!C157<5,'Tabel 2 ØJ'!C159<0.5),"-",IFERROR('Tabel 2 ØJ'!C159/'Tabel 1 ØJ'!C157*100,"-")) -> 6.018518519 | D159: =IF(OR('Tabel 1 ØJ'!C157<5,'Tabel 2 ØJ'!D159<0.5),"-",IFERROR('Tabel 2 ØJ'!D159/'Tabel 1 ØJ'!C157*100,"-")) -> 4.64984257 | F159: =IF(OR('Tabel 1 ØJ'!E157<5,'Tabel 2 ØJ'!F159<0.5),"-",IFERROR('Tabel 2 ØJ'!F159/'Tabel 1 ØJ'!E157*100,"-")) -> 4.918032787 | G159: =IF(OR('Tabel 1 ØJ'!E157<5,'Tabel 2 ØJ'!G159<0.5),"-",IFERROR('Tabel 2 ØJ'!G159/'Tabel 1 ØJ'!E157*100,"-")) -> 3.636852362 | I159: =IF(OR('Tabel 1 ØJ'!G157<5,'Tabel 2 ØJ'!I159<0.5),"-",IFERROR('Tabel 2 ØJ'!I159/'Tabel 1 ØJ'!G157*100,"-")) -> 5.22875817 | J159: =IF(OR('Tabel 1 ØJ'!G157<5,'Tabel 2 ØJ'!J159<0.5),"-",IFERROR('Tabel 2 ØJ'!J159/'Tabel 1 ØJ'!G157*100,"-")) -> 3.922873126
A160: DJØF'ere i alt | C160: =IF(OR('Tabel 1 ØJ'!C158<5,'Tabel 2 ØJ'!C160<0.5),"-",IFERROR('Tabel 2 ØJ'!C160/'Tabel 1 ØJ'!C158*100,"-")) -> 6.25 | D160: =IF(OR('Tabel 1 ØJ'!C158<5,'Tabel 2 ØJ'!D160<0.5),"-",IFERROR('Tabel 2 ØJ'!D160/'Tabel 1 ØJ'!C158*100,"-")) -> 4.433130973 | F160: =IF(OR('Tabel 1 ØJ'!E158<5,'Tabel 2 ØJ'!F160<0.5),"-",IFERROR('Tabel 2 ØJ'!F160/'Tabel 1 ØJ'!E158*100,"-")) -> 1.373626374 | G160: =IF(OR('Tabel 1 ØJ'!E158<5,'Tabel 2 ØJ'!G160<0.5),"-",IFERROR('Tabel 2 ØJ'!G160/'Tabel 1 ØJ'!E158*100,"-")) -> 0.8875924176 | I160: =IF(OR('Tabel 1 ØJ'!G158<5,'Tabel 2 ØJ'!I160<0.5),"-",IFERROR('Tabel 2 ØJ'!I160/'Tabel 1 ØJ'!G158*100,"-")) -> 2.755905512 | J160: =IF(OR('Tabel 1 ØJ'!G158<5,'Tabel 2 ØJ'!J160<0.5),"-",IFERROR('Tabel 2 ØJ'!J160/'Tabel 1 ØJ'!G158*100,"-")) -> 1.892626969
A165: Norddjurs
C167: Mænd | F167: Kvinder | I167: I alt
C168: Ledigheds- berørte | D168: Gns. brutto- ledighed | F168: Ledigheds- berørte | G168: Gns. brutto- ledighed | I168: Ledigheds- berørte | J168: Gns. brutto- ledighed
A171: Civ. ing. | C171: =IF(OR('Tabel 1 ØJ'!C169<5,'Tabel 2 ØJ'!C171<0.5),"-",IFERROR('Tabel 2 ØJ'!C171/'Tabel 1 ØJ'!C169*100,"-")) -> - | D171: =IF(OR('Tabel 1 ØJ'!C169<5,'Tabel 2 ØJ'!D171<0.5),"-",IFERROR('Tabel 2 ØJ'!D171/'Tabel 1 ØJ'!C169*100,"-")) -> - | F171: =IF(OR('Tabel 1 ØJ'!E169<5,'Tabel 2 ØJ'!F171<0.5),"-",IFERROR('Tabel 2 ØJ'!F171/'Tabel 1 ØJ'!E169*100,"-")) -> 7.142857143 | G171: =IF(OR('Tabel 1 ØJ'!E169<5,'Tabel 2 ØJ'!G171<0.5),"-",IFERROR('Tabel 2 ØJ'!G171/'Tabel 1 ØJ'!E169*100,"-")) -> 4.668941736 | I171: =IF(OR('Tabel 1 ØJ'!G169<5,'Tabel 2 ØJ'!I171<0.5),"-",IFERROR('Tabel 2 ØJ'!I171/'Tabel 1 ØJ'!G169*100,"-")) -> 4.444444444 | J171: =IF(OR('Tabel 1 ØJ'!G169<5,'Tabel 2 ØJ'!J171<0.5),"-",IFERROR('Tabel 2 ØJ'!J171/'Tabel 1 ØJ'!G169*100,"-")) -> 2.905119303
A172: Diplom ing. | C172: =IF(OR('Tabel 1 ØJ'!C170<5,'Tabel 2 ØJ'!C172<0.5),"-",IFERROR('Tabel 2 ØJ'!C172/'Tabel 1 ØJ'!C170*100,"-")) -> 2.816901408 | D172: =IF(OR('Tabel 1 ØJ'!C170<5,'Tabel 2 ØJ'!D172<0.5),"-",IFERROR('Tabel 2 ØJ'!D172/'Tabel 1 ØJ'!C170*100,"-")) -> 2.101299872 | F172: =IF(OR('Tabel 1 ØJ'!E170<5,'Tabel 2 ØJ'!F172<0.5),"-",IFERROR('Tabel 2 ØJ'!F172/'Tabel 1 ØJ'!E170*100,"-")) -> - | G172: =IF(OR('Tabel 1 ØJ'!E170<5,'Tabel 2 ØJ'!G172<0.5),"-",IFERROR('Tabel 2 ØJ'!G172/'Tabel 1 ØJ'!E170*100,"-")) -> - | I172: =IF(OR('Tabel 1 ØJ'!G170<5,'Tabel 2 ØJ'!I172<0.5),"-",IFERROR('Tabel 2 ØJ'!I172/'Tabel 1 ØJ'!G170*100,"-")) -> 1.219512195 | J172: =IF(OR('Tabel 1 ØJ'!G170<5,'Tabel 2 ØJ'!J172<0.5),"-",IFERROR('Tabel 2 ØJ'!J172/'Tabel 1 ØJ'!G170*100,"-")) -> 0.9097090909
A173: Cand. Scient. Tek. | C173: =IF(OR('Tabel 1 ØJ'!C171<5,'Tabel 2 ØJ'!C173<0.5),"-",IFERROR('Tabel 2 ØJ'!C173/'Tabel 1 ØJ'!C171*100,"-")) -> 21.42857143 | D173: =IF(OR('Tabel 1 ØJ'!C171<5,'Tabel 2 ØJ'!D173<0.5),"-",IFERROR('Tabel 2 ØJ'!D173/'Tabel 1 ØJ'!C171*100,"-")) -> 20.81866864 | F173: =IF(OR('Tabel 1 ØJ'!E171<5,'Tabel 2 ØJ'!F173<0.5),"-",IFERROR('Tabel 2 ØJ'!F173/'Tabel 1 ØJ'!E171*100,"-")) -> 9.090909091 | G173: =IF(OR('Tabel 1 ØJ'!E171<5,'Tabel 2 ØJ'!G173<0.5),"-",IFERROR('Tabel 2 ØJ'!G173/'Tabel 1 ØJ'!E171*100,"-")) -> 4.893316625 | I173: =IF(OR('Tabel 1 ØJ'!G171<5,'Tabel 2 ØJ'!I173<0.5),"-",IFERROR('Tabel 2 ØJ'!I173/'Tabel 1 ØJ'!G171*100,"-")) -> 13.88888889 | J173: =IF(OR('Tabel 1 ØJ'!G171<5,'Tabel 2 ØJ'!J173<0.5),"-",IFERROR('Tabel 2 ØJ'!J173/'Tabel 1 ØJ'!G171*100,"-")) -> 11.08650908
A174: MA. Hum. | C174: =IF(OR('Tabel 1 ØJ'!C172<5,'Tabel 2 ØJ'!C174<0.5),"-",IFERROR('Tabel 2 ØJ'!C174/'Tabel 1 ØJ'!C172*100,"-")) -> 4.545454545 | D174: =IF(OR('Tabel 1 ØJ'!C172<5,'Tabel 2 ØJ'!D174<0.5),"-",IFERROR('Tabel 2 ØJ'!D174/'Tabel 1 ØJ'!C172*100,"-")) -> 3.49563117 | F174: =IF(OR('Tabel 1 ØJ'!E172<5,'Tabel 2 ØJ'!F174<0.5),"-",IFERROR('Tabel 2 ØJ'!F174/'Tabel 1 ØJ'!E172*100,"-")) -> 5.128205128 | G174: =IF(OR('Tabel 1 ØJ'!E172<5,'Tabel 2 ØJ'!G174<0.5),"-",IFERROR('Tabel 2 ØJ'!G174/'Tabel 1 ØJ'!E172*100,"-")) -> 4.557107376 | I174: =IF(OR('Tabel 1 ØJ'!G172<5,'Tabel 2 ØJ'!I174<0.5),"-",IFERROR('Tabel 2 ØJ'!I174/'Tabel 1 ØJ'!G172*100,"-")) -> 5 | J174: =IF(OR('Tabel 1 ØJ'!G172<5,'Tabel 2 ØJ'!J174<0.5),"-",IFERROR('Tabel 2 ØJ'!J174/'Tabel 1 ØJ'!G172*100,"-")) -> 4.323582611
A175: MA. Nat. | C175: =IF(OR('Tabel 1 ØJ'!C173<5,'Tabel 2 ØJ'!C175<0.5),"-",IFERROR('Tabel 2 ØJ'!C175/'Tabel 1 ØJ'!C173*100,"-")) -> 4.761904762 | D175: =IF(OR('Tabel 1 ØJ'!C173<5,'Tabel 2 ØJ'!D175<0.5),"-",IFERROR('Tabel 2 ØJ'!D175/'Tabel 1 ØJ'!C173*100,"-")) -> 4.321444164 | F175: =IF(OR('Tabel 1 ØJ'!E173<5,'Tabel 2 ØJ'!F175<0.5),"-",IFERROR('Tabel 2 ØJ'!F175/'Tabel 1 ØJ'!E173*100,"-")) -> 2.857142857 | G175: =IF(OR('Tabel 1 ØJ'!E173<5,'Tabel 2 ØJ'!G175<0.5),"-",IFERROR('Tabel 2 ØJ'!G175/'Tabel 1 ØJ'!E173*100,"-")) -> - | I175: =IF(OR('Tabel 1 ØJ'!G173<5,'Tabel 2 ØJ'!I175<0.5),"-",IFERROR('Tabel 2 ØJ'!I175/'Tabel 1 ØJ'!G173*100,"-")) -> 3.571428571 | J175: =IF(OR('Tabel 1 ØJ'!G173<5,'Tabel 2 ØJ'!J175<0.5),"-",IFERROR('Tabel 2 ØJ'!J175/'Tabel 1 ØJ'!G173*100,"-")) -> 2.203045504
A176: MA. Ph.d. | C176: =IF(OR('Tabel 1 ØJ'!C174<5,'Tabel 2 ØJ'!C176<0.5),"-",IFERROR('Tabel 2 ØJ'!C176/'Tabel 1 ØJ'!C174*100,"-")) -> - | D176: =IF(OR('Tabel 1 ØJ'!C174<5,'Tabel 2 ØJ'!D176<0.5),"-",IFERROR('Tabel 2 ØJ'!D176/'Tabel 1 ØJ'!C174*100,"-")) -> - | F176: =IF(OR('Tabel 1 ØJ'!E174<5,'Tabel 2 ØJ'!F176<0.5),"-",IFERROR('Tabel 2 ØJ'!F176/'Tabel 1 ØJ'!E174*100,"-")) -> - | G176: =IF(OR('Tabel 1 ØJ'!E174<5,'Tabel 2 ØJ'!G176<0.5),"-",IFERROR('Tabel 2 ØJ'!G176/'Tabel 1 ØJ'!E174*100,"-")) -> - | I176: =IF(OR('Tabel 1 ØJ'!G174<5,'Tabel 2 ØJ'!I176<0.5),"-",IFERROR('Tabel 2 ØJ'!I176/'Tabel 1 ØJ'!G174*100,"-")) -> 10 | J176: =IF(OR('Tabel 1 ØJ'!G174<5,'Tabel 2 ØJ'!J176<0.5),"-",IFERROR('Tabel 2 ØJ'!J176/'Tabel 1 ØJ'!G174*100,"-")) -> 9.075032745
A177: MA. Samf. | C177: =IF(OR('Tabel 1 ØJ'!C175<5,'Tabel 2 ØJ'!C177<0.5),"-",IFERROR('Tabel 2 ØJ'!C177/'Tabel 1 ØJ'!C175*100,"-")) -> - | D177: =IF(OR('Tabel 1 ØJ'!C175<5,'Tabel 2 ØJ'!D177<0.5),"-",IFERROR('Tabel 2 ØJ'!D177/'Tabel 1 ØJ'!C175*100,"-")) -> - | F177: =IF(OR('Tabel 1 ØJ'!E175<5,'Tabel 2 ØJ'!F177<0.5),"-",IFERROR('Tabel 2 ØJ'!F177/'Tabel 1 ØJ'!E175*100,"-")) -> 28.57142857 | G177: =IF(OR('Tabel 1 ØJ'!E175<5,'Tabel 2 ØJ'!G177<0.5),"-",IFERROR('Tabel 2 ØJ'!G177/'Tabel 1 ØJ'!E175*100,"-")) -> 24.28918926 | I177: =IF(OR('Tabel 1 ØJ'!G175<5,'Tabel 2 ØJ'!I177<0.5),"-",IFERROR('Tabel 2 ØJ'!I177/'Tabel 1 ØJ'!G175*100,"-")) -> 22.22222222 | J177: =IF(OR('Tabel 1 ØJ'!G175<5,'Tabel 2 ØJ'!J177<0.5),"-",IFERROR('Tabel 2 ØJ'!J177/'Tabel 1 ØJ'!G175*100,"-")) -> 18.89159165
A178: Øvrige Mag. | C178: =IF(OR('Tabel 1 ØJ'!C176<5,'Tabel 2 ØJ'!C178<0.5),"-",IFERROR('Tabel 2 ØJ'!C178/'Tabel 1 ØJ'!C176*100,"-")) -> - | D178: =IF(OR('Tabel 1 ØJ'!C176<5,'Tabel 2 ØJ'!D178<0.5),"-",IFERROR('Tabel 2 ØJ'!D178/'Tabel 1 ØJ'!C176*100,"-")) -> - | F178: =IF(OR('Tabel 1 ØJ'!E176<5,'Tabel 2 ØJ'!F178<0.5),"-",IFERROR('Tabel 2 ØJ'!F178/'Tabel 1 ØJ'!E176*100,"-")) -> 16.66666667 | G178: =IF(OR('Tabel 1 ØJ'!E176<5,'Tabel 2 ØJ'!G178<0.5),"-",IFERROR('Tabel 2 ØJ'!G178/'Tabel 1 ØJ'!E176*100,"-")) -> 12.81731429 | I178: =IF(OR('Tabel 1 ØJ'!G176<5,'Tabel 2 ØJ'!I178<0.5),"-",IFERROR('Tabel 2 ØJ'!I178/'Tabel 1 ØJ'!G176*100,"-")) -> 14.28571429 | J178: =IF(OR('Tabel 1 ØJ'!G176<5,'Tabel 2 ØJ'!J178<0.5),"-",IFERROR('Tabel 2 ØJ'!J178/'Tabel 1 ØJ'!G176*100,"-")) -> 10.98626939
A179: Agronom | C179: =IF(OR('Tabel 1 ØJ'!C177<5,'Tabel 2 ØJ'!C179<0.5),"-",IFERROR('Tabel 2 ØJ'!C179/'Tabel 1 ØJ'!C177*100,"-")) -> - | D179: =IF(OR('Tabel 1 ØJ'!C177<5,'Tabel 2 ØJ'!D179<0.5),"-",IFERROR('Tabel 2 ØJ'!D179/'Tabel 1 ØJ'!C177*100,"-")) -> - | F179: =IF(OR('Tabel 1 ØJ'!E177<5,'Tabel 2 ØJ'!F179<0.5),"-",IFERROR('Tabel 2 ØJ'!F179/'Tabel 1 ØJ'!E177*100,"-")) -> - | G179: =IF(OR('Tabel 1 ØJ'!E177<5,'Tabel 2 ØJ'!G179<0.5),"-",IFERROR('Tabel 2 ØJ'!G179/'Tabel 1 ØJ'!E177*100,"-")) -> - | I179: =IF(OR('Tabel 1 ØJ'!G177<5,'Tabel 2 ØJ'!I179<0.5),"-",IFERROR('Tabel 2 ØJ'!I179/'Tabel 1 ØJ'!G177*100,"-")) -> - | J179: =IF(OR('Tabel 1 ØJ'!G177<5,'Tabel 2 ØJ'!J179<0.5),"-",IFERROR('Tabel 2 ØJ'!J179/'Tabel 1 ØJ'!G177*100,"-")) -> -
A180: Landsk. Arkt. | C180: =IF(OR('Tabel 1 ØJ'!C178<5,'Tabel 2 ØJ'!C180<0.5),"-",IFERROR('Tabel 2 ØJ'!C180/'Tabel 1 ØJ'!C178*100,"-")) -> - | D180: =IF(OR('Tabel 1 ØJ'!C178<5,'Tabel 2 ØJ'!D180<0.5),"-",IFERROR('Tabel 2 ØJ'!D180/'Tabel 1 ØJ'!C178*100,"-")) -> - | F180: =IF(OR('Tabel 1 ØJ'!E178<5,'Tabel 2 ØJ'!F180<0.5),"-",IFERROR('Tabel 2 ØJ'!F180/'Tabel 1 ØJ'!E178*100,"-")) -> - | G180: =IF(OR('Tabel 1 ØJ'!E178<5,'Tabel 2 ØJ'!G180<0.5),"-",IFERROR('Tabel 2 ØJ'!G180/'Tabel 1 ØJ'!E178*100,"-")) -> - | I180: =IF(OR('Tabel 1 ØJ'!G178<5,'Tabel 2 ØJ'!I180<0.5),"-",IFERROR('Tabel 2 ØJ'!I180/'Tabel 1 ØJ'!G178*100,"-")) -> - | J180: =IF(OR('Tabel 1 ØJ'!G178<5,'Tabel 2 ØJ'!J180<0.5),"-",IFERROR('Tabel 2 ØJ'!J180/'Tabel 1 ØJ'!G178*100,"-")) -> -
A181: Hortonom | C181: =IF(OR('Tabel 1 ØJ'!C179<5,'Tabel 2 ØJ'!C181<0.5),"-",IFERROR('Tabel 2 ØJ'!C181/'Tabel 1 ØJ'!C179*100,"-")) -> - | D181: =IF(OR('Tabel 1 ØJ'!C179<5,'Tabel 2 ØJ'!D181<0.5),"-",IFERROR('Tabel 2 ØJ'!D181/'Tabel 1 ØJ'!C179*100,"-")) -> - | F181: =IF(OR('Tabel 1 ØJ'!E179<5,'Tabel 2 ØJ'!F181<0.5),"-",IFERROR('Tabel 2 ØJ'!F181/'Tabel 1 ØJ'!E179*100,"-")) -> - | G181: =IF(OR('Tabel 1 ØJ'!E179<5,'Tabel 2 ØJ'!G181<0.5),"-",IFERROR('Tabel 2 ØJ'!G181/'Tabel 1 ØJ'!E179*100,"-")) -> - | I181: =IF(OR('Tabel 1 ØJ'!G179<5,'Tabel 2 ØJ'!I181<0.5),"-",IFERROR('Tabel 2 ØJ'!I181/'Tabel 1 ØJ'!G179*100,"-")) -> - | J181: =IF(OR('Tabel 1 ØJ'!G179<5,'Tabel 2 ØJ'!J181<0.5),"-",IFERROR('Tabel 2 ØJ'!J181/'Tabel 1 ØJ'!G179*100,"-")) -> -
A182: Forstkand. | C182: =IF(OR('Tabel 1 ØJ'!C180<5,'Tabel 2 ØJ'!C182<0.5),"-",IFERROR('Tabel 2 ØJ'!C182/'Tabel 1 ØJ'!C180*100,"-")) -> - | D182: =IF(OR('Tabel 1 ØJ'!C180<5,'Tabel 2 ØJ'!D182<0.5),"-",IFERROR('Tabel 2 ØJ'!D182/'Tabel 1 ØJ'!C180*100,"-")) -> - | F182: =IF(OR('Tabel 1 ØJ'!E180<5,'Tabel 2 ØJ'!F182<0.5),"-",IFERROR('Tabel 2 ØJ'!F182/'Tabel 1 ØJ'!E180*100,"-")) -> - | G182: =IF(OR('Tabel 1 ØJ'!E180<5,'Tabel 2 ØJ'!G182<0.5),"-",IFERROR('Tabel 2 ØJ'!G182/'Tabel 1 ØJ'!E180*100,"-")) -> - | I182: =IF(OR('Tabel 1 ØJ'!G180<5,'Tabel 2 ØJ'!I182<0.5),"-",IFERROR('Tabel 2 ØJ'!I182/'Tabel 1 ØJ'!G180*100,"-")) -> - | J182: =IF(OR('Tabel 1 ØJ'!G180<5,'Tabel 2 ØJ'!J182<0.5),"-",IFERROR('Tabel 2 ØJ'!J182/'Tabel 1 ØJ'!G180*100,"-")) -> -
A183: Jordbrugsakad. | C183: =IF(OR('Tabel 1 ØJ'!C181<5,'Tabel 2 ØJ'!C183<0.5),"-",IFERROR('Tabel 2 ØJ'!C183/'Tabel 1 ØJ'!C181*100,"-")) -> 14.28571429 | D183: =IF(OR('Tabel 1 ØJ'!C181<5,'Tabel 2 ØJ'!D183<0.5),"-",IFERROR('Tabel 2 ØJ'!D183/'Tabel 1 ØJ'!C181*100,"-")) -> 10.98626939 | F183: =IF(OR('Tabel 1 ØJ'!E181<5,'Tabel 2 ØJ'!F183<0.5),"-",IFERROR('Tabel 2 ØJ'!F183/'Tabel 1 ØJ'!E181*100,"-")) -> - | G183: =IF(OR('Tabel 1 ØJ'!E181<5,'Tabel 2 ØJ'!G183<0.5),"-",IFERROR('Tabel 2 ØJ'!G183/'Tabel 1 ØJ'!E181*100,"-")) -> - | I183: =IF(OR('Tabel 1 ØJ'!G181<5,'Tabel 2 ØJ'!I183<0.5),"-",IFERROR('Tabel 2 ØJ'!I183/'Tabel 1 ØJ'!G181*100,"-")) -> 5.263157895 | J183: =IF(OR('Tabel 1 ØJ'!G181<5,'Tabel 2 ØJ'!J183<0.5),"-",IFERROR('Tabel 2 ØJ'!J183/'Tabel 1 ØJ'!G181*100,"-")) -> 4.047572933
A184: Mejeriing. | C184: =IF(OR('Tabel 1 ØJ'!C182<5,'Tabel 2 ØJ'!C184<0.5),"-",IFERROR('Tabel 2 ØJ'!C184/'Tabel 1 ØJ'!C182*100,"-")) -> - | D184: =IF(OR('Tabel 1 ØJ'!C182<5,'Tabel 2 ØJ'!D184<0.5),"-",IFERROR('Tabel 2 ØJ'!D184/'Tabel 1 ØJ'!C182*100,"-")) -> - | F184: =IF(OR('Tabel 1 ØJ'!E182<5,'Tabel 2 ØJ'!F184<0.5),"-",IFERROR('Tabel 2 ØJ'!F184/'Tabel 1 ØJ'!E182*100,"-")) -> - | G184: =IF(OR('Tabel 1 ØJ'!E182<5,'Tabel 2 ØJ'!G184<0.5),"-",IFERROR('Tabel 2 ØJ'!G184/'Tabel 1 ØJ'!E182*100,"-")) -> - | I184: =IF(OR('Tabel 1 ØJ'!G182<5,'Tabel 2 ØJ'!I184<0.5),"-",IFERROR('Tabel 2 ØJ'!I184/'Tabel 1 ØJ'!G182*100,"-")) -> - | J184: =IF(OR('Tabel 1 ØJ'!G182<5,'Tabel 2 ØJ'!J184<0.5),"-",IFERROR('Tabel 2 ØJ'!J184/'Tabel 1 ØJ'!G182*100,"-")) -> -
A185: Levn.m.kand. | C185: =IF(OR('Tabel 1 ØJ'!C183<5,'Tabel 2 ØJ'!C185<0.5),"-",IFERROR('Tabel 2 ØJ'!C185/'Tabel 1 ØJ'!C183*100,"-")) -> - | D185: =IF(OR('Tabel 1 ØJ'!C183<5,'Tabel 2 ØJ'!D185<0.5),"-",IFERROR('Tabel 2 ØJ'!D185/'Tabel 1 ØJ'!C183*100,"-")) -> - | F185: =IF(OR('Tabel 1 ØJ'!E183<5,'Tabel 2 ØJ'!F185<0.5),"-",IFERROR('Tabel 2 ØJ'!F185/'Tabel 1 ØJ'!E183*100,"-")) -> - | G185: =IF(OR('Tabel 1 ØJ'!E183<5,'Tabel 2 ØJ'!G185<0.5),"-",IFERROR('Tabel 2 ØJ'!G185/'Tabel 1 ØJ'!E183*100,"-")) -> - | I185: =IF(OR('Tabel 1 ØJ'!G183<5,'Tabel 2 ØJ'!I185<0.5),"-",IFERROR('Tabel 2 ØJ'!I185/'Tabel 1 ØJ'!G183*100,"-")) -> - | J185: =IF(OR('Tabel 1 ØJ'!G183<5,'Tabel 2 ØJ'!J185<0.5),"-",IFERROR('Tabel 2 ØJ'!J185/'Tabel 1 ØJ'!G183*100,"-")) -> -
A186: Dyrlæge | C186: =IF(OR('Tabel 1 ØJ'!C184<5,'Tabel 2 ØJ'!C186<0.5),"-",IFERROR('Tabel 2 ØJ'!C186/'Tabel 1 ØJ'!C184*100,"-")) -> - | D186: =IF(OR('Tabel 1 ØJ'!C184<5,'Tabel 2 ØJ'!D186<0.5),"-",IFERROR('Tabel 2 ØJ'!D186/'Tabel 1 ØJ'!C184*100,"-")) -> - | F186: =IF(OR('Tabel 1 ØJ'!E184<5,'Tabel 2 ØJ'!F186<0.5),"-",IFERROR('Tabel 2 ØJ'!F186/'Tabel 1 ØJ'!E184*100,"-")) -> - | G186: =IF(OR('Tabel 1 ØJ'!E184<5,'Tabel 2 ØJ'!G186<0.5),"-",IFERROR('Tabel 2 ØJ'!G186/'Tabel 1 ØJ'!E184*100,"-")) -> - | I186: =IF(OR('Tabel 1 ØJ'!G184<5,'Tabel 2 ØJ'!I186<0.5),"-",IFERROR('Tabel 2 ØJ'!I186/'Tabel 1 ØJ'!G184*100,"-")) -> - | J186: =IF(OR('Tabel 1 ØJ'!G184<5,'Tabel 2 ØJ'!J186<0.5),"-",IFERROR('Tabel 2 ØJ'!J186/'Tabel 1 ØJ'!G184*100,"-")) -> -
A187: Farmaceut | C187: =IF(OR('Tabel 1 ØJ'!C185<5,'Tabel 2 ØJ'!C187<0.5),"-",IFERROR('Tabel 2 ØJ'!C187/'Tabel 1 ØJ'!C185*100,"-")) -> - | D187: =IF(OR('Tabel 1 ØJ'!C185<5,'Tabel 2 ØJ'!D187<0.5),"-",IFERROR('Tabel 2 ØJ'!D187/'Tabel 1 ØJ'!C185*100,"-")) -> - | F187: =IF(OR('Tabel 1 ØJ'!E185<5,'Tabel 2 ØJ'!F187<0.5),"-",IFERROR('Tabel 2 ØJ'!F187/'Tabel 1 ØJ'!E185*100,"-")) -> - | G187: =IF(OR('Tabel 1 ØJ'!E185<5,'Tabel 2 ØJ'!G187<0.5),"-",IFERROR('Tabel 2 ØJ'!G187/'Tabel 1 ØJ'!E185*100,"-")) -> - | I187: =IF(OR('Tabel 1 ØJ'!G185<5,'Tabel 2 ØJ'!I187<0.5),"-",IFERROR('Tabel 2 ØJ'!I187/'Tabel 1 ØJ'!G185*100,"-")) -> - | J187: =IF(OR('Tabel 1 ØJ'!G185<5,'Tabel 2 ØJ'!J187<0.5),"-",IFERROR('Tabel 2 ØJ'!J187/'Tabel 1 ØJ'!G185*100,"-")) -> -
A188: Læge | C188: =IF(OR('Tabel 1 ØJ'!C186<5,'Tabel 2 ØJ'!C188<0.5),"-",IFERROR('Tabel 2 ØJ'!C188/'Tabel 1 ØJ'!C186*100,"-")) -> - | D188: =IF(OR('Tabel 1 ØJ'!C186<5,'Tabel 2 ØJ'!D188<0.5),"-",IFERROR('Tabel 2 ØJ'!D188/'Tabel 1 ØJ'!C186*100,"-")) -> - | F188: =IF(OR('Tabel 1 ØJ'!E186<5,'Tabel 2 ØJ'!F188<0.5),"-",IFERROR('Tabel 2 ØJ'!F188/'Tabel 1 ØJ'!E186*100,"-")) -> - | G188: =IF(OR('Tabel 1 ØJ'!E186<5,'Tabel 2 ØJ'!G188<0.5),"-",IFERROR('Tabel 2 ØJ'!G188/'Tabel 1 ØJ'!E186*100,"-")) -> - | I188: =IF(OR('Tabel 1 ØJ'!G186<5,'Tabel 2 ØJ'!I188<0.5),"-",IFERROR('Tabel 2 ØJ'!I188/'Tabel 1 ØJ'!G186*100,"-")) -> - | J188: =IF(OR('Tabel 1 ØJ'!G186<5,'Tabel 2 ØJ'!J188<0.5),"-",IFERROR('Tabel 2 ØJ'!J188/'Tabel 1 ØJ'!G186*100,"-")) -> -
A189: Tandlæge | C189: =IF(OR('Tabel 1 ØJ'!C187<5,'Tabel 2 ØJ'!C189<0.5),"-",IFERROR('Tabel 2 ØJ'!C189/'Tabel 1 ØJ'!C187*100,"-")) -> - | D189: =IF(OR('Tabel 1 ØJ'!C187<5,'Tabel 2 ØJ'!D189<0.5),"-",IFERROR('Tabel 2 ØJ'!D189/'Tabel 1 ØJ'!C187*100,"-")) -> - | F189: =IF(OR('Tabel 1 ØJ'!E187<5,'Tabel 2 ØJ'!F189<0.5),"-",IFERROR('Tabel 2 ØJ'!F189/'Tabel 1 ØJ'!E187*100,"-")) -> - | G189: =IF(OR('Tabel 1 ØJ'!E187<5,'Tabel 2 ØJ'!G189<0.5),"-",IFERROR('Tabel 2 ØJ'!G189/'Tabel 1 ØJ'!E187*100,"-")) -> - | I189: =IF(OR('Tabel 1 ØJ'!G187<5,'Tabel 2 ØJ'!I189<0.5),"-",IFERROR('Tabel 2 ØJ'!I189/'Tabel 1 ØJ'!G187*100,"-")) -> - | J189: =IF(OR('Tabel 1 ØJ'!G187<5,'Tabel 2 ØJ'!J189<0.5),"-",IFERROR('Tabel 2 ØJ'!J189/'Tabel 1 ØJ'!G187*100,"-")) -> -
A190: Arkitekt | C190: =IF(OR('Tabel 1 ØJ'!C188<5,'Tabel 2 ØJ'!C190<0.5),"-",IFERROR('Tabel 2 ØJ'!C190/'Tabel 1 ØJ'!C188*100,"-")) -> - | D190: =IF(OR('Tabel 1 ØJ'!C188<5,'Tabel 2 ØJ'!D190<0.5),"-",IFERROR('Tabel 2 ØJ'!D190/'Tabel 1 ØJ'!C188*100,"-")) -> - | F190: =IF(OR('Tabel 1 ØJ'!E188<5,'Tabel 2 ØJ'!F190<0.5),"-",IFERROR('Tabel 2 ØJ'!F190/'Tabel 1 ØJ'!E188*100,"-")) -> - | G190: =IF(OR('Tabel 1 ØJ'!E188<5,'Tabel 2 ØJ'!G190<0.5),"-",IFERROR('Tabel 2 ØJ'!G190/'Tabel 1 ØJ'!E188*100,"-")) -> - | I190: =IF(OR('Tabel 1 ØJ'!G188<5,'Tabel 2 ØJ'!I190<0.5),"-",IFERROR('Tabel 2 ØJ'!I190/'Tabel 1 ØJ'!G188*100,"-")) -> 18.18181818 | J190: =IF(OR('Tabel 1 ØJ'!G188<5,'Tabel 2 ØJ'!J190<0.5),"-",IFERROR('Tabel 2 ØJ'!J190/'Tabel 1 ØJ'!G188*100,"-")) -> 17.61140375
A191: Landinspek. | C191: =IF(OR('Tabel 1 ØJ'!C189<5,'Tabel 2 ØJ'!C191<0.5),"-",IFERROR('Tabel 2 ØJ'!C191/'Tabel 1 ØJ'!C189*100,"-")) -> - | D191: =IF(OR('Tabel 1 ØJ'!C189<5,'Tabel 2 ØJ'!D191<0.5),"-",IFERROR('Tabel 2 ØJ'!D191/'Tabel 1 ØJ'!C189*100,"-")) -> - | F191: =IF(OR('Tabel 1 ØJ'!E189<5,'Tabel 2 ØJ'!F191<0.5),"-",IFERROR('Tabel 2 ØJ'!F191/'Tabel 1 ØJ'!E189*100,"-")) -> - | G191: =IF(OR('Tabel 1 ØJ'!E189<5,'Tabel 2 ØJ'!G191<0.5),"-",IFERROR('Tabel 2 ØJ'!G191/'Tabel 1 ØJ'!E189*100,"-")) -> - | I191: =IF(OR('Tabel 1 ØJ'!G189<5,'Tabel 2 ØJ'!I191<0.5),"-",IFERROR('Tabel 2 ØJ'!I191/'Tabel 1 ØJ'!G189*100,"-")) -> - | J191: =IF(OR('Tabel 1 ØJ'!G189<5,'Tabel 2 ØJ'!J191<0.5),"-",IFERROR('Tabel 2 ØJ'!J191/'Tabel 1 ØJ'!G189*100,"-")) -> -
A192: Bibliotekar | C192: =IF(OR('Tabel 1 ØJ'!C190<5,'Tabel 2 ØJ'!C192<0.5),"-",IFERROR('Tabel 2 ØJ'!C192/'Tabel 1 ØJ'!C190*100,"-")) -> - | D192: =IF(OR('Tabel 1 ØJ'!C190<5,'Tabel 2 ØJ'!D192<0.5),"-",IFERROR('Tabel 2 ØJ'!D192/'Tabel 1 ØJ'!C190*100,"-")) -> - | F192: =IF(OR('Tabel 1 ØJ'!E190<5,'Tabel 2 ØJ'!F192<0.5),"-",IFERROR('Tabel 2 ØJ'!F192/'Tabel 1 ØJ'!E190*100,"-")) -> - | G192: =IF(OR('Tabel 1 ØJ'!E190<5,'Tabel 2 ØJ'!G192<0.5),"-",IFERROR('Tabel 2 ØJ'!G192/'Tabel 1 ØJ'!E190*100,"-")) -> - | I192: =IF(OR('Tabel 1 ØJ'!G190<5,'Tabel 2 ØJ'!I192<0.5),"-",IFERROR('Tabel 2 ØJ'!I192/'Tabel 1 ØJ'!G190*100,"-")) -> - | J192: =IF(OR('Tabel 1 ØJ'!G190<5,'Tabel 2 ØJ'!J192<0.5),"-",IFERROR('Tabel 2 ØJ'!J192/'Tabel 1 ØJ'!G190*100,"-")) -> -
A193: Musikudd. | C193: =IF(OR('Tabel 1 ØJ'!C191<5,'Tabel 2 ØJ'!C193<0.5),"-",IFERROR('Tabel 2 ØJ'!C193/'Tabel 1 ØJ'!C191*100,"-")) -> - | D193: =IF(OR('Tabel 1 ØJ'!C191<5,'Tabel 2 ØJ'!D193<0.5),"-",IFERROR('Tabel 2 ØJ'!D193/'Tabel 1 ØJ'!C191*100,"-")) -> - | F193: =IF(OR('Tabel 1 ØJ'!E191<5,'Tabel 2 ØJ'!F193<0.5),"-",IFERROR('Tabel 2 ØJ'!F193/'Tabel 1 ØJ'!E191*100,"-")) -> - | G193: =IF(OR('Tabel 1 ØJ'!E191<5,'Tabel 2 ØJ'!G193<0.5),"-",IFERROR('Tabel 2 ØJ'!G193/'Tabel 1 ØJ'!E191*100,"-")) -> - | I193: =IF(OR('Tabel 1 ØJ'!G191<5,'Tabel 2 ØJ'!I193<0.5),"-",IFERROR('Tabel 2 ØJ'!I193/'Tabel 1 ØJ'!G191*100,"-")) -> 20 | J193: =IF(OR('Tabel 1 ØJ'!G191<5,'Tabel 2 ØJ'!J193<0.5),"-",IFERROR('Tabel 2 ØJ'!J193/'Tabel 1 ØJ'!G191*100,"-")) -> 19.99625772
A194: Teolog | C194: =IF(OR('Tabel 1 ØJ'!C192<5,'Tabel 2 ØJ'!C194<0.5),"-",IFERROR('Tabel 2 ØJ'!C194/'Tabel 1 ØJ'!C192*100,"-")) -> - | D194: =IF(OR('Tabel 1 ØJ'!C192<5,'Tabel 2 ØJ'!D194<0.5),"-",IFERROR('Tabel 2 ØJ'!D194/'Tabel 1 ØJ'!C192*100,"-")) -> - | F194: =IF(OR('Tabel 1 ØJ'!E192<5,'Tabel 2 ØJ'!F194<0.5),"-",IFERROR('Tabel 2 ØJ'!F194/'Tabel 1 ØJ'!E192*100,"-")) -> 7.142857143 | G194: =IF(OR('Tabel 1 ØJ'!E192<5,'Tabel 2 ØJ'!G194<0.5),"-",IFERROR('Tabel 2 ØJ'!G194/'Tabel 1 ØJ'!E192*100,"-")) -> - | I194: =IF(OR('Tabel 1 ØJ'!G192<5,'Tabel 2 ØJ'!I194<0.5),"-",IFERROR('Tabel 2 ØJ'!I194/'Tabel 1 ØJ'!G192*100,"-")) -> 5 | J194: =IF(OR('Tabel 1 ØJ'!G192<5,'Tabel 2 ØJ'!J194<0.5),"-",IFERROR('Tabel 2 ØJ'!J194/'Tabel 1 ØJ'!G192*100,"-")) -> -
A195: Psykolog | C195: =IF(OR('Tabel 1 ØJ'!C193<5,'Tabel 2 ØJ'!C195<0.5),"-",IFERROR('Tabel 2 ØJ'!C195/'Tabel 1 ØJ'!C193*100,"-")) -> - | D195: =IF(OR('Tabel 1 ØJ'!C193<5,'Tabel 2 ØJ'!D195<0.5),"-",IFERROR('Tabel 2 ØJ'!D195/'Tabel 1 ØJ'!C193*100,"-")) -> - | F195: =IF(OR('Tabel 1 ØJ'!E193<5,'Tabel 2 ØJ'!F195<0.5),"-",IFERROR('Tabel 2 ØJ'!F195/'Tabel 1 ØJ'!E193*100,"-")) -> 8.333333333 | G195: =IF(OR('Tabel 1 ØJ'!E193<5,'Tabel 2 ØJ'!G195<0.5),"-",IFERROR('Tabel 2 ØJ'!G195/'Tabel 1 ØJ'!E193*100,"-")) -> - | I195: =IF(OR('Tabel 1 ØJ'!G193<5,'Tabel 2 ØJ'!I195<0.5),"-",IFERROR('Tabel 2 ØJ'!I195/'Tabel 1 ØJ'!G193*100,"-")) -> 7.142857143 | J195: =IF(OR('Tabel 1 ØJ'!G193<5,'Tabel 2 ØJ'!J195<0.5),"-",IFERROR('Tabel 2 ØJ'!J195/'Tabel 1 ØJ'!G193*100,"-")) -> -
A196: Jurist | C196: =IF(OR('Tabel 1 ØJ'!C194<5,'Tabel 2 ØJ'!C196<0.5),"-",IFERROR('Tabel 2 ØJ'!C196/'Tabel 1 ØJ'!C194*100,"-")) -> - | D196: =IF(OR('Tabel 1 ØJ'!C194<5,'Tabel 2 ØJ'!D196<0.5),"-",IFERROR('Tabel 2 ØJ'!D196/'Tabel 1 ØJ'!C194*100,"-")) -> - | F196: =IF(OR('Tabel 1 ØJ'!E194<5,'Tabel 2 ØJ'!F196<0.5),"-",IFERROR('Tabel 2 ØJ'!F196/'Tabel 1 ØJ'!E194*100,"-")) -> - | G196: =IF(OR('Tabel 1 ØJ'!E194<5,'Tabel 2 ØJ'!G196<0.5),"-",IFERROR('Tabel 2 ØJ'!G196/'Tabel 1 ØJ'!E194*100,"-")) -> - | I196: =IF(OR('Tabel 1 ØJ'!G194<5,'Tabel 2 ØJ'!I196<0.5),"-",IFERROR('Tabel 2 ØJ'!I196/'Tabel 1 ØJ'!G194*100,"-")) -> - | J196: =IF(OR('Tabel 1 ØJ'!G194<5,'Tabel 2 ØJ'!J196<0.5),"-",IFERROR('Tabel 2 ØJ'!J196/'Tabel 1 ØJ'!G194*100,"-")) -> -
A197: Økonom | C197: =IF(OR('Tabel 1 ØJ'!C195<5,'Tabel 2 ØJ'!C197<0.5),"-",IFERROR('Tabel 2 ØJ'!C197/'Tabel 1 ØJ'!C195*100,"-")) -> - | D197: =IF(OR('Tabel 1 ØJ'!C195<5,'Tabel 2 ØJ'!D197<0.5),"-",IFERROR('Tabel 2 ØJ'!D197/'Tabel 1 ØJ'!C195*100,"-")) -> - | F197: =IF(OR('Tabel 1 ØJ'!E195<5,'Tabel 2 ØJ'!F197<0.5),"-",IFERROR('Tabel 2 ØJ'!F197/'Tabel 1 ØJ'!E195*100,"-")) -> - | G197: =IF(OR('Tabel 1 ØJ'!E195<5,'Tabel 2 ØJ'!G197<0.5),"-",IFERROR('Tabel 2 ØJ'!G197/'Tabel 1 ØJ'!E195*100,"-")) -> - | I197: =IF(OR('Tabel 1 ØJ'!G195<5,'Tabel 2 ØJ'!I197<0.5),"-",IFERROR('Tabel 2 ØJ'!I197/'Tabel 1 ØJ'!G195*100,"-")) -> 10 | J197: =IF(OR('Tabel 1 ØJ'!G195<5,'Tabel 2 ØJ'!J197<0.5),"-",IFERROR('Tabel 2 ØJ'!J197/'Tabel 1 ØJ'!G195*100,"-")) -> 9.998128859
A198: Samf. Adm. | C198: =IF(OR('Tabel 1 ØJ'!C196<5,'Tabel 2 ØJ'!C198<0.5),"-",IFERROR('Tabel 2 ØJ'!C198/'Tabel 1 ØJ'!C196*100,"-")) -> - | D198: =IF(OR('Tabel 1 ØJ'!C196<5,'Tabel 2 ØJ'!D198<0.5),"-",IFERROR('Tabel 2 ØJ'!D198/'Tabel 1 ØJ'!C196*100,"-")) -> - | F198: =IF(OR('Tabel 1 ØJ'!E196<5,'Tabel 2 ØJ'!F198<0.5),"-",IFERROR('Tabel 2 ØJ'!F198/'Tabel 1 ØJ'!E196*100,"-")) -> - | G198: =IF(OR('Tabel 1 ØJ'!E196<5,'Tabel 2 ØJ'!G198<0.5),"-",IFERROR('Tabel 2 ØJ'!G198/'Tabel 1 ØJ'!E196*100,"-")) -> - | I198: =IF(OR('Tabel 1 ØJ'!G196<5,'Tabel 2 ØJ'!I198<0.5),"-",IFERROR('Tabel 2 ØJ'!I198/'Tabel 1 ØJ'!G196*100,"-")) -> - | J198: =IF(OR('Tabel 1 ØJ'!G196<5,'Tabel 2 ØJ'!J198<0.5),"-",IFERROR('Tabel 2 ØJ'!J198/'Tabel 1 ØJ'!G196*100,"-")) -> -
A199: Cand. Merc. | C199: =IF(OR('Tabel 1 ØJ'!C197<5,'Tabel 2 ØJ'!C199<0.5),"-",IFERROR('Tabel 2 ØJ'!C199/'Tabel 1 ØJ'!C197*100,"-")) -> 8.695652174 | D199: =IF(OR('Tabel 1 ØJ'!C197<5,'Tabel 2 ØJ'!D199<0.5),"-",IFERROR('Tabel 2 ØJ'!D199/'Tabel 1 ØJ'!C197*100,"-")) -> 7.088640548 | F199: =IF(OR('Tabel 1 ØJ'!E197<5,'Tabel 2 ØJ'!F199<0.5),"-",IFERROR('Tabel 2 ØJ'!F199/'Tabel 1 ØJ'!E197*100,"-")) -> 2.222222222 | G199: =IF(OR('Tabel 1 ØJ'!E197<5,'Tabel 2 ØJ'!G199<0.5),"-",IFERROR('Tabel 2 ØJ'!G199/'Tabel 1 ØJ'!E197*100,"-")) -> 2.221806413 | I199: =IF(OR('Tabel 1 ØJ'!G197<5,'Tabel 2 ØJ'!I199<0.5),"-",IFERROR('Tabel 2 ØJ'!I199/'Tabel 1 ØJ'!G197*100,"-")) -> 4.411764706 | J199: =IF(OR('Tabel 1 ØJ'!G197<5,'Tabel 2 ØJ'!J199<0.5),"-",IFERROR('Tabel 2 ØJ'!J199/'Tabel 1 ØJ'!G197*100,"-")) -> 3.867941488
A200: HA | C200: =IF(OR('Tabel 1 ØJ'!C198<5,'Tabel 2 ØJ'!C200<0.5),"-",IFERROR('Tabel 2 ØJ'!C200/'Tabel 1 ØJ'!C198*100,"-")) -> - | D200: =IF(OR('Tabel 1 ØJ'!C198<5,'Tabel 2 ØJ'!D200<0.5),"-",IFERROR('Tabel 2 ØJ'!D200/'Tabel 1 ØJ'!C198*100,"-")) -> - | F200: =IF(OR('Tabel 1 ØJ'!E198<5,'Tabel 2 ØJ'!F200<0.5),"-",IFERROR('Tabel 2 ØJ'!F200/'Tabel 1 ØJ'!E198*100,"-")) -> - | G200: =IF(OR('Tabel 1 ØJ'!E198<5,'Tabel 2 ØJ'!G200<0.5),"-",IFERROR('Tabel 2 ØJ'!G200/'Tabel 1 ØJ'!E198*100,"-")) -> - | I200: =IF(OR('Tabel 1 ØJ'!G198<5,'Tabel 2 ØJ'!I200<0.5),"-",IFERROR('Tabel 2 ØJ'!I200/'Tabel 1 ØJ'!G198*100,"-")) -> - | J200: =IF(OR('Tabel 1 ØJ'!G198<5,'Tabel 2 ØJ'!J200<0.5),"-",IFERROR('Tabel 2 ØJ'!J200/'Tabel 1 ØJ'!G198*100,"-")) -> -
A201: HD | C201: =IF(OR('Tabel 1 ØJ'!C199<5,'Tabel 2 ØJ'!C201<0.5),"-",IFERROR('Tabel 2 ØJ'!C201/'Tabel 1 ØJ'!C199*100,"-")) -> - | D201: =IF(OR('Tabel 1 ØJ'!C199<5,'Tabel 2 ØJ'!D201<0.5),"-",IFERROR('Tabel 2 ØJ'!D201/'Tabel 1 ØJ'!C199*100,"-")) -> - | F201: =IF(OR('Tabel 1 ØJ'!E199<5,'Tabel 2 ØJ'!F201<0.5),"-",IFERROR('Tabel 2 ØJ'!F201/'Tabel 1 ØJ'!E199*100,"-")) -> 9.090909091 | G201: =IF(OR('Tabel 1 ØJ'!E199<5,'Tabel 2 ØJ'!G201<0.5),"-",IFERROR('Tabel 2 ØJ'!G201/'Tabel 1 ØJ'!E199*100,"-")) -> 9.089208054 | I201: =IF(OR('Tabel 1 ØJ'!G199<5,'Tabel 2 ØJ'!I201<0.5),"-",IFERROR('Tabel 2 ØJ'!I201/'Tabel 1 ØJ'!G199*100,"-")) -> 5.555555556 | J201: =IF(OR('Tabel 1 ØJ'!G199<5,'Tabel 2 ØJ'!J201<0.5),"-",IFERROR('Tabel 2 ØJ'!J201/'Tabel 1 ØJ'!G199*100,"-")) -> 5.554516033
A202: Komm. og Sprog | C202: =IF(OR('Tabel 1 ØJ'!C200<5,'Tabel 2 ØJ'!C202<0.5),"-",IFERROR('Tabel 2 ØJ'!C202/'Tabel 1 ØJ'!C200*100,"-")) -> - | D202: =IF(OR('Tabel 1 ØJ'!C200<5,'Tabel 2 ØJ'!D202<0.5),"-",IFERROR('Tabel 2 ØJ'!D202/'Tabel 1 ØJ'!C200*100,"-")) -> - | F202: =IF(OR('Tabel 1 ØJ'!E200<5,'Tabel 2 ØJ'!F202<0.5),"-",IFERROR('Tabel 2 ØJ'!F202/'Tabel 1 ØJ'!E200*100,"-")) -> - | G202: =IF(OR('Tabel 1 ØJ'!E200<5,'Tabel 2 ØJ'!G202<0.5),"-",IFERROR('Tabel 2 ØJ'!G202/'Tabel 1 ØJ'!E200*100,"-")) -> - | I202: =IF(OR('Tabel 1 ØJ'!G200<5,'Tabel 2 ØJ'!I202<0.5),"-",IFERROR('Tabel 2 ØJ'!I202/'Tabel 1 ØJ'!G200*100,"-")) -> - | J202: =IF(OR('Tabel 1 ØJ'!G200<5,'Tabel 2 ØJ'!J202<0.5),"-",IFERROR('Tabel 2 ØJ'!J202/'Tabel 1 ØJ'!G200*100,"-")) -> -
A203: Bygningskonst. | C203: =IF(OR('Tabel 1 ØJ'!C201<5,'Tabel 2 ØJ'!C203<0.5),"-",IFERROR('Tabel 2 ØJ'!C203/'Tabel 1 ØJ'!C201*100,"-")) -> 7.142857143 | D203: =IF(OR('Tabel 1 ØJ'!C201<5,'Tabel 2 ØJ'!D203<0.5),"-",IFERROR('Tabel 2 ØJ'!D203/'Tabel 1 ØJ'!C201*100,"-")) -> 7.142857143 | F203: =IF(OR('Tabel 1 ØJ'!E201<5,'Tabel 2 ØJ'!F203<0.5),"-",IFERROR('Tabel 2 ØJ'!F203/'Tabel 1 ØJ'!E201*100,"-")) -> - | G203: =IF(OR('Tabel 1 ØJ'!E201<5,'Tabel 2 ØJ'!G203<0.5),"-",IFERROR('Tabel 2 ØJ'!G203/'Tabel 1 ØJ'!E201*100,"-")) -> - | I203: =IF(OR('Tabel 1 ØJ'!G201<5,'Tabel 2 ØJ'!I203<0.5),"-",IFERROR('Tabel 2 ØJ'!I203/'Tabel 1 ØJ'!G201*100,"-")) -> 3.333333333 | J203: =IF(OR('Tabel 1 ØJ'!G201<5,'Tabel 2 ØJ'!J203<0.5),"-",IFERROR('Tabel 2 ØJ'!J203/'Tabel 1 ØJ'!G201*100,"-")) -> 3.333333333
A204: Cand. IT. | C204: =IF(OR('Tabel 1 ØJ'!C202<5,'Tabel 2 ØJ'!C204<0.5),"-",IFERROR('Tabel 2 ØJ'!C204/'Tabel 1 ØJ'!C202*100,"-")) -> - | D204: =IF(OR('Tabel 1 ØJ'!C202<5,'Tabel 2 ØJ'!D204<0.5),"-",IFERROR('Tabel 2 ØJ'!D204/'Tabel 1 ØJ'!C202*100,"-")) -> - | F204: =IF(OR('Tabel 1 ØJ'!E202<5,'Tabel 2 ØJ'!F204<0.5),"-",IFERROR('Tabel 2 ØJ'!F204/'Tabel 1 ØJ'!E202*100,"-")) -> - | G204: =IF(OR('Tabel 1 ØJ'!E202<5,'Tabel 2 ØJ'!G204<0.5),"-",IFERROR('Tabel 2 ØJ'!G204/'Tabel 1 ØJ'!E202*100,"-")) -> - | I204: =IF(OR('Tabel 1 ØJ'!G202<5,'Tabel 2 ØJ'!I204<0.5),"-",IFERROR('Tabel 2 ØJ'!I204/'Tabel 1 ØJ'!G202*100,"-")) -> 12.5 | J204: =IF(OR('Tabel 1 ØJ'!G202<5,'Tabel 2 ØJ'!J204<0.5),"-",IFERROR('Tabel 2 ØJ'!J204/'Tabel 1 ØJ'!G202*100,"-")) -> 11.34379093
A205: Bac. Samf. | C205: =IF(OR('Tabel 1 ØJ'!C203<5,'Tabel 2 ØJ'!C205<0.5),"-",IFERROR('Tabel 2 ØJ'!C205/'Tabel 1 ØJ'!C203*100,"-")) -> - | D205: =IF(OR('Tabel 1 ØJ'!C203<5,'Tabel 2 ØJ'!D205<0.5),"-",IFERROR('Tabel 2 ØJ'!D205/'Tabel 1 ØJ'!C203*100,"-")) -> - | F205: =IF(OR('Tabel 1 ØJ'!E203<5,'Tabel 2 ØJ'!F205<0.5),"-",IFERROR('Tabel 2 ØJ'!F205/'Tabel 1 ØJ'!E203*100,"-")) -> - | G205: =IF(OR('Tabel 1 ØJ'!E203<5,'Tabel 2 ØJ'!G205<0.5),"-",IFERROR('Tabel 2 ØJ'!G205/'Tabel 1 ØJ'!E203*100,"-")) -> - | I205: =IF(OR('Tabel 1 ØJ'!G203<5,'Tabel 2 ØJ'!I205<0.5),"-",IFERROR('Tabel 2 ØJ'!I205/'Tabel 1 ØJ'!G203*100,"-")) -> - | J205: =IF(OR('Tabel 1 ØJ'!G203<5,'Tabel 2 ØJ'!J205<0.5),"-",IFERROR('Tabel 2 ØJ'!J205/'Tabel 1 ØJ'!G203*100,"-")) -> -
A206: Bac. Hum. | C206: =IF(OR('Tabel 1 ØJ'!C204<5,'Tabel 2 ØJ'!C206<0.5),"-",IFERROR('Tabel 2 ØJ'!C206/'Tabel 1 ØJ'!C204*100,"-")) -> - | D206: =IF(OR('Tabel 1 ØJ'!C204<5,'Tabel 2 ØJ'!D206<0.5),"-",IFERROR('Tabel 2 ØJ'!D206/'Tabel 1 ØJ'!C204*100,"-")) -> - | F206: =IF(OR('Tabel 1 ØJ'!E204<5,'Tabel 2 ØJ'!F206<0.5),"-",IFERROR('Tabel 2 ØJ'!F206/'Tabel 1 ØJ'!E204*100,"-")) -> 11.11111111 | G206: =IF(OR('Tabel 1 ØJ'!E204<5,'Tabel 2 ØJ'!G206<0.5),"-",IFERROR('Tabel 2 ØJ'!G206/'Tabel 1 ØJ'!E204*100,"-")) -> 9.057707367 | I206: =IF(OR('Tabel 1 ØJ'!G204<5,'Tabel 2 ØJ'!I206<0.5),"-",IFERROR('Tabel 2 ØJ'!I206/'Tabel 1 ØJ'!G204*100,"-")) -> 8.333333333 | J206: =IF(OR('Tabel 1 ØJ'!G204<5,'Tabel 2 ØJ'!J206<0.5),"-",IFERROR('Tabel 2 ØJ'!J206/'Tabel 1 ØJ'!G204*100,"-")) -> 6.793280526
A207: Bac. Nat. | C207: =IF(OR('Tabel 1 ØJ'!C205<5,'Tabel 2 ØJ'!C207<0.5),"-",IFERROR('Tabel 2 ØJ'!C207/'Tabel 1 ØJ'!C205*100,"-")) -> - | D207: =IF(OR('Tabel 1 ØJ'!C205<5,'Tabel 2 ØJ'!D207<0.5),"-",IFERROR('Tabel 2 ØJ'!D207/'Tabel 1 ØJ'!C205*100,"-")) -> - | F207: =IF(OR('Tabel 1 ØJ'!E205<5,'Tabel 2 ØJ'!F207<0.5),"-",IFERROR('Tabel 2 ØJ'!F207/'Tabel 1 ØJ'!E205*100,"-")) -> - | G207: =IF(OR('Tabel 1 ØJ'!E205<5,'Tabel 2 ØJ'!G207<0.5),"-",IFERROR('Tabel 2 ØJ'!G207/'Tabel 1 ØJ'!E205*100,"-")) -> - | I207: =IF(OR('Tabel 1 ØJ'!G205<5,'Tabel 2 ØJ'!I207<0.5),"-",IFERROR('Tabel 2 ØJ'!I207/'Tabel 1 ØJ'!G205*100,"-")) -> 40 | J207: =IF(OR('Tabel 1 ØJ'!G205<5,'Tabel 2 ØJ'!J207<0.5),"-",IFERROR('Tabel 2 ØJ'!J207/'Tabel 1 ØJ'!G205*100,"-")) -> 15.06892035
A208: Andre | C208: =IF(OR('Tabel 1 ØJ'!C206<5,'Tabel 2 ØJ'!C208<0.5),"-",IFERROR('Tabel 2 ØJ'!C208/'Tabel 1 ØJ'!C206*100,"-")) -> 4 | D208: =IF(OR('Tabel 1 ØJ'!C206<5,'Tabel 2 ØJ'!D208<0.5),"-",IFERROR('Tabel 2 ØJ'!D208/'Tabel 1 ØJ'!C206*100,"-")) -> - | F208: =IF(OR('Tabel 1 ØJ'!E206<5,'Tabel 2 ØJ'!F208<0.5),"-",IFERROR('Tabel 2 ØJ'!F208/'Tabel 1 ØJ'!E206*100,"-")) -> - | G208: =IF(OR('Tabel 1 ØJ'!E206<5,'Tabel 2 ØJ'!G208<0.5),"-",IFERROR('Tabel 2 ØJ'!G208/'Tabel 1 ØJ'!E206*100,"-")) -> - | I208: =IF(OR('Tabel 1 ØJ'!G206<5,'Tabel 2 ØJ'!I208<0.5),"-",IFERROR('Tabel 2 ØJ'!I208/'Tabel 1 ØJ'!G206*100,"-")) -> 1.587301587 | J208: =IF(OR('Tabel 1 ØJ'!G206<5,'Tabel 2 ØJ'!J208<0.5),"-",IFERROR('Tabel 2 ØJ'!J208/'Tabel 1 ØJ'!G206*100,"-")) -> -
A210: Total | C210: =IF(OR('Tabel 1 ØJ'!C208<5,'Tabel 2 ØJ'!C210<0.5),"-",IFERROR('Tabel 2 ØJ'!C210/'Tabel 1 ØJ'!C208*100,"-")) -> 6.375838926 | D210: =IF(OR('Tabel 1 ØJ'!C208<5,'Tabel 2 ØJ'!D210<0.5),"-",IFERROR('Tabel 2 ØJ'!D210/'Tabel 1 ØJ'!C208*100,"-")) -> 5.509735165 | F210: =IF(OR('Tabel 1 ØJ'!E208<5,'Tabel 2 ØJ'!F210<0.5),"-",IFERROR('Tabel 2 ØJ'!F210/'Tabel 1 ØJ'!E208*100,"-")) -> 3.350970018 | G210: =IF(OR('Tabel 1 ØJ'!E208<5,'Tabel 2 ØJ'!G210<0.5),"-",IFERROR('Tabel 2 ØJ'!G210/'Tabel 1 ØJ'!E208*100,"-")) -> 2.229308577 | I210: =IF(OR('Tabel 1 ØJ'!G208<5,'Tabel 2 ØJ'!I210<0.5),"-",IFERROR('Tabel 2 ØJ'!I210/'Tabel 1 ØJ'!G208*100,"-")) -> 4.393063584 | J210: =IF(OR('Tabel 1 ØJ'!G208<5,'Tabel 2 ØJ'!J210<0.5),"-",IFERROR('Tabel 2 ØJ'!J210/'Tabel 1 ØJ'!G208*100,"-")) -> 3.359443979
A212: Ingeniører i alt | C212: =IF(OR('Tabel 1 ØJ'!C210<5,'Tabel 2 ØJ'!C212<0.5),"-",IFERROR('Tabel 2 ØJ'!C212/'Tabel 1 ØJ'!C210*100,"-")) -> 2.272727273 | D212: =IF(OR('Tabel 1 ØJ'!C210<5,'Tabel 2 ØJ'!D212<0.5),"-",IFERROR('Tabel 2 ØJ'!D212/'Tabel 1 ØJ'!C210*100,"-")) -> 1.695366942 | F212: =IF(OR('Tabel 1 ØJ'!E210<5,'Tabel 2 ØJ'!F212<0.5),"-",IFERROR('Tabel 2 ØJ'!F212/'Tabel 1 ØJ'!E210*100,"-")) -> 1.652892562 | G212: =IF(OR('Tabel 1 ØJ'!E210<5,'Tabel 2 ØJ'!G212<0.5),"-",IFERROR('Tabel 2 ØJ'!G212/'Tabel 1 ØJ'!E210*100,"-")) -> 1.08041627 | I212: =IF(OR('Tabel 1 ØJ'!G210<5,'Tabel 2 ØJ'!I212<0.5),"-",IFERROR('Tabel 2 ØJ'!I212/'Tabel 1 ØJ'!G210*100,"-")) -> 1.913875598 | J212: =IF(OR('Tabel 1 ØJ'!G210<5,'Tabel 2 ØJ'!J212<0.5),"-",IFERROR('Tabel 2 ØJ'!J212/'Tabel 1 ØJ'!G210*100,"-")) -> 1.339342868
A213: Magistre i alt | C213: =IF(OR('Tabel 1 ØJ'!C211<5,'Tabel 2 ØJ'!C213<0.5),"-",IFERROR('Tabel 2 ØJ'!C213/'Tabel 1 ØJ'!C211*100,"-")) -> 6 | D213: =IF(OR('Tabel 1 ØJ'!C211<5,'Tabel 2 ØJ'!D213<0.5),"-",IFERROR('Tabel 2 ØJ'!D213/'Tabel 1 ØJ'!C211*100,"-")) -> 5.168090813 | F213: =IF(OR('Tabel 1 ØJ'!E211<5,'Tabel 2 ØJ'!F213<0.5),"-",IFERROR('Tabel 2 ØJ'!F213/'Tabel 1 ØJ'!E211*100,"-")) -> 6.060606061 | G213: =IF(OR('Tabel 1 ØJ'!E211<5,'Tabel 2 ØJ'!G213<0.5),"-",IFERROR('Tabel 2 ØJ'!G213/'Tabel 1 ØJ'!E211*100,"-")) -> 4.810627324 | I213: =IF(OR('Tabel 1 ØJ'!G211<5,'Tabel 2 ØJ'!I213<0.5),"-",IFERROR('Tabel 2 ØJ'!I213/'Tabel 1 ØJ'!G211*100,"-")) -> 6.043956044 | J213: =IF(OR('Tabel 1 ØJ'!G211<5,'Tabel 2 ØJ'!J213<0.5),"-",IFERROR('Tabel 2 ØJ'!J213/'Tabel 1 ØJ'!G211*100,"-")) -> 4.908831579
A214: DJØF'ere i alt | C214: =IF(OR('Tabel 1 ØJ'!C212<5,'Tabel 2 ØJ'!C214<0.5),"-",IFERROR('Tabel 2 ØJ'!C214/'Tabel 1 ØJ'!C212*100,"-")) -> 5.769230769 | D214: =IF(OR('Tabel 1 ØJ'!C212<5,'Tabel 2 ØJ'!D214<0.5),"-",IFERROR('Tabel 2 ØJ'!D214/'Tabel 1 ØJ'!C212*100,"-")) -> 5.058077331 | F214: =IF(OR('Tabel 1 ØJ'!E212<5,'Tabel 2 ØJ'!F214<0.5),"-",IFERROR('Tabel 2 ØJ'!F214/'Tabel 1 ØJ'!E212*100,"-")) -> 1 | G214: =IF(OR('Tabel 1 ØJ'!E212<5,'Tabel 2 ØJ'!G214<0.5),"-",IFERROR('Tabel 2 ØJ'!G214/'Tabel 1 ØJ'!E212*100,"-")) -> 0.9998128859 | I214: =IF(OR('Tabel 1 ØJ'!G212<5,'Tabel 2 ØJ'!I214<0.5),"-",IFERROR('Tabel 2 ØJ'!I214/'Tabel 1 ØJ'!G212*100,"-")) -> 2.631578947 | J214: =IF(OR('Tabel 1 ØJ'!G212<5,'Tabel 2 ØJ'!J214<0.5),"-",IFERROR('Tabel 2 ØJ'!J214/'Tabel 1 ØJ'!G212*100,"-")) -> 2.388166512
A219: Favrskov
C221: Mænd | F221: Kvinder | I221: I alt
C222: Ledigheds- berørte | D222: Gns. brutto- ledighed | F222: Ledigheds- berørte | G222: Gns. brutto- ledighed | I222: Ledigheds- berørte | J222: Gns. brutto- ledighed
A225: Civ. ing. | C225: =IF(OR('Tabel 1 ØJ'!C223<5,'Tabel 2 ØJ'!C225<0.5),"-",IFERROR('Tabel 2 ØJ'!C225/'Tabel 1 ØJ'!C223*100,"-")) -> 1.327433628 | D225: =IF(OR('Tabel 1 ØJ'!C223<5,'Tabel 2 ØJ'!D225<0.5),"-",IFERROR('Tabel 2 ØJ'!D225/'Tabel 1 ØJ'!C223*100,"-")) -> 0.9554409076 | F225: =IF(OR('Tabel 1 ØJ'!E223<5,'Tabel 2 ØJ'!F225<0.5),"-",IFERROR('Tabel 2 ØJ'!F225/'Tabel 1 ØJ'!E223*100,"-")) -> 2.564102564 | G225: =IF(OR('Tabel 1 ØJ'!E223<5,'Tabel 2 ØJ'!G225<0.5),"-",IFERROR('Tabel 2 ØJ'!G225/'Tabel 1 ØJ'!E223*100,"-")) -> 2.445277129 | I225: =IF(OR('Tabel 1 ØJ'!G223<5,'Tabel 2 ØJ'!I225<0.5),"-",IFERROR('Tabel 2 ØJ'!I225/'Tabel 1 ØJ'!G223*100,"-")) -> 1.644736842 | J225: =IF(OR('Tabel 1 ØJ'!G223<5,'Tabel 2 ØJ'!J225<0.5),"-",IFERROR('Tabel 2 ØJ'!J225/'Tabel 1 ØJ'!G223*100,"-")) -> 1.337701517
A226: Diplom ing. | C226: =IF(OR('Tabel 1 ØJ'!C224<5,'Tabel 2 ØJ'!C226<0.5),"-",IFERROR('Tabel 2 ØJ'!C226/'Tabel 1 ØJ'!C224*100,"-")) -> 1.086956522 | D226: =IF(OR('Tabel 1 ØJ'!C224<5,'Tabel 2 ØJ'!D226<0.5),"-",IFERROR('Tabel 2 ØJ'!D226/'Tabel 1 ØJ'!C224*100,"-")) -> 0.8108276679 | F226: =IF(OR('Tabel 1 ØJ'!E224<5,'Tabel 2 ØJ'!F226<0.5),"-",IFERROR('Tabel 2 ØJ'!F226/'Tabel 1 ØJ'!E224*100,"-")) -> - | G226: =IF(OR('Tabel 1 ØJ'!E224<5,'Tabel 2 ØJ'!G226<0.5),"-",IFERROR('Tabel 2 ØJ'!G226/'Tabel 1 ØJ'!E224*100,"-")) -> - | I226: =IF(OR('Tabel 1 ØJ'!G224<5,'Tabel 2 ØJ'!I226<0.5),"-",IFERROR('Tabel 2 ØJ'!I226/'Tabel 1 ØJ'!G224*100,"-")) -> 0.9302325581 | J226: =IF(OR('Tabel 1 ØJ'!G224<5,'Tabel 2 ØJ'!J226<0.5),"-",IFERROR('Tabel 2 ØJ'!J226/'Tabel 1 ØJ'!G224*100,"-")) -> 0.6939176321
A227: Cand. Scient. Tek. | C227: =IF(OR('Tabel 1 ØJ'!C225<5,'Tabel 2 ØJ'!C227<0.5),"-",IFERROR('Tabel 2 ØJ'!C227/'Tabel 1 ØJ'!C225*100,"-")) -> 2.272727273 | D227: =IF(OR('Tabel 1 ØJ'!C225<5,'Tabel 2 ØJ'!D227<0.5),"-",IFERROR('Tabel 2 ØJ'!D227/'Tabel 1 ØJ'!C225*100,"-")) -> 2.272302013 | F227: =IF(OR('Tabel 1 ØJ'!E225<5,'Tabel 2 ØJ'!F227<0.5),"-",IFERROR('Tabel 2 ØJ'!F227/'Tabel 1 ØJ'!E225*100,"-")) -> 5.333333333 | G227: =IF(OR('Tabel 1 ØJ'!E225<5,'Tabel 2 ØJ'!G227<0.5),"-",IFERROR('Tabel 2 ØJ'!G227/'Tabel 1 ØJ'!E225*100,"-")) -> 4.409239277 | I227: =IF(OR('Tabel 1 ØJ'!G225<5,'Tabel 2 ØJ'!I227<0.5),"-",IFERROR('Tabel 2 ØJ'!I227/'Tabel 1 ØJ'!G225*100,"-")) -> 3.680981595 | J227: =IF(OR('Tabel 1 ØJ'!G225<5,'Tabel 2 ØJ'!J227<0.5),"-",IFERROR('Tabel 2 ØJ'!J227/'Tabel 1 ØJ'!G225*100,"-")) -> 3.255555356
A228: MA. Hum. | C228: =IF(OR('Tabel 1 ØJ'!C226<5,'Tabel 2 ØJ'!C228<0.5),"-",IFERROR('Tabel 2 ØJ'!C228/'Tabel 1 ØJ'!C226*100,"-")) -> 5.813953488 | D228: =IF(OR('Tabel 1 ØJ'!C226<5,'Tabel 2 ØJ'!D228<0.5),"-",IFERROR('Tabel 2 ØJ'!D228/'Tabel 1 ØJ'!C226*100,"-")) -> 4.770683721 | F228: =IF(OR('Tabel 1 ØJ'!E226<5,'Tabel 2 ØJ'!F228<0.5),"-",IFERROR('Tabel 2 ØJ'!F228/'Tabel 1 ØJ'!E226*100,"-")) -> 5.019305019 | G228: =IF(OR('Tabel 1 ØJ'!E226<5,'Tabel 2 ØJ'!G228<0.5),"-",IFERROR('Tabel 2 ØJ'!G228/'Tabel 1 ØJ'!E226*100,"-")) -> 3.951309883 | I228: =IF(OR('Tabel 1 ØJ'!G226<5,'Tabel 2 ØJ'!I228<0.5),"-",IFERROR('Tabel 2 ØJ'!I228/'Tabel 1 ØJ'!G226*100,"-")) -> 5.217391304 | J228: =IF(OR('Tabel 1 ØJ'!G226<5,'Tabel 2 ØJ'!J228<0.5),"-",IFERROR('Tabel 2 ØJ'!J228/'Tabel 1 ØJ'!G226*100,"-")) -> 4.155559593
A229: MA. Nat. | C229: =IF(OR('Tabel 1 ØJ'!C227<5,'Tabel 2 ØJ'!C229<0.5),"-",IFERROR('Tabel 2 ØJ'!C229/'Tabel 1 ØJ'!C227*100,"-")) -> 1.01010101 | D229: =IF(OR('Tabel 1 ØJ'!C227<5,'Tabel 2 ØJ'!D229<0.5),"-",IFERROR('Tabel 2 ØJ'!D229/'Tabel 1 ØJ'!C227*100,"-")) -> 1.009912006 | F229: =IF(OR('Tabel 1 ØJ'!E227<5,'Tabel 2 ØJ'!F229<0.5),"-",IFERROR('Tabel 2 ØJ'!F229/'Tabel 1 ØJ'!E227*100,"-")) -> 1.25 | G229: =IF(OR('Tabel 1 ØJ'!E227<5,'Tabel 2 ØJ'!G229<0.5),"-",IFERROR('Tabel 2 ØJ'!G229/'Tabel 1 ØJ'!E227*100,"-")) -> 1.134379093 | I229: =IF(OR('Tabel 1 ØJ'!G227<5,'Tabel 2 ØJ'!I229<0.5),"-",IFERROR('Tabel 2 ØJ'!I229/'Tabel 1 ØJ'!G227*100,"-")) -> 1.117318436 | J229: =IF(OR('Tabel 1 ØJ'!G227<5,'Tabel 2 ØJ'!J229<0.5),"-",IFERROR('Tabel 2 ØJ'!J229/'Tabel 1 ØJ'!G227*100,"-")) -> 1.065539754
A230: MA. Ph.d. | C230: =IF(OR('Tabel 1 ØJ'!C228<5,'Tabel 2 ØJ'!C230<0.5),"-",IFERROR('Tabel 2 ØJ'!C230/'Tabel 1 ØJ'!C228*100,"-")) -> - | D230: =IF(OR('Tabel 1 ØJ'!C228<5,'Tabel 2 ØJ'!D230<0.5),"-",IFERROR('Tabel 2 ØJ'!D230/'Tabel 1 ØJ'!C228*100,"-")) -> - | F230: =IF(OR('Tabel 1 ØJ'!E228<5,'Tabel 2 ØJ'!F230<0.5),"-",IFERROR('Tabel 2 ØJ'!F230/'Tabel 1 ØJ'!E228*100,"-")) -> - | G230: =IF(OR('Tabel 1 ØJ'!E228<5,'Tabel 2 ØJ'!G230<0.5),"-",IFERROR('Tabel 2 ØJ'!G230/'Tabel 1 ØJ'!E228*100,"-")) -> - | I230: =IF(OR('Tabel 1 ØJ'!G228<5,'Tabel 2 ØJ'!I230<0.5),"-",IFERROR('Tabel 2 ØJ'!I230/'Tabel 1 ØJ'!G228*100,"-")) -> - | J230: =IF(OR('Tabel 1 ØJ'!G228<5,'Tabel 2 ØJ'!J230<0.5),"-",IFERROR('Tabel 2 ØJ'!J230/'Tabel 1 ØJ'!G228*100,"-")) -> -
A231: MA. Samf. | C231: =IF(OR('Tabel 1 ØJ'!C229<5,'Tabel 2 ØJ'!C231<0.5),"-",IFERROR('Tabel 2 ØJ'!C231/'Tabel 1 ØJ'!C229*100,"-")) -> - | D231: =IF(OR('Tabel 1 ØJ'!C229<5,'Tabel 2 ØJ'!D231<0.5),"-",IFERROR('Tabel 2 ØJ'!D231/'Tabel 1 ØJ'!C229*100,"-")) -> - | F231: =IF(OR('Tabel 1 ØJ'!E229<5,'Tabel 2 ØJ'!F231<0.5),"-",IFERROR('Tabel 2 ØJ'!F231/'Tabel 1 ØJ'!E229*100,"-")) -> 10.52631579 | G231: =IF(OR('Tabel 1 ØJ'!E229<5,'Tabel 2 ØJ'!G231<0.5),"-",IFERROR('Tabel 2 ØJ'!G231/'Tabel 1 ØJ'!E229*100,"-")) -> 9.687256875 | I231: =IF(OR('Tabel 1 ØJ'!G229<5,'Tabel 2 ØJ'!I231<0.5),"-",IFERROR('Tabel 2 ØJ'!I231/'Tabel 1 ØJ'!G229*100,"-")) -> 8 | J231: =IF(OR('Tabel 1 ØJ'!G229<5,'Tabel 2 ØJ'!J231<0.5),"-",IFERROR('Tabel 2 ØJ'!J231/'Tabel 1 ØJ'!G229*100,"-")) -> 7.362315225
A232: Øvrige Mag. | C232: =IF(OR('Tabel 1 ØJ'!C230<5,'Tabel 2 ØJ'!C232<0.5),"-",IFERROR('Tabel 2 ØJ'!C232/'Tabel 1 ØJ'!C230*100,"-")) -> - | D232: =IF(OR('Tabel 1 ØJ'!C230<5,'Tabel 2 ØJ'!D232<0.5),"-",IFERROR('Tabel 2 ØJ'!D232/'Tabel 1 ØJ'!C230*100,"-")) -> - | F232: =IF(OR('Tabel 1 ØJ'!E230<5,'Tabel 2 ØJ'!F232<0.5),"-",IFERROR('Tabel 2 ØJ'!F232/'Tabel 1 ØJ'!E230*100,"-")) -> - | G232: =IF(OR('Tabel 1 ØJ'!E230<5,'Tabel 2 ØJ'!G232<0.5),"-",IFERROR('Tabel 2 ØJ'!G232/'Tabel 1 ØJ'!E230*100,"-")) -> - | I232: =IF(OR('Tabel 1 ØJ'!G230<5,'Tabel 2 ØJ'!I232<0.5),"-",IFERROR('Tabel 2 ØJ'!I232/'Tabel 1 ØJ'!G230*100,"-")) -> - | J232: =IF(OR('Tabel 1 ØJ'!G230<5,'Tabel 2 ØJ'!J232<0.5),"-",IFERROR('Tabel 2 ØJ'!J232/'Tabel 1 ØJ'!G230*100,"-")) -> -
A233: Agronom | C233: =IF(OR('Tabel 1 ØJ'!C231<5,'Tabel 2 ØJ'!C233<0.5),"-",IFERROR('Tabel 2 ØJ'!C233/'Tabel 1 ØJ'!C231*100,"-")) -> 4.166666667 | D233: =IF(OR('Tabel 1 ØJ'!C231<5,'Tabel 2 ØJ'!D233<0.5),"-",IFERROR('Tabel 2 ØJ'!D233/'Tabel 1 ØJ'!C231*100,"-")) -> - | F233: =IF(OR('Tabel 1 ØJ'!E231<5,'Tabel 2 ØJ'!F233<0.5),"-",IFERROR('Tabel 2 ØJ'!F233/'Tabel 1 ØJ'!E231*100,"-")) -> - | G233: =IF(OR('Tabel 1 ØJ'!E231<5,'Tabel 2 ØJ'!G233<0.5),"-",IFERROR('Tabel 2 ØJ'!G233/'Tabel 1 ØJ'!E231*100,"-")) -> - | I233: =IF(OR('Tabel 1 ØJ'!G231<5,'Tabel 2 ØJ'!I233<0.5),"-",IFERROR('Tabel 2 ØJ'!I233/'Tabel 1 ØJ'!G231*100,"-")) -> 2.43902439 | J233: =IF(OR('Tabel 1 ØJ'!G231<5,'Tabel 2 ØJ'!J233<0.5),"-",IFERROR('Tabel 2 ØJ'!J233/'Tabel 1 ØJ'!G231*100,"-")) -> -
A234: Landsk. Arkt. | C234: =IF(OR('Tabel 1 ØJ'!C232<5,'Tabel 2 ØJ'!C234<0.5),"-",IFERROR('Tabel 2 ØJ'!C234/'Tabel 1 ØJ'!C232*100,"-")) -> - | D234: =IF(OR('Tabel 1 ØJ'!C232<5,'Tabel 2 ØJ'!D234<0.5),"-",IFERROR('Tabel 2 ØJ'!D234/'Tabel 1 ØJ'!C232*100,"-")) -> - | F234: =IF(OR('Tabel 1 ØJ'!E232<5,'Tabel 2 ØJ'!F234<0.5),"-",IFERROR('Tabel 2 ØJ'!F234/'Tabel 1 ØJ'!E232*100,"-")) -> - | G234: =IF(OR('Tabel 1 ØJ'!E232<5,'Tabel 2 ØJ'!G234<0.5),"-",IFERROR('Tabel 2 ØJ'!G234/'Tabel 1 ØJ'!E232*100,"-")) -> - | I234: =IF(OR('Tabel 1 ØJ'!G232<5,'Tabel 2 ØJ'!I234<0.5),"-",IFERROR('Tabel 2 ØJ'!I234/'Tabel 1 ØJ'!G232*100,"-")) -> - | J234: =IF(OR('Tabel 1 ØJ'!G232<5,'Tabel 2 ØJ'!J234<0.5),"-",IFERROR('Tabel 2 ØJ'!J234/'Tabel 1 ØJ'!G232*100,"-")) -> -
A235: Hortonom | C235: =IF(OR('Tabel 1 ØJ'!C233<5,'Tabel 2 ØJ'!C235<0.5),"-",IFERROR('Tabel 2 ØJ'!C235/'Tabel 1 ØJ'!C233*100,"-")) -> - | D235: =IF(OR('Tabel 1 ØJ'!C233<5,'Tabel 2 ØJ'!D235<0.5),"-",IFERROR('Tabel 2 ØJ'!D235/'Tabel 1 ØJ'!C233*100,"-")) -> - | F235: =IF(OR('Tabel 1 ØJ'!E233<5,'Tabel 2 ØJ'!F235<0.5),"-",IFERROR('Tabel 2 ØJ'!F235/'Tabel 1 ØJ'!E233*100,"-")) -> - | G235: =IF(OR('Tabel 1 ØJ'!E233<5,'Tabel 2 ØJ'!G235<0.5),"-",IFERROR('Tabel 2 ØJ'!G235/'Tabel 1 ØJ'!E233*100,"-")) -> - | I235: =IF(OR('Tabel 1 ØJ'!G233<5,'Tabel 2 ØJ'!I235<0.5),"-",IFERROR('Tabel 2 ØJ'!I235/'Tabel 1 ØJ'!G233*100,"-")) -> - | J235: =IF(OR('Tabel 1 ØJ'!G233<5,'Tabel 2 ØJ'!J235<0.5),"-",IFERROR('Tabel 2 ØJ'!J235/'Tabel 1 ØJ'!G233*100,"-")) -> -
A236: Forstkand. | C236: =IF(OR('Tabel 1 ØJ'!C234<5,'Tabel 2 ØJ'!C236<0.5),"-",IFERROR('Tabel 2 ØJ'!C236/'Tabel 1 ØJ'!C234*100,"-")) -> - | D236: =IF(OR('Tabel 1 ØJ'!C234<5,'Tabel 2 ØJ'!D236<0.5),"-",IFERROR('Tabel 2 ØJ'!D236/'Tabel 1 ØJ'!C234*100,"-")) -> - | F236: =IF(OR('Tabel 1 ØJ'!E234<5,'Tabel 2 ØJ'!F236<0.5),"-",IFERROR('Tabel 2 ØJ'!F236/'Tabel 1 ØJ'!E234*100,"-")) -> - | G236: =IF(OR('Tabel 1 ØJ'!E234<5,'Tabel 2 ØJ'!G236<0.5),"-",IFERROR('Tabel 2 ØJ'!G236/'Tabel 1 ØJ'!E234*100,"-")) -> - | I236: =IF(OR('Tabel 1 ØJ'!G234<5,'Tabel 2 ØJ'!I236<0.5),"-",IFERROR('Tabel 2 ØJ'!I236/'Tabel 1 ØJ'!G234*100,"-")) -> - | J236: =IF(OR('Tabel 1 ØJ'!G234<5,'Tabel 2 ØJ'!J236<0.5),"-",IFERROR('Tabel 2 ØJ'!J236/'Tabel 1 ØJ'!G234*100,"-")) -> -
A237: Jordbrugsakad. | C237: =IF(OR('Tabel 1 ØJ'!C235<5,'Tabel 2 ØJ'!C237<0.5),"-",IFERROR('Tabel 2 ØJ'!C237/'Tabel 1 ØJ'!C235*100,"-")) -> 3.03030303 | D237: =IF(OR('Tabel 1 ØJ'!C235<5,'Tabel 2 ØJ'!D237<0.5),"-",IFERROR('Tabel 2 ØJ'!D237/'Tabel 1 ØJ'!C235*100,"-")) -> - | F237: =IF(OR('Tabel 1 ØJ'!E235<5,'Tabel 2 ØJ'!F237<0.5),"-",IFERROR('Tabel 2 ØJ'!F237/'Tabel 1 ØJ'!E235*100,"-")) -> - | G237: =IF(OR('Tabel 1 ØJ'!E235<5,'Tabel 2 ØJ'!G237<0.5),"-",IFERROR('Tabel 2 ØJ'!G237/'Tabel 1 ØJ'!E235*100,"-")) -> - | I237: =IF(OR('Tabel 1 ØJ'!G235<5,'Tabel 2 ØJ'!I237<0.5),"-",IFERROR('Tabel 2 ØJ'!I237/'Tabel 1 ØJ'!G235*100,"-")) -> 1.818181818 | J237: =IF(OR('Tabel 1 ØJ'!G235<5,'Tabel 2 ØJ'!J237<0.5),"-",IFERROR('Tabel 2 ØJ'!J237/'Tabel 1 ØJ'!G235*100,"-")) -> -
A238: Mejeriing. | C238: =IF(OR('Tabel 1 ØJ'!C236<5,'Tabel 2 ØJ'!C238<0.5),"-",IFERROR('Tabel 2 ØJ'!C238/'Tabel 1 ØJ'!C236*100,"-")) -> - | D238: =IF(OR('Tabel 1 ØJ'!C236<5,'Tabel 2 ØJ'!D238<0.5),"-",IFERROR('Tabel 2 ØJ'!D238/'Tabel 1 ØJ'!C236*100,"-")) -> - | F238: =IF(OR('Tabel 1 ØJ'!E236<5,'Tabel 2 ØJ'!F238<0.5),"-",IFERROR('Tabel 2 ØJ'!F238/'Tabel 1 ØJ'!E236*100,"-")) -> - | G238: =IF(OR('Tabel 1 ØJ'!E236<5,'Tabel 2 ØJ'!G238<0.5),"-",IFERROR('Tabel 2 ØJ'!G238/'Tabel 1 ØJ'!E236*100,"-")) -> - | I238: =IF(OR('Tabel 1 ØJ'!G236<5,'Tabel 2 ØJ'!I238<0.5),"-",IFERROR('Tabel 2 ØJ'!I238/'Tabel 1 ØJ'!G236*100,"-")) -> - | J238: =IF(OR('Tabel 1 ØJ'!G236<5,'Tabel 2 ØJ'!J238<0.5),"-",IFERROR('Tabel 2 ØJ'!J238/'Tabel 1 ØJ'!G236*100,"-")) -> -
A239: Levn.m.kand. | C239: =IF(OR('Tabel 1 ØJ'!C237<5,'Tabel 2 ØJ'!C239<0.5),"-",IFERROR('Tabel 2 ØJ'!C239/'Tabel 1 ØJ'!C237*100,"-")) -> - | D239: =IF(OR('Tabel 1 ØJ'!C237<5,'Tabel 2 ØJ'!D239<0.5),"-",IFERROR('Tabel 2 ØJ'!D239/'Tabel 1 ØJ'!C237*100,"-")) -> - | F239: =IF(OR('Tabel 1 ØJ'!E237<5,'Tabel 2 ØJ'!F239<0.5),"-",IFERROR('Tabel 2 ØJ'!F239/'Tabel 1 ØJ'!E237*100,"-")) -> - | G239: =IF(OR('Tabel 1 ØJ'!E237<5,'Tabel 2 ØJ'!G239<0.5),"-",IFERROR('Tabel 2 ØJ'!G239/'Tabel 1 ØJ'!E237*100,"-")) -> - | I239: =IF(OR('Tabel 1 ØJ'!G237<5,'Tabel 2 ØJ'!I239<0.5),"-",IFERROR('Tabel 2 ØJ'!I239/'Tabel 1 ØJ'!G237*100,"-")) -> - | J239: =IF(OR('Tabel 1 ØJ'!G237<5,'Tabel 2 ØJ'!J239<0.5),"-",IFERROR('Tabel 2 ØJ'!J239/'Tabel 1 ØJ'!G237*100,"-")) -> -
A240: Dyrlæge | C240: =IF(OR('Tabel 1 ØJ'!C238<5,'Tabel 2 ØJ'!C240<0.5),"-",IFERROR('Tabel 2 ØJ'!C240/'Tabel 1 ØJ'!C238*100,"-")) -> - | D240: =IF(OR('Tabel 1 ØJ'!C238<5,'Tabel 2 ØJ'!D240<0.5),"-",IFERROR('Tabel 2 ØJ'!D240/'Tabel 1 ØJ'!C238*100,"-")) -> - | F240: =IF(OR('Tabel 1 ØJ'!E238<5,'Tabel 2 ØJ'!F240<0.5),"-",IFERROR('Tabel 2 ØJ'!F240/'Tabel 1 ØJ'!E238*100,"-")) -> - | G240: =IF(OR('Tabel 1 ØJ'!E238<5,'Tabel 2 ØJ'!G240<0.5),"-",IFERROR('Tabel 2 ØJ'!G240/'Tabel 1 ØJ'!E238*100,"-")) -> - | I240: =IF(OR('Tabel 1 ØJ'!G238<5,'Tabel 2 ØJ'!I240<0.5),"-",IFERROR('Tabel 2 ØJ'!I240/'Tabel 1 ØJ'!G238*100,"-")) -> - | J240: =IF(OR('Tabel 1 ØJ'!G238<5,'Tabel 2 ØJ'!J240<0.5),"-",IFERROR('Tabel 2 ØJ'!J240/'Tabel 1 ØJ'!G238*100,"-")) -> -
... 341 more rows

Sheet Tabel 4F ØJ
A1: Tabel 4. Antal forsikrede - aldersfordelt
A3: Østjylland
C5: Under 30 år | D5: 30 - 39 år | E5: 40 - 49 år | F5: 50 - 59 år | G5: Over 60 år | I5: I alt
A7: Civ. ing. | C7: 1003 | D7: 1754 | E7: 1005 | F7: 708 | G7: 211 | I7: 4681
A8: Diplom ing. | C8: 1001 | D8: 1487 | E8: 1693 | F8: 2067 | G8: 926 | I8: 7174
A9: Cand. Scient. Tek. | C9: 1007 | D9: 1825 | E9: 469 | F9: 140 | G9: 24 | I9: 3465
A10: MA. Hum. | C10: 1340 | D10: 2982 | E10: 2618 | F10: 1252 | G10: 484 | I10: 8676
A11: MA. Nat. | C11: 309 | D11: 632 | E11: 823 | F11: 827 | G11: 366 | I11: 2957
A12: MA. Ph.d. | C12: 8 | D12: 173 | E12: 239 | F12: 132 | G12: 35 | I12: 587
A13: MA. Samf. | C13: 302 | D13: 556 | E13: 65 | F13: 25 | G13: 9 | I13: 957
A14: Øvrige Mag. | C14: 171 | D14: 157 | E14: 149 | F14: 151 | G14: 84 | I14: 712
A15: Agronom | C15: 13 | D15: 37 | E15: 70 | F15: 139 | G15: 77 | I15: 336
A16: Landsk. Arkt. | C16: 1 | D16: 8 | E16: 19 | F16: 13 | G16: 1 | I16: 42
A17: Hortonom | C17: 0 | D17: 2 | E17: 6 | F17: 11 | G17: 7 | I17: 26
A18: Forstkand. | C18: 1 | D18: 11 | E18: 22 | F18: 10 | G18: 9 | I18: 53
A19: Jordbrugsakad. | C19: 15 | D19: 58 | E19: 117 | F19: 173 | G19: 94 | I19: 457
A20: Mejeriing. | C20: 6 | D20: 12 | E20: 9 | F20: 37 | G20: 24 | I20: 88
A21: Levn.m.kand. | C21: 2 | D21: 20 | E21: 9 | F21: 4 | G21: 0 | I21: 35
A22: Dyrlæge | C22: 26 | D22: 89 | E22: 61 | F22: 49 | G22: 15 | I22: 240
A23: Farmaceut | C23: 124 | D23: 145 | E23: 48 | F23: 47 | G23: 15 | I23: 379
A24: Læge | C24: 545 | D24: 1302 | E24: 514 | F24: 300 | G24: 171 | I24: 2832
A25: Tandlæge | C25: 99 | D25: 158 | E25: 91 | F25: 81 | G25: 60 | I25: 489
A26: Arkitekt | C26: 151 | D26: 460 | E26: 521 | F26: 285 | G26: 170 | I26: 1587
A27: Landinspek. | C27: 14 | D27: 35 | E27: 42 | F27: 35 | G27: 18 | I27: 144
A28: Bibliotekar | C28: 3 | D28: 69 | E28: 108 | F28: 96 | G28: 58 | I28: 334
A29: Musikudd. | C29: 5 | D29: 19 | E29: 28 | F29: 47 | G29: 42 | I29: 141
A30: Teolog | C30: 14 | D30: 59 | E30: 107 | F30: 102 | G30: 42 | I30: 324
A31: Psykolog | C31: 411 | D31: 795 | E31: 494 | F31: 267 | G31: 123 | I31: 2090
A32: Jurist | C32: 670 | D32: 895 | E32: 567 | F32: 358 | G32: 106 | I32: 2596
A33: Økonom | C33: 266 | D33: 524 | E33: 309 | F33: 302 | G33: 90 | I33: 1491
A34: Samf. Adm. | C34: 692 | D34: 1472 | E34: 813 | F34: 424 | G34: 117 | I34: 3518
A35: Cand. Merc. | C35: 2097 | D35: 3111 | E35: 1430 | F35: 976 | G35: 163 | I35: 7777
A36: HA | C36: 397 | D36: 318 | E36: 135 | F36: 301 | G36: 88 | I36: 1239
A37: HD | C37: 96 | D37: 238 | E37: 120 | F37: 275 | G37: 96 | I37: 825
A38: Komm. og Sprog | C38: 145 | D38: 270 | E38: 385 | F38: 321 | G38: 144 | I38: 1265
A39: Bygningskonst. | C39: 502 | D39: 1022 | E39: 539 | F39: 267 | G39: 82 | I39: 2412
A40: Cand. IT. | C40: 407 | D40: 602 | E40: 177 | F40: 24 | G40: 2 | I40: 1212
A41: Bac. Samf. | C41: 67 | D41: 47 | E41: 46 | F41: 34 | G41: 13 | I41: 207
A42: Bac. Hum. | C42: 581 | D42: 194 | E42: 135 | F42: 120 | G42: 45 | I42: 1075
A43: Bac. Nat. | C43: 475 | D43: 289 | E43: 96 | F43: 31 | G43: 2 | I43: 893
A44: Andre | C44: 555 | D44: 1255 | E44: 823 | F44: 492 | G44: 284 | I44: 3409
A46: Total | C46: 13506 | D46: 23024 | E46: 14785 | F46: 10750 | G46: 4203 | I46: 66268
A48: Ingeniører i alt | C48: 2004 | D48: 3241 | E48: 2698 | F48: 2775 | G48: 1137 | I48: 11855
A49: Magistre i alt | C49: 2130 | D49: 4500 | E49: 3894 | F49: 2387 | G49: 978 | I49: 13889
A50: DJØF'ere i alt | C50: 4122 | D50: 6320 | E50: 3254 | F50: 2361 | G50: 564 | I50: 16621
A57: Horsens
C59: Under 30 år | D59: 30 - 39 år | E59: 40 - 49 år | F59: 50 - 59 år | G59: Over 60 år | I59: I alt
A61: Civ. ing. | C61: 52 | D61: 137 | E61: 86 | F61: 50 | G61: 10 | I61: 335
A62: Diplom ing. | C62: 100 | D62: 225 | E62: 267 | F62: 264 | G62: 84 | I62: 940
A63: Cand. Scient. Tek. | C63: 42 | D63: 105 | E63: 31 | F63: 5 | G63: 0 | I63: 183
A64: MA. Hum. | C64: 49 | D64: 158 | E64: 153 | F64: 61 | G64: 20 | I64: 441
A65: MA. Nat. | C65: 10 | D65: 28 | E65: 47 | F65: 49 | G65: 9 | I65: 143
A66: MA. Ph.d. | C66: 0 | D66: 4 | E66: 3 | F66: 4 | G66: 0 | I66: 11
A67: MA. Samf. | C67: 7 | D67: 23 | E67: 7 | F67: 2 | G67: 0 | I67: 39
A68: Øvrige Mag. | C68: 1 | D68: 8 | E68: 10 | F68: 10 | G68: 5 | I68: 34
A69: Agronom | C69: 1 | D69: 5 | E69: 11 | F69: 9 | G69: 9 | I69: 35
A70: Landsk. Arkt. | C70: 0 | D70: 1 | E70: 1 | F70: 0 | G70: 0 | I70: 2
A71: Hortonom | C71: 0 | D71: 0 | E71: 1 | F71: 0 | G71: 0 | I71: 1
A72: Forstkand. | C72: 0 | D72: 1 | E72: 2 | F72: 2 | G72: 1 | I72: 6
A73: Jordbrugsakad. | C73: 1 | D73: 7 | E73: 15 | F73: 11 | G73: 10 | I73: 44
A74: Mejeriing. | C74: 0 | D74: 2 | E74: 0 | F74: 2 | G74: 2 | I74: 6
A75: Levn.m.kand. | C75: 0 | D75: 1 | E75: 0 | F75: 0 | G75: 0 | I75: 1
A76: Dyrlæge | C76: 2 | D76: 5 | E76: 9 | F76: 5 | G76: 1 | I76: 22
A77: Farmaceut | C77: 6 | D77: 6 | E77: 7 | F77: 2 | G77: 1 | I77: 22
A78: Læge | C78: 19 | D78: 50 | E78: 19 | F78: 8 | G78: 4 | I78: 100
A79: Tandlæge | C79: 3 | D79: 6 | E79: 9 | F79: 3 | G79: 2 | I79: 23
A80: Arkitekt | C80: 7 | D80: 21 | E80: 27 | F80: 9 | G80: 8 | I80: 72
A81: Landinspek. | C81: 2 | D81: 4 | E81: 7 | F81: 4 | G81: 2 | I81: 19
A82: Bibliotekar | C82: 0 | D82: 4 | E82: 12 | F82: 12 | G82: 1 | I82: 29
A83: Musikudd. | C83: 0 | D83: 0 | E83: 0 | F83: 5 | G83: 3 | I83: 8
A84: Teolog | C84: 0 | D84: 3 | E84: 4 | F84: 6 | G84: 3 | I84: 16
A85: Psykolog | C85: 11 | D85: 44 | E85: 37 | F85: 9 | G85: 4 | I85: 105
A86: Jurist | C86: 21 | D86: 61 | E86: 51 | F86: 19 | G86: 8 | I86: 160
A87: Økonom | C87: 10 | D87: 24 | E87: 20 | F87: 15 | G87: 3 | I87: 72
A88: Samf. Adm. | C88: 18 | D88: 80 | E88: 68 | F88: 18 | G88: 4 | I88: 188
A89: Cand. Merc. | C89: 94 | D89: 240 | E89: 117 | F89: 68 | G89: 6 | I89: 525
A90: HA | C90: 30 | D90: 21 | E90: 18 | F90: 24 | G90: 6 | I90: 99
A91: HD | C91: 8 | D91: 17 | E91: 11 | F91: 25 | G91: 6 | I91: 67
A92: Komm. og Sprog | C92: 13 | D92: 17 | E92: 20 | F92: 22 | G92: 8 | I92: 80
A93: Bygningskonst. | C93: 104 | D93: 193 | E93: 129 | F93: 63 | G93: 19 | I93: 508
A94: Cand. IT. | C94: 12 | D94: 29 | E94: 11 | F94: 1 | G94: 0 | I94: 53
A95: Bac. Samf. | C95: 4 | D95: 4 | E95: 8 | F95: 2 | G95: 1 | I95: 19
A96: Bac. Hum. | C96: 13 | D96: 12 | E96: 10 | F96: 9 | G96: 3 | I96: 47
A97: Bac. Nat. | C97: 78 | D97: 49 | E97: 14 | F97: 2 | G97: 0 | I97: 143
A98: Andre | C98: 63 | D98: 109 | E98: 56 | F98: 26 | G98: 15 | I98: 269
A100: Total | C100: 780 | D100: 1697 | E100: 1283 | F100: 815 | G100: 248 | I100: 4823
A102: Ingeniører i alt | C102: 152 | D102: 362 | E102: 353 | F102: 314 | G102: 94 | I102: 1275
A103: Magistre i alt | C103: 67 | D103: 221 | E103: 220 | F103: 126 | G103: 34 | I103: 668
A104: DJØF'ere i alt | C104: 173 | D104: 426 | E104: 274 | F104: 144 | G104: 27 | I104: 1044
A111: Syddjurs
C113: Under 30 år | D113: 30 - 39 år | E113: 40 - 49 år | F113: 50 - 59 år | G113: Over 60 år | I113: I alt
A115: Civ. ing. | C115: 8 | D115: 32 | E115: 24 | F115: 27 | G115: 7 | I115: 98
A116: Diplom ing. | C116: 12 | D116: 32 | E116: 69 | F116: 81 | G116: 45 | I116: 239
A117: Cand. Scient. Tek. | C117: 13 | D117: 51 | E117: 20 | F117: 7 | G117: 0 | I117: 91
A118: MA. Hum. | C118: 15 | D118: 107 | E118: 94 | F118: 59 | G118: 16 | I118: 291
A119: MA. Nat. | C119: 4 | D119: 22 | E119: 31 | F119: 40 | G119: 18 | I119: 115
A120: MA. Ph.d. | C120: 0 | D120: 9 | E120: 9 | F120: 6 | G120: 0 | I120: 24
A121: MA. Samf. | C121: 3 | D121: 23 | E121: 1 | F121: 1 | G121: 0 | I121: 28
A122: Øvrige Mag. | C122: 0 | D122: 8 | E122: 11 | F122: 4 | G122: 4 | I122: 27
A123: Agronom | C123: 0 | D123: 5 | E123: 2 | F123: 15 | G123: 8 | I123: 30
A124: Landsk. Arkt. | C124: 0 | D124: 1 | E124: 3 | F124: 1 | G124: 0 | I124: 5
A125: Hortonom | C125: 0 | D125: 0 | E125: 1 | F125: 2 | G125: 0 | I125: 3
A126: Forstkand. | C126: 1 | D126: 1 | E126: 2 | F126: 0 | G126: 2 | I126: 6
A127: Jordbrugsakad. | C127: 1 | D127: 7 | E127: 8 | F127: 18 | G127: 10 | I127: 44
A128: Mejeriing. | C128: 0 | D128: 1 | E128: 0 | F128: 1 | G128: 1 | I128: 3
A129: Levn.m.kand. | C129: 1 | D129: 1 | E129: 0 | F129: 0 | G129: 0 | I129: 2
A130: Dyrlæge | C130: 1 | D130: 7 | E130: 1 | F130: 2 | G130: 1 | I130: 12
A131: Farmaceut | C131: 2 | D131: 4 | E131: 3 | F131: 0 | G131: 0 | I131: 9
A132: Læge | C132: 1 | D132: 31 | E132: 9 | F132: 8 | G132: 4 | I132: 53
A133: Tandlæge | C133: 3 | D133: 3 | E133: 6 | F133: 3 | G133: 4 | I133: 19
A134: Arkitekt | C134: 1 | D134: 24 | E134: 22 | F134: 21 | G134: 11 | I134: 79
A135: Landinspek. | C135: 0 | D135: 2 | E135: 2 | F135: 0 | G135: 1 | I135: 5
A136: Bibliotekar | C136: 1 | D136: 2 | E136: 6 | F136: 4 | G136: 0 | I136: 13
A137: Musikudd. | C137: 0 | D137: 1 | E137: 0 | F137: 3 | G137: 2 | I137: 6
A138: Teolog | C138: 1 | D138: 3 | E138: 7 | F138: 4 | G138: 2 | I138: 17
A139: Psykolog | C139: 7 | D139: 31 | E139: 15 | F139: 13 | G139: 7 | I139: 73
A140: Jurist | C140: 6 | D140: 23 | E140: 15 | F140: 12 | G140: 3 | I140: 59
A141: Økonom | C141: 2 | D141: 7 | E141: 8 | F141: 10 | G141: 3 | I141: 30
A142: Samf. Adm. | C142: 11 | D142: 39 | E142: 20 | F142: 13 | G142: 3 | I142: 86
A143: Cand. Merc. | C143: 8 | D143: 78 | E143: 30 | F143: 25 | G143: 5 | I143: 146
A144: HA | C144: 6 | D144: 6 | E144: 11 | F144: 11 | G144: 9 | I144: 43
A145: HD | C145: 3 | D145: 2 | E145: 2 | F145: 14 | G145: 5 | I145: 26
A146: Komm. og Sprog | C146: 0 | D146: 10 | E146: 13 | F146: 12 | G146: 12 | I146: 47
A147: Bygningskonst. | C147: 7 | D147: 35 | E147: 23 | F147: 6 | G147: 5 | I147: 76
A148: Cand. IT. | C148: 2 | D148: 19 | E148: 4 | F148: 0 | G148: 0 | I148: 25
A149: Bac. Samf. | C149: 2 | D149: 0 | E149: 1 | F149: 0 | G149: 0 | I149: 3
A150: Bac. Hum. | C150: 2 | D150: 8 | E150: 7 | F150: 3 | G150: 1 | I150: 21
A151: Bac. Nat. | C151: 6 | D151: 6 | E151: 5 | F151: 1 | G151: 0 | I151: 18
A152: Andre | C152: 8 | D152: 36 | E152: 21 | F152: 32 | G152: 16 | I152: 113
A154: Total | C154: 137 | D154: 670 | E154: 498 | F154: 441 | G154: 195 | I154: 1941
A156: Ingeniører i alt | C156: 20 | D156: 64 | E156: 93 | F156: 108 | G156: 52 | I156: 337
A157: Magistre i alt | C157: 22 | D157: 169 | E157: 146 | F157: 110 | G157: 38 | I157: 485
A158: DJØF'ere i alt | C158: 33 | D158: 153 | E158: 84 | F158: 71 | G158: 23 | I158: 364
A165: Norddjurs
C167: Under 30 år | D167: 30 - 39 år | E167: 40 - 49 år | F167: 50 - 59 år | G167: Over 60 år | I167: I alt
A169: Civ. ing. | C169: 9 | D169: 9 | E169: 6 | F169: 2 | G169: 2 | I169: 28
A170: Diplom ing. | C170: 3 | D170: 14 | E170: 15 | F170: 44 | G170: 17 | I170: 93
A171: Cand. Scient. Tek. | C171: 4 | D171: 10 | E171: 6 | F171: 2 | G171: 0 | I171: 22
A172: MA. Hum. | C172: 9 | D172: 22 | E172: 26 | F172: 16 | G172: 5 | I172: 78
A173: MA. Nat. | C173: 3 | D173: 5 | E173: 12 | F173: 12 | G173: 3 | I173: 35
A174: MA. Ph.d. | C174: 0 | D174: 1 | E174: 4 | F174: 0 | G174: 1 | I174: 6
A175: MA. Samf. | C175: 2 | D175: 4 | E175: 1 | F175: 0 | G175: 0 | I175: 7
A176: Øvrige Mag. | C176: 1 | D176: 0 | E176: 3 | F176: 2 | G176: 0 | I176: 6
A177: Agronom | C177: 0 | D177: 4 | E177: 2 | F177: 1 | G177: 2 | I177: 9
A178: Landsk. Arkt. | C178: 0 | D178: 0 | E178: 0 | F178: 0 | G178: 0 | I178: 0
A179: Hortonom | C179: 0 | D179: 0 | E179: 1 | F179: 0 | G179: 0 | I179: 1
A180: Forstkand. | C180: 0 | D180: 0 | E180: 2 | F180: 0 | G180: 0 | I180: 2
A181: Jordbrugsakad. | C181: 0 | D181: 4 | E181: 5 | F181: 1 | G181: 2 | I181: 12
A182: Mejeriing. | C182: 0 | D182: 0 | E182: 0 | F182: 0 | G182: 0 | I182: 0
A183: Levn.m.kand. | C183: 0 | D183: 2 | E183: 0 | F183: 1 | G183: 0 | I183: 3
A184: Dyrlæge | C184: 0 | D184: 3 | E184: 2 | F184: 3 | G184: 0 | I184: 8
A185: Farmaceut | C185: 1 | D185: 0 | E185: 0 | F185: 3 | G185: 0 | I185: 4
A186: Læge | C186: 2 | D186: 1 | E186: 0 | F186: 2 | G186: 1 | I186: 6
A187: Tandlæge | C187: 0 | D187: 1 | E187: 1 | F187: 2 | G187: 0 | I187: 4
A188: Arkitekt | C188: 0 | D188: 2 | E188: 0 | F188: 3 | G188: 2 | I188: 7
A189: Landinspek. | C189: 1 | D189: 0 | E189: 0 | F189: 1 | G189: 0 | I189: 2
A190: Bibliotekar | C190: 0 | D190: 1 | E190: 2 | F190: 3 | G190: 0 | I190: 6
A191: Musikudd. | C191: 0 | D191: 1 | E191: 1 | F191: 0 | G191: 1 | I191: 3
A192: Teolog | C192: 0 | D192: 3 | E192: 2 | F192: 5 | G192: 4 | I192: 14
A193: Psykolog | C193: 0 | D193: 3 | E193: 6 | F193: 2 | G193: 1 | I193: 12
A194: Jurist | C194: 3 | D194: 3 | E194: 5 | F194: 2 | G194: 2 | I194: 15
A195: Økonom | C195: 0 | D195: 1 | E195: 2 | F195: 3 | G195: 0 | I195: 6
A196: Samf. Adm. | C196: 2 | D196: 5 | E196: 6 | F196: 6 | G196: 1 | I196: 20
A197: Cand. Merc. | C197: 6 | D197: 23 | E197: 7 | F197: 6 | G197: 3 | I197: 45
A198: HA | C198: 0 | D198: 2 | E198: 2 | F198: 9 | G198: 1 | I198: 14
A199: HD | C199: 1 | D199: 2 | E199: 4 | F199: 2 | G199: 2 | I199: 11
A200: Komm. og Sprog | C200: 0 | D200: 1 | E200: 1 | F200: 6 | G200: 1 | I200: 9
A201: Bygningskonst. | C201: 5 | D201: 16 | E201: 6 | F201: 4 | G201: 1 | I201: 32
A202: Cand. IT. | C202: 2 | D202: 2 | E202: 1 | F202: 1 | G202: 0 | I202: 6
A203: Bac. Samf. | C203: 0 | D203: 0 | E203: 0 | F203: 2 | G203: 0 | I203: 2
A204: Bac. Hum. | C204: 1 | D204: 2 | E204: 1 | F204: 4 | G204: 1 | I204: 9
A205: Bac. Nat. | C205: 1 | D205: 0 | E205: 2 | F205: 1 | G205: 0 | I205: 4
A206: Andre | C206: 1 | D206: 10 | E206: 7 | F206: 13 | G206: 7 | I206: 38
A208: Total | C208: 57 | D208: 153 | E208: 136 | F208: 163 | G208: 58 | I208: 567
A210: Ingeniører i alt | C210: 12 | D210: 23 | E210: 21 | F210: 46 | G210: 19 | I210: 121
A211: Magistre i alt | C211: 15 | D211: 32 | E211: 46 | F211: 30 | G211: 9 | I211: 132
A212: DJØF'ere i alt | C212: 11 | D212: 34 | E212: 22 | F212: 26 | G212: 7 | I212: 100
A219: Favrskov
C221: Under 30 år | D221: 30 - 39 år | E221: 40 - 49 år | F221: 50 - 59 år | G221: Over 60 år | I221: I alt
A223: Civ. ing. | C223: 25 | D223: 113 | E223: 107 | F223: 51 | G223: 8 | I223: 304
A224: Diplom ing. | C224: 23 | D224: 70 | E224: 144 | F224: 140 | G224: 53 | I224: 430
A225: Cand. Scient. Tek. | C225: 22 | D225: 96 | E225: 31 | F225: 13 | G225: 1 | I225: 163
A226: MA. Hum. | C226: 18 | D226: 127 | E226: 143 | F226: 44 | G226: 13 | I226: 345
A227: MA. Nat. | C227: 7 | D227: 39 | E227: 59 | F227: 52 | G227: 22 | I227: 179
A228: MA. Ph.d. | C228: 0 | D228: 6 | E228: 9 | F228: 2 | G228: 1 | I228: 18
A229: MA. Samf. | C229: 1 | D229: 19 | E229: 5 | F229: 0 | G229: 0 | I229: 25
A230: Øvrige Mag. | C230: 0 | D230: 5 | E230: 3 | F230: 11 | G230: 1 | I230: 20
A231: Agronom | C231: 1 | D231: 4 | E231: 8 | F231: 14 | G231: 14 | I231: 41
A232: Landsk. Arkt. | C232: 0 | D232: 1 | E232: 3 | F232: 0 | G232: 0 | I232: 4
A233: Hortonom | C233: 0 | D233: 0 | E233: 0 | F233: 1 | G233: 3 | I233: 4
A234: Forstkand. | C234: 0 | D234: 1 | E234: 3 | F234: 0 | G234: 2 | I234: 6
A235: Jordbrugsakad. | C235: 1 | D235: 6 | E235: 14 | F235: 15 | G235: 19 | I235: 55
A236: Mejeriing. | C236: 0 | D236: 0 | E236: 0 | F236: 2 | G236: 2 | I236: 4
A237: Levn.m.kand. | C237: 0 | D237: 1 | E237: 0 | F237: 0 | G237: 0 | I237: 1
A238: Dyrlæge | C238: 2 | D238: 8 | E238: 7 | F238: 2 | G238: 2 | I238: 21
A239: Farmaceut | C239: 0 | D239: 4 | E239: 2 | F239: 3 | G239: 1 | I239: 10
A240: Læge | C240: 12 | D240: 71 | E240: 42 | F240: 18 | G240: 8 | I240: 151
A241: Tandlæge | C241: 3 | D241: 8 | E241: 8 | F241: 2 | G241: 2 | I241: 23
A242: Arkitekt | C242: 0 | D242: 13 | E242: 15 | F242: 5 | G242: 1 | I242: 34
A243: Landinspek. | C243: 0 | D243: 2 | E243: 5 | F243: 4 | G243: 1 | I243: 12
... 329 more rows

Sheet Tabel 4 ØJ
A1: Tabel 4. Ledighedsberørte - aldersfordelt
A3: Østjylland
C5: Under 30 år | D5: 30 - 39 år | E5: 40 - 49 år | F5: 50 - 59 år | G5: Over 60 år | I5: I alt
A7: Civ. ing. | C7: 139 | D7: 25 | E7: 8 | F7: 7 | G7: 4 | I7: 183
A8: Diplom ing. | C8: 91 | D8: 39 | E8: 16 | F8: 17 | G8: 25 | I8: 188
A9: Cand. Scient. Tek | C9: 185 | D9: 97 | E9: 14 | F9: 4 | G9: 2 | I9: 302
A10: MA. Hum. | C10: 362 | D10: 309 | E10: 101 | F10: 59 | G10: 28 | I10: 859
A11: MA. Nat. | C11: 60 | D11: 31 | E11: 9 | F11: 8 | G11: 12 | I11: 120
A12: MA. Ph.d. | C12: 0 | D12: 5 | E12: 3 | F12: 3 | G12: 3 | I12: 14
A13: MA. Samf. | C13: 95 | D13: 65 | E13: 1 | F13: 2 | G13: 0 | I13: 163
A14: Øvrige Mag. | C14: 55 | D14: 24 | E14: 9 | F14: 5 | G14: 2 | I14: 95
A15: Agronom | C15: 1 | D15: 1 | E15: 1 | F15: 0 | G15: 4 | I15: 7
A16: Landsk. Arkt. | C16: 1 | D16: 0 | E16: 1 | F16: 0 | G16: 0 | I16: 2
A17: Hortonom | C17: 0 | D17: 0 | E17: 0 | F17: 0 | G17: 2 | I17: 2
A18: Forstkand. | C18: 0 | D18: 0 | E18: 1 | F18: 0 | G18: 1 | I18: 2
A19: Jordbrugsakad. | C19: 2 | D19: 1 | E19: 3 | F19: 0 | G19: 7 | I19: 13
A20: Mejeriing. | C20: 0 | D20: 0 | E20: 0 | F20: 1 | G20: 1 | I20: 2
A21: Levn.m.kand. | C21: 0 | D21: 4 | E21: 0 | F21: 0 | G21: 0 | I21: 4
A22: Dyrlæge | C22: 0 | D22: 1 | E22: 0 | F22: 0 | G22: 0 | I22: 1
A23: Farmaceut | C23: 21 | D23: 11 | E23: 0 | F23: 1 | G23: 0 | I23: 33
A24: Læge | C24: 73 | D24: 29 | E24: 3 | F24: 0 | G24: 0 | I24: 105
A25: Tandlæge | C25: 21 | D25: 3 | E25: 0 | F25: 0 | G25: 0 | I25: 24
A26: Arkitekt | C26: 46 | D26: 45 | E26: 12 | F26: 8 | G26: 13 | I26: 124
A27: Landinspek. | C27: 1 | D27: 0 | E27: 0 | F27: 0 | G27: 0 | I27: 1
A28: Bibliotekar | C28: 0 | D28: 2 | E28: 4 | F28: 2 | G28: 0 | I28: 8
A29: Musikudd. | C29: 1 | D29: 0 | E29: 4 | F29: 1 | G29: 3 | I29: 9
A30: Teolog | C30: 2 | D30: 3 | E30: 4 | F30: 3 | G30: 0 | I30: 12
A31: Psykolog | C31: 100 | D31: 55 | E31: 12 | F31: 5 | G31: 4 | I31: 176
A32: Jurist | C32: 85 | D32: 17 | E32: 4 | F32: 3 | G32: 1 | I32: 110
A33: Økonom | C33: 28 | D33: 14 | E33: 4 | F33: 6 | G33: 1 | I33: 53
A34: Samf. Adm. | C34: 98 | D34: 73 | E34: 19 | F34: 11 | G34: 1 | I34: 202
A35: Cand. Merc. | C35: 328 | D35: 87 | E35: 23 | F35: 17 | G35: 8 | I35: 463
A36: HA | C36: 74 | D36: 11 | E36: 6 | F36: 3 | G36: 7 | I36: 101
A37: HD | C37: 10 | D37: 8 | E37: 3 | F37: 5 | G37: 2 | I37: 28
A38: Komm. og Sprog | C38: 24 | D38: 15 | E38: 9 | F38: 12 | G38: 5 | I38: 65
A39: Bygningskonst. | C39: 82 | D39: 40 | E39: 11 | F39: 3 | G39: 1 | I39: 137
A40: Cand. IT. | C40: 93 | D40: 34 | E40: 6 | F40: 2 | G40: 0 | I40: 135
A41: Bac. Samf. | C41: 19 | D41: 4 | E41: 0 | F41: 1 | G41: 1 | I41: 25
A42: Bac. Hum. | C42: 151 | D42: 25 | E42: 8 | F42: 5 | G42: 4 | I42: 193
A43: Bac. Nat. | C43: 94 | D43: 16 | E43: 4 | F43: 1 | G43: 0 | I43: 115
A44: Andre | C44: 86 | D44: 67 | E44: 21 | F44: 23 | G44: 16 | I44: 213
A46: Total | C46: 2426 | D46: 1160 | E46: 321 | F46: 218 | G46: 151 | I46: 4276
A48: Ingeniører i alt | C48: 230 | D48: 64 | E48: 24 | F48: 24 | G48: 29 | I48: 371
A49: Magistre i alt | C49: 572 | D49: 434 | E49: 123 | F49: 77 | G49: 45 | I49: 1251
A50: DJØF'ere i alt | C50: 613 | D50: 202 | E50: 56 | F50: 40 | G50: 18 | I50: 929
A57: Horsens
C59: Under 30 år | D59: 30 - 39 år | E59: 40 - 49 år | F59: 50 - 59 år | G59: Over 60 år | I59: I alt
A61: Civ. ing. | C61: 7 | D61: 2 | E61: 0 | F61: 0 | G61: 0 | I61: 9
A62: Diplom ing. | C62: 10 | D62: 5 | E62: 2 | F62: 0 | G62: 4 | I62: 21
A63: Cand. Scient. Tek | C63: 6 | D63: 5 | E63: 1 | F63: 0 | G63: 0 | I63: 12
A64: MA. Hum. | C64: 9 | D64: 12 | E64: 3 | F64: 2 | G64: 0 | I64: 26
A65: MA. Nat. | C65: 0 | D65: 0 | E65: 1 | F65: 0 | G65: 0 | I65: 1
A66: MA. Ph.d. | C66: 0 | D66: 0 | E66: 0 | F66: 0 | G66: 0 | I66: 0
A67: MA. Samf. | C67: 1 | D67: 5 | E67: 0 | F67: 0 | G67: 0 | I67: 6
A68: Øvrige Mag. | C68: 1 | D68: 0 | E68: 0 | F68: 0 | G68: 0 | I68: 1
A69: Agronom | C69: 0 | D69: 0 | E69: 0 | F69: 0 | G69: 1 | I69: 1
A70: Landsk. Arkt. | C70: 0 | D70: 0 | E70: 0 | F70: 0 | G70: 0 | I70: 0
A71: Hortonom | C71: 0 | D71: 0 | E71: 0 | F71: 0 | G71: 0 | I71: 0
A72: Forstkand. | C72: 0 | D72: 0 | E72: 0 | F72: 0 | G72: 0 | I72: 0
A73: Jordbrugsakad. | C73: 0 | D73: 0 | E73: 0 | F73: 0 | G73: 1 | I73: 1
A74: Mejeriing. | C74: 0 | D74: 0 | E74: 0 | F74: 0 | G74: 0 | I74: 0
A75: Levn.m.kand. | C75: 0 | D75: 0 | E75: 0 | F75: 0 | G75: 0 | I75: 0
A76: Dyrlæge | C76: 0 | D76: 0 | E76: 0 | F76: 0 | G76: 0 | I76: 0
A77: Farmaceut | C77: 2 | D77: 0 | E77: 0 | F77: 0 | G77: 0 | I77: 2
A78: Læge | C78: 1 | D78: 1 | E78: 0 | F78: 0 | G78: 0 | I78: 2
A79: Tandlæge | C79: 0 | D79: 0 | E79: 0 | F79: 0 | G79: 0 | I79: 0
A80: Arkitekt | C80: 1 | D80: 0 | E80: 1 | F80: 1 | G80: 0 | I80: 3
A81: Landinspek. | C81: 0 | D81: 0 | E81: 0 | F81: 0 | G81: 0 | I81: 0
A82: Bibliotekar | C82: 0 | D82: 0 | E82: 1 | F82: 0 | G82: 0 | I82: 1
A83: Musikudd. | C83: 0 | D83: 0 | E83: 0 | F83: 0 | G83: 1 | I83: 1
A84: Teolog | C84: 0 | D84: 0 | E84: 0 | F84: 1 | G84: 0 | I84: 1
A85: Psykolog | C85: 2 | D85: 3 | E85: 2 | F85: 0 | G85: 0 | I85: 7
A86: Jurist | C86: 0 | D86: 0 | E86: 0 | F86: 0 | G86: 0 | I86: 0
A87: Økonom | C87: 1 | D87: 0 | E87: 1 | F87: 0 | G87: 0 | I87: 2
A88: Samf. Adm. | C88: 2 | D88: 1 | E88: 0 | F88: 1 | G88: 0 | I88: 4
A89: Cand. Merc. | C89: 10 | D89: 8 | E89: 1 | F89: 3 | G89: 0 | I89: 22
A90: HA | C90: 4 | D90: 1 | E90: 1 | F90: 0 | G90: 0 | I90: 6
A91: HD | C91: 4 | D91: 3 | E91: 0 | F91: 2 | G91: 0 | I91: 9
A92: Komm. og Sprog | C92: 4 | D92: 0 | E92: 0 | F92: 1 | G92: 0 | I92: 5
A93: Bygningskonst. | C93: 15 | D93: 4 | E93: 2 | F93: 1 | G93: 0 | I93: 22
A94: Cand. IT. | C94: 2 | D94: 2 | E94: 0 | F94: 0 | G94: 0 | I94: 4
A95: Bac. Samf. | C95: 1 | D95: 0 | E95: 0 | F95: 0 | G95: 0 | I95: 1
A96: Bac. Hum. | C96: 4 | D96: 2 | E96: 1 | F96: 0 | G96: 0 | I96: 7
A97: Bac. Nat. | C97: 17 | D97: 2 | E97: 0 | F97: 0 | G97: 0 | I97: 19
A98: Andre | C98: 12 | D98: 3 | E98: 0 | F98: 3 | G98: 0 | I98: 18
A100: Total | C100: 116 | D100: 59 | E100: 17 | F100: 15 | G100: 6 | I100: 213
A102: Ingeniører i alt | C102: 17 | D102: 7 | E102: 2 | F102: 0 | G102: 4 | I102: 30
A103: Magistre i alt | C103: 11 | D103: 17 | E103: 4 | F103: 2 | G103: 0 | I103: 34
A104: DJØF'ere i alt | C104: 17 | D104: 10 | E104: 3 | F104: 4 | G104: 0 | I104: 34
A111: Syddjurs
C113: Under 30 år | D113: 30 - 39 år | E113: 40 - 49 år | F113: 50 - 59 år | G113: Over 60 år | I113: I alt
A115: Civ. ing. | C115: 2 | D115: 0 | E115: 1 | F115: 1 | G115: 0 | I115: 4
A116: Diplom ing. | C116: 0 | D116: 2 | E116: 2 | F116: 0 | G116: 2 | I116: 6
A117: Cand. Scient. Tek | C117: 1 | D117: 2 | E117: 1 | F117: 0 | G117: 0 | I117: 4
A118: MA. Hum. | C118: 3 | D118: 17 | E118: 6 | F118: 3 | G118: 0 | I118: 29
A119: MA. Nat. | C119: 0 | D119: 1 | E119: 0 | F119: 0 | G119: 2 | I119: 3
A120: MA. Ph.d. | C120: 0 | D120: 1 | E120: 0 | F120: 0 | G120: 0 | I120: 1
A121: MA. Samf. | C121: 0 | D121: 4 | E121: 0 | F121: 1 | G121: 0 | I121: 5
A122: Øvrige Mag. | C122: 0 | D122: 1 | E122: 1 | F122: 0 | G122: 0 | I122: 2
A123: Agronom | C123: 0 | D123: 0 | E123: 1 | F123: 0 | G123: 0 | I123: 1
A124: Landsk. Arkt. | C124: 0 | D124: 0 | E124: 0 | F124: 0 | G124: 0 | I124: 0
A125: Hortonom | C125: 0 | D125: 0 | E125: 0 | F125: 0 | G125: 0 | I125: 0
A126: Forstkand. | C126: 0 | D126: 0 | E126: 0 | F126: 0 | G126: 1 | I126: 1
A127: Jordbrugsakad. | C127: 0 | D127: 0 | E127: 1 | F127: 0 | G127: 1 | I127: 2
A128: Mejeriing. | C128: 0 | D128: 0 | E128: 0 | F128: 0 | G128: 0 | I128: 0
A129: Levn.m.kand. | C129: 0 | D129: 1 | E129: 0 | F129: 0 | G129: 0 | I129: 1
A130: Dyrlæge | C130: 0 | D130: 0 | E130: 0 | F130: 0 | G130: 0 | I130: 0
A131: Farmaceut | C131: 0 | D131: 0 | E131: 0 | F131: 0 | G131: 0 | I131: 0
A132: Læge | C132: 0 | D132: 1 | E132: 0 | F132: 0 | G132: 0 | I132: 1
A133: Tandlæge | C133: 0 | D133: 0 | E133: 0 | F133: 0 | G133: 0 | I133: 0
A134: Arkitekt | C134: 0 | D134: 3 | E134: 1 | F134: 1 | G134: 0 | I134: 5
A135: Landinspek. | C135: 0 | D135: 0 | E135: 0 | F135: 0 | G135: 0 | I135: 0
A136: Bibliotekar | C136: 0 | D136: 0 | E136: 0 | F136: 0 | G136: 0 | I136: 0
A137: Musikudd. | C137: 0 | D137: 0 | E137: 0 | F137: 0 | G137: 0 | I137: 0
A138: Teolog | C138: 0 | D138: 0 | E138: 0 | F138: 0 | G138: 0 | I138: 0
A139: Psykolog | C139: 2 | D139: 1 | E139: 0 | F139: 0 | G139: 0 | I139: 3
A140: Jurist | C140: 0 | D140: 0 | E140: 1 | F140: 0 | G140: 0 | I140: 1
A141: Økonom | C141: 0 | D141: 0 | E141: 0 | F141: 0 | G141: 0 | I141: 0
A142: Samf. Adm. | C142: 0 | D142: 3 | E142: 0 | F142: 2 | G142: 0 | I142: 5
A143: Cand. Merc. | C143: 0 | D143: 4 | E143: 1 | F143: 1 | G143: 0 | I143: 6
A144: HA | C144: 0 | D144: 0 | E144: 0 | F144: 1 | G144: 1 | I144: 2
A145: HD | C145: 0 | D145: 0 | E145: 0 | F145: 0 | G145: 1 | I145: 1
A146: Komm. og Sprog | C146: 0 | D146: 0 | E146: 0 | F146: 0 | G146: 2 | I146: 2
A147: Bygningskonst. | C147: 0 | D147: 1 | E147: 0 | F147: 0 | G147: 0 | I147: 1
A148: Cand. IT. | C148: 0 | D148: 1 | E148: 0 | F148: 0 | G148: 0 | I148: 1
A149: Bac. Samf. | C149: 0 | D149: 0 | E149: 0 | F149: 0 | G149: 0 | I149: 0
A150: Bac. Hum. | C150: 0 | D150: 1 | E150: 1 | F150: 0 | G150: 0 | I150: 2
A151: Bac. Nat. | C151: 1 | D151: 0 | E151: 0 | F151: 0 | G151: 0 | I151: 1
A152: Andre | C152: 1 | D152: 2 | E152: 1 | F152: 2 | G152: 1 | I152: 7
A154: Total | C154: 10 | D154: 46 | E154: 17 | F154: 12 | G154: 10 | I154: 95
A156: Ingeniører i alt | C156: 2 | D156: 2 | E156: 3 | F156: 1 | G156: 2 | I156: 10
A157: Magistre i alt | C157: 3 | D157: 24 | E157: 7 | F157: 4 | G157: 2 | I157: 40
A158: DJØF'ere i alt | C158: 0 | D158: 7 | E158: 2 | F158: 4 | G158: 1 | I158: 14
A165: Norddjurs
C167: Under 30 år | D167: 30 - 39 år | E167: 40 - 49 år | F167: 50 - 59 år | G167: Over 60 år | I167: I alt
A169: Civ. ing. | C169: 1 | D169: 0 | E169: 1 | F169: 0 | G169: 0 | I169: 2
A170: Diplom ing. | C170: 0 | D170: 0 | E170: 0 | F170: 2 | G170: 0 | I170: 2
A171: Cand. Scient. Tek | C171: 1 | D171: 3 | E171: 1 | F171: 0 | G171: 0 | I171: 5
A172: MA. Hum. | C172: 2 | D172: 1 | E172: 0 | F172: 1 | G172: 1 | I172: 5
A173: MA. Nat. | C173: 1 | D173: 0 | E173: 0 | F173: 0 | G173: 1 | I173: 2
A174: MA. Ph.d. | C174: 0 | D174: 0 | E174: 0 | F174: 0 | G174: 1 | I174: 1
A175: MA. Samf. | C175: 0 | D175: 2 | E175: 0 | F175: 0 | G175: 0 | I175: 2
A176: Øvrige Mag. | C176: 0 | D176: 0 | E176: 1 | F176: 0 | G176: 0 | I176: 1
A177: Agronom | C177: 0 | D177: 0 | E177: 0 | F177: 0 | G177: 0 | I177: 0
A178: Landsk. Arkt. | C178: 0 | D178: 0 | E178: 0 | F178: 0 | G178: 0 | I178: 0
A179: Hortonom | C179: 0 | D179: 0 | E179: 0 | F179: 0 | G179: 0 | I179: 0
A180: Forstkand. | C180: 0 | D180: 0 | E180: 1 | F180: 0 | G180: 0 | I180: 1
A181: Jordbrugsakad. | C181: 0 | D181: 0 | E181: 1 | F181: 0 | G181: 0 | I181: 1
A182: Mejeriing. | C182: 0 | D182: 0 | E182: 0 | F182: 0 | G182: 0 | I182: 0
A183: Levn.m.kand. | C183: 0 | D183: 0 | E183: 0 | F183: 0 | G183: 0 | I183: 0
A184: Dyrlæge | C184: 0 | D184: 0 | E184: 0 | F184: 0 | G184: 0 | I184: 0
A185: Farmaceut | C185: 0 | D185: 0 | E185: 0 | F185: 0 | G185: 0 | I185: 0
A186: Læge | C186: 0 | D186: 0 | E186: 0 | F186: 0 | G186: 0 | I186: 0
A187: Tandlæge | C187: 0 | D187: 0 | E187: 0 | F187: 0 | G187: 0 | I187: 0
A188: Arkitekt | C188: 0 | D188: 0 | E188: 0 | F188: 0 | G188: 2 | I188: 2
A189: Landinspek. | C189: 0 | D189: 0 | E189: 0 | F189: 0 | G189: 0 | I189: 0
A190: Bibliotekar | C190: 0 | D190: 0 | E190: 0 | F190: 0 | G190: 0 | I190: 0
A191: Musikudd. | C191: 0 | D191: 0 | E191: 1 | F191: 0 | G191: 0 | I191: 1
A192: Teolog | C192: 0 | D192: 0 | E192: 0 | F192: 1 | G192: 0 | I192: 1
A193: Psykolog | C193: 0 | D193: 1 | E193: 0 | F193: 0 | G193: 0 | I193: 1
A194: Jurist | C194: 0 | D194: 0 | E194: 0 | F194: 0 | G194: 0 | I194: 0
A195: Økonom | C195: 0 | D195: 0 | E195: 0 | F195: 1 | G195: 0 | I195: 1
A196: Samf. Adm. | C196: 0 | D196: 0 | E196: 0 | F196: 0 | G196: 0 | I196: 0
A197: Cand. Merc. | C197: 2 | D197: 1 | E197: 0 | F197: 0 | G197: 0 | I197: 3
A198: HA | C198: 0 | D198: 0 | E198: 0 | F198: 0 | G198: 0 | I198: 0
A199: HD | C199: 1 | D199: 0 | E199: 0 | F199: 0 | G199: 0 | I199: 1
A200: Komm. og Sprog | C200: 0 | D200: 0 | E200: 0 | F200: 0 | G200: 0 | I200: 0
A201: Bygningskonst. | C201: 1 | D201: 1 | E201: 0 | F201: 0 | G201: 0 | I201: 2
A202: Cand. IT. | C202: 1 | D202: 0 | E202: 0 | F202: 0 | G202: 0 | I202: 1
A203: Bac. Samf. | C203: 0 | D203: 0 | E203: 0 | F203: 0 | G203: 0 | I203: 0
A204: Bac. Hum. | C204: 0 | D204: 0 | E204: 0 | F204: 1 | G204: 0 | I204: 1
A205: Bac. Nat. | C205: 1 | D205: 0 | E205: 1 | F205: 0 | G205: 0 | I205: 2
A206: Andre | C206: 0 | D206: 0 | E206: 0 | F206: 0 | G206: 1 | I206: 1
A208: Total | C208: 11 | D208: 9 | E208: 6 | F208: 6 | G208: 6 | I208: 38
A210: Ingeniører i alt | C210: 1 | D210: 0 | E210: 1 | F210: 2 | G210: 0 | I210: 4
A211: Magistre i alt | C211: 3 | D211: 3 | E211: 1 | F211: 1 | G211: 3 | I211: 11
A212: DJØF'ere i alt | C212: 2 | D212: 1 | E212: 0 | F212: 1 | G212: 0 | I212: 4
A219: Favrskov
C221: Under 30 år | D221: 30 - 39 år | E221: 40 - 49 år | F221: 50 - 59 år | G221: Over 60 år | I221: I alt
A223: Civ. ing. | C223: 2 | D223: 1 | E223: 2 | F223: 0 | G223: 0 | I223: 5
A224: Diplom ing. | C224: 0 | D224: 3 | E224: 0 | F224: 1 | G224: 0 | I224: 4
A225: Cand. Scient. Tek | C225: 3 | D225: 3 | E225: 0 | F225: 0 | G225: 0 | I225: 6
A226: MA. Hum. | C226: 4 | D226: 10 | E226: 3 | F226: 1 | G226: 0 | I226: 18
A227: MA. Nat. | C227: 0 | D227: 1 | E227: 1 | F227: 0 | G227: 0 | I227: 2
A228: MA. Ph.d. | C228: 0 | D228: 0 | E228: 0 | F228: 0 | G228: 0 | I228: 0
A229: MA. Samf. | C229: 0 | D229: 2 | E229: 0 | F229: 0 | G229: 0 | I229: 2
A230: Øvrige Mag. | C230: 0 | D230: 0 | E230: 0 | F230: 0 | G230: 0 | I230: 0
A231: Agronom | C231: 0 | D231: 0 | E231: 0 | F231: 0 | G231: 1 | I231: 1
A232: Landsk. Arkt. | C232: 0 | D232: 0 | E232: 0 | F232: 0 | G232: 0 | I232: 0
A233: Hortonom | C233: 0 | D233: 0 | E233: 0 | F233: 0 | G233: 0 | I233: 0
A234: Forstkand. | C234: 0 | D234: 0 | E234: 0 | F234: 0 | G234: 0 | I234: 0
A235: Jordbrugsakad. | C235: 0 | D235: 0 | E235: 0 | F235: 0 | G235: 1 | I235: 1
A236: Mejeriing. | C236: 0 | D236: 0 | E236: 0 | F236: 0 | G236: 0 | I236: 0
A237: Levn.m.kand. | C237: 0 | D237: 0 | E237: 0 | F237: 0 | G237: 0 | I237: 0
A238: Dyrlæge | C238: 0 | D238: 0 | E238: 0 | F238: 0 | G238: 0 | I238: 0
A239: Farmaceut | C239: 0 | D239: 0 | E239: 0 | F239: 0 | G239: 0 | I239: 0
A240: Læge | C240: 0 | D240: 0 | E240: 0 | F240: 0 | G240: 0 | I240: 0
A241: Tandlæge | C241: 0 | D241: 0 | E241: 0 | F241: 0 | G241: 0 | I241: 0
A242: Arkitekt | C242: 0 | D242: 3 | E242: 1 | F242: 0 | G242: 1 | I242: 5
A243: Landinspek. | C243: 0 | D243: 0 | E243: 0 | F243: 0 | G243: 0 | I243: 0
... 329 more rows

Sheet Tabel 4(Br) ØJ
A1: Tabel 4. Ledighedsberørte - aldersfordelt
A3: Østjylland
C5: Under 30 år | D5: 30 - 39 år | E5: 40 - 49 år | F5: 50 - 59 år | G5: Over 60 år | I5: I alt
A7: Civ. ing. | C7: 115.6558348 | D7: 16.98808707 | E7: 5.727561904 | F7: 6.640054887 | G7: 3.812137466 | I7: 148.8236762
A8: Diplom ing. | C8: 70.4128984 | D8: 31.39462359 | E8: 14.38657768 | F8: 12.05700742 | G8: 20.91062184 | I8: 149.1617289
A9: Cand. Scient. Tek | C9: 148.2860351 | D9: 81.95347097 | E9: 10.8625959 | F9: 3.906941932 | G9: 1.191292958 | I9: 246.2003368
A10: MA. Hum. | C10: 304.0042413 | D10: 242.4742718 | E10: 75.47807647 | F10: 45.04771409 | G10: 24.05351463 | I10: 691.0578182
A11: MA. Nat. | C11: 52.33393626 | D11: 22.33830225 | E11: 7.100355517 | F11: 6.290775276 | G11: 8.828665877 | I11: 96.89203518
A12: MA. Ph.d. | C12: 0 | D12: 4.67598079 | E12: 2.537890601 | F12: 2.017713466 | G12: 2.907129046 | I12: 12.1387139
A13: MA. Samf. | C13: 77.73529595 | D13: 49.6239007 | E13: 0.4010478388 | F13: 1.928522423 | G13: 0 | I13: 129.6887669
A14: Øvrige Mag. | C14: 43.10048026 | D14: 18.51556165 | E14: 7.377284351 | F14: 4.99906443 | G14: 1.999625772 | I14: 75.99201647
A15: Agronom | C15: 0.9075032745 | D15: 0.8002245369 | E15: 0.9998128859 | F15: 0 | G15: 3.122310235 | I15: 5.829850932
A16: Landsk. Arkt. | C16: 0.9998128859 | D16: 0 | E16: 0.7690388574 | F16: 0 | G16: 0 | I16: 1.768851743
A17: Hortonom | C17: 0 | D17: 0 | E17: 0 | F17: 0 | G17: 1.999625772 | I17: 1.999625772
A18: Forstkand. | C18: 0 | D18: 0 | E18: 0.7690388574 | F18: 0 | G18: 0.9998128859 | I18: 1.768851743
A19: Jordbrugsakad. | C19: 1.90731616 | D19: 0.8002245369 | E19: 2.537890601 | F19: 0 | G19: 6.121748893 | I19: 11.36718019
A20: Mejeriing. | C20: 0 | D20: 0 | E20: 0 | F20: 0.9998128859 | G20: 0.8151936631 | I20: 1.815006549
A21: Levn.m.kand. | C21: 0 | D21: 3.030000624 | E21: 0 | F21: 0 | G21: 0 | I21: 3.030000624
A22: Dyrlæge | C22: 0 | D22: 0.9998128859 | E22: 0 | F22: 0 | G22: 0 | I22: 0.9998128859
A23: Farmaceut | C23: 16.26645045 | D23: 7.160232021 | E23: 0 | F23: 0.8151936631 | G23: 0 | I23: 24.24187613
A24: Læge | C24: 58.14569949 | D24: 23.03436662 | E24: 1.995259777 | F24: 0 | G24: 0 | I24: 83.17532589
A25: Tandlæge | C25: 12.52042662 | D25: 2.307116572 | E25: 0 | F25: 0 | G25: 0 | I25: 14.82754319
A26: Arkitekt | C26: 36.80159671 | D26: 34.19946361 | E26: 10.45219235 | F26: 7.391629764 | G26: 10.74908002 | I26: 99.59396245
A27: Landinspek. | C27: 0.3954344165 | D27: 0 | E27: 0 | F27: 0 | G27: 0 | I27: 0.3954344165
A28: Bibliotekar | C28: 0 | D28: 0.9823489054 | E28: 3.202145575 | F28: 1.579866525 | G28: 0 | I28: 5.764361005
A29: Musikudd. | C29: 0.563837086 | D29: 0 | E29: 3.299444895 | F29: 0.4035426932 | G29: 2.3588848 | I29: 6.625709474
A30: Teolog | C30: 1.722696938 | D30: 2.999438658 | E30: 1.766980603 | F30: 1.913553296 | G30: 0 | I30: 8.402669494
A31: Psykolog | C31: 82.72438096 | D31: 41.8355891 | E31: 9.527225098 | F31: 4.96787875 | G31: 3.353084264 | I31: 142.4081582
A32: Jurist | C32: 65.98203705 | D32: 14.41214994 | E32: 1.902326452 | F32: 2.999438658 | G32: 0.9998128859 | I32: 86.29576498
A33: Økonom | C33: 22.30275058 | D33: 12.3358074 | E33: 3.814632321 | F33: 4.496974989 | G33: 0.1378407035 | I33: 43.08800599
A34: Samf. Adm. | C34: 81.93850184 | D34: 56.90949916 | E34: 15.73816503 | F34: 9.905819248 | G34: 0.5844196345 | I34: 165.0764049
A35: Cand. Merc. | C35: 249.1573629 | D35: 64.2406287 | E35: 18.15567891 | F35: 12.78051519 | G35: 5.917170835 | I35: 350.2513566
A36: HA | C36: 57.76273935 | D36: 9.027006798 | E36: 4.327948606 | F36: 1.5511757 | G36: 5.211750764 | I36: 77.88062122
A37: HD | C37: 8.382710659 | D37: 6.270816441 | E37: 2.630200212 | F37: 4.99906443 | G37: 0.8413896339 | I37: 23.12418138
A38: Komm. og Sprog | C38: 20.90937442 | D38: 11.0784008 | E38: 8.283540198 | F38: 10.92184869 | G38: 4.540011227 | I38: 55.73317533
A39: Bygningskonst. | C39: 65.38208695 | D39: 31.88891661 | E39: 9.512443086 | F39: 2.538451943 | G39: 1 | I39: 110.3218986
A40: Cand. IT. | C40: 80.43847065 | D40: 25.8834903 | E40: 4.574315474 | F40: 1.358448201 | G40: 0 | I40: 112.2547246
A41: Bac. Samf. | C41: 16.0624961 | D41: 3.399239069 | E41: 0 | F41: 0.9998128859 | G41: 0.9998128859 | I41: 21.46136094
A42: Bac. Hum. | C42: 120.7297449 | D42: 18.58791243 | E42: 4.617975426 | F42: 2.937067299 | G42: 3.537703487 | I42: 150.4104035
A43: Bac. Nat. | C43: 71.64909873 | D43: 11.96844009 | E43: 2.337678538 | F43: 0.9998128859 | G43: 0 | I43: 86.95503025
A44: Andre | C44: 66.8377721 | D44: 54.93544564 | E44: 18.47502027 | F44: 18.24362253 | G44: 11.57550053 | I44: 170.0673611
A46: Total | C46: 1950.111707 | D46: 906.2505457 | E46: 251.0224537 | F46: 175.6913241 | G46: 122.4463918 | I46: 3405.522423
A48: Ingeniører i alt | C48: 186.0687332 | D48: 48.38271066 | E48: 20.11413959 | F48: 18.69706231 | G48: 24.72275931 | I48: 297.9854051
A49: Magistre i alt | C49: 477.1739537 | D49: 337.6280172 | E49: 92.89465477 | F49: 60.28378968 | G49: 37.78893532 | I49: 1005.769351
A50: DJØF'ere i alt | C50: 477.1433918 | D50: 156.925092 | E50: 43.93875133 | F50: 31.73392378 | G50: 12.85099482 | I50: 722.5921537
A57: Horsens
C59: Under 30 år | D59: 30 - 39 år | E59: 40 - 49 år | F59: 50 - 59 år | G59: Over 60 år | I59: I alt
A61: Civ. ing. | C61: 6.537142144 | D61: 1.076529658 | E61: 0 | F61: 0 | G61: 0 | I61: 7.613671802
A62: Diplom ing. | C62: 6.240878189 | D62: 4.99906443 | E62: 1.999625772 | F62: 0 | G62: 3.676167904 | I62: 16.91573629
A63: Cand. Scient. Tek | C63: 4.798852367 | D63: 4.99906443 | E63: 0.9998128859 | F63: 0 | G63: 0 | I63: 10.79772968
A64: MA. Hum. | C64: 6.552111271 | D64: 8.68334061 | E64: 1.370298759 | F64: 1.999625772 | G64: 0 | I64: 18.60537641
A65: MA. Nat. | C65: 0 | D65: 0 | E65: 0.9062558473 | F65: 0 | G65: 0 | I65: 0.9062558473
A66: MA. Ph.d. | C66: 0 | D66: 0 | E66: 0 | F66: 0 | G66: 0 | I66: 0
A67: MA. Samf. | C67: 0.9998128859 | D67: 2.823551425 | E67: 0 | F67: 0 | G67: 0 | I67: 3.823364311
A68: Øvrige Mag. | C68: 0.9998128859 | D68: 0 | E68: 0 | F68: 0 | G68: 0 | I68: 0.9998128859
A69: Agronom | C69: 0 | D69: 0 | E69: 0 | F69: 0 | G69: 0.9998128859 | I69: 0.9998128859
A70: Landsk. Arkt. | C70: 0 | D70: 0 | E70: 0 | F70: 0 | G70: 0 | I70: 0
A71: Hortonom | C71: 0 | D71: 0 | E71: 0 | F71: 0 | G71: 0 | I71: 0
A72: Forstkand. | C72: 0 | D72: 0 | E72: 0 | F72: 0 | G72: 0 | I72: 0
A73: Jordbrugsakad. | C73: 0 | D73: 0 | E73: 0 | F73: 0 | G73: 0.9998128859 | I73: 0.9998128859
A74: Mejeriing. | C74: 0 | D74: 0 | E74: 0 | F74: 0 | G74: 0 | I74: 0
A75: Levn.m.kand. | C75: 0 | D75: 0 | E75: 0 | F75: 0 | G75: 0 | I75: 0
A76: Dyrlæge | C76: 0 | D76: 0 | E76: 0 | F76: 0 | G76: 0 | I76: 0
A77: Farmaceut | C77: 1.28547371 | D77: 0 | E77: 0 | F77: 0 | G77: 0 | I77: 1.28547371
A78: Læge | C78: 0.6767292459 | D78: 0.8151936631 | E78: 0 | F78: 0 | G78: 0 | I78: 1.491922909
A79: Tandlæge | C79: 0 | D79: 0 | E79: 0 | F79: 0 | G79: 0 | I79: 0
A80: Arkitekt | C80: 0.9998128859 | D80: 0 | E80: 0.8613484688 | F80: 0.9998128859 | G80: 0 | I80: 2.860974241
A81: Landinspek. | C81: 0 | D81: 0 | E81: 0 | F81: 0 | G81: 0 | I81: 0
A82: Bibliotekar | C82: 0 | D82: 0 | E82: 0.9075032745 | F82: 0 | G82: 0 | I82: 0.9075032745
A83: Musikudd. | C83: 0 | D83: 0 | E83: 0 | F83: 0 | G83: 0.9998128859 | I83: 0.9998128859
A84: Teolog | C84: 0 | D84: 0 | E84: 0 | F84: 0.9998128859 | G84: 0 | I84: 0.9998128859
A85: Psykolog | C85: 0.5763113578 | D85: 2.537890601 | E85: 1.680284413 | F85: 0 | G85: 0 | I85: 4.794486372
A86: Jurist | C86: 0 | D86: 0 | E86: 0 | F86: 0 | G86: 0 | I86: 0
A87: Økonom | C87: 0.9998128859 | D87: 0 | E87: 0.9075032745 | F87: 0 | G87: 0 | I87: 1.90731616
A88: Samf. Adm. | C88: 1.999625772 | D88: 0.3998004117 | E88: 0 | F88: 0.9998128859 | G88: 0 | I88: 3.399239069
A89: Cand. Merc. | C89: 8.516809081 | D89: 5.979542194 | E89: 0.7690388574 | F89: 2.676355018 | G89: 0 | I89: 17.94174515
A90: HA | C90: 3.260774652 | D90: 0.5382648288 | E90: 0.1690263831 | F90: 0 | G90: 0 | I90: 3.968065864
A91: HD | C91: 3.076155429 | D91: 2.287157737 | E91: 0 | F91: 1.999625772 | G91: 0 | I91: 7.362938938
A92: Komm. og Sprog | C92: 3.350589409 | D92: 0 | E92: 0 | F92: 0.9998128859 | G92: 0 | I92: 4.350402295
A93: Bygningskonst. | C93: 11.52884675 | D93: 2.286658766 | E93: 1.446142331 | F93: 1 | G93: 0 | I93: 16.26164785
A94: Cand. IT. | C94: 1.768851743 | D94: 1.307303686 | E94: 0 | F94: 0 | G94: 0 | I94: 3.076155429
A95: Bac. Samf. | C95: 0.2151811888 | D95: 0 | E95: 0 | F95: 0 | G95: 0 | I95: 0.2151811888
A96: Bac. Hum. | C96: 2.562839144 | D96: 1.630387326 | E96: 0.4977234454 | F96: 0 | G96: 0 | I96: 4.690949916
A97: Bac. Nat. | C97: 13.28697062 | D97: 1.722696938 | E97: 0 | F97: 0 | G97: 0 | I97: 15.00966756
A98: Andre | C98: 8.791866775 | D98: 1.866774777 | E98: 0 | F98: 2.599014533 | G98: 0 | I98: 13.25765608
A100: Total | C100: 89.0252604 | D100: 43.95322148 | E100: 12.51456371 | F100: 14.27387264 | G100: 5.675793676 | I100: 165.4427119
A102: Ingeniører i alt | C102: 12.77802033 | D102: 6.075594087 | E102: 1.999625772 | F102: 0 | G102: 3.676167904 | I102: 24.5294081
A103: Magistre i alt | C103: 8.551737042 | D103: 11.50689204 | E103: 2.276554606 | F103: 1.999625772 | G103: 0 | I103: 24.33480946
A104: DJØF'ere i alt | C104: 14.77702239 | D104: 6.917607435 | E104: 1.845568515 | F104: 3.676167904 | G104: 0 | I104: 27.21636624
A111: Syddjurs
C113: Under 30 år | D113: 30 - 39 år | E113: 40 - 49 år | F113: 50 - 59 år | G113: Over 60 år | I113: I alt
A115: Civ. ing. | C115: 1.538077715 | D115: 0 | E115: 0.9075032745 | F115: 0.9998128859 | G115: 0 | I115: 3.445393875
A116: Diplom ing. | C116: 0 | D116: 1.999625772 | E116: 1.399613298 | F116: 0 | G116: 1.781326015 | I116: 5.180565085
A117: Cand. Scient. Tek | C117: 0.9075032745 | D117: 1.861161355 | E117: 0.3243310672 | F117: 0 | G117: 0 | I117: 3.092995696
A118: MA. Hum. | C118: 2.999438658 | D118: 12.64017963 | E118: 4.641676542 | F118: 1.34784507 | G118: 0 | I118: 21.6291399
A119: MA. Nat. | C119: 0 | D119: 0.4596769164 | E119: 0 | F119: 0 | G119: 1.538077715 | I119: 1.997754631
A120: MA. Ph.d. | C120: 0 | D120: 0.9998128859 | E120: 0 | F120: 0 | G120: 0 | I120: 0.9998128859
A121: MA. Samf. | C121: 0 | D121: 2.753071789 | E121: 0 | F121: 0.9998128859 | G121: 0 | I121: 3.752884675
A122: Øvrige Mag. | C122: 0 | D122: 0.6305744402 | E122: 0.9998128859 | F122: 0 | G122: 0 | I122: 1.630387326
A123: Agronom | C123: 0 | D123: 0 | E123: 0.9998128859 | F123: 0 | G123: 0 | I123: 0.9998128859
A124: Landsk. Arkt. | C124: 0 | D124: 0 | E124: 0 | F124: 0 | G124: 0 | I124: 0
A125: Hortonom | C125: 0 | D125: 0 | E125: 0 | F125: 0 | G125: 0 | I125: 0
A126: Forstkand. | C126: 0 | D126: 0 | E126: 0 | F126: 0 | G126: 0.9998128859 | I126: 0.9998128859
A127: Jordbrugsakad. | C127: 0 | D127: 0 | E127: 0.9998128859 | F127: 0 | G127: 0.9998128859 | I127: 1.999625772
A128: Mejeriing. | C128: 0 | D128: 0 | E128: 0 | F128: 0 | G128: 0 | I128: 0
A129: Levn.m.kand. | C129: 0 | D129: 0.9998128859 | E129: 0 | F129: 0 | G129: 0 | I129: 0.9998128859
A130: Dyrlæge | C130: 0 | D130: 0 | E130: 0 | F130: 0 | G130: 0 | I130: 0
A131: Farmaceut | C131: 0 | D131: 0 | E131: 0 | F131: 0 | G131: 0 | I131: 0
A132: Læge | C132: 0 | D132: 0.9998128859 | E132: 0 | F132: 0 | G132: 0 | I132: 0.9998128859
A133: Tandlæge | C133: 0 | D133: 0 | E133: 0 | F133: 0 | G133: 0 | I133: 0
A134: Arkitekt | C134: 0 | D134: 2.605251668 | E134: 0.7690388574 | F134: 0.9998128859 | G134: 0 | I134: 4.374103412
A135: Landinspek. | C135: 0 | D135: 0 | E135: 0 | F135: 0 | G135: 0 | I135: 0
A136: Bibliotekar | C136: 0 | D136: 0 | E136: 0 | F136: 0 | G136: 0 | I136: 0
A137: Musikudd. | C137: 0 | D137: 0 | E137: 0 | F137: 0 | G137: 0 | I137: 0
A138: Teolog | C138: 0 | D138: 0 | E138: 0 | F138: 0 | G138: 0 | I138: 0
A139: Psykolog | C139: 1.122684463 | D139: 0.9998128859 | E139: 0 | F139: 0 | G139: 0 | I139: 2.122497349
A140: Jurist | C140: 0 | D140: 0 | E140: 0.3998004117 | F140: 0 | G140: 0 | I140: 0.3998004117
A141: Økonom | C141: 0 | D141: 0 | E141: 0 | F141: 0 | G141: 0 | I141: 0
A142: Samf. Adm. | C142: 0 | D142: 2.511070916 | E142: 0 | F142: 1.999625772 | G142: 0 | I142: 4.510696688
A143: Cand. Merc. | C143: 0 | D143: 1.846192229 | E143: 0.5382648288 | F143: 0.9075032745 | G143: 0 | I143: 3.291960332
A144: HA | C144: 0 | D144: 0 | E144: 0 | F144: 0.5507391006 | G144: 0.8613484688 | I144: 1.412087569
A145: HD | C145: 0 | D145: 0 | E145: 0 | F145: 0 | G145: 0.6262084451 | I145: 0.6262084451
A146: Komm. og Sprog | C146: 0 | D146: 0 | E146: 0 | F146: 0 | G146: 1.999625772 | I146: 1.999625772
A147: Bygningskonst. | C147: 0 | D147: 0.3999875257 | E147: 0 | F147: 0 | G147: 0 | I147: 0.3999875257
A148: Cand. IT. | C148: 0 | D148: 0.4459552174 | E148: 0 | F148: 0 | G148: 0 | I148: 0.4459552174
A149: Bac. Samf. | C149: 0 | D149: 0 | E149: 0 | F149: 0 | G149: 0 | I149: 0
A150: Bac. Hum. | C150: 0 | D150: 0.9998128859 | E150: 0.7690388574 | F150: 0 | G150: 0 | I150: 1.768851743
A151: Bac. Nat. | C151: 0.9998128859 | D151: 0 | E151: 0 | F151: 0 | G151: 0 | I151: 0.9998128859
A152: Andre | C152: 0.9998128859 | D152: 1.722696938 | E152: 0.8108276679 | F152: 1.635377035 | G152: 0.5507391006 | I152: 5.719453627
A154: Total | C154: 8.567329882 | D154: 34.87450883 | E154: 12.55972058 | F154: 9.440528909 | G154: 8.357138402 | I154: 73.7992266
A156: Ingeniører i alt | C156: 1.538077715 | D156: 1.999625772 | E156: 2.307116572 | F156: 0.9998128859 | G156: 1.781326015 | I156: 8.62595896
A157: Magistre i alt | C157: 2.999438658 | D157: 17.48331566 | E157: 5.641489428 | F157: 2.347657955 | G157: 1.538077715 | I157: 30.00997942
A158: DJØF'ere i alt | C158: 0 | D158: 4.357263145 | E158: 0.9380652404 | F158: 3.457868147 | G158: 0.8613484688 | I158: 9.614545001
A165: Norddjurs
C167: Under 30 år | D167: 30 - 39 år | E167: 40 - 49 år | F167: 50 - 59 år | G167: Over 60 år | I167: I alt
A169: Civ. ing. | C169: 0.9998128859 | D169: 0 | E169: 0.3074908002 | F169: 0 | G169: 0 | I169: 1.307303686
A170: Diplom ing. | C170: 0 | D170: 0 | E170: 0 | F170: 1.491922909 | G170: 0 | I170: 1.491922909
A171: Cand. Scient. Tek | C171: 0.9998128859 | D171: 2.453065552 | E171: 0.5382648288 | F171: 0 | G171: 0 | I171: 3.991143267
A172: MA. Hum. | C172: 1.672176137 | D172: 0.8825547309 | E172: 0 | F172: 0.9998128859 | G172: 0.7690388574 | I172: 4.323582611
A173: MA. Nat. | C173: 0.9075032745 | D173: 0 | E173: 0 | F173: 0 | G173: 0.3262022079 | I173: 1.233705482
A174: MA. Ph.d. | C174: 0 | D174: 0 | E174: 0 | F174: 0 | G174: 0.9075032745 | I174: 0.9075032745
A175: MA. Samf. | C175: 0 | D175: 1.700243248 | E175: 0 | F175: 0 | G175: 0 | I175: 1.700243248
A176: Øvrige Mag. | C176: 0 | D176: 0 | E176: 0.7690388574 | F176: 0 | G176: 0 | I176: 0.7690388574
A177: Agronom | C177: 0 | D177: 0 | E177: 0 | F177: 0 | G177: 0 | I177: 0
A178: Landsk. Arkt. | C178: 0 | D178: 0 | E178: 0 | F178: 0 | G178: 0 | I178: 0
A179: Hortonom | C179: 0 | D179: 0 | E179: 0 | F179: 0 | G179: 0 | I179: 0
A180: Forstkand. | C180: 0 | D180: 0 | E180: 0.7690388574 | F180: 0 | G180: 0 | I180: 0.7690388574
A181: Jordbrugsakad. | C181: 0 | D181: 0 | E181: 0.7690388574 | F181: 0 | G181: 0 | I181: 0.7690388574
A182: Mejeriing. | C182: 0 | D182: 0 | E182: 0 | F182: 0 | G182: 0 | I182: 0
A183: Levn.m.kand. | C183: 0 | D183: 0 | E183: 0 | F183: 0 | G183: 0 | I183: 0
A184: Dyrlæge | C184: 0 | D184: 0 | E184: 0 | F184: 0 | G184: 0 | I184: 0
A185: Farmaceut | C185: 0 | D185: 0 | E185: 0 | F185: 0 | G185: 0 | I185: 0
A186: Læge | C186: 0 | D186: 0 | E186: 0 | F186: 0 | G186: 0 | I186: 0
A187: Tandlæge | C187: 0 | D187: 0 | E187: 0 | F187: 0 | G187: 0 | I187: 0
A188: Arkitekt | C188: 0 | D188: 0 | E188: 0 | F188: 0 | G188: 1.937254413 | I188: 1.937254413
A189: Landinspek. | C189: 0 | D189: 0 | E189: 0 | F189: 0 | G189: 0 | I189: 0
A190: Bibliotekar | C190: 0 | D190: 0 | E190: 0 | F190: 0 | G190: 0 | I190: 0
A191: Musikudd. | C191: 0 | D191: 0 | E191: 0.9998128859 | F191: 0 | G191: 0 | I191: 0.9998128859
A192: Teolog | C192: 0 | D192: 0 | E192: 0 | F192: 0.1690263831 | G192: 0 | I192: 0.1690263831
A193: Psykolog | C193: 0 | D193: 0.1690263831 | E193: 0 | F193: 0 | G193: 0 | I193: 0.1690263831
A194: Jurist | C194: 0 | D194: 0 | E194: 0 | F194: 0 | G194: 0 | I194: 0
A195: Økonom | C195: 0 | D195: 0 | E195: 0 | F195: 0.9998128859 | G195: 0 | I195: 0.9998128859
A196: Samf. Adm. | C196: 0 | D196: 0 | E196: 0 | F196: 0 | G196: 0 | I196: 0
A197: Cand. Merc. | C197: 1.630387326 | D197: 0.9998128859 | E197: 0 | F197: 0 | G197: 0 | I197: 2.630200212
A198: HA | C198: 0 | D198: 0 | E198: 0 | F198: 0 | G198: 0 | I198: 0
A199: HD | C199: 0.9998128859 | D199: 0 | E199: 0 | F199: 0 | G199: 0 | I199: 0.9998128859
A200: Komm. og Sprog | C200: 0 | D200: 0 | E200: 0 | F200: 0 | G200: 0 | I200: 0
A201: Bygningskonst. | C201: 1 | D201: 1 | E201: 0 | F201: 0 | G201: 0 | I201: 2
A202: Cand. IT. | C202: 0.9075032745 | D202: 0 | E202: 0 | F202: 0 | G202: 0 | I202: 0.9075032745
A203: Bac. Samf. | C203: 0 | D203: 0 | E203: 0 | F203: 0 | G203: 0 | I203: 0
A204: Bac. Hum. | C204: 0 | D204: 0 | E204: 0 | F204: 0.8151936631 | G204: 0 | I204: 0.8151936631
A205: Bac. Nat. | C205: 0.4459552174 | D205: 0 | E205: 0.3074908002 | F205: 0 | G205: 0 | I205: 0.7534460176
A206: Andre | C206: 0 | D206: 0 | E206: 0 | F206: 0 | G206: 0.1846192229 | I206: 0.1846192229
A208: Total | C208: 9.562963887 | D208: 7.2047028 | E208: 3.69113703 | F208: 4.475768727 | G208: 4.124617975 | I208: 29.05919042
A210: Ingeniører i alt | C210: 0.9998128859 | D210: 0 | E210: 0.3074908002 | F210: 1.491922909 | G210: 0 | I210: 2.799226595
A211: Magistre i alt | C211: 2.579679411 | D211: 2.582797979 | E211: 0.7690388574 | F211: 0.9998128859 | G211: 2.00274434 | I211: 8.934073473
A212: DJØF'ere i alt | C212: 1.630387326 | D212: 0.9998128859 | E212: 0 | F212: 0.9998128859 | G212: 0 | I212: 3.630013098
A219: Favrskov
C221: Under 30 år | D221: 30 - 39 år | E221: 40 - 49 år | F221: 50 - 59 år | G221: Over 60 år | I221: I alt
A223: Civ. ing. | C223: 1.999625772 | D223: 0.9998128859 | E223: 1.067173954 | F223: 0 | G223: 0 | I223: 4.066612611
A224: Diplom ing. | C224: 0 | D224: 1.984032932 | E224: 0 | F224: 0.9998128859 | G224: 0 | I224: 2.983845818
A225: Cand. Scient. Tek | C225: 2.999438658 | D225: 2.307116572 | E225: 0 | F225: 0 | G225: 0 | I225: 5.30655523
A226: MA. Hum. | C226: 3.630013098 | D226: 8.05276617 | E226: 1.654088443 | F226: 0.9998128859 | G226: 0 | I226: 14.3366806
A227: MA. Nat. | C227: 0 | D227: 0.9998128859 | E227: 0.9075032745 | F227: 0 | G227: 0 | I227: 1.90731616
A228: MA. Ph.d. | C228: 0 | D228: 0 | E228: 0 | F228: 0 | G228: 0 | I228: 0
A229: MA. Samf. | C229: 0 | D229: 1.840578806 | E229: 0 | F229: 0 | G229: 0 | I229: 1.840578806
A230: Øvrige Mag. | C230: 0 | D230: 0 | E230: 0 | F230: 0 | G230: 0 | I230: 0
A231: Agronom | C231: 0 | D231: 0 | E231: 0 | F231: 0 | G231: 0.1228715774 | I231: 0.1228715774
A232: Landsk. Arkt. | C232: 0 | D232: 0 | E232: 0 | F232: 0 | G232: 0 | I232: 0
A233: Hortonom | C233: 0 | D233: 0 | E233: 0 | F233: 0 | G233: 0 | I233: 0
A234: Forstkand. | C234: 0 | D234: 0 | E234: 0 | F234: 0 | G234: 0 | I234: 0
A235: Jordbrugsakad. | C235: 0 | D235: 0 | E235: 0 | F235: 0 | G235: 0.1228715774 | I235: 0.1228715774
A236: Mejeriing. | C236: 0 | D236: 0 | E236: 0 | F236: 0 | G236: 0 | I236: 0
A237: Levn.m.kand. | C237: 0 | D237: 0 | E237: 0 | F237: 0 | G237: 0 | I237: 0
A238: Dyrlæge | C238: 0 | D238: 0 | E238: 0 | F238: 0 | G238: 0 | I238: 0
A239: Farmaceut | C239: 0 | D239: 0 | E239: 0 | F239: 0 | G239: 0 | I239: 0
A240: Læge | C240: 0 | D240: 0 | E240: 0 | F240: 0 | G240: 0 | I240: 0
A241: Tandlæge | C241: 0 | D241: 0 | E241: 0 | F241: 0 | G241: 0 | I241: 0
A242: Arkitekt | C242: 0 | D242: 2.168652155 | E242: 0.9998128859 | F242: 0 | G242: 0.9998128859 | I242: 4.168277927
A243: Landinspek. | C243: 0 | D243: 0 | E243: 0 | F243: 0 | G243: 0 | I243: 0
... 329 more rows

Sheet Tabel 4P ØJ
A1: Tabel 4. Ledighedsberørte - aldersfordelt
A3: Østjylland
C5: Under 30 år | D5: 30 - 39 år | E5: 40 - 49 år | F5: 50 - 59 år | G5: Over 60 år | I5: I alt
A7: Civ. ing. | C7: =IF(OR('Tabel 4F ØJ'!C7<5,'Tabel 4 ØJ'!C7<0.5),"-",IFERROR('Tabel 4 ØJ'!C7/'Tabel 4F ØJ'!C7*100,"-")) -> 13.85842473 | D7: =IF(OR('Tabel 4F ØJ'!D7<5,'Tabel 4 ØJ'!D7<0.5),"-",IFERROR('Tabel 4 ØJ'!D7/'Tabel 4F ØJ'!D7*100,"-")) -> 1.425313569 | E7: =IF(OR('Tabel 4F ØJ'!E7<5,'Tabel 4 ØJ'!E7<0.5),"-",IFERROR('Tabel 4 ØJ'!E7/'Tabel 4F ØJ'!E7*100,"-")) -> 0.7960199005 | F7: =IF(OR('Tabel 4F ØJ'!F7<5,'Tabel 4 ØJ'!F7<0.5),"-",IFERROR('Tabel 4 ØJ'!F7/'Tabel 4F ØJ'!F7*100,"-")) -> 0.988700565 | G7: =IF(OR('Tabel 4F ØJ'!G7<5,'Tabel 4 ØJ'!G7<0.5),"-",IFERROR('Tabel 4 ØJ'!G7/'Tabel 4F ØJ'!G7*100,"-")) -> 1.895734597 | I7: =IF(OR('Tabel 4F ØJ'!I7<5,'Tabel 4 ØJ'!I7<0.5),"-",IFERROR('Tabel 4 ØJ'!I7/'Tabel 4F ØJ'!I7*100,"-")) -> 3.909421064
A8: Diplom ing. | C8: =IF(OR('Tabel 4F ØJ'!C8<5,'Tabel 4 ØJ'!C8<0.5),"-",IFERROR('Tabel 4 ØJ'!C8/'Tabel 4F ØJ'!C8*100,"-")) -> 9.090909091 | D8: =IF(OR('Tabel 4F ØJ'!D8<5,'Tabel 4 ØJ'!D8<0.5),"-",IFERROR('Tabel 4 ØJ'!D8/'Tabel 4F ØJ'!D8*100,"-")) -> 2.62273033 | E8: =IF(OR('Tabel 4F ØJ'!E8<5,'Tabel 4 ØJ'!E8<0.5),"-",IFERROR('Tabel 4 ØJ'!E8/'Tabel 4F ØJ'!E8*100,"-")) -> 0.9450679268 | F8: =IF(OR('Tabel 4F ØJ'!F8<5,'Tabel 4 ØJ'!F8<0.5),"-",IFERROR('Tabel 4 ØJ'!F8/'Tabel 4F ØJ'!F8*100,"-")) -> 0.8224479923 | G8: =IF(OR('Tabel 4F ØJ'!G8<5,'Tabel 4 ØJ'!G8<0.5),"-",IFERROR('Tabel 4 ØJ'!G8/'Tabel 4F ØJ'!G8*100,"-")) -> 2.699784017 | I8: =IF(OR('Tabel 4F ØJ'!I8<5,'Tabel 4 ØJ'!I8<0.5),"-",IFERROR('Tabel 4 ØJ'!I8/'Tabel 4F ØJ'!I8*100,"-")) -> 2.620574296
A9: Cand. Scient. Tek | C9: =IF(OR('Tabel 4F ØJ'!C9<5,'Tabel 4 ØJ'!C9<0.5),"-",IFERROR('Tabel 4 ØJ'!C9/'Tabel 4F ØJ'!C9*100,"-")) -> 18.3714002 | D9: =IF(OR('Tabel 4F ØJ'!D9<5,'Tabel 4 ØJ'!D9<0.5),"-",IFERROR('Tabel 4 ØJ'!D9/'Tabel 4F ØJ'!D9*100,"-")) -> 5.315068493 | E9: =IF(OR('Tabel 4F ØJ'!E9<5,'Tabel 4 ØJ'!E9<0.5),"-",IFERROR('Tabel 4 ØJ'!E9/'Tabel 4F ØJ'!E9*100,"-")) -> 2.985074627 | F9: =IF(OR('Tabel 4F ØJ'!F9<5,'Tabel 4 ØJ'!F9<0.5),"-",IFERROR('Tabel 4 ØJ'!F9/'Tabel 4F ØJ'!F9*100,"-")) -> 2.857142857 | G9: =IF(OR('Tabel 4F ØJ'!G9<5,'Tabel 4 ØJ'!G9<0.5),"-",IFERROR('Tabel 4 ØJ'!G9/'Tabel 4F ØJ'!G9*100,"-")) -> 8.333333333 | I9: =IF(OR('Tabel 4F ØJ'!I9<5,'Tabel 4 ØJ'!I9<0.5),"-",IFERROR('Tabel 4 ØJ'!I9/'Tabel 4F ØJ'!I9*100,"-")) -> 8.715728716
A10: MA. Hum. | C10: =IF(OR('Tabel 4F ØJ'!C10<5,'Tabel 4 ØJ'!C10<0.5),"-",IFERROR('Tabel 4 ØJ'!C10/'Tabel 4F ØJ'!C10*100,"-")) -> 27.01492537 | D10: =IF(OR('Tabel 4F ØJ'!D10<5,'Tabel 4 ØJ'!D10<0.5),"-",IFERROR('Tabel 4 ØJ'!D10/'Tabel 4F ØJ'!D10*100,"-")) -> 10.36217304 | E10: =IF(OR('Tabel 4F ØJ'!E10<5,'Tabel 4 ØJ'!E10<0.5),"-",IFERROR('Tabel 4 ØJ'!E10/'Tabel 4F ØJ'!E10*100,"-")) -> 3.857906799 | F10: =IF(OR('Tabel 4F ØJ'!F10<5,'Tabel 4 ØJ'!F10<0.5),"-",IFERROR('Tabel 4 ØJ'!F10/'Tabel 4F ØJ'!F10*100,"-")) -> 4.712460064 | G10: =IF(OR('Tabel 4F ØJ'!G10<5,'Tabel 4 ØJ'!G10<0.5),"-",IFERROR('Tabel 4 ØJ'!G10/'Tabel 4F ØJ'!G10*100,"-")) -> 5.785123967 | I10: =IF(OR('Tabel 4F ØJ'!I10<5,'Tabel 4 ØJ'!I10<0.5),"-",IFERROR('Tabel 4 ØJ'!I10/'Tabel 4F ØJ'!I10*100,"-")) -> 9.90087598
A11: MA. Nat. | C11: =IF(OR('Tabel 4F ØJ'!C11<5,'Tabel 4 ØJ'!C11<0.5),"-",IFERROR('Tabel 4 ØJ'!C11/'Tabel 4F ØJ'!C11*100,"-")) -> 19.41747573 | D11: =IF(OR('Tabel 4F ØJ'!D11<5,'Tabel 4 ØJ'!D11<0.5),"-",IFERROR('Tabel 4 ØJ'!D11/'Tabel 4F ØJ'!D11*100,"-")) -> 4.905063291 | E11: =IF(OR('Tabel 4F ØJ'!E11<5,'Tabel 4 ØJ'!E11<0.5),"-",IFERROR('Tabel 4 ØJ'!E11/'Tabel 4F ØJ'!E11*100,"-")) -> 1.093560146 | F11: =IF(OR('Tabel 4F ØJ'!F11<5,'Tabel 4 ØJ'!F11<0.5),"-",IFERROR('Tabel 4 ØJ'!F11/'Tabel 4F ØJ'!F11*100,"-")) -> 0.9673518742 | G11: =IF(OR('Tabel 4F ØJ'!G11<5,'Tabel 4 ØJ'!G11<0.5),"-",IFERROR('Tabel 4 ØJ'!G11/'Tabel 4F ØJ'!G11*100,"-")) -> 3.278688525 | I11: =IF(OR('Tabel 4F ØJ'!I11<5,'Tabel 4 ØJ'!I11<0.5),"-",IFERROR('Tabel 4 ØJ'!I11/'Tabel 4F ØJ'!I11*100,"-")) -> 4.058167061
A12: MA. Ph.d. | C12: =IF(OR('Tabel 4F ØJ'!C12<5,'Tabel 4 ØJ'!C12<0.5),"-",IFERROR('Tabel 4 ØJ'!C12/'Tabel 4F ØJ'!C12*100,"-")) -> - | D12: =IF(OR('Tabel 4F ØJ'!D12<5,'Tabel 4 ØJ'!D12<0.5),"-",IFERROR('Tabel 4 ØJ'!D12/'Tabel 4F ØJ'!D12*100,"-")) -> 2.89017341 | E12: =IF(OR('Tabel 4F ØJ'!E12<5,'Tabel 4 ØJ'!E12<0.5),"-",IFERROR('Tabel 4 ØJ'!E12/'Tabel 4F ØJ'!E12*100,"-")) -> 1.255230126 | F12: =IF(OR('Tabel 4F ØJ'!F12<5,'Tabel 4 ØJ'!F12<0.5),"-",IFERROR('Tabel 4 ØJ'!F12/'Tabel 4F ØJ'!F12*100,"-")) -> 2.272727273 | G12: =IF(OR('Tabel 4F ØJ'!G12<5,'Tabel 4 ØJ'!G12<0.5),"-",IFERROR('Tabel 4 ØJ'!G12/'Tabel 4F ØJ'!G12*100,"-")) -> 8.571428571 | I12: =IF(OR('Tabel 4F ØJ'!I12<5,'Tabel 4 ØJ'!I12<0.5),"-",IFERROR('Tabel 4 ØJ'!I12/'Tabel 4F ØJ'!I12*100,"-")) -> 2.385008518
A13: MA. Samf. | C13: =IF(OR('Tabel 4F ØJ'!C13<5,'Tabel 4 ØJ'!C13<0.5),"-",IFERROR('Tabel 4 ØJ'!C13/'Tabel 4F ØJ'!C13*100,"-")) -> 31.45695364 | D13: =IF(OR('Tabel 4F ØJ'!D13<5,'Tabel 4 ØJ'!D13<0.5),"-",IFERROR('Tabel 4 ØJ'!D13/'Tabel 4F ØJ'!D13*100,"-")) -> 11.69064748 | E13: =IF(OR('Tabel 4F ØJ'!E13<5,'Tabel 4 ØJ'!E13<0.5),"-",IFERROR('Tabel 4 ØJ'!E13/'Tabel 4F ØJ'!E13*100,"-")) -> 1.538461538 | F13: =IF(OR('Tabel 4F ØJ'!F13<5,'Tabel 4 ØJ'!F13<0.5),"-",IFERROR('Tabel 4 ØJ'!F13/'Tabel 4F ØJ'!F13*100,"-")) -> 8 | G13: =IF(OR('Tabel 4F ØJ'!G13<5,'Tabel 4 ØJ'!G13<0.5),"-",IFERROR('Tabel 4 ØJ'!G13/'Tabel 4F ØJ'!G13*100,"-")) -> - | I13: =IF(OR('Tabel 4F ØJ'!I13<5,'Tabel 4 ØJ'!I13<0.5),"-",IFERROR('Tabel 4 ØJ'!I13/'Tabel 4F ØJ'!I13*100,"-")) -> 17.03239289
A14: Øvrige Mag. | C14: =IF(OR('Tabel 4F ØJ'!C14<5,'Tabel 4 ØJ'!C14<0.5),"-",IFERROR('Tabel 4 ØJ'!C14/'Tabel 4F ØJ'!C14*100,"-")) -> 32.16374269 | D14: =IF(OR('Tabel 4F ØJ'!D14<5,'Tabel 4 ØJ'!D14<0.5),"-",IFERROR('Tabel 4 ØJ'!D14/'Tabel 4F ØJ'!D14*100,"-")) -> 15.2866242 | E14: =IF(OR('Tabel 4F ØJ'!E14<5,'Tabel 4 ØJ'!E14<0.5),"-",IFERROR('Tabel 4 ØJ'!E14/'Tabel 4F ØJ'!E14*100,"-")) -> 6.040268456 | F14: =IF(OR('Tabel 4F ØJ'!F14<5,'Tabel 4 ØJ'!F14<0.5),"-",IFERROR('Tabel 4 ØJ'!F14/'Tabel 4F ØJ'!F14*100,"-")) -> 3.311258278 | G14: =IF(OR('Tabel 4F ØJ'!G14<5,'Tabel 4 ØJ'!G14<0.5),"-",IFERROR('Tabel 4 ØJ'!G14/'Tabel 4F ØJ'!G14*100,"-")) -> 2.380952381 | I14: =IF(OR('Tabel 4F ØJ'!I14<5,'Tabel 4 ØJ'!I14<0.5),"-",IFERROR('Tabel 4 ØJ'!I14/'Tabel 4F ØJ'!I14*100,"-")) -> 13.34269663
A15: Agronom | C15: =IF(OR('Tabel 4F ØJ'!C15<5,'Tabel 4 ØJ'!C15<0.5),"-",IFERROR('Tabel 4 ØJ'!C15/'Tabel 4F ØJ'!C15*100,"-")) -> 7.692307692 | D15: =IF(OR('Tabel 4F ØJ'!D15<5,'Tabel 4 ØJ'!D15<0.5),"-",IFERROR('Tabel 4 ØJ'!D15/'Tabel 4F ØJ'!D15*100,"-")) -> 2.702702703 | E15: =IF(OR('Tabel 4F ØJ'!E15<5,'Tabel 4 ØJ'!E15<0.5),"-",IFERROR('Tabel 4 ØJ'!E15/'Tabel 4F ØJ'!E15*100,"-")) -> 1.428571429 | F15: =IF(OR('Tabel 4F ØJ'!F15<5,'Tabel 4 ØJ'!F15<0.5),"-",IFERROR('Tabel 4 ØJ'!F15/'Tabel 4F ØJ'!F15*100,"-")) -> - | G15: =IF(OR('Tabel 4F ØJ'!G15<5,'Tabel 4 ØJ'!G15<0.5),"-",IFERROR('Tabel 4 ØJ'!G15/'Tabel 4F ØJ'!G15*100,"-")) -> 5.194805195 | I15: =IF(OR('Tabel 4F ØJ'!I15<5,'Tabel 4 ØJ'!I15<0.5),"-",IFERROR('Tabel 4 ØJ'!I15/'Tabel 4F ØJ'!I15*100,"-")) -> 2.083333333
A16: Landsk. Arkt. | C16: =IF(OR('Tabel 4F ØJ'!C16<5,'Tabel 4 ØJ'!C16<0.5),"-",IFERROR('Tabel 4 ØJ'!C16/'Tabel 4F ØJ'!C16*100,"-")) -> - | D16: =IF(OR('Tabel 4F ØJ'!D16<5,'Tabel 4 ØJ'!D16<0.5),"-",IFERROR('Tabel 4 ØJ'!D16/'Tabel 4F ØJ'!D16*100,"-")) -> - | E16: =IF(OR('Tabel 4F ØJ'!E16<5,'Tabel 4 ØJ'!E16<0.5),"-",IFERROR('Tabel 4 ØJ'!E16/'Tabel 4F ØJ'!E16*100,"-")) -> 5.263157895 | F16: =IF(OR('Tabel 4F ØJ'!F16<5,'Tabel 4 ØJ'!F16<0.5),"-",IFERROR('Tabel 4 ØJ'!F16/'Tabel 4F ØJ'!F16*100,"-")) -> - | G16: =IF(OR('Tabel 4F ØJ'!G16<5,'Tabel 4 ØJ'!G16<0.5),"-",IFERROR('Tabel 4 ØJ'!G16/'Tabel 4F ØJ'!G16*100,"-")) -> - | I16: =IF(OR('Tabel 4F ØJ'!I16<5,'Tabel 4 ØJ'!I16<0.5),"-",IFERROR('Tabel 4 ØJ'!I16/'Tabel 4F ØJ'!I16*100,"-")) -> 4.761904762
A17: Hortonom | C17: =IF(OR('Tabel 4F ØJ'!C17<5,'Tabel 4 ØJ'!C17<0.5),"-",IFERROR('Tabel 4 ØJ'!C17/'Tabel 4F ØJ'!C17*100,"-")) -> - | D17: =IF(OR('Tabel 4F ØJ'!D17<5,'Tabel 4 ØJ'!D17<0.5),"-",IFERROR('Tabel 4 ØJ'!D17/'Tabel 4F ØJ'!D17*100,"-")) -> - | E17: =IF(OR('Tabel 4F ØJ'!E17<5,'Tabel 4 ØJ'!E17<0.5),"-",IFERROR('Tabel 4 ØJ'!E17/'Tabel 4F ØJ'!E17*100,"-")) -> - | F17: =IF(OR('Tabel 4F ØJ'!F17<5,'Tabel 4 ØJ'!F17<0.5),"-",IFERROR('Tabel 4 ØJ'!F17/'Tabel 4F ØJ'!F17*100,"-")) -> - | G17: =IF(OR('Tabel 4F ØJ'!G17<5,'Tabel 4 ØJ'!G17<0.5),"-",IFERROR('Tabel 4 ØJ'!G17/'Tabel 4F ØJ'!G17*100,"-")) -> 28.57142857 | I17: =IF(OR('Tabel 4F ØJ'!I17<5,'Tabel 4 ØJ'!I17<0.5),"-",IFERROR('Tabel 4 ØJ'!I17/'Tabel 4F ØJ'!I17*100,"-")) -> 7.692307692
A18: Forstkand. | C18: =IF(OR('Tabel 4F ØJ'!C18<5,'Tabel 4 ØJ'!C18<0.5),"-",IFERROR('Tabel 4 ØJ'!C18/'Tabel 4F ØJ'!C18*100,"-")) -> - | D18: =IF(OR('Tabel 4F ØJ'!D18<5,'Tabel 4 ØJ'!D18<0.5),"-",IFERROR('Tabel 4 ØJ'!D18/'Tabel 4F ØJ'!D18*100,"-")) -> - | E18: =IF(OR('Tabel 4F ØJ'!E18<5,'Tabel 4 ØJ'!E18<0.5),"-",IFERROR('Tabel 4 ØJ'!E18/'Tabel 4F ØJ'!E18*100,"-")) -> 4.545454545 | F18: =IF(OR('Tabel 4F ØJ'!F18<5,'Tabel 4 ØJ'!F18<0.5),"-",IFERROR('Tabel 4 ØJ'!F18/'Tabel 4F ØJ'!F18*100,"-")) -> - | G18: =IF(OR('Tabel 4F ØJ'!G18<5,'Tabel 4 ØJ'!G18<0.5),"-",IFERROR('Tabel 4 ØJ'!G18/'Tabel 4F ØJ'!G18*100,"-")) -> 11.11111111 | I18: =IF(OR('Tabel 4F ØJ'!I18<5,'Tabel 4 ØJ'!I18<0.5),"-",IFERROR('Tabel 4 ØJ'!I18/'Tabel 4F ØJ'!I18*100,"-")) -> 3.773584906
A19: Jordbrugsakad. | C19: =IF(OR('Tabel 4F ØJ'!C19<5,'Tabel 4 ØJ'!C19<0.5),"-",IFERROR('Tabel 4 ØJ'!C19/'Tabel 4F ØJ'!C19*100,"-")) -> 13.33333333 | D19: =IF(OR('Tabel 4F ØJ'!D19<5,'Tabel 4 ØJ'!D19<0.5),"-",IFERROR('Tabel 4 ØJ'!D19/'Tabel 4F ØJ'!D19*100,"-")) -> 1.724137931 | E19: =IF(OR('Tabel 4F ØJ'!E19<5,'Tabel 4 ØJ'!E19<0.5),"-",IFERROR('Tabel 4 ØJ'!E19/'Tabel 4F ØJ'!E19*100,"-")) -> 2.564102564 | F19: =IF(OR('Tabel 4F ØJ'!F19<5,'Tabel 4 ØJ'!F19<0.5),"-",IFERROR('Tabel 4 ØJ'!F19/'Tabel 4F ØJ'!F19*100,"-")) -> - | G19: =IF(OR('Tabel 4F ØJ'!G19<5,'Tabel 4 ØJ'!G19<0.5),"-",IFERROR('Tabel 4 ØJ'!G19/'Tabel 4F ØJ'!G19*100,"-")) -> 7.446808511 | I19: =IF(OR('Tabel 4F ØJ'!I19<5,'Tabel 4 ØJ'!I19<0.5),"-",IFERROR('Tabel 4 ØJ'!I19/'Tabel 4F ØJ'!I19*100,"-")) -> 2.84463895
A20: Mejeriing. | C20: =IF(OR('Tabel 4F ØJ'!C20<5,'Tabel 4 ØJ'!C20<0.5),"-",IFERROR('Tabel 4 ØJ'!C20/'Tabel 4F ØJ'!C20*100,"-")) -> - | D20: =IF(OR('Tabel 4F ØJ'!D20<5,'Tabel 4 ØJ'!D20<0.5),"-",IFERROR('Tabel 4 ØJ'!D20/'Tabel 4F ØJ'!D20*100,"-")) -> - | E20: =IF(OR('Tabel 4F ØJ'!E20<5,'Tabel 4 ØJ'!E20<0.5),"-",IFERROR('Tabel 4 ØJ'!E20/'Tabel 4F ØJ'!E20*100,"-")) -> - | F20: =IF(OR('Tabel 4F ØJ'!F20<5,'Tabel 4 ØJ'!F20<0.5),"-",IFERROR('Tabel 4 ØJ'!F20/'Tabel 4F ØJ'!F20*100,"-")) -> 2.702702703 | G20: =IF(OR('Tabel 4F ØJ'!G20<5,'Tabel 4 ØJ'!G20<0.5),"-",IFERROR('Tabel 4 ØJ'!G20/'Tabel 4F ØJ'!G20*100,"-")) -> 4.166666667 | I20: =IF(OR('Tabel 4F ØJ'!I20<5,'Tabel 4 ØJ'!I20<0.5),"-",IFERROR('Tabel 4 ØJ'!I20/'Tabel 4F ØJ'!I20*100,"-")) -> 2.272727273
A21: Levn.m.kand. | C21: =IF(OR('Tabel 4F ØJ'!C21<5,'Tabel 4 ØJ'!C21<0.5),"-",IFERROR('Tabel 4 ØJ'!C21/'Tabel 4F ØJ'!C21*100,"-")) -> - | D21: =IF(OR('Tabel 4F ØJ'!D21<5,'Tabel 4 ØJ'!D21<0.5),"-",IFERROR('Tabel 4 ØJ'!D21/'Tabel 4F ØJ'!D21*100,"-")) -> 20 | E21: =IF(OR('Tabel 4F ØJ'!E21<5,'Tabel 4 ØJ'!E21<0.5),"-",IFERROR('Tabel 4 ØJ'!E21/'Tabel 4F ØJ'!E21*100,"-")) -> - | F21: =IF(OR('Tabel 4F ØJ'!F21<5,'Tabel 4 ØJ'!F21<0.5),"-",IFERROR('Tabel 4 ØJ'!F21/'Tabel 4F ØJ'!F21*100,"-")) -> - | G21: =IF(OR('Tabel 4F ØJ'!G21<5,'Tabel 4 ØJ'!G21<0.5),"-",IFERROR('Tabel 4 ØJ'!G21/'Tabel 4F ØJ'!G21*100,"-")) -> - | I21: =IF(OR('Tabel 4F ØJ'!I21<5,'Tabel 4 ØJ'!I21<0.5),"-",IFERROR('Tabel 4 ØJ'!I21/'Tabel 4F ØJ'!I21*100,"-")) -> 11.42857143
A22: Dyrlæge | C22: =IF(OR('Tabel 4F ØJ'!C22<5,'Tabel 4 ØJ'!C22<0.5),"-",IFERROR('Tabel 4 ØJ'!C22/'Tabel 4F ØJ'!C22*100,"-")) -> - | D22: =IF(OR('Tabel 4F ØJ'!D22<5,'Tabel 4 ØJ'!D22<0.5),"-",IFERROR('Tabel 4 ØJ'!D22/'Tabel 4F ØJ'!D22*100,"-")) -> 1.123595506 | E22: =IF(OR('Tabel 4F ØJ'!E22<5,'Tabel 4 ØJ'!E22<0.5),"-",IFERROR('Tabel 4 ØJ'!E22/'Tabel 4F ØJ'!E22*100,"-")) -> - | F22: =IF(OR('Tabel 4F ØJ'!F22<5,'Tabel 4 ØJ'!F22<0.5),"-",IFERROR('Tabel 4 ØJ'!F22/'Tabel 4F ØJ'!F22*100,"-")) -> - | G22: =IF(OR('Tabel 4F ØJ'!G22<5,'Tabel 4 ØJ'!G22<0.5),"-",IFERROR('Tabel 4 ØJ'!G22/'Tabel 4F ØJ'!G22*100,"-")) -> - | I22: =IF(OR('Tabel 4F ØJ'!I22<5,'Tabel 4 ØJ'!I22<0.5),"-",IFERROR('Tabel 4 ØJ'!I22/'Tabel 4F ØJ'!I22*100,"-")) -> 0.4166666667
A23: Farmaceut | C23: =IF(OR('Tabel 4F ØJ'!C23<5,'Tabel 4 ØJ'!C23<0.5),"-",IFERROR('Tabel 4 ØJ'!C23/'Tabel 4F ØJ'!C23*100,"-")) -> 16.93548387 | D23: =IF(OR('Tabel 4F ØJ'!D23<5,'Tabel 4 ØJ'!D23<0.5),"-",IFERROR('Tabel 4 ØJ'!D23/'Tabel 4F ØJ'!D23*100,"-")) -> 7.586206897 | E23: =IF(OR('Tabel 4F ØJ'!E23<5,'Tabel 4 ØJ'!E23<0.5),"-",IFERROR('Tabel 4 ØJ'!E23/'Tabel 4F ØJ'!E23*100,"-")) -> - | F23: =IF(OR('Tabel 4F ØJ'!F23<5,'Tabel 4 ØJ'!F23<0.5),"-",IFERROR('Tabel 4 ØJ'!F23/'Tabel 4F ØJ'!F23*100,"-")) -> 2.127659574 | G23: =IF(OR('Tabel 4F ØJ'!G23<5,'Tabel 4 ØJ'!G23<0.5),"-",IFERROR('Tabel 4 ØJ'!G23/'Tabel 4F ØJ'!G23*100,"-")) -> - | I23: =IF(OR('Tabel 4F ØJ'!I23<5,'Tabel 4 ØJ'!I23<0.5),"-",IFERROR('Tabel 4 ØJ'!I23/'Tabel 4F ØJ'!I23*100,"-")) -> 8.707124011
A24: Læge | C24: =IF(OR('Tabel 4F ØJ'!C24<5,'Tabel 4 ØJ'!C24<0.5),"-",IFERROR('Tabel 4 ØJ'!C24/'Tabel 4F ØJ'!C24*100,"-")) -> 13.39449541 | D24: =IF(OR('Tabel 4F ØJ'!D24<5,'Tabel 4 ØJ'!D24<0.5),"-",IFERROR('Tabel 4 ØJ'!D24/'Tabel 4F ØJ'!D24*100,"-")) -> 2.22734255 | E24: =IF(OR('Tabel 4F ØJ'!E24<5,'Tabel 4 ØJ'!E24<0.5),"-",IFERROR('Tabel 4 ØJ'!E24/'Tabel 4F ØJ'!E24*100,"-")) -> 0.5836575875 | F24: =IF(OR('Tabel 4F ØJ'!F24<5,'Tabel 4 ØJ'!F24<0.5),"-",IFERROR('Tabel 4 ØJ'!F24/'Tabel 4F ØJ'!F24*100,"-")) -> - | G24: =IF(OR('Tabel 4F ØJ'!G24<5,'Tabel 4 ØJ'!G24<0.5),"-",IFERROR('Tabel 4 ØJ'!G24/'Tabel 4F ØJ'!G24*100,"-")) -> - | I24: =IF(OR('Tabel 4F ØJ'!I24<5,'Tabel 4 ØJ'!I24<0.5),"-",IFERROR('Tabel 4 ØJ'!I24/'Tabel 4F ØJ'!I24*100,"-")) -> 3.707627119
A25: Tandlæge | C25: =IF(OR('Tabel 4F ØJ'!C25<5,'Tabel 4 ØJ'!C25<0.5),"-",IFERROR('Tabel 4 ØJ'!C25/'Tabel 4F ØJ'!C25*100,"-")) -> 21.21212121 | D25: =IF(OR('Tabel 4F ØJ'!D25<5,'Tabel 4 ØJ'!D25<0.5),"-",IFERROR('Tabel 4 ØJ'!D25/'Tabel 4F ØJ'!D25*100,"-")) -> 1.898734177 | E25: =IF(OR('Tabel 4F ØJ'!E25<5,'Tabel 4 ØJ'!E25<0.5),"-",IFERROR('Tabel 4 ØJ'!E25/'Tabel 4F ØJ'!E25*100,"-")) -> - | F25: =IF(OR('Tabel 4F ØJ'!F25<5,'Tabel 4 ØJ'!F25<0.5),"-",IFERROR('Tabel 4 ØJ'!F25/'Tabel 4F ØJ'!F25*100,"-")) -> - | G25: =IF(OR('Tabel 4F ØJ'!G25<5,'Tabel 4 ØJ'!G25<0.5),"-",IFERROR('Tabel 4 ØJ'!G25/'Tabel 4F ØJ'!G25*100,"-")) -> - | I25: =IF(OR('Tabel 4F ØJ'!I25<5,'Tabel 4 ØJ'!I25<0.5),"-",IFERROR('Tabel 4 ØJ'!I25/'Tabel 4F ØJ'!I25*100,"-")) -> 4.90797546
A26: Arkitekt | C26: =IF(OR('Tabel 4F ØJ'!C26<5,'Tabel 4 ØJ'!C26<0.5),"-",IFERROR('Tabel 4 ØJ'!C26/'Tabel 4F ØJ'!C26*100,"-")) -> 30.46357616 | D26: =IF(OR('Tabel 4F ØJ'!D26<5,'Tabel 4 ØJ'!D26<0.5),"-",IFERROR('Tabel 4 ØJ'!D26/'Tabel 4F ØJ'!D26*100,"-")) -> 9.782608696 | E26: =IF(OR('Tabel 4F ØJ'!E26<5,'Tabel 4 ØJ'!E26<0.5),"-",IFERROR('Tabel 4 ØJ'!E26/'Tabel 4F ØJ'!E26*100,"-")) -> 2.303262956 | F26: =IF(OR('Tabel 4F ØJ'!F26<5,'Tabel 4 ØJ'!F26<0.5),"-",IFERROR('Tabel 4 ØJ'!F26/'Tabel 4F ØJ'!F26*100,"-")) -> 2.807017544 | G26: =IF(OR('Tabel 4F ØJ'!G26<5,'Tabel 4 ØJ'!G26<0.5),"-",IFERROR('Tabel 4 ØJ'!G26/'Tabel 4F ØJ'!G26*100,"-")) -> 7.647058824 | I26: =IF(OR('Tabel 4F ØJ'!I26<5,'Tabel 4 ØJ'!I26<0.5),"-",IFERROR('Tabel 4 ØJ'!I26/'Tabel 4F ØJ'!I26*100,"-")) -> 7.813484562
A27: Landinspek. | C27: =IF(OR('Tabel 4F ØJ'!C27<5,'Tabel 4 ØJ'!C27<0.5),"-",IFERROR('Tabel 4 ØJ'!C27/'Tabel 4F ØJ'!C27*100,"-")) -> 7.142857143 | D27: =IF(OR('Tabel 4F ØJ'!D27<5,'Tabel 4 ØJ'!D27<0.5),"-",IFERROR('Tabel 4 ØJ'!D27/'Tabel 4F ØJ'!D27*100,"-")) -> - | E27: =IF(OR('Tabel 4F ØJ'!E27<5,'Tabel 4 ØJ'!E27<0.5),"-",IFERROR('Tabel 4 ØJ'!E27/'Tabel 4F ØJ'!E27*100,"-")) -> - | F27: =IF(OR('Tabel 4F ØJ'!F27<5,'Tabel 4 ØJ'!F27<0.5),"-",IFERROR('Tabel 4 ØJ'!F27/'Tabel 4F ØJ'!F27*100,"-")) -> - | G27: =IF(OR('Tabel 4F ØJ'!G27<5,'Tabel 4 ØJ'!G27<0.5),"-",IFERROR('Tabel 4 ØJ'!G27/'Tabel 4F ØJ'!G27*100,"-")) -> - | I27: =IF(OR('Tabel 4F ØJ'!I27<5,'Tabel 4 ØJ'!I27<0.5),"-",IFERROR('Tabel 4 ØJ'!I27/'Tabel 4F ØJ'!I27*100,"-")) -> 0.6944444444
A28: Bibliotekar | C28: =IF(OR('Tabel 4F ØJ'!C28<5,'Tabel 4 ØJ'!C28<0.5),"-",IFERROR('Tabel 4 ØJ'!C28/'Tabel 4F ØJ'!C28*100,"-")) -> - | D28: =IF(OR('Tabel 4F ØJ'!D28<5,'Tabel 4 ØJ'!D28<0.5),"-",IFERROR('Tabel 4 ØJ'!D28/'Tabel 4F ØJ'!D28*100,"-")) -> 2.898550725 | E28: =IF(OR('Tabel 4F ØJ'!E28<5,'Tabel 4 ØJ'!E28<0.5),"-",IFERROR('Tabel 4 ØJ'!E28/'Tabel 4F ØJ'!E28*100,"-")) -> 3.703703704 | F28: =IF(OR('Tabel 4F ØJ'!F28<5,'Tabel 4 ØJ'!F28<0.5),"-",IFERROR('Tabel 4 ØJ'!F28/'Tabel 4F ØJ'!F28*100,"-")) -> 2.083333333 | G28: =IF(OR('Tabel 4F ØJ'!G28<5,'Tabel 4 ØJ'!G28<0.5),"-",IFERROR('Tabel 4 ØJ'!G28/'Tabel 4F ØJ'!G28*100,"-")) -> - | I28: =IF(OR('Tabel 4F ØJ'!I28<5,'Tabel 4 ØJ'!I28<0.5),"-",IFERROR('Tabel 4 ØJ'!I28/'Tabel 4F ØJ'!I28*100,"-")) -> 2.395209581
A29: Musikudd. | C29: =IF(OR('Tabel 4F ØJ'!C29<5,'Tabel 4 ØJ'!C29<0.5),"-",IFERROR('Tabel 4 ØJ'!C29/'Tabel 4F ØJ'!C29*100,"-")) -> 20 | D29: =IF(OR('Tabel 4F ØJ'!D29<5,'Tabel 4 ØJ'!D29<0.5),"-",IFERROR('Tabel 4 ØJ'!D29/'Tabel 4F ØJ'!D29*100,"-")) -> - | E29: =IF(OR('Tabel 4F ØJ'!E29<5,'Tabel 4 ØJ'!E29<0.5),"-",IFERROR('Tabel 4 ØJ'!E29/'Tabel 4F ØJ'!E29*100,"-")) -> 14.28571429 | F29: =IF(OR('Tabel 4F ØJ'!F29<5,'Tabel 4 ØJ'!F29<0.5),"-",IFERROR('Tabel 4 ØJ'!F29/'Tabel 4F ØJ'!F29*100,"-")) -> 2.127659574 | G29: =IF(OR('Tabel 4F ØJ'!G29<5,'Tabel 4 ØJ'!G29<0.5),"-",IFERROR('Tabel 4 ØJ'!G29/'Tabel 4F ØJ'!G29*100,"-")) -> 7.142857143 | I29: =IF(OR('Tabel 4F ØJ'!I29<5,'Tabel 4 ØJ'!I29<0.5),"-",IFERROR('Tabel 4 ØJ'!I29/'Tabel 4F ØJ'!I29*100,"-")) -> 6.382978723
A30: Teolog | C30: =IF(OR('Tabel 4F ØJ'!C30<5,'Tabel 4 ØJ'!C30<0.5),"-",IFERROR('Tabel 4 ØJ'!C30/'Tabel 4F ØJ'!C30*100,"-")) -> 14.28571429 | D30: =IF(OR('Tabel 4F ØJ'!D30<5,'Tabel 4 ØJ'!D30<0.5),"-",IFERROR('Tabel 4 ØJ'!D30/'Tabel 4F ØJ'!D30*100,"-")) -> 5.084745763 | E30: =IF(OR('Tabel 4F ØJ'!E30<5,'Tabel 4 ØJ'!E30<0.5),"-",IFERROR('Tabel 4 ØJ'!E30/'Tabel 4F ØJ'!E30*100,"-")) -> 3.738317757 | F30: =IF(OR('Tabel 4F ØJ'!F30<5,'Tabel 4 ØJ'!F30<0.5),"-",IFERROR('Tabel 4 ØJ'!F30/'Tabel 4F ØJ'!F30*100,"-")) -> 2.941176471 | G30: =IF(OR('Tabel 4F ØJ'!G30<5,'Tabel 4 ØJ'!G30<0.5),"-",IFERROR('Tabel 4 ØJ'!G30/'Tabel 4F ØJ'!G30*100,"-")) -> - | I30: =IF(OR('Tabel 4F ØJ'!I30<5,'Tabel 4 ØJ'!I30<0.5),"-",IFERROR('Tabel 4 ØJ'!I30/'Tabel 4F ØJ'!I30*100,"-")) -> 3.703703704
A31: Psykolog | C31: =IF(OR('Tabel 4F ØJ'!C31<5,'Tabel 4 ØJ'!C31<0.5),"-",IFERROR('Tabel 4 ØJ'!C31/'Tabel 4F ØJ'!C31*100,"-")) -> 24.33090024 | D31: =IF(OR('Tabel 4F ØJ'!D31<5,'Tabel 4 ØJ'!D31<0.5),"-",IFERROR('Tabel 4 ØJ'!D31/'Tabel 4F ØJ'!D31*100,"-")) -> 6.918238994 | E31: =IF(OR('Tabel 4F ØJ'!E31<5,'Tabel 4 ØJ'!E31<0.5),"-",IFERROR('Tabel 4 ØJ'!E31/'Tabel 4F ØJ'!E31*100,"-")) -> 2.429149798 | F31: =IF(OR('Tabel 4F ØJ'!F31<5,'Tabel 4 ØJ'!F31<0.5),"-",IFERROR('Tabel 4 ØJ'!F31/'Tabel 4F ØJ'!F31*100,"-")) -> 1.872659176 | G31: =IF(OR('Tabel 4F ØJ'!G31<5,'Tabel 4 ØJ'!G31<0.5),"-",IFERROR('Tabel 4 ØJ'!G31/'Tabel 4F ØJ'!G31*100,"-")) -> 3.25203252 | I31: =IF(OR('Tabel 4F ØJ'!I31<5,'Tabel 4 ØJ'!I31<0.5),"-",IFERROR('Tabel 4 ØJ'!I31/'Tabel 4F ØJ'!I31*100,"-")) -> 8.421052632
A32: Jurist | C32: =IF(OR('Tabel 4F ØJ'!C32<5,'Tabel 4 ØJ'!C32<0.5),"-",IFERROR('Tabel 4 ØJ'!C32/'Tabel 4F ØJ'!C32*100,"-")) -> 12.68656716 | D32: =IF(OR('Tabel 4F ØJ'!D32<5,'Tabel 4 ØJ'!D32<0.5),"-",IFERROR('Tabel 4 ØJ'!D32/'Tabel 4F ØJ'!D32*100,"-")) -> 1.899441341 | E32: =IF(OR('Tabel 4F ØJ'!E32<5,'Tabel 4 ØJ'!E32<0.5),"-",IFERROR('Tabel 4 ØJ'!E32/'Tabel 4F ØJ'!E32*100,"-")) -> 0.7054673721 | F32: =IF(OR('Tabel 4F ØJ'!F32<5,'Tabel 4 ØJ'!F32<0.5),"-",IFERROR('Tabel 4 ØJ'!F32/'Tabel 4F ØJ'!F32*100,"-")) -> 0.8379888268 | G32: =IF(OR('Tabel 4F ØJ'!G32<5,'Tabel 4 ØJ'!G32<0.5),"-",IFERROR('Tabel 4 ØJ'!G32/'Tabel 4F ØJ'!G32*100,"-")) -> 0.9433962264 | I32: =IF(OR('Tabel 4F ØJ'!I32<5,'Tabel 4 ØJ'!I32<0.5),"-",IFERROR('Tabel 4 ØJ'!I32/'Tabel 4F ØJ'!I32*100,"-")) -> 4.237288136
A33: Økonom | C33: =IF(OR('Tabel 4F ØJ'!C33<5,'Tabel 4 ØJ'!C33<0.5),"-",IFERROR('Tabel 4 ØJ'!C33/'Tabel 4F ØJ'!C33*100,"-")) -> 10.52631579 | D33: =IF(OR('Tabel 4F ØJ'!D33<5,'Tabel 4 ØJ'!D33<0.5),"-",IFERROR('Tabel 4 ØJ'!D33/'Tabel 4F ØJ'!D33*100,"-")) -> 2.671755725 | E33: =IF(OR('Tabel 4F ØJ'!E33<5,'Tabel 4 ØJ'!E33<0.5),"-",IFERROR('Tabel 4 ØJ'!E33/'Tabel 4F ØJ'!E33*100,"-")) -> 1.294498382 | F33: =IF(OR('Tabel 4F ØJ'!F33<5,'Tabel 4 ØJ'!F33<0.5),"-",IFERROR('Tabel 4 ØJ'!F33/'Tabel 4F ØJ'!F33*100,"-")) -> 1.986754967 | G33: =IF(OR('Tabel 4F ØJ'!G33<5,'Tabel 4 ØJ'!G33<0.5),"-",IFERROR('Tabel 4 ØJ'!G33/'Tabel 4F ØJ'!G33*100,"-")) -> 1.111111111 | I33: =IF(OR('Tabel 4F ØJ'!I33<5,'Tabel 4 ØJ'!I33<0.5),"-",IFERROR('Tabel 4 ØJ'!I33/'Tabel 4F ØJ'!I33*100,"-")) -> 3.554661301
A34: Samf. Adm. | C34: =IF(OR('Tabel 4F ØJ'!C34<5,'Tabel 4 ØJ'!C34<0.5),"-",IFERROR('Tabel 4 ØJ'!C34/'Tabel 4F ØJ'!C34*100,"-")) -> 14.16184971 | D34: =IF(OR('Tabel 4F ØJ'!D34<5,'Tabel 4 ØJ'!D34<0.5),"-",IFERROR('Tabel 4 ØJ'!D34/'Tabel 4F ØJ'!D34*100,"-")) -> 4.95923913 | E34: =IF(OR('Tabel 4F ØJ'!E34<5,'Tabel 4 ØJ'!E34<0.5),"-",IFERROR('Tabel 4 ØJ'!E34/'Tabel 4F ØJ'!E34*100,"-")) -> 2.33702337 | F34: =IF(OR('Tabel 4F ØJ'!F34<5,'Tabel 4 ØJ'!F34<0.5),"-",IFERROR('Tabel 4 ØJ'!F34/'Tabel 4F ØJ'!F34*100,"-")) -> 2.594339623 | G34: =IF(OR('Tabel 4F ØJ'!G34<5,'Tabel 4 ØJ'!G34<0.5),"-",IFERROR('Tabel 4 ØJ'!G34/'Tabel 4F ØJ'!G34*100,"-")) -> 0.8547008547 | I34: =IF(OR('Tabel 4F ØJ'!I34<5,'Tabel 4 ØJ'!I34<0.5),"-",IFERROR('Tabel 4 ØJ'!I34/'Tabel 4F ØJ'!I34*100,"-")) -> 5.741898806
A35: Cand. Merc. | C35: =IF(OR('Tabel 4F ØJ'!C35<5,'Tabel 4 ØJ'!C35<0.5),"-",IFERROR('Tabel 4 ØJ'!C35/'Tabel 4F ØJ'!C35*100,"-")) -> 15.64139247 | D35: =IF(OR('Tabel 4F ØJ'!D35<5,'Tabel 4 ØJ'!D35<0.5),"-",IFERROR('Tabel 4 ØJ'!D35/'Tabel 4F ØJ'!D35*100,"-")) -> 2.796528447 | E35: =IF(OR('Tabel 4F ØJ'!E35<5,'Tabel 4 ØJ'!E35<0.5),"-",IFERROR('Tabel 4 ØJ'!E35/'Tabel 4F ØJ'!E35*100,"-")) -> 1.608391608 | F35: =IF(OR('Tabel 4F ØJ'!F35<5,'Tabel 4 ØJ'!F35<0.5),"-",IFERROR('Tabel 4 ØJ'!F35/'Tabel 4F ØJ'!F35*100,"-")) -> 1.741803279 | G35: =IF(OR('Tabel 4F ØJ'!G35<5,'Tabel 4 ØJ'!G35<0.5),"-",IFERROR('Tabel 4 ØJ'!G35/'Tabel 4F ØJ'!G35*100,"-")) -> 4.90797546 | I35: =IF(OR('Tabel 4F ØJ'!I35<5,'Tabel 4 ØJ'!I35<0.5),"-",IFERROR('Tabel 4 ØJ'!I35/'Tabel 4F ØJ'!I35*100,"-")) -> 5.953452488
A36: HA | C36: =IF(OR('Tabel 4F ØJ'!C36<5,'Tabel 4 ØJ'!C36<0.5),"-",IFERROR('Tabel 4 ØJ'!C36/'Tabel 4F ØJ'!C36*100,"-")) -> 18.63979849 | D36: =IF(OR('Tabel 4F ØJ'!D36<5,'Tabel 4 ØJ'!D36<0.5),"-",IFERROR('Tabel 4 ØJ'!D36/'Tabel 4F ØJ'!D36*100,"-")) -> 3.459119497 | E36: =IF(OR('Tabel 4F ØJ'!E36<5,'Tabel 4 ØJ'!E36<0.5),"-",IFERROR('Tabel 4 ØJ'!E36/'Tabel 4F ØJ'!E36*100,"-")) -> 4.444444444 | F36: =IF(OR('Tabel 4F ØJ'!F36<5,'Tabel 4 ØJ'!F36<0.5),"-",IFERROR('Tabel 4 ØJ'!F36/'Tabel 4F ØJ'!F36*100,"-")) -> 0.9966777409 | G36: =IF(OR('Tabel 4F ØJ'!G36<5,'Tabel 4 ØJ'!G36<0.5),"-",IFERROR('Tabel 4 ØJ'!G36/'Tabel 4F ØJ'!G36*100,"-")) -> 7.954545455 | I36: =IF(OR('Tabel 4F ØJ'!I36<5,'Tabel 4 ØJ'!I36<0.5),"-",IFERROR('Tabel 4 ØJ'!I36/'Tabel 4F ØJ'!I36*100,"-")) -> 8.15173527
A37: HD | C37: =IF(OR('Tabel 4F ØJ'!C37<5,'Tabel 4 ØJ'!C37<0.5),"-",IFERROR('Tabel 4 ØJ'!C37/'Tabel 4F ØJ'!C37*100,"-")) -> 10.41666667 | D37: =IF(OR('Tabel 4F ØJ'!D37<5,'Tabel 4 ØJ'!D37<0.5),"-",IFERROR('Tabel 4 ØJ'!D37/'Tabel 4F ØJ'!D37*100,"-")) -> 3.361344538 | E37: =IF(OR('Tabel 4F ØJ'!E37<5,'Tabel 4 ØJ'!E37<0.5),"-",IFERROR('Tabel 4 ØJ'!E37/'Tabel 4F ØJ'!E37*100,"-")) -> 2.5 | F37: =IF(OR('Tabel 4F ØJ'!F37<5,'Tabel 4 ØJ'!F37<0.5),"-",IFERROR('Tabel 4 ØJ'!F37/'Tabel 4F ØJ'!F37*100,"-")) -> 1.818181818 | G37: =IF(OR('Tabel 4F ØJ'!G37<5,'Tabel 4 ØJ'!G37<0.5),"-",IFERROR('Tabel 4 ØJ'!G37/'Tabel 4F ØJ'!G37*100,"-")) -> 2.083333333 | I37: =IF(OR('Tabel 4F ØJ'!I37<5,'Tabel 4 ØJ'!I37<0.5),"-",IFERROR('Tabel 4 ØJ'!I37/'Tabel 4F ØJ'!I37*100,"-")) -> 3.393939394
A38: Komm. og Sprog | C38: =IF(OR('Tabel 4F ØJ'!C38<5,'Tabel 4 ØJ'!C38<0.5),"-",IFERROR('Tabel 4 ØJ'!C38/'Tabel 4F ØJ'!C38*100,"-")) -> 16.55172414 | D38: =IF(OR('Tabel 4F ØJ'!D38<5,'Tabel 4 ØJ'!D38<0.5),"-",IFERROR('Tabel 4 ØJ'!D38/'Tabel 4F ØJ'!D38*100,"-")) -> 5.555555556 | E38: =IF(OR('Tabel 4F ØJ'!E38<5,'Tabel 4 ØJ'!E38<0.5),"-",IFERROR('Tabel 4 ØJ'!E38/'Tabel 4F ØJ'!E38*100,"-")) -> 2.337662338 | F38: =IF(OR('Tabel 4F ØJ'!F38<5,'Tabel 4 ØJ'!F38<0.5),"-",IFERROR('Tabel 4 ØJ'!F38/'Tabel 4F ØJ'!F38*100,"-")) -> 3.738317757 | G38: =IF(OR('Tabel 4F ØJ'!G38<5,'Tabel 4 ØJ'!G38<0.5),"-",IFERROR('Tabel 4 ØJ'!G38/'Tabel 4F ØJ'!G38*100,"-")) -> 3.472222222 | I38: =IF(OR('Tabel 4F ØJ'!I38<5,'Tabel 4 ØJ'!I38<0.5),"-",IFERROR('Tabel 4 ØJ'!I38/'Tabel 4F ØJ'!I38*100,"-")) -> 5.138339921
A39: Bygningskonst. | C39: =IF(OR('Tabel 4F ØJ'!C39<5,'Tabel 4 ØJ'!C39<0.5),"-",IFERROR('Tabel 4 ØJ'!C39/'Tabel 4F ØJ'!C39*100,"-")) -> 16.33466135 | D39: =IF(OR('Tabel 4F ØJ'!D39<5,'Tabel 4 ØJ'!D39<0.5),"-",IFERROR('Tabel 4 ØJ'!D39/'Tabel 4F ØJ'!D39*100,"-")) -> 3.913894325 | E39: =IF(OR('Tabel 4F ØJ'!E39<5,'Tabel 4 ØJ'!E39<0.5),"-",IFERROR('Tabel 4 ØJ'!E39/'Tabel 4F ØJ'!E39*100,"-")) -> 2.040816327 | F39: =IF(OR('Tabel 4F ØJ'!F39<5,'Tabel 4 ØJ'!F39<0.5),"-",IFERROR('Tabel 4 ØJ'!F39/'Tabel 4F ØJ'!F39*100,"-")) -> 1.123595506 | G39: =IF(OR('Tabel 4F ØJ'!G39<5,'Tabel 4 ØJ'!G39<0.5),"-",IFERROR('Tabel 4 ØJ'!G39/'Tabel 4F ØJ'!G39*100,"-")) -> 1.219512195 | I39: =IF(OR('Tabel 4F ØJ'!I39<5,'Tabel 4 ØJ'!I39<0.5),"-",IFERROR('Tabel 4 ØJ'!I39/'Tabel 4F ØJ'!I39*100,"-")) -> 5.679933665
A40: Cand. IT. | C40: =IF(OR('Tabel 4F ØJ'!C40<5,'Tabel 4 ØJ'!C40<0.5),"-",IFERROR('Tabel 4 ØJ'!C40/'Tabel 4F ØJ'!C40*100,"-")) -> 22.85012285 | D40: =IF(OR('Tabel 4F ØJ'!D40<5,'Tabel 4 ØJ'!D40<0.5),"-",IFERROR('Tabel 4 ØJ'!D40/'Tabel 4F ØJ'!D40*100,"-")) -> 5.647840532 | E40: =IF(OR('Tabel 4F ØJ'!E40<5,'Tabel 4 ØJ'!E40<0.5),"-",IFERROR('Tabel 4 ØJ'!E40/'Tabel 4F ØJ'!E40*100,"-")) -> 3.389830508 | F40: =IF(OR('Tabel 4F ØJ'!F40<5,'Tabel 4 ØJ'!F40<0.5),"-",IFERROR('Tabel 4 ØJ'!F40/'Tabel 4F ØJ'!F40*100,"-")) -> 8.333333333 | G40: =IF(OR('Tabel 4F ØJ'!G40<5,'Tabel 4 ØJ'!G40<0.5),"-",IFERROR('Tabel 4 ØJ'!G40/'Tabel 4F ØJ'!G40*100,"-")) -> - | I40: =IF(OR('Tabel 4F ØJ'!I40<5,'Tabel 4 ØJ'!I40<0.5),"-",IFERROR('Tabel 4 ØJ'!I40/'Tabel 4F ØJ'!I40*100,"-")) -> 11.13861386
A41: Bac. Samf. | C41: =IF(OR('Tabel 4F ØJ'!C41<5,'Tabel 4 ØJ'!C41<0.5),"-",IFERROR('Tabel 4 ØJ'!C41/'Tabel 4F ØJ'!C41*100,"-")) -> 28.35820896 | D41: =IF(OR('Tabel 4F ØJ'!D41<5,'Tabel 4 ØJ'!D41<0.5),"-",IFERROR('Tabel 4 ØJ'!D41/'Tabel 4F ØJ'!D41*100,"-")) -> 8.510638298 | E41: =IF(OR('Tabel 4F ØJ'!E41<5,'Tabel 4 ØJ'!E41<0.5),"-",IFERROR('Tabel 4 ØJ'!E41/'Tabel 4F ØJ'!E41*100,"-")) -> - | F41: =IF(OR('Tabel 4F ØJ'!F41<5,'Tabel 4 ØJ'!F41<0.5),"-",IFERROR('Tabel 4 ØJ'!F41/'Tabel 4F ØJ'!F41*100,"-")) -> 2.941176471 | G41: =IF(OR('Tabel 4F ØJ'!G41<5,'Tabel 4 ØJ'!G41<0.5),"-",IFERROR('Tabel 4 ØJ'!G41/'Tabel 4F ØJ'!G41*100,"-")) -> 7.692307692 | I41: =IF(OR('Tabel 4F ØJ'!I41<5,'Tabel 4 ØJ'!I41<0.5),"-",IFERROR('Tabel 4 ØJ'!I41/'Tabel 4F ØJ'!I41*100,"-")) -> 12.07729469
A42: Bac. Hum. | C42: =IF(OR('Tabel 4F ØJ'!C42<5,'Tabel 4 ØJ'!C42<0.5),"-",IFERROR('Tabel 4 ØJ'!C42/'Tabel 4F ØJ'!C42*100,"-")) -> 25.98967298 | D42: =IF(OR('Tabel 4F ØJ'!D42<5,'Tabel 4 ØJ'!D42<0.5),"-",IFERROR('Tabel 4 ØJ'!D42/'Tabel 4F ØJ'!D42*100,"-")) -> 12.88659794 | E42: =IF(OR('Tabel 4F ØJ'!E42<5,'Tabel 4 ØJ'!E42<0.5),"-",IFERROR('Tabel 4 ØJ'!E42/'Tabel 4F ØJ'!E42*100,"-")) -> 5.925925926 | F42: =IF(OR('Tabel 4F ØJ'!F42<5,'Tabel 4 ØJ'!F42<0.5),"-",IFERROR('Tabel 4 ØJ'!F42/'Tabel 4F ØJ'!F42*100,"-")) -> 4.166666667 | G42: =IF(OR('Tabel 4F ØJ'!G42<5,'Tabel 4 ØJ'!G42<0.5),"-",IFERROR('Tabel 4 ØJ'!G42/'Tabel 4F ØJ'!G42*100,"-")) -> 8.888888889 | I42: =IF(OR('Tabel 4F ØJ'!I42<5,'Tabel 4 ØJ'!I42<0.5),"-",IFERROR('Tabel 4 ØJ'!I42/'Tabel 4F ØJ'!I42*100,"-")) -> 17.95348837
A43: Bac. Nat. | C43: =IF(OR('Tabel 4F ØJ'!C43<5,'Tabel 4 ØJ'!C43<0.5),"-",IFERROR('Tabel 4 ØJ'!C43/'Tabel 4F ØJ'!C43*100,"-")) -> 19.78947368 | D43: =IF(OR('Tabel 4F ØJ'!D43<5,'Tabel 4 ØJ'!D43<0.5),"-",IFERROR('Tabel 4 ØJ'!D43/'Tabel 4F ØJ'!D43*100,"-")) -> 5.53633218 | E43: =IF(OR('Tabel 4F ØJ'!E43<5,'Tabel 4 ØJ'!E43<0.5),"-",IFERROR('Tabel 4 ØJ'!E43/'Tabel 4F ØJ'!E43*100,"-")) -> 4.166666667 | F43: =IF(OR('Tabel 4F ØJ'!F43<5,'Tabel 4 ØJ'!F43<0.5),"-",IFERROR('Tabel 4 ØJ'!F43/'Tabel 4F ØJ'!F43*100,"-")) -> 3.225806452 | G43: =IF(OR('Tabel 4F ØJ'!G43<5,'Tabel 4 ØJ'!G43<0.5),"-",IFERROR('Tabel 4 ØJ'!G43/'Tabel 4F ØJ'!G43*100,"-")) -> - | I43: =IF(OR('Tabel 4F ØJ'!I43<5,'Tabel 4 ØJ'!I43<0.5),"-",IFERROR('Tabel 4 ØJ'!I43/'Tabel 4F ØJ'!I43*100,"-")) -> 12.87793953
A44: Andre | C44: =IF(OR('Tabel 4F ØJ'!C44<5,'Tabel 4 ØJ'!C44<0.5),"-",IFERROR('Tabel 4 ØJ'!C44/'Tabel 4F ØJ'!C44*100,"-")) -> 15.4954955 | D44: =IF(OR('Tabel 4F ØJ'!D44<5,'Tabel 4 ØJ'!D44<0.5),"-",IFERROR('Tabel 4 ØJ'!D44/'Tabel 4F ØJ'!D44*100,"-")) -> 5.338645418 | E44: =IF(OR('Tabel 4F ØJ'!E44<5,'Tabel 4 ØJ'!E44<0.5),"-",IFERROR('Tabel 4 ØJ'!E44/'Tabel 4F ØJ'!E44*100,"-")) -> 2.55164034 | F44: =IF(OR('Tabel 4F ØJ'!F44<5,'Tabel 4 ØJ'!F44<0.5),"-",IFERROR('Tabel 4 ØJ'!F44/'Tabel 4F ØJ'!F44*100,"-")) -> 4.674796748 | G44: =IF(OR('Tabel 4F ØJ'!G44<5,'Tabel 4 ØJ'!G44<0.5),"-",IFERROR('Tabel 4 ØJ'!G44/'Tabel 4F ØJ'!G44*100,"-")) -> 5.633802817 | I44: =IF(OR('Tabel 4F ØJ'!I44<5,'Tabel 4 ØJ'!I44<0.5),"-",IFERROR('Tabel 4 ØJ'!I44/'Tabel 4F ØJ'!I44*100,"-")) -> 6.248166618
A46: Total | C46: =IF(OR('Tabel 4F ØJ'!C46<5,'Tabel 4 ØJ'!C46<0.5),"-",IFERROR('Tabel 4 ØJ'!C46/'Tabel 4F ØJ'!C46*100,"-")) -> 17.96238709 | D46: =IF(OR('Tabel 4F ØJ'!D46<5,'Tabel 4 ØJ'!D46<0.5),"-",IFERROR('Tabel 4 ØJ'!D46/'Tabel 4F ØJ'!D46*100,"-")) -> 5.038220987 | E46: =IF(OR('Tabel 4F ØJ'!E46<5,'Tabel 4 ØJ'!E46<0.5),"-",IFERROR('Tabel 4 ØJ'!E46/'Tabel 4F ØJ'!E46*100,"-")) -> 2.171119378 | F46: =IF(OR('Tabel 4F ØJ'!F46<5,'Tabel 4 ØJ'!F46<0.5),"-",IFERROR('Tabel 4 ØJ'!F46/'Tabel 4F ØJ'!F46*100,"-")) -> 2.027906977 | G46: =IF(OR('Tabel 4F ØJ'!G46<5,'Tabel 4 ØJ'!G46<0.5),"-",IFERROR('Tabel 4 ØJ'!G46/'Tabel 4F ØJ'!G46*100,"-")) -> 3.592671901 | I46: =IF(OR('Tabel 4F ØJ'!I46<5,'Tabel 4 ØJ'!I46<0.5),"-",IFERROR('Tabel 4 ØJ'!I46/'Tabel 4F ØJ'!I46*100,"-")) -> 6.452586467
A48: Ingeniører i alt | C48: =IF(OR('Tabel 4F ØJ'!C48<5,'Tabel 4 ØJ'!C48<0.5),"-",IFERROR('Tabel 4 ØJ'!C48/'Tabel 4F ØJ'!C48*100,"-")) -> 11.47704591 | D48: =IF(OR('Tabel 4F ØJ'!D48<5,'Tabel 4 ØJ'!D48<0.5),"-",IFERROR('Tabel 4 ØJ'!D48/'Tabel 4F ØJ'!D48*100,"-")) -> 1.974699167 | E48: =IF(OR('Tabel 4F ØJ'!E48<5,'Tabel 4 ØJ'!E48<0.5),"-",IFERROR('Tabel 4 ØJ'!E48/'Tabel 4F ØJ'!E48*100,"-")) -> 0.8895478132 | F48: =IF(OR('Tabel 4F ØJ'!F48<5,'Tabel 4 ØJ'!F48<0.5),"-",IFERROR('Tabel 4 ØJ'!F48/'Tabel 4F ØJ'!F48*100,"-")) -> 0.8648648649 | G48: =IF(OR('Tabel 4F ØJ'!G48<5,'Tabel 4 ØJ'!G48<0.5),"-",IFERROR('Tabel 4 ØJ'!G48/'Tabel 4F ØJ'!G48*100,"-")) -> 2.55057168 | I48: =IF(OR('Tabel 4F ØJ'!I48<5,'Tabel 4 ØJ'!I48<0.5),"-",IFERROR('Tabel 4 ØJ'!I48/'Tabel 4F ØJ'!I48*100,"-")) -> 3.129481232
A49: Magistre i alt | C49: =IF(OR('Tabel 4F ØJ'!C49<5,'Tabel 4 ØJ'!C49<0.5),"-",IFERROR('Tabel 4 ØJ'!C49/'Tabel 4F ØJ'!C49*100,"-")) -> 26.85446009 | D49: =IF(OR('Tabel 4F ØJ'!D49<5,'Tabel 4 ØJ'!D49<0.5),"-",IFERROR('Tabel 4 ØJ'!D49/'Tabel 4F ØJ'!D49*100,"-")) -> 9.644444444 | E49: =IF(OR('Tabel 4F ØJ'!E49<5,'Tabel 4 ØJ'!E49<0.5),"-",IFERROR('Tabel 4 ØJ'!E49/'Tabel 4F ØJ'!E49*100,"-")) -> 3.158705701 | F49: =IF(OR('Tabel 4F ØJ'!F49<5,'Tabel 4 ØJ'!F49<0.5),"-",IFERROR('Tabel 4 ØJ'!F49/'Tabel 4F ØJ'!F49*100,"-")) -> 3.225806452 | G49: =IF(OR('Tabel 4F ØJ'!G49<5,'Tabel 4 ØJ'!G49<0.5),"-",IFERROR('Tabel 4 ØJ'!G49/'Tabel 4F ØJ'!G49*100,"-")) -> 4.601226994 | I49: =IF(OR('Tabel 4F ØJ'!I49<5,'Tabel 4 ØJ'!I49<0.5),"-",IFERROR('Tabel 4 ØJ'!I49/'Tabel 4F ØJ'!I49*100,"-")) -> 9.007127943
A50: DJØF'ere i alt | C50: =IF(OR('Tabel 4F ØJ'!C50<5,'Tabel 4 ØJ'!C50<0.5),"-",IFERROR('Tabel 4 ØJ'!C50/'Tabel 4F ØJ'!C50*100,"-")) -> 14.87142164 | D50: =IF(OR('Tabel 4F ØJ'!D50<5,'Tabel 4 ØJ'!D50<0.5),"-",IFERROR('Tabel 4 ØJ'!D50/'Tabel 4F ØJ'!D50*100,"-")) -> 3.196202532 | E50: =IF(OR('Tabel 4F ØJ'!E50<5,'Tabel 4 ØJ'!E50<0.5),"-",IFERROR('Tabel 4 ØJ'!E50/'Tabel 4F ØJ'!E50*100,"-")) -> 1.72095882 | F50: =IF(OR('Tabel 4F ØJ'!F50<5,'Tabel 4 ØJ'!F50<0.5),"-",IFERROR('Tabel 4 ØJ'!F50/'Tabel 4F ØJ'!F50*100,"-")) -> 1.694197374 | G50: =IF(OR('Tabel 4F ØJ'!G50<5,'Tabel 4 ØJ'!G50<0.5),"-",IFERROR('Tabel 4 ØJ'!G50/'Tabel 4F ØJ'!G50*100,"-")) -> 3.191489362 | I50: =IF(OR('Tabel 4F ØJ'!I50<5,'Tabel 4 ØJ'!I50<0.5),"-",IFERROR('Tabel 4 ØJ'!I50/'Tabel 4F ØJ'!I50*100,"-")) -> 5.589314722
A57: Horsens
C59: Under 30 år | D59: 30 - 39 år | E59: 40 - 49 år | F59: 50 - 59 år | G59: Over 60 år | I59: I alt
A61: Civ. ing. | C61: =IF(OR('Tabel 4F ØJ'!C61<5,'Tabel 4 ØJ'!C61<0.5),"-",IFERROR('Tabel 4 ØJ'!C61/'Tabel 4F ØJ'!C61*100,"-")) -> 13.46153846 | D61: =IF(OR('Tabel 4F ØJ'!D61<5,'Tabel 4 ØJ'!D61<0.5),"-",IFERROR('Tabel 4 ØJ'!D61/'Tabel 4F ØJ'!D61*100,"-")) -> 1.459854015 | E61: =IF(OR('Tabel 4F ØJ'!E61<5,'Tabel 4 ØJ'!E61<0.5),"-",IFERROR('Tabel 4 ØJ'!E61/'Tabel 4F ØJ'!E61*100,"-")) -> - | F61: =IF(OR('Tabel 4F ØJ'!F61<5,'Tabel 4 ØJ'!F61<0.5),"-",IFERROR('Tabel 4 ØJ'!F61/'Tabel 4F ØJ'!F61*100,"-")) -> - | G61: =IF(OR('Tabel 4F ØJ'!G61<5,'Tabel 4 ØJ'!G61<0.5),"-",IFERROR('Tabel 4 ØJ'!G61/'Tabel 4F ØJ'!G61*100,"-")) -> - | I61: =IF(OR('Tabel 4F ØJ'!I61<5,'Tabel 4 ØJ'!I61<0.5),"-",IFERROR('Tabel 4 ØJ'!I61/'Tabel 4F ØJ'!I61*100,"-")) -> 2.686567164
A62: Diplom ing. | C62: =IF(OR('Tabel 4F ØJ'!C62<5,'Tabel 4 ØJ'!C62<0.5),"-",IFERROR('Tabel 4 ØJ'!C62/'Tabel 4F ØJ'!C62*100,"-")) -> 10 | D62: =IF(OR('Tabel 4F ØJ'!D62<5,'Tabel 4 ØJ'!D62<0.5),"-",IFERROR('Tabel 4 ØJ'!D62/'Tabel 4F ØJ'!D62*100,"-")) -> 2.222222222 | E62: =IF(OR('Tabel 4F ØJ'!E62<5,'Tabel 4 ØJ'!E62<0.5),"-",IFERROR('Tabel 4 ØJ'!E62/'Tabel 4F ØJ'!E62*100,"-")) -> 0.7490636704 | F62: =IF(OR('Tabel 4F ØJ'!F62<5,'Tabel 4 ØJ'!F62<0.5),"-",IFERROR('Tabel 4 ØJ'!F62/'Tabel 4F ØJ'!F62*100,"-")) -> - | G62: =IF(OR('Tabel 4F ØJ'!G62<5,'Tabel 4 ØJ'!G62<0.5),"-",IFERROR('Tabel 4 ØJ'!G62/'Tabel 4F ØJ'!G62*100,"-")) -> 4.761904762 | I62: =IF(OR('Tabel 4F ØJ'!I62<5,'Tabel 4 ØJ'!I62<0.5),"-",IFERROR('Tabel 4 ØJ'!I62/'Tabel 4F ØJ'!I62*100,"-")) -> 2.234042553
A63: Cand. Scient. Tek | C63: =IF(OR('Tabel 4F ØJ'!C63<5,'Tabel 4 ØJ'!C63<0.5),"-",IFERROR('Tabel 4 ØJ'!C63/'Tabel 4F ØJ'!C63*100,"-")) -> 14.28571429 | D63: =IF(OR('Tabel 4F ØJ'!D63<5,'Tabel 4 ØJ'!D63<0.5),"-",IFERROR('Tabel 4 ØJ'!D63/'Tabel 4F ØJ'!D63*100,"-")) -> 4.761904762 | E63: =IF(OR('Tabel 4F ØJ'!E63<5,'Tabel 4 ØJ'!E63<0.5),"-",IFERROR('Tabel 4 ØJ'!E63/'Tabel 4F ØJ'!E63*100,"-")) -> 3.225806452 | F63: =IF(OR('Tabel 4F ØJ'!F63<5,'Tabel 4 ØJ'!F63<0.5),"-",IFERROR('Tabel 4 ØJ'!F63/'Tabel 4F ØJ'!F63*100,"-")) -> - | G63: =IF(OR('Tabel 4F ØJ'!G63<5,'Tabel 4 ØJ'!G63<0.5),"-",IFERROR('Tabel 4 ØJ'!G63/'Tabel 4F ØJ'!G63*100,"-")) -> - | I63: =IF(OR('Tabel 4F ØJ'!I63<5,'Tabel 4 ØJ'!I63<0.5),"-",IFERROR('Tabel 4 ØJ'!I63/'Tabel 4F ØJ'!I63*100,"-")) -> 6.557377049
A64: MA. Hum. | C64: =IF(OR('Tabel 4F ØJ'!C64<5,'Tabel 4 ØJ'!C64<0.5),"-",IFERROR('Tabel 4 ØJ'!C64/'Tabel 4F ØJ'!C64*100,"-")) -> 18.36734694 | D64: =IF(OR('Tabel 4F ØJ'!D64<5,'Tabel 4 ØJ'!D64<0.5),"-",IFERROR('Tabel 4 ØJ'!D64/'Tabel 4F ØJ'!D64*100,"-")) -> 7.594936709 | E64: =IF(OR('Tabel 4F ØJ'!E64<5,'Tabel 4 ØJ'!E64<0.5),"-",IFERROR('Tabel 4 ØJ'!E64/'Tabel 4F ØJ'!E64*100,"-")) -> 1.960784314 | F64: =IF(OR('Tabel 4F ØJ'!F64<5,'Tabel 4 ØJ'!F64<0.5),"-",IFERROR('Tabel 4 ØJ'!F64/'Tabel 4F ØJ'!F64*100,"-")) -> 3.278688525 | G64: =IF(OR('Tabel 4F ØJ'!G64<5,'Tabel 4 ØJ'!G64<0.5),"-",IFERROR('Tabel 4 ØJ'!G64/'Tabel 4F ØJ'!G64*100,"-")) -> - | I64: =IF(OR('Tabel 4F ØJ'!I64<5,'Tabel 4 ØJ'!I64<0.5),"-",IFERROR('Tabel 4 ØJ'!I64/'Tabel 4F ØJ'!I64*100,"-")) -> 5.89569161
A65: MA. Nat. | C65: =IF(OR('Tabel 4F ØJ'!C65<5,'Tabel 4 ØJ'!C65<0.5),"-",IFERROR('Tabel 4 ØJ'!C65/'Tabel 4F ØJ'!C65*100,"-")) -> - | D65: =IF(OR('Tabel 4F ØJ'!D65<5,'Tabel 4 ØJ'!D65<0.5),"-",IFERROR('Tabel 4 ØJ'!D65/'Tabel 4F ØJ'!D65*100,"-")) -> - | E65: =IF(OR('Tabel 4F ØJ'!E65<5,'Tabel 4 ØJ'!E65<0.5),"-",IFERROR('Tabel 4 ØJ'!E65/'Tabel 4F ØJ'!E65*100,"-")) -> 2.127659574 | F65: =IF(OR('Tabel 4F ØJ'!F65<5,'Tabel 4 ØJ'!F65<0.5),"-",IFERROR('Tabel 4 ØJ'!F65/'Tabel 4F ØJ'!F65*100,"-")) -> - | G65: =IF(OR('Tabel 4F ØJ'!G65<5,'Tabel 4 ØJ'!G65<0.5),"-",IFERROR('Tabel 4 ØJ'!G65/'Tabel 4F ØJ'!G65*100,"-")) -> - | I65: =IF(OR('Tabel 4F ØJ'!I65<5,'Tabel 4 ØJ'!I65<0.5),"-",IFERROR('Tabel 4 ØJ'!I65/'Tabel 4F ØJ'!I65*100,"-")) -> 0.6993006993
A66: MA. Ph.d. | C66: =IF(OR('Tabel 4F ØJ'!C66<5,'Tabel 4 ØJ'!C66<0.5),"-",IFERROR('Tabel 4 ØJ'!C66/'Tabel 4F ØJ'!C66*100,"-")) -> - | D66: =IF(OR('Tabel 4F ØJ'!D66<5,'Tabel 4 ØJ'!D66<0.5),"-",IFERROR('Tabel 4 ØJ'!D66/'Tabel 4F ØJ'!D66*100,"-")) -> - | E66: =IF(OR('Tabel 4F ØJ'!E66<5,'Tabel 4 ØJ'!E66<0.5),"-",IFERROR('Tabel 4 ØJ'!E66/'Tabel 4F ØJ'!E66*100,"-")) -> - | F66: =IF(OR('Tabel 4F ØJ'!F66<5,'Tabel 4 ØJ'!F66<0.5),"-",IFERROR('Tabel 4 ØJ'!F66/'Tabel 4F ØJ'!F66*100,"-")) -> - | G66: =IF(OR('Tabel 4F ØJ'!G66<5,'Tabel 4 ØJ'!G66<0.5),"-",IFERROR('Tabel 4 ØJ'!G66/'Tabel 4F ØJ'!G66*100,"-")) -> - | I66: =IF(OR('Tabel 4F ØJ'!I66<5,'Tabel 4 ØJ'!I66<0.5),"-",IFERROR('Tabel 4 ØJ'!I66/'Tabel 4F ØJ'!I66*100,"-")) -> -
A67: MA. Samf. | C67: =IF(OR('Tabel 4F ØJ'!C67<5,'Tabel 4 ØJ'!C67<0.5),"-",IFERROR('Tabel 4 ØJ'!C67/'Tabel 4F ØJ'!C67*100,"-")) -> 14.28571429 | D67: =IF(OR('Tabel 4F ØJ'!D67<5,'Tabel 4 ØJ'!D67<0.5),"-",IFERROR('Tabel 4 ØJ'!D67/'Tabel 4F ØJ'!D67*100,"-")) -> 21.73913043 | E67: =IF(OR('Tabel 4F ØJ'!E67<5,'Tabel 4 ØJ'!E67<0.5),"-",IFERROR('Tabel 4 ØJ'!E67/'Tabel 4F ØJ'!E67*100,"-")) -> - | F67: =IF(OR('Tabel 4F ØJ'!F67<5,'Tabel 4 ØJ'!F67<0.5),"-",IFERROR('Tabel 4 ØJ'!F67/'Tabel 4F ØJ'!F67*100,"-")) -> - | G67: =IF(OR('Tabel 4F ØJ'!G67<5,'Tabel 4 ØJ'!G67<0.5),"-",IFERROR('Tabel 4 ØJ'!G67/'Tabel 4F ØJ'!G67*100,"-")) -> - | I67: =IF(OR('Tabel 4F ØJ'!I67<5,'Tabel 4 ØJ'!I67<0.5),"-",IFERROR('Tabel 4 ØJ'!I67/'Tabel 4F ØJ'!I67*100,"-")) -> 15.38461538
A68: Øvrige Mag. | C68: =IF(OR('Tabel 4F ØJ'!C68<5,'Tabel 4 ØJ'!C68<0.5),"-",IFERROR('Tabel 4 ØJ'!C68/'Tabel 4F ØJ'!C68*100,"-")) -> - | D68: =IF(OR('Tabel 4F ØJ'!D68<5,'Tabel 4 ØJ'!D68<0.5),"-",IFERROR('Tabel 4 ØJ'!D68/'Tabel 4F ØJ'!D68*100,"-")) -> - | E68: =IF(OR('Tabel 4F ØJ'!E68<5,'Tabel 4 ØJ'!E68<0.5),"-",IFERROR('Tabel 4 ØJ'!E68/'Tabel 4F ØJ'!E68*100,"-")) -> - | F68: =IF(OR('Tabel 4F ØJ'!F68<5,'Tabel 4 ØJ'!F68<0.5),"-",IFERROR('Tabel 4 ØJ'!F68/'Tabel 4F ØJ'!F68*100,"-")) -> - | G68: =IF(OR('Tabel 4F ØJ'!G68<5,'Tabel 4 ØJ'!G68<0.5),"-",IFERROR('Tabel 4 ØJ'!G68/'Tabel 4F ØJ'!G68*100,"-")) -> - | I68: =IF(OR('Tabel 4F ØJ'!I68<5,'Tabel 4 ØJ'!I68<0.5),"-",IFERROR('Tabel 4 ØJ'!I68/'Tabel 4F ØJ'!I68*100,"-")) -> 2.941176471
A69: Agronom | C69: =IF(OR('Tabel 4F ØJ'!C69<5,'Tabel 4 ØJ'!C69<0.5),"-",IFERROR('Tabel 4 ØJ'!C69/'Tabel 4F ØJ'!C69*100,"-")) -> - | D69: =IF(OR('Tabel 4F ØJ'!D69<5,'Tabel 4 ØJ'!D69<0.5),"-",IFERROR('Tabel 4 ØJ'!D69/'Tabel 4F ØJ'!D69*100,"-")) -> - | E69: =IF(OR('Tabel 4F ØJ'!E69<5,'Tabel 4 ØJ'!E69<0.5),"-",IFERROR('Tabel 4 ØJ'!E69/'Tabel 4F ØJ'!E69*100,"-")) -> - | F69: =IF(OR('Tabel 4F ØJ'!F69<5,'Tabel 4 ØJ'!F69<0.5),"-",IFERROR('Tabel 4 ØJ'!F69/'Tabel 4F ØJ'!F69*100,"-")) -> - | G69: =IF(OR('Tabel 4F ØJ'!G69<5,'Tabel 4 ØJ'!G69<0.5),"-",IFERROR('Tabel 4 ØJ'!G69/'Tabel 4F ØJ'!G69*100,"-")) -> 11.11111111 | I69: =IF(OR('Tabel 4F ØJ'!I69<5,'Tabel 4 ØJ'!I69<0.5),"-",IFERROR('Tabel 4 ØJ'!I69/'Tabel 4F ØJ'!I69*100,"-")) -> 2.857142857
A70: Landsk. Arkt. | C70: =IF(OR('Tabel 4F ØJ'!C70<5,'Tabel 4 ØJ'!C70<0.5),"-",IFERROR('Tabel 4 ØJ'!C70/'Tabel 4F ØJ'!C70*100,"-")) -> - | D70: =IF(OR('Tabel 4F ØJ'!D70<5,'Tabel 4 ØJ'!D70<0.5),"-",IFERROR('Tabel 4 ØJ'!D70/'Tabel 4F ØJ'!D70*100,"-")) -> - | E70: =IF(OR('Tabel 4F ØJ'!E70<5,'Tabel 4 ØJ'!E70<0.5),"-",IFERROR('Tabel 4 ØJ'!E70/'Tabel 4F ØJ'!E70*100,"-")) -> - | F70: =IF(OR('Tabel 4F ØJ'!F70<5,'Tabel 4 ØJ'!F70<0.5),"-",IFERROR('Tabel 4 ØJ'!F70/'Tabel 4F ØJ'!F70*100,"-")) -> - | G70: =IF(OR('Tabel 4F ØJ'!G70<5,'Tabel 4 ØJ'!G70<0.5),"-",IFERROR('Tabel 4 ØJ'!G70/'Tabel 4F ØJ'!G70*100,"-")) -> - | I70: =IF(OR('Tabel 4F ØJ'!I70<5,'Tabel 4 ØJ'!I70<0.5),"-",IFERROR('Tabel 4 ØJ'!I70/'Tabel 4F ØJ'!I70*100,"-")) -> -
A71: Hortonom | C71: =IF(OR('Tabel 4F ØJ'!C71<5,'Tabel 4 ØJ'!C71<0.5),"-",IFERROR('Tabel 4 ØJ'!C71/'Tabel 4F ØJ'!C71*100,"-")) -> - | D71: =IF(OR('Tabel 4F ØJ'!D71<5,'Tabel 4 ØJ'!D71<0.5),"-",IFERROR('Tabel 4 ØJ'!D71/'Tabel 4F ØJ'!D71*100,"-")) -> - | E71: =IF(OR('Tabel 4F ØJ'!E71<5,'Tabel 4 ØJ'!E71<0.5),"-",IFERROR('Tabel 4 ØJ'!E71/'Tabel 4F ØJ'!E71*100,"-")) -> - | F71: =IF(OR('Tabel 4F ØJ'!F71<5,'Tabel 4 ØJ'!F71<0.5),"-",IFERROR('Tabel 4 ØJ'!F71/'Tabel 4F ØJ'!F71*100,"-")) -> - | G71: =IF(OR('Tabel 4F ØJ'!G71<5,'Tabel 4 ØJ'!G71<0.5),"-",IFERROR('Tabel 4 ØJ'!G71/'Tabel 4F ØJ'!G71*100,"-")) -> - | I71: =IF(OR('Tabel 4F ØJ'!I71<5,'Tabel 4 ØJ'!I71<0.5),"-",IFERROR('Tabel 4 ØJ'!I71/'Tabel 4F ØJ'!I71*100,"-")) -> -
A72: Forstkand. | C72: =IF(OR('Tabel 4F ØJ'!C72<5,'Tabel 4 ØJ'!C72<0.5),"-",IFERROR('Tabel 4 ØJ'!C72/'Tabel 4F ØJ'!C72*100,"-")) -> - | D72: =IF(OR('Tabel 4F ØJ'!D72<5,'Tabel 4 ØJ'!D72<0.5),"-",IFERROR('Tabel 4 ØJ'!D72/'Tabel 4F ØJ'!D72*100,"-")) -> - | E72: =IF(OR('Tabel 4F ØJ'!E72<5,'Tabel 4 ØJ'!E72<0.5),"-",IFERROR('Tabel 4 ØJ'!E72/'Tabel 4F ØJ'!E72*100,"-")) -> - | F72: =IF(OR('Tabel 4F ØJ'!F72<5,'Tabel 4 ØJ'!F72<0.5),"-",IFERROR('Tabel 4 ØJ'!F72/'Tabel 4F ØJ'!F72*100,"-")) -> - | G72: =IF(OR('Tabel 4F ØJ'!G72<5,'Tabel 4 ØJ'!G72<0.5),"-",IFERROR('Tabel 4 ØJ'!G72/'Tabel 4F ØJ'!G72*100,"-")) -> - | I72: =IF(OR('Tabel 4F ØJ'!I72<5,'Tabel 4 ØJ'!I72<0.5),"-",IFERROR('Tabel 4 ØJ'!I72/'Tabel 4F ØJ'!I72*100,"-")) -> -
A73: Jordbrugsakad. | C73: =IF(OR('Tabel 4F ØJ'!C73<5,'Tabel 4 ØJ'!C73<0.5),"-",IFERROR('Tabel 4 ØJ'!C73/'Tabel 4F ØJ'!C73*100,"-")) -> - | D73: =IF(OR('Tabel 4F ØJ'!D73<5,'Tabel 4 ØJ'!D73<0.5),"-",IFERROR('Tabel 4 ØJ'!D73/'Tabel 4F ØJ'!D73*100,"-")) -> - | E73: =IF(OR('Tabel 4F ØJ'!E73<5,'Tabel 4 ØJ'!E73<0.5),"-",IFERROR('Tabel 4 ØJ'!E73/'Tabel 4F ØJ'!E73*100,"-")) -> - | F73: =IF(OR('Tabel 4F ØJ'!F73<5,'Tabel 4 ØJ'!F73<0.5),"-",IFERROR('Tabel 4 ØJ'!F73/'Tabel 4F ØJ'!F73*100,"-")) -> - | G73: =IF(OR('Tabel 4F ØJ'!G73<5,'Tabel 4 ØJ'!G73<0.5),"-",IFERROR('Tabel 4 ØJ'!G73/'Tabel 4F ØJ'!G73*100,"-")) -> 10 | I73: =IF(OR('Tabel 4F ØJ'!I73<5,'Tabel 4 ØJ'!I73<0.5),"-",IFERROR('Tabel 4 ØJ'!I73/'Tabel 4F ØJ'!I73*100,"-")) -> 2.272727273
A74: Mejeriing. | C74: =IF(OR('Tabel 4F ØJ'!C74<5,'Tabel 4 ØJ'!C74<0.5),"-",IFERROR('Tabel 4 ØJ'!C74/'Tabel 4F ØJ'!C74*100,"-")) -> - | D74: =IF(OR('Tabel 4F ØJ'!D74<5,'Tabel 4 ØJ'!D74<0.5),"-",IFERROR('Tabel 4 ØJ'!D74/'Tabel 4F ØJ'!D74*100,"-")) -> - | E74: =IF(OR('Tabel 4F ØJ'!E74<5,'Tabel 4 ØJ'!E74<0.5),"-",IFERROR('Tabel 4 ØJ'!E74/'Tabel 4F ØJ'!E74*100,"-")) -> - | F74: =IF(OR('Tabel 4F ØJ'!F74<5,'Tabel 4 ØJ'!F74<0.5),"-",IFERROR('Tabel 4 ØJ'!F74/'Tabel 4F ØJ'!F74*100,"-")) -> - | G74: =IF(OR('Tabel 4F ØJ'!G74<5,'Tabel 4 ØJ'!G74<0.5),"-",IFERROR('Tabel 4 ØJ'!G74/'Tabel 4F ØJ'!G74*100,"-")) -> - | I74: =IF(OR('Tabel 4F ØJ'!I74<5,'Tabel 4 ØJ'!I74<0.5),"-",IFERROR('Tabel 4 ØJ'!I74/'Tabel 4F ØJ'!I74*100,"-")) -> -
A75: Levn.m.kand. | C75: =IF(OR('Tabel 4F ØJ'!C75<5,'Tabel 4 ØJ'!C75<0.5),"-",IFERROR('Tabel 4 ØJ'!C75/'Tabel 4F ØJ'!C75*100,"-")) -> - | D75: =IF(OR('Tabel 4F ØJ'!D75<5,'Tabel 4 ØJ'!D75<0.5),"-",IFERROR('Tabel 4 ØJ'!D75/'Tabel 4F ØJ'!D75*100,"-")) -> - | E75: =IF(OR('Tabel 4F ØJ'!E75<5,'Tabel 4 ØJ'!E75<0.5),"-",IFERROR('Tabel 4 ØJ'!E75/'Tabel 4F ØJ'!E75*100,"-")) -> - | F75: =IF(OR('Tabel 4F ØJ'!F75<5,'Tabel 4 ØJ'!F75<0.5),"-",IFERROR('Tabel 4 ØJ'!F75/'Tabel 4F ØJ'!F75*100,"-")) -> - | G75: =IF(OR('Tabel 4F ØJ'!G75<5,'Tabel 4 ØJ'!G75<0.5),"-",IFERROR('Tabel 4 ØJ'!G75/'Tabel 4F ØJ'!G75*100,"-")) -> - | I75: =IF(OR('Tabel 4F ØJ'!I75<5,'Tabel 4 ØJ'!I75<0.5),"-",IFERROR('Tabel 4 ØJ'!I75/'Tabel 4F ØJ'!I75*100,"-")) -> -
A76: Dyrlæge | C76: =IF(OR('Tabel 4F ØJ'!C76<5,'Tabel 4 ØJ'!C76<0.5),"-",IFERROR('Tabel 4 ØJ'!C76/'Tabel 4F ØJ'!C76*100,"-")) -> - | D76: =IF(OR('Tabel 4F ØJ'!D76<5,'Tabel 4 ØJ'!D76<0.5),"-",IFERROR('Tabel 4 ØJ'!D76/'Tabel 4F ØJ'!D76*100,"-")) -> - | E76: =IF(OR('Tabel 4F ØJ'!E76<5,'Tabel 4 ØJ'!E76<0.5),"-",IFERROR('Tabel 4 ØJ'!E76/'Tabel 4F ØJ'!E76*100,"-")) -> - | F76: =IF(OR('Tabel 4F ØJ'!F76<5,'Tabel 4 ØJ'!F76<0.5),"-",IFERROR('Tabel 4 ØJ'!F76/'Tabel 4F ØJ'!F76*100,"-")) -> - | G76: =IF(OR('Tabel 4F ØJ'!G76<5,'Tabel 4 ØJ'!G76<0.5),"-",IFERROR('Tabel 4 ØJ'!G76/'Tabel 4F ØJ'!G76*100,"-")) -> - | I76: =IF(OR('Tabel 4F ØJ'!I76<5,'Tabel 4 ØJ'!I76<0.5),"-",IFERROR('Tabel 4 ØJ'!I76/'Tabel 4F ØJ'!I76*100,"-")) -> -
A77: Farmaceut | C77: =IF(OR('Tabel 4F ØJ'!C77<5,'Tabel 4 ØJ'!C77<0.5),"-",IFERROR('Tabel 4 ØJ'!C77/'Tabel 4F ØJ'!C77*100,"-")) -> 33.33333333 | D77: =IF(OR('Tabel 4F ØJ'!D77<5,'Tabel 4 ØJ'!D77<0.5),"-",IFERROR('Tabel 4 ØJ'!D77/'Tabel 4F ØJ'!D77*100,"-")) -> - | E77: =IF(OR('Tabel 4F ØJ'!E77<5,'Tabel 4 ØJ'!E77<0.5),"-",IFERROR('Tabel 4 ØJ'!E77/'Tabel 4F ØJ'!E77*100,"-")) -> - | F77: =IF(OR('Tabel 4F ØJ'!F77<5,'Tabel 4 ØJ'!F77<0.5),"-",IFERROR('Tabel 4 ØJ'!F77/'Tabel 4F ØJ'!F77*100,"-")) -> - | G77: =IF(OR('Tabel 4F ØJ'!G77<5,'Tabel 4 ØJ'!G77<0.5),"-",IFERROR('Tabel 4 ØJ'!G77/'Tabel 4F ØJ'!G77*100,"-")) -> - | I77: =IF(OR('Tabel 4F ØJ'!I77<5,'Tabel 4 ØJ'!I77<0.5),"-",IFERROR('Tabel 4 ØJ'!I77/'Tabel 4F ØJ'!I77*100,"-")) -> 9.090909091
A78: Læge | C78: =IF(OR('Tabel 4F ØJ'!C78<5,'Tabel 4 ØJ'!C78<0.5),"-",IFERROR('Tabel 4 ØJ'!C78/'Tabel 4F ØJ'!C78*100,"-")) -> 5.263157895 | D78: =IF(OR('Tabel 4F ØJ'!D78<5,'Tabel 4 ØJ'!D78<0.5),"-",IFERROR('Tabel 4 ØJ'!D78/'Tabel 4F ØJ'!D78*100,"-")) -> 2 | E78: =IF(OR('Tabel 4F ØJ'!E78<5,'Tabel 4 ØJ'!E78<0.5),"-",IFERROR('Tabel 4 ØJ'!E78/'Tabel 4F ØJ'!E78*100,"-")) -> - | F78: =IF(OR('Tabel 4F ØJ'!F78<5,'Tabel 4 ØJ'!F78<0.5),"-",IFERROR('Tabel 4 ØJ'!F78/'Tabel 4F ØJ'!F78*100,"-")) -> - | G78: =IF(OR('Tabel 4F ØJ'!G78<5,'Tabel 4 ØJ'!G78<0.5),"-",IFERROR('Tabel 4 ØJ'!G78/'Tabel 4F ØJ'!G78*100,"-")) -> - | I78: =IF(OR('Tabel 4F ØJ'!I78<5,'Tabel 4 ØJ'!I78<0.5),"-",IFERROR('Tabel 4 ØJ'!I78/'Tabel 4F ØJ'!I78*100,"-")) -> 2
A79: Tandlæge | C79: =IF(OR('Tabel 4F ØJ'!C79<5,'Tabel 4 ØJ'!C79<0.5),"-",IFERROR('Tabel 4 ØJ'!C79/'Tabel 4F ØJ'!C79*100,"-")) -> - | D79: =IF(OR('Tabel 4F ØJ'!D79<5,'Tabel 4 ØJ'!D79<0.5),"-",IFERROR('Tabel 4 ØJ'!D79/'Tabel 4F ØJ'!D79*100,"-")) -> - | E79: =IF(OR('Tabel 4F ØJ'!E79<5,'Tabel 4 ØJ'!E79<0.5),"-",IFERROR('Tabel 4 ØJ'!E79/'Tabel 4F ØJ'!E79*100,"-")) -> - | F79: =IF(OR('Tabel 4F ØJ'!F79<5,'Tabel 4 ØJ'!F79<0.5),"-",IFERROR('Tabel 4 ØJ'!F79/'Tabel 4F ØJ'!F79*100,"-")) -> - | G79: =IF(OR('Tabel 4F ØJ'!G79<5,'Tabel 4 ØJ'!G79<0.5),"-",IFERROR('Tabel 4 ØJ'!G79/'Tabel 4F ØJ'!G79*100,"-")) -> - | I79: =IF(OR('Tabel 4F ØJ'!I79<5,'Tabel 4 ØJ'!I79<0.5),"-",IFERROR('Tabel 4 ØJ'!I79/'Tabel 4F ØJ'!I79*100,"-")) -> -
A80: Arkitekt | C80: =IF(OR('Tabel 4F ØJ'!C80<5,'Tabel 4 ØJ'!C80<0.5),"-",IFERROR('Tabel 4 ØJ'!C80/'Tabel 4F ØJ'!C80*100,"-")) -> 14.28571429 | D80: =IF(OR('Tabel 4F ØJ'!D80<5,'Tabel 4 ØJ'!D80<0.5),"-",IFERROR('Tabel 4 ØJ'!D80/'Tabel 4F ØJ'!D80*100,"-")) -> - | E80: =IF(OR('Tabel 4F ØJ'!E80<5,'Tabel 4 ØJ'!E80<0.5),"-",IFERROR('Tabel 4 ØJ'!E80/'Tabel 4F ØJ'!E80*100,"-")) -> 3.703703704 | F80: =IF(OR('Tabel 4F ØJ'!F80<5,'Tabel 4 ØJ'!F80<0.5),"-",IFERROR('Tabel 4 ØJ'!F80/'Tabel 4F ØJ'!F80*100,"-")) -> 11.11111111 | G80: =IF(OR('Tabel 4F ØJ'!G80<5,'Tabel 4 ØJ'!G80<0.5),"-",IFERROR('Tabel 4 ØJ'!G80/'Tabel 4F ØJ'!G80*100,"-")) -> - | I80: =IF(OR('Tabel 4F ØJ'!I80<5,'Tabel 4 ØJ'!I80<0.5),"-",IFERROR('Tabel 4 ØJ'!I80/'Tabel 4F ØJ'!I80*100,"-")) -> 4.166666667
A81: Landinspek. | C81: =IF(OR('Tabel 4F ØJ'!C81<5,'Tabel 4 ØJ'!C81<0.5),"-",IFERROR('Tabel 4 ØJ'!C81/'Tabel 4F ØJ'!C81*100,"-")) -> - | D81: =IF(OR('Tabel 4F ØJ'!D81<5,'Tabel 4 ØJ'!D81<0.5),"-",IFERROR('Tabel 4 ØJ'!D81/'Tabel 4F ØJ'!D81*100,"-")) -> - | E81: =IF(OR('Tabel 4F ØJ'!E81<5,'Tabel 4 ØJ'!E81<0.5),"-",IFERROR('Tabel 4 ØJ'!E81/'Tabel 4F ØJ'!E81*100,"-")) -> - | F81: =IF(OR('Tabel 4F ØJ'!F81<5,'Tabel 4 ØJ'!F81<0.5),"-",IFERROR('Tabel 4 ØJ'!F81/'Tabel 4F ØJ'!F81*100,"-")) -> - | G81: =IF(OR('Tabel 4F ØJ'!G81<5,'Tabel 4 ØJ'!G81<0.5),"-",IFERROR('Tabel 4 ØJ'!G81/'Tabel 4F ØJ'!G81*100,"-")) -> - | I81: =IF(OR('Tabel 4F ØJ'!I81<5,'Tabel 4 ØJ'!I81<0.5),"-",IFERROR('Tabel 4 ØJ'!I81/'Tabel 4F ØJ'!I81*100,"-")) -> -
A82: Bibliotekar | C82: =IF(OR('Tabel 4F ØJ'!C82<5,'Tabel 4 ØJ'!C82<0.5),"-",IFERROR('Tabel 4 ØJ'!C82/'Tabel 4F ØJ'!C82*100,"-")) -> - | D82: =IF(OR('Tabel 4F ØJ'!D82<5,'Tabel 4 ØJ'!D82<0.5),"-",IFERROR('Tabel 4 ØJ'!D82/'Tabel 4F ØJ'!D82*100,"-")) -> - | E82: =IF(OR('Tabel 4F ØJ'!E82<5,'Tabel 4 ØJ'!E82<0.5),"-",IFERROR('Tabel 4 ØJ'!E82/'Tabel 4F ØJ'!E82*100,"-")) -> 8.333333333 | F82: =IF(OR('Tabel 4F ØJ'!F82<5,'Tabel 4 ØJ'!F82<0.5),"-",IFERROR('Tabel 4 ØJ'!F82/'Tabel 4F ØJ'!F82*100,"-")) -> - | G82: =IF(OR('Tabel 4F ØJ'!G82<5,'Tabel 4 ØJ'!G82<0.5),"-",IFERROR('Tabel 4 ØJ'!G82/'Tabel 4F ØJ'!G82*100,"-")) -> - | I82: =IF(OR('Tabel 4F ØJ'!I82<5,'Tabel 4 ØJ'!I82<0.5),"-",IFERROR('Tabel 4 ØJ'!I82/'Tabel 4F ØJ'!I82*100,"-")) -> 3.448275862
A83: Musikudd. | C83: =IF(OR('Tabel 4F ØJ'!C83<5,'Tabel 4 ØJ'!C83<0.5),"-",IFERROR('Tabel 4 ØJ'!C83/'Tabel 4F ØJ'!C83*100,"-")) -> - | D83: =IF(OR('Tabel 4F ØJ'!D83<5,'Tabel 4 ØJ'!D83<0.5),"-",IFERROR('Tabel 4 ØJ'!D83/'Tabel 4F ØJ'!D83*100,"-")) -> - | E83: =IF(OR('Tabel 4F ØJ'!E83<5,'Tabel 4 ØJ'!E83<0.5),"-",IFERROR('Tabel 4 ØJ'!E83/'Tabel 4F ØJ'!E83*100,"-")) -> - | F83: =IF(OR('Tabel 4F ØJ'!F83<5,'Tabel 4 ØJ'!F83<0.5),"-",IFERROR('Tabel 4 ØJ'!F83/'Tabel 4F ØJ'!F83*100,"-")) -> - | G83: =IF(OR('Tabel 4F ØJ'!G83<5,'Tabel 4 ØJ'!G83<0.5),"-",IFERROR('Tabel 4 ØJ'!G83/'Tabel 4F ØJ'!G83*100,"-")) -> - | I83: =IF(OR('Tabel 4F ØJ'!I83<5,'Tabel 4 ØJ'!I83<0.5),"-",IFERROR('Tabel 4 ØJ'!I83/'Tabel 4F ØJ'!I83*100,"-")) -> 12.5
A84: Teolog | C84: =IF(OR('Tabel 4F ØJ'!C84<5,'Tabel 4 ØJ'!C84<0.5),"-",IFERROR('Tabel 4 ØJ'!C84/'Tabel 4F ØJ'!C84*100,"-")) -> - | D84: =IF(OR('Tabel 4F ØJ'!D84<5,'Tabel 4 ØJ'!D84<0.5),"-",IFERROR('Tabel 4 ØJ'!D84/'Tabel 4F ØJ'!D84*100,"-")) -> - | E84: =IF(OR('Tabel 4F ØJ'!E84<5,'Tabel 4 ØJ'!E84<0.5),"-",IFERROR('Tabel 4 ØJ'!E84/'Tabel 4F ØJ'!E84*100,"-")) -> - | F84: =IF(OR('Tabel 4F ØJ'!F84<5,'Tabel 4 ØJ'!F84<0.5),"-",IFERROR('Tabel 4 ØJ'!F84/'Tabel 4F ØJ'!F84*100,"-")) -> 16.66666667 | G84: =IF(OR('Tabel 4F ØJ'!G84<5,'Tabel 4 ØJ'!G84<0.5),"-",IFERROR('Tabel 4 ØJ'!G84/'Tabel 4F ØJ'!G84*100,"-")) -> - | I84: =IF(OR('Tabel 4F ØJ'!I84<5,'Tabel 4 ØJ'!I84<0.5),"-",IFERROR('Tabel 4 ØJ'!I84/'Tabel 4F ØJ'!I84*100,"-")) -> 6.25
A85: Psykolog | C85: =IF(OR('Tabel 4F ØJ'!C85<5,'Tabel 4 ØJ'!C85<0.5),"-",IFERROR('Tabel 4 ØJ'!C85/'Tabel 4F ØJ'!C85*100,"-")) -> 18.18181818 | D85: =IF(OR('Tabel 4F ØJ'!D85<5,'Tabel 4 ØJ'!D85<0.5),"-",IFERROR('Tabel 4 ØJ'!D85/'Tabel 4F ØJ'!D85*100,"-")) -> 6.818181818 | E85: =IF(OR('Tabel 4F ØJ'!E85<5,'Tabel 4 ØJ'!E85<0.5),"-",IFERROR('Tabel 4 ØJ'!E85/'Tabel 4F ØJ'!E85*100,"-")) -> 5.405405405 | F85: =IF(OR('Tabel 4F ØJ'!F85<5,'Tabel 4 ØJ'!F85<0.5),"-",IFERROR('Tabel 4 ØJ'!F85/'Tabel 4F ØJ'!F85*100,"-")) -> - | G85: =IF(OR('Tabel 4F ØJ'!G85<5,'Tabel 4 ØJ'!G85<0.5),"-",IFERROR('Tabel 4 ØJ'!G85/'Tabel 4F ØJ'!G85*100,"-")) -> - | I85: =IF(OR('Tabel 4F ØJ'!I85<5,'Tabel 4 ØJ'!I85<0.5),"-",IFERROR('Tabel 4 ØJ'!I85/'Tabel 4F ØJ'!I85*100,"-")) -> 6.666666667
A86: Jurist | C86: =IF(OR('Tabel 4F ØJ'!C86<5,'Tabel 4 ØJ'!C86<0.5),"-",IFERROR('Tabel 4 ØJ'!C86/'Tabel 4F ØJ'!C86*100,"-")) -> - | D86: =IF(OR('Tabel 4F ØJ'!D86<5,'Tabel 4 ØJ'!D86<0.5),"-",IFERROR('Tabel 4 ØJ'!D86/'Tabel 4F ØJ'!D86*100,"-")) -> - | E86: =IF(OR('Tabel 4F ØJ'!E86<5,'Tabel 4 ØJ'!E86<0.5),"-",IFERROR('Tabel 4 ØJ'!E86/'Tabel 4F ØJ'!E86*100,"-")) -> - | F86: =IF(OR('Tabel 4F ØJ'!F86<5,'Tabel 4 ØJ'!F86<0.5),"-",IFERROR('Tabel 4 ØJ'!F86/'Tabel 4F ØJ'!F86*100,"-")) -> - | G86: =IF(OR('Tabel 4F ØJ'!G86<5,'Tabel 4 ØJ'!G86<0.5),"-",IFERROR('Tabel 4 ØJ'!G86/'Tabel 4F ØJ'!G86*100,"-")) -> - | I86: =IF(OR('Tabel 4F ØJ'!I86<5,'Tabel 4 ØJ'!I86<0.5),"-",IFERROR('Tabel 4 ØJ'!I86/'Tabel 4F ØJ'!I86*100,"-")) -> -
A87: Økonom | C87: =IF(OR('Tabel 4F ØJ'!C87<5,'Tabel 4 ØJ'!C87<0.5),"-",IFERROR('Tabel 4 ØJ'!C87/'Tabel 4F ØJ'!C87*100,"-")) -> 10 | D87: =IF(OR('Tabel 4F ØJ'!D87<5,'Tabel 4 ØJ'!D87<0.5),"-",IFERROR('Tabel 4 ØJ'!D87/'Tabel 4F ØJ'!D87*100,"-")) -> - | E87: =IF(OR('Tabel 4F ØJ'!E87<5,'Tabel 4 ØJ'!E87<0.5),"-",IFERROR('Tabel 4 ØJ'!E87/'Tabel 4F ØJ'!E87*100,"-")) -> 5 | F87: =IF(OR('Tabel 4F ØJ'!F87<5,'Tabel 4 ØJ'!F87<0.5),"-",IFERROR('Tabel 4 ØJ'!F87/'Tabel 4F ØJ'!F87*100,"-")) -> - | G87: =IF(OR('Tabel 4F ØJ'!G87<5,'Tabel 4 ØJ'!G87<0.5),"-",IFERROR('Tabel 4 ØJ'!G87/'Tabel 4F ØJ'!G87*100,"-")) -> - | I87: =IF(OR('Tabel 4F ØJ'!I87<5,'Tabel 4 ØJ'!I87<0.5),"-",IFERROR('Tabel 4 ØJ'!I87/'Tabel 4F ØJ'!I87*100,"-")) -> 2.777777778
A88: Samf. Adm. | C88: =IF(OR('Tabel 4F ØJ'!C88<5,'Tabel 4 ØJ'!C88<0.5),"-",IFERROR('Tabel 4 ØJ'!C88/'Tabel 4F ØJ'!C88*100,"-")) -> 11.11111111 | D88: =IF(OR('Tabel 4F ØJ'!D88<5,'Tabel 4 ØJ'!D88<0.5),"-",IFERROR('Tabel 4 ØJ'!D88/'Tabel 4F ØJ'!D88*100,"-")) -> 1.25 | E88: =IF(OR('Tabel 4F ØJ'!E88<5,'Tabel 4 ØJ'!E88<0.5),"-",IFERROR('Tabel 4 ØJ'!E88/'Tabel 4F ØJ'!E88*100,"-")) -> - | F88: =IF(OR('Tabel 4F ØJ'!F88<5,'Tabel 4 ØJ'!F88<0.5),"-",IFERROR('Tabel 4 ØJ'!F88/'Tabel 4F ØJ'!F88*100,"-")) -> 5.555555556 | G88: =IF(OR('Tabel 4F ØJ'!G88<5,'Tabel 4 ØJ'!G88<0.5),"-",IFERROR('Tabel 4 ØJ'!G88/'Tabel 4F ØJ'!G88*100,"-")) -> - | I88: =IF(OR('Tabel 4F ØJ'!I88<5,'Tabel 4 ØJ'!I88<0.5),"-",IFERROR('Tabel 4 ØJ'!I88/'Tabel 4F ØJ'!I88*100,"-")) -> 2.127659574
A89: Cand. Merc. | C89: =IF(OR('Tabel 4F ØJ'!C89<5,'Tabel 4 ØJ'!C89<0.5),"-",IFERROR('Tabel 4 ØJ'!C89/'Tabel 4F ØJ'!C89*100,"-")) -> 10.63829787 | D89: =IF(OR('Tabel 4F ØJ'!D89<5,'Tabel 4 ØJ'!D89<0.5),"-",IFERROR('Tabel 4 ØJ'!D89/'Tabel 4F ØJ'!D89*100,"-")) -> 3.333333333 | E89: =IF(OR('Tabel 4F ØJ'!E89<5,'Tabel 4 ØJ'!E89<0.5),"-",IFERROR('Tabel 4 ØJ'!E89/'Tabel 4F ØJ'!E89*100,"-")) -> 0.8547008547 | F89: =IF(OR('Tabel 4F ØJ'!F89<5,'Tabel 4 ØJ'!F89<0.5),"-",IFERROR('Tabel 4 ØJ'!F89/'Tabel 4F ØJ'!F89*100,"-")) -> 4.411764706 | G89: =IF(OR('Tabel 4F ØJ'!G89<5,'Tabel 4 ØJ'!G89<0.5),"-",IFERROR('Tabel 4 ØJ'!G89/'Tabel 4F ØJ'!G89*100,"-")) -> - | I89: =IF(OR('Tabel 4F ØJ'!I89<5,'Tabel 4 ØJ'!I89<0.5),"-",IFERROR('Tabel 4 ØJ'!I89/'Tabel 4F ØJ'!I89*100,"-")) -> 4.19047619
A90: HA | C90: =IF(OR('Tabel 4F ØJ'!C90<5,'Tabel 4 ØJ'!C90<0.5),"-",IFERROR('Tabel 4 ØJ'!C90/'Tabel 4F ØJ'!C90*100,"-")) -> 13.33333333 | D90: =IF(OR('Tabel 4F ØJ'!D90<5,'Tabel 4 ØJ'!D90<0.5),"-",IFERROR('Tabel 4 ØJ'!D90/'Tabel 4F ØJ'!D90*100,"-")) -> 4.761904762 | E90: =IF(OR('Tabel 4F ØJ'!E90<5,'Tabel 4 ØJ'!E90<0.5),"-",IFERROR('Tabel 4 ØJ'!E90/'Tabel 4F ØJ'!E90*100,"-")) -> 5.555555556 | F90: =IF(OR('Tabel 4F ØJ'!F90<5,'Tabel 4 ØJ'!F90<0.5),"-",IFERROR('Tabel 4 ØJ'!F90/'Tabel 4F ØJ'!F90*100,"-")) -> - | G90: =IF(OR('Tabel 4F ØJ'!G90<5,'Tabel 4 ØJ'!G90<0.5),"-",IFERROR('Tabel 4 ØJ'!G90/'Tabel 4F ØJ'!G90*100,"-")) -> - | I90: =IF(OR('Tabel 4F ØJ'!I90<5,'Tabel 4 ØJ'!I90<0.5),"-",IFERROR('Tabel 4 ØJ'!I90/'Tabel 4F ØJ'!I90*100,"-")) -> 6.060606061
A91: HD | C91: =IF(OR('Tabel 4F ØJ'!C91<5,'Tabel 4 ØJ'!C91<0.5),"-",IFERROR('Tabel 4 ØJ'!C91/'Tabel 4F ØJ'!C91*100,"-")) -> 50 | D91: =IF(OR('Tabel 4F ØJ'!D91<5,'Tabel 4 ØJ'!D91<0.5),"-",IFERROR('Tabel 4 ØJ'!D91/'Tabel 4F ØJ'!D91*100,"-")) -> 17.64705882 | E91: =IF(OR('Tabel 4F ØJ'!E91<5,'Tabel 4 ØJ'!E91<0.5),"-",IFERROR('Tabel 4 ØJ'!E91/'Tabel 4F ØJ'!E91*100,"-")) -> - | F91: =IF(OR('Tabel 4F ØJ'!F91<5,'Tabel 4 ØJ'!F91<0.5),"-",IFERROR('Tabel 4 ØJ'!F91/'Tabel 4F ØJ'!F91*100,"-")) -> 8 | G91: =IF(OR('Tabel 4F ØJ'!G91<5,'Tabel 4 ØJ'!G91<0.5),"-",IFERROR('Tabel 4 ØJ'!G91/'Tabel 4F ØJ'!G91*100,"-")) -> - | I91: =IF(OR('Tabel 4F ØJ'!I91<5,'Tabel 4 ØJ'!I91<0.5),"-",IFERROR('Tabel 4 ØJ'!I91/'Tabel 4F ØJ'!I91*100,"-")) -> 13.43283582
A92: Komm. og Sprog | C92: =IF(OR('Tabel 4F ØJ'!C92<5,'Tabel 4 ØJ'!C92<0.5),"-",IFERROR('Tabel 4 ØJ'!C92/'Tabel 4F ØJ'!C92*100,"-")) -> 30.76923077 | D92: =IF(OR('Tabel 4F ØJ'!D92<5,'Tabel 4 ØJ'!D92<0.5),"-",IFERROR('Tabel 4 ØJ'!D92/'Tabel 4F ØJ'!D92*100,"-")) -> - | E92: =IF(OR('Tabel 4F ØJ'!E92<5,'Tabel 4 ØJ'!E92<0.5),"-",IFERROR('Tabel 4 ØJ'!E92/'Tabel 4F ØJ'!E92*100,"-")) -> - | F92: =IF(OR('Tabel 4F ØJ'!F92<5,'Tabel 4 ØJ'!F92<0.5),"-",IFERROR('Tabel 4 ØJ'!F92/'Tabel 4F ØJ'!F92*100,"-")) -> 4.545454545 | G92: =IF(OR('Tabel 4F ØJ'!G92<5,'Tabel 4 ØJ'!G92<0.5),"-",IFERROR('Tabel 4 ØJ'!G92/'Tabel 4F ØJ'!G92*100,"-")) -> - | I92: =IF(OR('Tabel 4F ØJ'!I92<5,'Tabel 4 ØJ'!I92<0.5),"-",IFERROR('Tabel 4 ØJ'!I92/'Tabel 4F ØJ'!I92*100,"-")) -> 6.25
A93: Bygningskonst. | C93: =IF(OR('Tabel 4F ØJ'!C93<5,'Tabel 4 ØJ'!C93<0.5),"-",IFERROR('Tabel 4 ØJ'!C93/'Tabel 4F ØJ'!C93*100,"-")) -> 14.42307692 | D93: =IF(OR('Tabel 4F ØJ'!D93<5,'Tabel 4 ØJ'!D93<0.5),"-",IFERROR('Tabel 4 ØJ'!D93/'Tabel 4F ØJ'!D93*100,"-")) -> 2.07253886 | E93: =IF(OR('Tabel 4F ØJ'!E93<5,'Tabel 4 ØJ'!E93<0.5),"-",IFERROR('Tabel 4 ØJ'!E93/'Tabel 4F ØJ'!E93*100,"-")) -> 1.550387597 | F93: =IF(OR('Tabel 4F ØJ'!F93<5,'Tabel 4 ØJ'!F93<0.5),"-",IFERROR('Tabel 4 ØJ'!F93/'Tabel 4F ØJ'!F93*100,"-")) -> 1.587301587 | G93: =IF(OR('Tabel 4F ØJ'!G93<5,'Tabel 4 ØJ'!G93<0.5),"-",IFERROR('Tabel 4 ØJ'!G93/'Tabel 4F ØJ'!G93*100,"-")) -> - | I93: =IF(OR('Tabel 4F ØJ'!I93<5,'Tabel 4 ØJ'!I93<0.5),"-",IFERROR('Tabel 4 ØJ'!I93/'Tabel 4F ØJ'!I93*100,"-")) -> 4.330708661
A94: Cand. IT. | C94: =IF(OR('Tabel 4F ØJ'!C94<5,'Tabel 4 ØJ'!C94<0.5),"-",IFERROR('Tabel 4 ØJ'!C94/'Tabel 4F ØJ'!C94*100,"-")) -> 16.66666667 | D94: =IF(OR('Tabel 4F ØJ'!D94<5,'Tabel 4 ØJ'!D94<0.5),"-",IFERROR('Tabel 4 ØJ'!D94/'Tabel 4F ØJ'!D94*100,"-")) -> 6.896551724 | E94: =IF(OR('Tabel 4F ØJ'!E94<5,'Tabel 4 ØJ'!E94<0.5),"-",IFERROR('Tabel 4 ØJ'!E94/'Tabel 4F ØJ'!E94*100,"-")) -> - | F94: =IF(OR('Tabel 4F ØJ'!F94<5,'Tabel 4 ØJ'!F94<0.5),"-",IFERROR('Tabel 4 ØJ'!F94/'Tabel 4F ØJ'!F94*100,"-")) -> - | G94: =IF(OR('Tabel 4F ØJ'!G94<5,'Tabel 4 ØJ'!G94<0.5),"-",IFERROR('Tabel 4 ØJ'!G94/'Tabel 4F ØJ'!G94*100,"-")) -> - | I94: =IF(OR('Tabel 4F ØJ'!I94<5,'Tabel 4 ØJ'!I94<0.5),"-",IFERROR('Tabel 4 ØJ'!I94/'Tabel 4F ØJ'!I94*100,"-")) -> 7.547169811
A95: Bac. Samf. | C95: =IF(OR('Tabel 4F ØJ'!C95<5,'Tabel 4 ØJ'!C95<0.5),"-",IFERROR('Tabel 4 ØJ'!C95/'Tabel 4F ØJ'!C95*100,"-")) -> - | D95: =IF(OR('Tabel 4F ØJ'!D95<5,'Tabel 4 ØJ'!D95<0.5),"-",IFERROR('Tabel 4 ØJ'!D95/'Tabel 4F ØJ'!D95*100,"-")) -> - | E95: =IF(OR('Tabel 4F ØJ'!E95<5,'Tabel 4 ØJ'!E95<0.5),"-",IFERROR('Tabel 4 ØJ'!E95/'Tabel 4F ØJ'!E95*100,"-")) -> - | F95: =IF(OR('Tabel 4F ØJ'!F95<5,'Tabel 4 ØJ'!F95<0.5),"-",IFERROR('Tabel 4 ØJ'!F95/'Tabel 4F ØJ'!F95*100,"-")) -> - | G95: =IF(OR('Tabel 4F ØJ'!G95<5,'Tabel 4 ØJ'!G95<0.5),"-",IFERROR('Tabel 4 ØJ'!G95/'Tabel 4F ØJ'!G95*100,"-")) -> - | I95: =IF(OR('Tabel 4F ØJ'!I95<5,'Tabel 4 ØJ'!I95<0.5),"-",IFERROR('Tabel 4 ØJ'!I95/'Tabel 4F ØJ'!I95*100,"-")) -> 5.263157895
A96: Bac. Hum. | C96: =IF(OR('Tabel 4F ØJ'!C96<5,'Tabel 4 ØJ'!C96<0.5),"-",IFERROR('Tabel 4 ØJ'!C96/'Tabel 4F ØJ'!C96*100,"-")) -> 30.76923077 | D96: =IF(OR('Tabel 4F ØJ'!D96<5,'Tabel 4 ØJ'!D96<0.5),"-",IFERROR('Tabel 4 ØJ'!D96/'Tabel 4F ØJ'!D96*100,"-")) -> 16.66666667 | E96: =IF(OR('Tabel 4F ØJ'!E96<5,'Tabel 4 ØJ'!E96<0.5),"-",IFERROR('Tabel 4 ØJ'!E96/'Tabel 4F ØJ'!E96*100,"-")) -> 10 | F96: =IF(OR('Tabel 4F ØJ'!F96<5,'Tabel 4 ØJ'!F96<0.5),"-",IFERROR('Tabel 4 ØJ'!F96/'Tabel 4F ØJ'!F96*100,"-")) -> - | G96: =IF(OR('Tabel 4F ØJ'!G96<5,'Tabel 4 ØJ'!G96<0.5),"-",IFERROR('Tabel 4 ØJ'!G96/'Tabel 4F ØJ'!G96*100,"-")) -> - | I96: =IF(OR('Tabel 4F ØJ'!I96<5,'Tabel 4 ØJ'!I96<0.5),"-",IFERROR('Tabel 4 ØJ'!I96/'Tabel 4F ØJ'!I96*100,"-")) -> 14.89361702
A97: Bac. Nat. | C97: =IF(OR('Tabel 4F ØJ'!C97<5,'Tabel 4 ØJ'!C97<0.5),"-",IFERROR('Tabel 4 ØJ'!C97/'Tabel 4F ØJ'!C97*100,"-")) -> 21.79487179 | D97: =IF(OR('Tabel 4F ØJ'!D97<5,'Tabel 4 ØJ'!D97<0.5),"-",IFERROR('Tabel 4 ØJ'!D97/'Tabel 4F ØJ'!D97*100,"-")) -> 4.081632653 | E97: =IF(OR('Tabel 4F ØJ'!E97<5,'Tabel 4 ØJ'!E97<0.5),"-",IFERROR('Tabel 4 ØJ'!E97/'Tabel 4F ØJ'!E97*100,"-")) -> - | F97: =IF(OR('Tabel 4F ØJ'!F97<5,'Tabel 4 ØJ'!F97<0.5),"-",IFERROR('Tabel 4 ØJ'!F97/'Tabel 4F ØJ'!F97*100,"-")) -> - | G97: =IF(OR('Tabel 4F ØJ'!G97<5,'Tabel 4 ØJ'!G97<0.5),"-",IFERROR('Tabel 4 ØJ'!G97/'Tabel 4F ØJ'!G97*100,"-")) -> - | I97: =IF(OR('Tabel 4F ØJ'!I97<5,'Tabel 4 ØJ'!I97<0.5),"-",IFERROR('Tabel 4 ØJ'!I97/'Tabel 4F ØJ'!I97*100,"-")) -> 13.28671329
A98: Andre | C98: =IF(OR('Tabel 4F ØJ'!C98<5,'Tabel 4 ØJ'!C98<0.5),"-",IFERROR('Tabel 4 ØJ'!C98/'Tabel 4F ØJ'!C98*100,"-")) -> 19.04761905 | D98: =IF(OR('Tabel 4F ØJ'!D98<5,'Tabel 4 ØJ'!D98<0.5),"-",IFERROR('Tabel 4 ØJ'!D98/'Tabel 4F ØJ'!D98*100,"-")) -> 2.752293578 | E98: =IF(OR('Tabel 4F ØJ'!E98<5,'Tabel 4 ØJ'!E98<0.5),"-",IFERROR('Tabel 4 ØJ'!E98/'Tabel 4F ØJ'!E98*100,"-")) -> - | F98: =IF(OR('Tabel 4F ØJ'!F98<5,'Tabel 4 ØJ'!F98<0.5),"-",IFERROR('Tabel 4 ØJ'!F98/'Tabel 4F ØJ'!F98*100,"-")) -> 11.53846154 | G98: =IF(OR('Tabel 4F ØJ'!G98<5,'Tabel 4 ØJ'!G98<0.5),"-",IFERROR('Tabel 4 ØJ'!G98/'Tabel 4F ØJ'!G98*100,"-")) -> - | I98: =IF(OR('Tabel 4F ØJ'!I98<5,'Tabel 4 ØJ'!I98<0.5),"-",IFERROR('Tabel 4 ØJ'!I98/'Tabel 4F ØJ'!I98*100,"-")) -> 6.691449814
A100: Total | C100: =IF(OR('Tabel 4F ØJ'!C100<5,'Tabel 4 ØJ'!C100<0.5),"-",IFERROR('Tabel 4 ØJ'!C100/'Tabel 4F ØJ'!C100*100,"-")) -> 14.87179487 | D100: =IF(OR('Tabel 4F ØJ'!D100<5,'Tabel 4 ØJ'!D100<0.5),"-",IFERROR('Tabel 4 ØJ'!D100/'Tabel 4F ØJ'!D100*100,"-")) -> 3.47672363 | E100: =IF(OR('Tabel 4F ØJ'!E100<5,'Tabel 4 ØJ'!E100<0.5),"-",IFERROR('Tabel 4 ØJ'!E100/'Tabel 4F ØJ'!E100*100,"-")) -> 1.325019486 | F100: =IF(OR('Tabel 4F ØJ'!F100<5,'Tabel 4 ØJ'!F100<0.5),"-",IFERROR('Tabel 4 ØJ'!F100/'Tabel 4F ØJ'!F100*100,"-")) -> 1.840490798 | G100: =IF(OR('Tabel 4F ØJ'!G100<5,'Tabel 4 ØJ'!G100<0.5),"-",IFERROR('Tabel 4 ØJ'!G100/'Tabel 4F ØJ'!G100*100,"-")) -> 2.419354839 | I100: =IF(OR('Tabel 4F ØJ'!I100<5,'Tabel 4 ØJ'!I100<0.5),"-",IFERROR('Tabel 4 ØJ'!I100/'Tabel 4F ØJ'!I100*100,"-")) -> 4.416338379
A102: Ingeniører i alt | C102: =IF(OR('Tabel 4F ØJ'!C102<5,'Tabel 4 ØJ'!C102<0.5),"-",IFERROR('Tabel 4 ØJ'!C102/'Tabel 4F ØJ'!C102*100,"-")) -> 11.18421053 | D102: =IF(OR('Tabel 4F ØJ'!D102<5,'Tabel 4 ØJ'!D102<0.5),"-",IFERROR('Tabel 4 ØJ'!D102/'Tabel 4F ØJ'!D102*100,"-")) -> 1.933701657 | E102: =IF(OR('Tabel 4F ØJ'!E102<5,'Tabel 4 ØJ'!E102<0.5),"-",IFERROR('Tabel 4 ØJ'!E102/'Tabel 4F ØJ'!E102*100,"-")) -> 0.566572238 | F102: =IF(OR('Tabel 4F ØJ'!F102<5,'Tabel 4 ØJ'!F102<0.5),"-",IFERROR('Tabel 4 ØJ'!F102/'Tabel 4F ØJ'!F102*100,"-")) -> - | G102: =IF(OR('Tabel 4F ØJ'!G102<5,'Tabel 4 ØJ'!G102<0.5),"-",IFERROR('Tabel 4 ØJ'!G102/'Tabel 4F ØJ'!G102*100,"-")) -> 4.255319149 | I102: =IF(OR('Tabel 4F ØJ'!I102<5,'Tabel 4 ØJ'!I102<0.5),"-",IFERROR('Tabel 4 ØJ'!I102/'Tabel 4F ØJ'!I102*100,"-")) -> 2.352941176
A103: Magistre i alt | C103: =IF(OR('Tabel 4F ØJ'!C103<5,'Tabel 4 ØJ'!C103<0.5),"-",IFERROR('Tabel 4 ØJ'!C103/'Tabel 4F ØJ'!C103*100,"-")) -> 16.41791045 | D103: =IF(OR('Tabel 4F ØJ'!D103<5,'Tabel 4 ØJ'!D103<0.5),"-",IFERROR('Tabel 4 ØJ'!D103/'Tabel 4F ØJ'!D103*100,"-")) -> 7.692307692 | E103: =IF(OR('Tabel 4F ØJ'!E103<5,'Tabel 4 ØJ'!E103<0.5),"-",IFERROR('Tabel 4 ØJ'!E103/'Tabel 4F ØJ'!E103*100,"-")) -> 1.818181818 | F103: =IF(OR('Tabel 4F ØJ'!F103<5,'Tabel 4 ØJ'!F103<0.5),"-",IFERROR('Tabel 4 ØJ'!F103/'Tabel 4F ØJ'!F103*100,"-")) -> 1.587301587 | G103: =IF(OR('Tabel 4F ØJ'!G103<5,'Tabel 4 ØJ'!G103<0.5),"-",IFERROR('Tabel 4 ØJ'!G103/'Tabel 4F ØJ'!G103*100,"-")) -> - | I103: =IF(OR('Tabel 4F ØJ'!I103<5,'Tabel 4 ØJ'!I103<0.5),"-",IFERROR('Tabel 4 ØJ'!I103/'Tabel 4F ØJ'!I103*100,"-")) -> 5.089820359
A104: DJØF'ere i alt | C104: =IF(OR('Tabel 4F ØJ'!C104<5,'Tabel 4 ØJ'!C104<0.5),"-",IFERROR('Tabel 4 ØJ'!C104/'Tabel 4F ØJ'!C104*100,"-")) -> 9.826589595 | D104: =IF(OR('Tabel 4F ØJ'!D104<5,'Tabel 4 ØJ'!D104<0.5),"-",IFERROR('Tabel 4 ØJ'!D104/'Tabel 4F ØJ'!D104*100,"-")) -> 2.34741784 | E104: =IF(OR('Tabel 4F ØJ'!E104<5,'Tabel 4 ØJ'!E104<0.5),"-",IFERROR('Tabel 4 ØJ'!E104/'Tabel 4F ØJ'!E104*100,"-")) -> 1.094890511 | F104: =IF(OR('Tabel 4F ØJ'!F104<5,'Tabel 4 ØJ'!F104<0.5),"-",IFERROR('Tabel 4 ØJ'!F104/'Tabel 4F ØJ'!F104*100,"-")) -> 2.777777778 | G104: =IF(OR('Tabel 4F ØJ'!G104<5,'Tabel 4 ØJ'!G104<0.5),"-",IFERROR('Tabel 4 ØJ'!G104/'Tabel 4F ØJ'!G104*100,"-")) -> - | I104: =IF(OR('Tabel 4F ØJ'!I104<5,'Tabel 4 ØJ'!I104<0.5),"-",IFERROR('Tabel 4 ØJ'!I104/'Tabel 4F ØJ'!I104*100,"-")) -> 3.256704981
A111: Syddjurs
C113: Under 30 år | D113: 30 - 39 år | E113: 40 - 49 år | F113: 50 - 59 år | G113: Over 60 år | I113: I alt
A115: Civ. ing. | C115: =IF(OR('Tabel 4F ØJ'!C115<5,'Tabel 4 ØJ'!C115<0.5),"-",IFERROR('Tabel 4 ØJ'!C115/'Tabel 4F ØJ'!C115*100,"-")) -> 25 | D115: =IF(OR('Tabel 4F ØJ'!D115<5,'Tabel 4 ØJ'!D115<0.5),"-",IFERROR('Tabel 4 ØJ'!D115/'Tabel 4F ØJ'!D115*100,"-")) -> - | E115: =IF(OR('Tabel 4F ØJ'!E115<5,'Tabel 4 ØJ'!E115<0.5),"-",IFERROR('Tabel 4 ØJ'!E115/'Tabel 4F ØJ'!E115*100,"-")) -> 4.166666667 | F115: =IF(OR('Tabel 4F ØJ'!F115<5,'Tabel 4 ØJ'!F115<0.5),"-",IFERROR('Tabel 4 ØJ'!F115/'Tabel 4F ØJ'!F115*100,"-")) -> 3.703703704 | G115: =IF(OR('Tabel 4F ØJ'!G115<5,'Tabel 4 ØJ'!G115<0.5),"-",IFERROR('Tabel 4 ØJ'!G115/'Tabel 4F ØJ'!G115*100,"-")) -> - | I115: =IF(OR('Tabel 4F ØJ'!I115<5,'Tabel 4 ØJ'!I115<0.5),"-",IFERROR('Tabel 4 ØJ'!I115/'Tabel 4F ØJ'!I115*100,"-")) -> 4.081632653
A116: Diplom ing. | C116: =IF(OR('Tabel 4F ØJ'!C116<5,'Tabel 4 ØJ'!C116<0.5),"-",IFERROR('Tabel 4 ØJ'!C116/'Tabel 4F ØJ'!C116*100,"-")) -> - | D116: =IF(OR('Tabel 4F ØJ'!D116<5,'Tabel 4 ØJ'!D116<0.5),"-",IFERROR('Tabel 4 ØJ'!D116/'Tabel 4F ØJ'!D116*100,"-")) -> 6.25 | E116: =IF(OR('Tabel 4F ØJ'!E116<5,'Tabel 4 ØJ'!E116<0.5),"-",IFERROR('Tabel 4 ØJ'!E116/'Tabel 4F ØJ'!E116*100,"-")) -> 2.898550725 | F116: =IF(OR('Tabel 4F ØJ'!F116<5,'Tabel 4 ØJ'!F116<0.5),"-",IFERROR('Tabel 4 ØJ'!F116/'Tabel 4F ØJ'!F116*100,"-")) -> - | G116: =IF(OR('Tabel 4F ØJ'!G116<5,'Tabel 4 ØJ'!G116<0.5),"-",IFERROR('Tabel 4 ØJ'!G116/'Tabel 4F ØJ'!G116*100,"-")) -> 4.444444444 | I116: =IF(OR('Tabel 4F ØJ'!I116<5,'Tabel 4 ØJ'!I116<0.5),"-",IFERROR('Tabel 4 ØJ'!I116/'Tabel 4F ØJ'!I116*100,"-")) -> 2.510460251
A117: Cand. Scient. Tek | C117: =IF(OR('Tabel 4F ØJ'!C117<5,'Tabel 4 ØJ'!C117<0.5),"-",IFERROR('Tabel 4 ØJ'!C117/'Tabel 4F ØJ'!C117*100,"-")) -> 7.692307692 | D117: =IF(OR('Tabel 4F ØJ'!D117<5,'Tabel 4 ØJ'!D117<0.5),"-",IFERROR('Tabel 4 ØJ'!D117/'Tabel 4F ØJ'!D117*100,"-")) -> 3.921568627 | E117: =IF(OR('Tabel 4F ØJ'!E117<5,'Tabel 4 ØJ'!E117<0.5),"-",IFERROR('Tabel 4 ØJ'!E117/'Tabel 4F ØJ'!E117*100,"-")) -> 5 | F117: =IF(OR('Tabel 4F ØJ'!F117<5,'Tabel 4 ØJ'!F117<0.5),"-",IFERROR('Tabel 4 ØJ'!F117/'Tabel 4F ØJ'!F117*100,"-")) -> - | G117: =IF(OR('Tabel 4F ØJ'!G117<5,'Tabel 4 ØJ'!G117<0.5),"-",IFERROR('Tabel 4 ØJ'!G117/'Tabel 4F ØJ'!G117*100,"-")) -> - | I117: =IF(OR('Tabel 4F ØJ'!I117<5,'Tabel 4 ØJ'!I117<0.5),"-",IFERROR('Tabel 4 ØJ'!I117/'Tabel 4F ØJ'!I117*100,"-")) -> 4.395604396
A118: MA. Hum. | C118: =IF(OR('Tabel 4F ØJ'!C118<5,'Tabel 4 ØJ'!C118<0.5),"-",IFERROR('Tabel 4 ØJ'!C118/'Tabel 4F ØJ'!C118*100,"-")) -> 20 | D118: =IF(OR('Tabel 4F ØJ'!D118<5,'Tabel 4 ØJ'!D118<0.5),"-",IFERROR('Tabel 4 ØJ'!D118/'Tabel 4F ØJ'!D118*100,"-")) -> 15.88785047 | E118: =IF(OR('Tabel 4F ØJ'!E118<5,'Tabel 4 ØJ'!E118<0.5),"-",IFERROR('Tabel 4 ØJ'!E118/'Tabel 4F ØJ'!E118*100,"-")) -> 6.382978723 | F118: =IF(OR('Tabel 4F ØJ'!F118<5,'Tabel 4 ØJ'!F118<0.5),"-",IFERROR('Tabel 4 ØJ'!F118/'Tabel 4F ØJ'!F118*100,"-")) -> 5.084745763 | G118: =IF(OR('Tabel 4F ØJ'!G118<5,'Tabel 4 ØJ'!G118<0.5),"-",IFERROR('Tabel 4 ØJ'!G118/'Tabel 4F ØJ'!G118*100,"-")) -> - | I118: =IF(OR('Tabel 4F ØJ'!I118<5,'Tabel 4 ØJ'!I118<0.5),"-",IFERROR('Tabel 4 ØJ'!I118/'Tabel 4F ØJ'!I118*100,"-")) -> 9.965635739
A119: MA. Nat. | C119: =IF(OR('Tabel 4F ØJ'!C119<5,'Tabel 4 ØJ'!C119<0.5),"-",IFERROR('Tabel 4 ØJ'!C119/'Tabel 4F ØJ'!C119*100,"-")) -> - | D119: =IF(OR('Tabel 4F ØJ'!D119<5,'Tabel 4 ØJ'!D119<0.5),"-",IFERROR('Tabel 4 ØJ'!D119/'Tabel 4F ØJ'!D119*100,"-")) -> 4.545454545 | E119: =IF(OR('Tabel 4F ØJ'!E119<5,'Tabel 4 ØJ'!E119<0.5),"-",IFERROR('Tabel 4 ØJ'!E119/'Tabel 4F ØJ'!E119*100,"-")) -> - | F119: =IF(OR('Tabel 4F ØJ'!F119<5,'Tabel 4 ØJ'!F119<0.5),"-",IFERROR('Tabel 4 ØJ'!F119/'Tabel 4F ØJ'!F119*100,"-")) -> - | G119: =IF(OR('Tabel 4F ØJ'!G119<5,'Tabel 4 ØJ'!G119<0.5),"-",IFERROR('Tabel 4 ØJ'!G119/'Tabel 4F ØJ'!G119*100,"-")) -> 11.11111111 | I119: =IF(OR('Tabel 4F ØJ'!I119<5,'Tabel 4 ØJ'!I119<0.5),"-",IFERROR('Tabel 4 ØJ'!I119/'Tabel 4F ØJ'!I119*100,"-")) -> 2.608695652
A120: MA. Ph.d. | C120: =IF(OR('Tabel 4F ØJ'!C120<5,'Tabel 4 ØJ'!C120<0.5),"-",IFERROR('Tabel 4 ØJ'!C120/'Tabel 4F ØJ'!C120*100,"-")) -> - | D120: =IF(OR('Tabel 4F ØJ'!D120<5,'Tabel 4 ØJ'!D120<0.5),"-",IFERROR('Tabel 4 ØJ'!D120/'Tabel 4F ØJ'!D120*100,"-")) -> 11.11111111 | E120: =IF(OR('Tabel 4F ØJ'!E120<5,'Tabel 4 ØJ'!E120<0.5),"-",IFERROR('Tabel 4 ØJ'!E120/'Tabel 4F ØJ'!E120*100,"-")) -> - | F120: =IF(OR('Tabel 4F ØJ'!F120<5,'Tabel 4 ØJ'!F120<0.5),"-",IFERROR('Tabel 4 ØJ'!F120/'Tabel 4F ØJ'!F120*100,"-")) -> - | G120: =IF(OR('Tabel 4F ØJ'!G120<5,'Tabel 4 ØJ'!G120<0.5),"-",IFERROR('Tabel 4 ØJ'!G120/'Tabel 4F ØJ'!G120*100,"-")) -> - | I120: =IF(OR('Tabel 4F ØJ'!I120<5,'Tabel 4 ØJ'!I120<0.5),"-",IFERROR('Tabel 4 ØJ'!I120/'Tabel 4F ØJ'!I120*100,"-")) -> 4.166666667
A121: MA. Samf. | C121: =IF(OR('Tabel 4F ØJ'!C121<5,'Tabel 4 ØJ'!C121<0.5),"-",IFERROR('Tabel 4 ØJ'!C121/'Tabel 4F ØJ'!C121*100,"-")) -> - | D121: =IF(OR('Tabel 4F ØJ'!D121<5,'Tabel 4 ØJ'!D121<0.5),"-",IFERROR('Tabel 4 ØJ'!D121/'Tabel 4F ØJ'!D121*100,"-")) -> 17.39130435 | E121: =IF(OR('Tabel 4F ØJ'!E121<5,'Tabel 4 ØJ'!E121<0.5),"-",IFERROR('Tabel 4 ØJ'!E121/'Tabel 4F ØJ'!E121*100,"-")) -> - | F121: =IF(OR('Tabel 4F ØJ'!F121<5,'Tabel 4 ØJ'!F121<0.5),"-",IFERROR('Tabel 4 ØJ'!F121/'Tabel 4F ØJ'!F121*100,"-")) -> - | G121: =IF(OR('Tabel 4F ØJ'!G121<5,'Tabel 4 ØJ'!G121<0.5),"-",IFERROR('Tabel 4 ØJ'!G121/'Tabel 4F ØJ'!G121*100,"-")) -> - | I121: =IF(OR('Tabel 4F ØJ'!I121<5,'Tabel 4 ØJ'!I121<0.5),"-",IFERROR('Tabel 4 ØJ'!I121/'Tabel 4F ØJ'!I121*100,"-")) -> 17.85714286
A122: Øvrige Mag. | C122: =IF(OR('Tabel 4F ØJ'!C122<5,'Tabel 4 ØJ'!C122<0.5),"-",IFERROR('Tabel 4 ØJ'!C122/'Tabel 4F ØJ'!C122*100,"-")) -> - | D122: =IF(OR('Tabel 4F ØJ'!D122<5,'Tabel 4 ØJ'!D122<0.5),"-",IFERROR('Tabel 4 ØJ'!D122/'Tabel 4F ØJ'!D122*100,"-")) -> 12.5 | E122: =IF(OR('Tabel 4F ØJ'!E122<5,'Tabel 4 ØJ'!E122<0.5),"-",IFERROR('Tabel 4 ØJ'!E122/'Tabel 4F ØJ'!E122*100,"-")) -> 9.090909091 | F122: =IF(OR('Tabel 4F ØJ'!F122<5,'Tabel 4 ØJ'!F122<0.5),"-",IFERROR('Tabel 4 ØJ'!F122/'Tabel 4F ØJ'!F122*100,"-")) -> - | G122: =IF(OR('Tabel 4F ØJ'!G122<5,'Tabel 4 ØJ'!G122<0.5),"-",IFERROR('Tabel 4 ØJ'!G122/'Tabel 4F ØJ'!G122*100,"-")) -> - | I122: =IF(OR('Tabel 4F ØJ'!I122<5,'Tabel 4 ØJ'!I122<0.5),"-",IFERROR('Tabel 4 ØJ'!I122/'Tabel 4F ØJ'!I122*100,"-")) -> 7.407407407
A123: Agronom | C123: =IF(OR('Tabel 4F ØJ'!C123<5,'Tabel 4 ØJ'!C123<0.5),"-",IFERROR('Tabel 4 ØJ'!C123/'Tabel 4F ØJ'!C123*100,"-")) -> - | D123: =IF(OR('Tabel 4F ØJ'!D123<5,'Tabel 4 ØJ'!D123<0.5),"-",IFERROR('Tabel 4 ØJ'!D123/'Tabel 4F ØJ'!D123*100,"-")) -> - | E123: =IF(OR('Tabel 4F ØJ'!E123<5,'Tabel 4 ØJ'!E123<0.5),"-",IFERROR('Tabel 4 ØJ'!E123/'Tabel 4F ØJ'!E123*100,"-")) -> - | F123: =IF(OR('Tabel 4F ØJ'!F123<5,'Tabel 4 ØJ'!F123<0.5),"-",IFERROR('Tabel 4 ØJ'!F123/'Tabel 4F ØJ'!F123*100,"-")) -> - | G123: =IF(OR('Tabel 4F ØJ'!G123<5,'Tabel 4 ØJ'!G123<0.5),"-",IFERROR('Tabel 4 ØJ'!G123/'Tabel 4F ØJ'!G123*100,"-")) -> - | I123: =IF(OR('Tabel 4F ØJ'!I123<5,'Tabel 4 ØJ'!I123<0.5),"-",IFERROR('Tabel 4 ØJ'!I123/'Tabel 4F ØJ'!I123*100,"-")) -> 3.333333333
A124: Landsk. Arkt. | C124: =IF(OR('Tabel 4F ØJ'!C124<5,'Tabel 4 ØJ'!C124<0.5),"-",IFERROR('Tabel 4 ØJ'!C124/'Tabel 4F ØJ'!C124*100,"-")) -> - | D124: =IF(OR('Tabel 4F ØJ'!D124<5,'Tabel 4 ØJ'!D124<0.5),"-",IFERROR('Tabel 4 ØJ'!D124/'Tabel 4F ØJ'!D124*100,"-")) -> - | E124: =IF(OR('Tabel 4F ØJ'!E124<5,'Tabel 4 ØJ'!E124<0.5),"-",IFERROR('Tabel 4 ØJ'!E124/'Tabel 4F ØJ'!E124*100,"-")) -> - | F124: =IF(OR('Tabel 4F ØJ'!F124<5,'Tabel 4 ØJ'!F124<0.5),"-",IFERROR('Tabel 4 ØJ'!F124/'Tabel 4F ØJ'!F124*100,"-")) -> - | G124: =IF(OR('Tabel 4F ØJ'!G124<5,'Tabel 4 ØJ'!G124<0.5),"-",IFERROR('Tabel 4 ØJ'!G124/'Tabel 4F ØJ'!G124*100,"-")) -> - | I124: =IF(OR('Tabel 4F ØJ'!I124<5,'Tabel 4 ØJ'!I124<0.5),"-",IFERROR('Tabel 4 ØJ'!I124/'Tabel 4F ØJ'!I124*100,"-")) -> -
A125: Hortonom | C125: =IF(OR('Tabel 4F ØJ'!C125<5,'Tabel 4 ØJ'!C125<0.5),"-",IFERROR('Tabel 4 ØJ'!C125/'Tabel 4F ØJ'!C125*100,"-")) -> - | D125: =IF(OR('Tabel 4F ØJ'!D125<5,'Tabel 4 ØJ'!D125<0.5),"-",IFERROR('Tabel 4 ØJ'!D125/'Tabel 4F ØJ'!D125*100,"-")) -> - | E125: =IF(OR('Tabel 4F ØJ'!E125<5,'Tabel 4 ØJ'!E125<0.5),"-",IFERROR('Tabel 4 ØJ'!E125/'Tabel 4F ØJ'!E125*100,"-")) -> - | F125: =IF(OR('Tabel 4F ØJ'!F125<5,'Tabel 4 ØJ'!F125<0.5),"-",IFERROR('Tabel 4 ØJ'!F125/'Tabel 4F ØJ'!F125*100,"-")) -> - | G125: =IF(OR('Tabel 4F ØJ'!G125<5,'Tabel 4 ØJ'!G125<0.5),"-",IFERROR('Tabel 4 ØJ'!G125/'Tabel 4F ØJ'!G125*100,"-")) -> - | I125: =IF(OR('Tabel 4F ØJ'!I125<5,'Tabel 4 ØJ'!I125<0.5),"-",IFERROR('Tabel 4 ØJ'!I125/'Tabel 4F ØJ'!I125*100,"-")) -> -
A126: Forstkand. | C126: =IF(OR('Tabel 4F ØJ'!C126<5,'Tabel 4 ØJ'!C126<0.5),"-",IFERROR('Tabel 4 ØJ'!C126/'Tabel 4F ØJ'!C126*100,"-")) -> - | D126: =IF(OR('Tabel 4F ØJ'!D126<5,'Tabel 4 ØJ'!D126<0.5),"-",IFERROR('Tabel 4 ØJ'!D126/'Tabel 4F ØJ'!D126*100,"-")) -> - | E126: =IF(OR('Tabel 4F ØJ'!E126<5,'Tabel 4 ØJ'!E126<0.5),"-",IFERROR('Tabel 4 ØJ'!E126/'Tabel 4F ØJ'!E126*100,"-")) -> - | F126: =IF(OR('Tabel 4F ØJ'!F126<5,'Tabel 4 ØJ'!F126<0.5),"-",IFERROR('Tabel 4 ØJ'!F126/'Tabel 4F ØJ'!F126*100,"-")) -> - | G126: =IF(OR('Tabel 4F ØJ'!G126<5,'Tabel 4 ØJ'!G126<0.5),"-",IFERROR('Tabel 4 ØJ'!G126/'Tabel 4F ØJ'!G126*100,"-")) -> - | I126: =IF(OR('Tabel 4F ØJ'!I126<5,'Tabel 4 ØJ'!I126<0.5),"-",IFERROR('Tabel 4 ØJ'!I126/'Tabel 4F ØJ'!I126*100,"-")) -> 16.66666667
A127: Jordbrugsakad. | C127: =IF(OR('Tabel 4F ØJ'!C127<5,'Tabel 4 ØJ'!C127<0.5),"-",IFERROR('Tabel 4 ØJ'!C127/'Tabel 4F ØJ'!C127*100,"-")) -> - | D127: =IF(OR('Tabel 4F ØJ'!D127<5,'Tabel 4 ØJ'!D127<0.5),"-",IFERROR('Tabel 4 ØJ'!D127/'Tabel 4F ØJ'!D127*100,"-")) -> - | E127: =IF(OR('Tabel 4F ØJ'!E127<5,'Tabel 4 ØJ'!E127<0.5),"-",IFERROR('Tabel 4 ØJ'!E127/'Tabel 4F ØJ'!E127*100,"-")) -> 12.5 | F127: =IF(OR('Tabel 4F ØJ'!F127<5,'Tabel 4 ØJ'!F127<0.5),"-",IFERROR('Tabel 4 ØJ'!F127/'Tabel 4F ØJ'!F127*100,"-")) -> - | G127: =IF(OR('Tabel 4F ØJ'!G127<5,'Tabel 4 ØJ'!G127<0.5),"-",IFERROR('Tabel 4 ØJ'!G127/'Tabel 4F ØJ'!G127*100,"-")) -> 10 | I127: =IF(OR('Tabel 4F ØJ'!I127<5,'Tabel 4 ØJ'!I127<0.5),"-",IFERROR('Tabel 4 ØJ'!I127/'Tabel 4F ØJ'!I127*100,"-")) -> 4.545454545
A128: Mejeriing. | C128: =IF(OR('Tabel 4F ØJ'!C128<5,'Tabel 4 ØJ'!C128<0.5),"-",IFERROR('Tabel 4 ØJ'!C128/'Tabel 4F ØJ'!C128*100,"-")) -> - | D128: =IF(OR('Tabel 4F ØJ'!D128<5,'Tabel 4 ØJ'!D128<0.5),"-",IFERROR('Tabel 4 ØJ'!D128/'Tabel 4F ØJ'!D128*100,"-")) -> - | E128: =IF(OR('Tabel 4F ØJ'!E128<5,'Tabel 4 ØJ'!E128<0.5),"-",IFERROR('Tabel 4 ØJ'!E128/'Tabel 4F ØJ'!E128*100,"-")) -> - | F128: =IF(OR('Tabel 4F ØJ'!F128<5,'Tabel 4 ØJ'!F128<0.5),"-",IFERROR('Tabel 4 ØJ'!F128/'Tabel 4F ØJ'!F128*100,"-")) -> - | G128: =IF(OR('Tabel 4F ØJ'!G128<5,'Tabel 4 ØJ'!G128<0.5),"-",IFERROR('Tabel 4 ØJ'!G128/'Tabel 4F ØJ'!G128*100,"-")) -> - | I128: =IF(OR('Tabel 4F ØJ'!I128<5,'Tabel 4 ØJ'!I128<0.5),"-",IFERROR('Tabel 4 ØJ'!I128/'Tabel 4F ØJ'!I128*100,"-")) -> -
A129: Levn.m.kand. | C129: =IF(OR('Tabel 4F ØJ'!C129<5,'Tabel 4 ØJ'!C129<0.5),"-",IFERROR('Tabel 4 ØJ'!C129/'Tabel 4F ØJ'!C129*100,"-")) -> - | D129: =IF(OR('Tabel 4F ØJ'!D129<5,'Tabel 4 ØJ'!D129<0.5),"-",IFERROR('Tabel 4 ØJ'!D129/'Tabel 4F ØJ'!D129*100,"-")) -> - | E129: =IF(OR('Tabel 4F ØJ'!E129<5,'Tabel 4 ØJ'!E129<0.5),"-",IFERROR('Tabel 4 ØJ'!E129/'Tabel 4F ØJ'!E129*100,"-")) -> - | F129: =IF(OR('Tabel 4F ØJ'!F129<5,'Tabel 4 ØJ'!F129<0.5),"-",IFERROR('Tabel 4 ØJ'!F129/'Tabel 4F ØJ'!F129*100,"-")) -> - | G129: =IF(OR('Tabel 4F ØJ'!G129<5,'Tabel 4 ØJ'!G129<0.5),"-",IFERROR('Tabel 4 ØJ'!G129/'Tabel 4F ØJ'!G129*100,"-")) -> - | I129: =IF(OR('Tabel 4F ØJ'!I129<5,'Tabel 4 ØJ'!I129<0.5),"-",IFERROR('Tabel 4 ØJ'!I129/'Tabel 4F ØJ'!I129*100,"-")) -> -
A130: Dyrlæge | C130: =IF(OR('Tabel 4F ØJ'!C130<5,'Tabel 4 ØJ'!C130<0.5),"-",IFERROR('Tabel 4 ØJ'!C130/'Tabel 4F ØJ'!C130*100,"-")) -> - | D130: =IF(OR('Tabel 4F ØJ'!D130<5,'Tabel 4 ØJ'!D130<0.5),"-",IFERROR('Tabel 4 ØJ'!D130/'Tabel 4F ØJ'!D130*100,"-")) -> - | E130: =IF(OR('Tabel 4F ØJ'!E130<5,'Tabel 4 ØJ'!E130<0.5),"-",IFERROR('Tabel 4 ØJ'!E130/'Tabel 4F ØJ'!E130*100,"-")) -> - | F130: =IF(OR('Tabel 4F ØJ'!F130<5,'Tabel 4 ØJ'!F130<0.5),"-",IFERROR('Tabel 4 ØJ'!F130/'Tabel 4F ØJ'!F130*100,"-")) -> - | G130: =IF(OR('Tabel 4F ØJ'!G130<5,'Tabel 4 ØJ'!G130<0.5),"-",IFERROR('Tabel 4 ØJ'!G130/'Tabel 4F ØJ'!G130*100,"-")) -> - | I130: =IF(OR('Tabel 4F ØJ'!I130<5,'Tabel 4 ØJ'!I130<0.5),"-",IFERROR('Tabel 4 ØJ'!I130/'Tabel 4F ØJ'!I130*100,"-")) -> -
A131: Farmaceut | C131: =IF(OR('Tabel 4F ØJ'!C131<5,'Tabel 4 ØJ'!C131<0.5),"-",IFERROR('Tabel 4 ØJ'!C131/'Tabel 4F ØJ'!C131*100,"-")) -> - | D131: =IF(OR('Tabel 4F ØJ'!D131<5,'Tabel 4 ØJ'!D131<0.5),"-",IFERROR('Tabel 4 ØJ'!D131/'Tabel 4F ØJ'!D131*100,"-")) -> - | E131: =IF(OR('Tabel 4F ØJ'!E131<5,'Tabel 4 ØJ'!E131<0.5),"-",IFERROR('Tabel 4 ØJ'!E131/'Tabel 4F ØJ'!E131*100,"-")) -> - | F131: =IF(OR('Tabel 4F ØJ'!F131<5,'Tabel 4 ØJ'!F131<0.5),"-",IFERROR('Tabel 4 ØJ'!F131/'Tabel 4F ØJ'!F131*100,"-")) -> - | G131: =IF(OR('Tabel 4F ØJ'!G131<5,'Tabel 4 ØJ'!G131<0.5),"-",IFERROR('Tabel 4 ØJ'!G131/'Tabel 4F ØJ'!G131*100,"-")) -> - | I131: =IF(OR('Tabel 4F ØJ'!I131<5,'Tabel 4 ØJ'!I131<0.5),"-",IFERROR('Tabel 4 ØJ'!I131/'Tabel 4F ØJ'!I131*100,"-")) -> -
A132: Læge | C132: =IF(OR('Tabel 4F ØJ'!C132<5,'Tabel 4 ØJ'!C132<0.5),"-",IFERROR('Tabel 4 ØJ'!C132/'Tabel 4F ØJ'!C132*100,"-")) -> - | D132: =IF(OR('Tabel 4F ØJ'!D132<5,'Tabel 4 ØJ'!D132<0.5),"-",IFERROR('Tabel 4 ØJ'!D132/'Tabel 4F ØJ'!D132*100,"-")) -> 3.225806452 | E132: =IF(OR('Tabel 4F ØJ'!E132<5,'Tabel 4 ØJ'!E132<0.5),"-",IFERROR('Tabel 4 ØJ'!E132/'Tabel 4F ØJ'!E132*100,"-")) -> - | F132: =IF(OR('Tabel 4F ØJ'!F132<5,'Tabel 4 ØJ'!F132<0.5),"-",IFERROR('Tabel 4 ØJ'!F132/'Tabel 4F ØJ'!F132*100,"-")) -> - | G132: =IF(OR('Tabel 4F ØJ'!G132<5,'Tabel 4 ØJ'!G132<0.5),"-",IFERROR('Tabel 4 ØJ'!G132/'Tabel 4F ØJ'!G132*100,"-")) -> - | I132: =IF(OR('Tabel 4F ØJ'!I132<5,'Tabel 4 ØJ'!I132<0.5),"-",IFERROR('Tabel 4 ØJ'!I132/'Tabel 4F ØJ'!I132*100,"-")) -> 1.886792453
A133: Tandlæge | C133: =IF(OR('Tabel 4F ØJ'!C133<5,'Tabel 4 ØJ'!C133<0.5),"-",IFERROR('Tabel 4 ØJ'!C133/'Tabel 4F ØJ'!C133*100,"-")) -> - | D133: =IF(OR('Tabel 4F ØJ'!D133<5,'Tabel 4 ØJ'!D133<0.5),"-",IFERROR('Tabel 4 ØJ'!D133/'Tabel 4F ØJ'!D133*100,"-")) -> - | E133: =IF(OR('Tabel 4F ØJ'!E133<5,'Tabel 4 ØJ'!E133<0.5),"-",IFERROR('Tabel 4 ØJ'!E133/'Tabel 4F ØJ'!E133*100,"-")) -> - | F133: =IF(OR('Tabel 4F ØJ'!F133<5,'Tabel 4 ØJ'!F133<0.5),"-",IFERROR('Tabel 4 ØJ'!F133/'Tabel 4F ØJ'!F133*100,"-")) -> - | G133: =IF(OR('Tabel 4F ØJ'!G133<5,'Tabel 4 ØJ'!G133<0.5),"-",IFERROR('Tabel 4 ØJ'!G133/'Tabel 4F ØJ'!G133*100,"-")) -> - | I133: =IF(OR('Tabel 4F ØJ'!I133<5,'Tabel 4 ØJ'!I133<0.5),"-",IFERROR('Tabel 4 ØJ'!I133/'Tabel 4F ØJ'!I133*100,"-")) -> -
A134: Arkitekt | C134: =IF(OR('Tabel 4F ØJ'!C134<5,'Tabel 4 ØJ'!C134<0.5),"-",IFERROR('Tabel 4 ØJ'!C134/'Tabel 4F ØJ'!C134*100,"-")) -> - | D134: =IF(OR('Tabel 4F ØJ'!D134<5,'Tabel 4 ØJ'!D134<0.5),"-",IFERROR('Tabel 4 ØJ'!D134/'Tabel 4F ØJ'!D134*100,"-")) -> 12.5 | E134: =IF(OR('Tabel 4F ØJ'!E134<5,'Tabel 4 ØJ'!E134<0.5),"-",IFERROR('Tabel 4 ØJ'!E134/'Tabel 4F ØJ'!E134*100,"-")) -> 4.545454545 | F134: =IF(OR('Tabel 4F ØJ'!F134<5,'Tabel 4 ØJ'!F134<0.5),"-",IFERROR('Tabel 4 ØJ'!F134/'Tabel 4F ØJ'!F134*100,"-")) -> 4.761904762 | G134: =IF(OR('Tabel 4F ØJ'!G134<5,'Tabel 4 ØJ'!G134<0.5),"-",IFERROR('Tabel 4 ØJ'!G134/'Tabel 4F ØJ'!G134*100,"-")) -> - | I134: =IF(OR('Tabel 4F ØJ'!I134<5,'Tabel 4 ØJ'!I134<0.5),"-",IFERROR('Tabel 4 ØJ'!I134/'Tabel 4F ØJ'!I134*100,"-")) -> 6.329113924
